Workbook

Sheet CoverPage
A1: Permanent Local Housing Allocation (PLHA) Formula Allocation
A3: 2022 Application for New Applicants
A20: State of California
A21: Governor, Gavin Newsom
A23: Lourdes Castro Ramírez, Secretary
A24: Business, Consumer Services and Housing Agency
A26: Gustavo Velasquez, Director
A27: Department of Housing and Community Development
A30: Program Design and Implementation, PLHA Program
A31: 2020 West El Camino Avenue, Suite 150, Sacramento, CA 95833
A32: PLHA Program Email: PLHA@hcd.ca.gov
A35: Final Filing Date: October 31, 2022 at 4:00 P.M. PST

Sheet Instructions (hidden)
A1: Instructions | AJ1: ='Formula Allocation Application'!#REF! -> 
A2: HCD will only accept applications through a postal carrier service such as U.S. Postal Service, UPS, FedEx or other carrier services that provide date stamp verification confirming delivery to HCD’s office. A complete original application and an electronic copy on a USB flash drive with all applicable information must be received by HCD via postal carrier no later than 4:00 p.m. on:
A3: 2022-12-30
A4: Applications must be on the Department’s forms and cannot be altered or modified by the Sponsor. Excel forms must be in Excel format and unprotected, not a .pdf document. Please fill-out the Application Support worksheet and email the entire workbook to Application Support for application errors at AppSupport@hcd.ca.gov.
A5: General Instructions (Addition instructions and guidance are given throughout the Supplemental Application in "red" text and in cell comments.
A6: "Yellow" cells are for Sponsor input. Failure to provide the required attachments and documentation may disqualify your application from consideration or may negatively impact your point score.
A7: Required attachments are indicated in "Orange" throughout the Supplemental Application. Failure to provide the required attachments and documentation may disqualify your application from consideration or may negatively impact your point score. Electronically attached files must use the naming convention in the Supplemental Application. For Example: "App1 Payee Data" for Sponsor 1 Payee Data Record/ STD. 204.
A8: Self score points awarded are indicated in "blue" cells in the 'Selection Criteria' worksheet. These are automated calculations based on the inputs provided by the Sponsor.
A9: "Red" shaded cells indicate the Sponsor has failed to meet a requirement of the program. Point cells in "Scoring" worksheet shaded in "Red" indicate that the Sponsor has failed to meet the minimum points required.
A10: Universal Application (UA) Instructions
A11: Sponsors must complete the following worksheets in the UA.
A12: General
A13: Narrative
A14: Site & Units
A15: Misc.
A16: Rents
A17: Subsidies
A18: Dev Budget
A19: TBL and High Cost Test
A20: Developer Fee 2017
A21: Supportive Services Costs (Supportive Housing and Special Needs Projects Only)
A22: Reserves
A23: Operating
A24: Cash Flow
A25: Supplemental Application Instructions
A26: Sponsor must complete the following worksheets in the Supplemental Application.
A27: B - Project Requirements
A28: B1 - Development Team Contacts
A29: B2 - SH Experience 7302(f)(1-3) (Supportive Housing Projects Only)
A30: B3 - Supportive Services Plan (Supportive Housing and Special Needs Projects Only)
A31: B4 - SS Verification (Supportive Housing and Special Needs Projects Only)
A32: B5 - At High Risk (At High Risk Projects Only)
A33: C - Local & Env Verification
A34: D - Max Loan & Unit Mix
A35: E - Project Selection
A36: F - Certification & Legal
A37: Disclosure of Application: Information provided in this application and attachments will become a public record available for review by the public pursuant to the Public Records Act. As such, any materials provided will be disclosable to any person making a public records request. Please use discretion in providing HCD with information that is not specifically requested, including but not limited to, bank account numbers, personal phone numbers and home addresses. By providing this information to HCD, the Sponsor is waiving any claim of confidentiality and consents to the disclosure of all submitted material upon request.

Sheet Instructions & Checklist
A1: Instructions This application form is limited to Applicants who did not apply to the 2020 and 2021 Formula Allocation NOFA | AJ1: ='Formula Allocation Application'!AJ1 -> Rev. 2/16/22
A2: When opening this file, a yellow banner at the top may appear with a button that says "Enable Content". It is essential that you click this box so that the macros are enabled. Enabling macros is necessary for full worksheet functionality. Macros do not work with Microsoft's Excel version for Apple Mac.
A3: Applications must be submitted electronically to the Department’s website. Requirements for uploading the Application Workbook and required supporting documentation, including naming conventions, are described in the application instructions available at https://www.hcd.ca.gov/grants-funding/active-funding/plha.shtml. All applicable information must be received by HCD no later than 4:00 p.m. on:
A4: 2022-10-31
A5: Applications must be on the Department’s forms and cannot be altered or modified by the Applicant. Excel forms must be in Excel format and 'save as' .xls or .xlsx. Do not 'save as' .xlsm or .pdf format. If you encounter problems with the application, please fill out the Application Support worksheet and email the entire workbook to Application Support at AppSupport@hcd.ca.gov and PLHA@hcd.ca.gov
A6: General Instructions Additional instructions and guidance are given throughout the Formula Allocation Application in "red" text and in cell comments.
A7: Guideline references are made with "§" and the corresponding guideline section number.
A8: "Yellow" cells are for Applicant input. Failure to provide the required attachments and documentation will disqualify your application from consideration.
A9: Required attachments are indicated in "orange" throughout the Supplemental Application. Failure to provide the required attachments and documentation may disqualify your application from consideration. Electronically attached files must use the naming convention in the PLHA Application. For Example: "App1 Payee Data" for Applicant 1 Payee Data Record/STD. 204.
A10: Threshold items are indicated in "blue" cells.
A11: "Red" shaded cells indicate the Sponsor has failed to meet a requirement of the program.
A12: Applicant must complete the following worksheets in the PLHA Formula Allocation Application.
A13: Formula Allocation Application
A14: 302(c)(4) Plan
A15: Legislative Contacts
A16: Checklist
A17: Threshold Requirement | E17: Electronic File Name | L17: Document Description | AJ17: Included?
A18: X | E18: ='Formula Allocation Application'!D19 -> Application and Adopting the PLHA Plan (2019-2023 Allocations) Reso | L18: ='Formula Allocation Application'!L19:AD19 -> Pursuant to section 302(c)(4) of the Guidelines, Applicant’s PLHA Plan for 2019-2023 allocations is attached to this resolution, and Applicant certifies compliance with all public notice, comment, and hearing requirements in accordance with the Guidelines. | AJ18: Included
E19: App1 TIN | L19: ='Formula Allocation Application'!L21 -> 0
A20: X | C20: X | E20: ='Formula Allocation Application'!D22 -> Applicant Delegation Agreement | G20: ='Formula Allocation Application'!D21 -> App1 TIN | L20: ='Formula Allocation Application'!L22 -> Legally binding agreement between Delegating and Administering Local Governments (sample provided—just click on icon in row 17, column AI) | AJ20: N/A
A21: X | C21: X | E21: Plan Adoption Reso | L21: §302(c)(4)(D) Evidence that the Plan was authorized and adopted by resolution by the Local jurisdiction and that the public had an adequate opportunity to review and comment on its content. PLHA webpage for Plan Adoption Resolution Document
A22: X | E22: ='Formula Allocation Application'!D46 -> Reuse Plan | L22: Program Income Reuse Plan describing how repaid loans or accrued interest will be used for eligible activities in Section 301. | AJ22: Included
A23: X | E23: Executed Application | L23: Provide a copy of the signed application. Signature in blue ink preferred. | AJ23: Included
A24: Disclosure of Application (California Public Records Act Statutes of 1968 Chapter 1473): Information provided in the application will become a public record available for review by the public, pursuant to the California Public Records Act Statutes of 1968 Chapter 1473. As such, any materials provided will be disclosable to any person making a request under this Act. The Department cautions Applicants to use discretion in providing information not specifically requested, including but not limited to, bank accounts, personal phone numbers and home addresses. By providing this information to the Department, the Applicant is waiving any claim of confidentiality and consents to the disclosure of submitted material upon request.

Sheet Formula Allocation Application
A1: Local Government Formula Allocation for New Applicants | AJ1: Rev. 2/16/22 | AS1: Unit of general purpose local government.
A2: Eligible Applicant Type: | H2: Entitlement.
A3: Local Government Recipient of PLHA Formula Allocation: | W3: Madera
A4: 2020 PLHA NOFA Formula Allocation Amount: | M4: =IFERROR(VLOOKUP(W3,Formula!C14:M365,11,FALSE),"") -> 422319 | W4: 2020 NOFA Allowable Local Admin (5%): | AH4: =IFERROR(M4*0.05,"") -> 21115.95 | AU4: =M4*0.05 -> 21115.95 | AV4: =ROUNDDOWN(AU4,0) -> 21115
A5: 2021 PLHA NOFA Formula Allocation Amount: | M5: =IFERROR(VLOOKUP(W3,'Formula 2020'!C14:M365,11,FALSE),"") -> 656414 | W5: 2021 NOFA Allowable Local Admin (5%): | AH5: =IFERROR(M5*0.05,"") -> 32820.7 | AU5: =M5*0.05 -> 32820.7 | AV5: =ROUNDDOWN(AU5,0) -> 32820
A6: 2022 PLHA NOFA Formula Allocation Amount: | M6: =IFERROR(VLOOKUP(W3,'Formula 2021'!C14:M365,11,FALSE),"") -> 722364 | W6: 2022 NOFA Allowable Local Admin (5%): | AH6: =IFERROR(M6*0.05,"") -> 36118.2
A7: Instructions: If the Local Government Recipient of the PLHA Formula Allocation delegated its PLHA formula allocation to a Local Housing Trust Fund or to another Local Government, the Applicant (for which information is required below) is the Local Housing Trust Fund or administering Local Government. The PLHA award will be made to the Applicant (upon meeting threshold requirements) and the Applicant is responsible for meeting all program requirements throughout the term of the Standard Agreement. The 302(c)(4) Plan template worksheet requires first choosing one or more of the Eligible Activities listed below. If "Yes" is clicked, the 302(c)(4) Plan worksheet opens a series of questions about what precise activities are planned. Some specific activities, such as providing downpayment assistance to lower-income households for acquisition of an affordable home, could be included under either Activity 2 or 9. Please only choose one of those Activities; don't list the downpayment assistance under both Activities. If the PLHA funds are used for the same Activity but for different Area Median Income (AMI) level, select the same Activity twice (or more times) and the different AMI level the Activity will serve. Please enter the percentage of funds allocated to the Activity in only the first Activity listing to avoid double counting the funding allocation. For each year (2019-2023), allocations must equal 100% annually including the allowable administrative costs of up to 5%.
A8: Eligible Applicants §300 | AP8: CA-512 | AQ8: Daly City/San Mateo County CoC | AR8: 627447
A9: §300(a) and (b) Eligible Applicants for the Entitlement and Non-Entitlement formula component described in Section §100(b)(1) and (2) are limited to the metropolitan cities and urban counties allocated a grant for the federal fiscal year 2017 pursuant to the federal CDBG formula specified in 42 USC, Section §5306 and Non-entitlement local governments.
A10: Applicant: | E10: City of Madera
A11: Address: | D11: 305 W. 4th Street
A12: City: | C12: Madera | J12: State: | L12: CA | O12: Zip: | Q12: 93637 | U12: County: | W12: Madera
A13: Auth Rep Name: | E13: Arnoldo Rodriguez | J13: Title: | L13: City Manager | R13: Auth Rep. Email: | V13: arodriguez@madera.gov | AF13: Phone: | AI13: 559-661-3686
A14: Address: | D14: 305 W. 4th Street | R14: City: | T14: Madera | AB14: State: | AD14: CA | AF14: Zip Code: | AI14: 93637
A15: Contact Name: | E15: Marcela Zuniga | J15: Title: | L15: Grant Administrator | R15: Contact Email: | V15: mzuniga@madera.gov | AD15: Contact Phone: | AH15: 559-661-3692
A16: Address: | D16: 305 W. 4th Street | R16: City: | T16: Madera | AB16: State: | AD16: CA | AF16: Zip Code: | AI16: 93637
A17: §300(d) Is Applicant delegated by another Local government to administer on its behalf its formula allocation of program funds? | AK17: No
A18: §300(d) If Applicant answered "Yes" above, has the Applicant attached the legally binding agreement required by §300 (c) and (d)? | AC18: A sample agreement can be found by double clicking on the icon to the right
A19: File Name: | D19: Application and Adopting the PLHA Plan (2019-2023 Allocations) Reso | L19: Pursuant to section 302(c)(4) of the Guidelines, Applicant’s PLHA Plan for 2019-2023 allocations is attached to this resolution, and Applicant certifies compliance with all public notice, comment, and hearing requirements in accordance with the Guidelines. | AG19: Uploaded to HCD?
A20: File Name: | D20: App1 Signature Block | L20: Signature Block - upload in Microsoft Word Document | AE20: Uploaded to HCD?
A21: File Name: | D21: App1 TIN | AE21: Uploaded to HCD?
A22: File Name: | D22: Applicant Delegation Agreement | L22: Legally binding agreement between Delegating and Administering Local Governments (sample provided—just click on icon in row 17, column AI) | AE22: Uploaded to HCD?
A23: Eligible Activities, §301 | AP23: CA-512 | AQ23: Daly City/San Mateo County CoC | AR23: 627447
A24: §301(a) Eligible activities are limited to the following: | AJ24: Included?
A25: §301(a)(1) The predevelopment, development, acquisition, rehabilitation, and preservation of multifamily, residential live-work, rental housing that is affordable to Extremely low-,Very low-, Low-, or Moderate-income households, including necessary operating subsidies.
A26: §301(a)(2) The predevelopment, development, acquisition, rehabilitation, and preservation of affordable rental and ownership housing, including Accessory Dwelling Units (ADUs), that meets the needs of a growing workforce earning up to 120 percent of AMI, or 150 percent of AMI in high-cost areas. ADUs shall be available for occupancy for a term of no less than 30 days.
A27: §301(a)(3) Matching portions of funds placed into Local or Regional Housing Trust Funds.
A28: §301(a)(4) Matching portions of funds available through the Low- and Moderate-Income Housing Asset Fund pursuant to subdivision (d) of HSC Section 34176.
A29: §301(a)(5) Capitalized Reserves for services connected to the preservation and creation of new permanent supportive housing.
A30: §301(a)(6) Assisting persons who are experiencing or At-risk of homelessness, including, but not limited to, providing rapid re-housing, rental assistance, supportive/case management services that allow people to obtain and retain housing, operating and capital costs for navigation centers and emergency shelters, and the new construction, rehabilitation, and preservation of permanent and transitional housing.
A31: §301(a)(7) Accessibility modifications in Lower-income Owner-occupied housing.
A32: §301(a)(8) Efforts to acquire and rehabilitate foreclosed or vacant homes and apartments.
A33: §301(a)(9) Homeownership opportunities, including, but not limited to, down payment assistance.
A34: §301(a)(10) Fiscal incentives made by a county to a city within the county to incentivize approval of one or more affordable housing Projects, or matching funds invested by a county in an affordable housing development Project in a city within the county, provided that the city has made an equal or greater investment in the Project. The county fiscal incentives shall be in the form of a grant or low-interest loan to an affordable housing Project. Matching funds investments by both the county and the city also shall be a grant or low-interest deferred loan to the affordable housing Project.
A35: Threshold Requirements, §302
A36: §302(a) The Applicant's Housing Element and Delegating Local Government's Housing Element (if applicable) was/were adopted by the Local Government’s governing body by the application submittal date subsequently determined to be in substantial compliance with state Housing Element Law pursuant to Government Code Section 65585. | AK36: Yes
A37: §302(b) Applicant or Delegating Local Government has submitted the current or prior year's Annual Progress Report to the Department of Housing and Community Development pursuant to Government Code Section 65400. | AK37: Yes
A38: §302(c)(2) Applicant certified in the Resolution submitted with this application that submission of the application was authorized by the governing board of the Applicant. | AK38: Yes
A39: §302(c)(3) Applicant certified in the Resolution submitted with this application that, if the Local Government proposes allocation of funds for any activity to another entity, the Local government’s selection process had no conflicts of interest and was accessible to the public. | AK39: Yes
A40: §302(c)(4) Applicant certified in the Resolution submitted with this application that the application include a Plan in accordance with §302(c)(4)? | AK40: Yes
A41: §302(c)(4)(D) Applicant certified in the Resolution submitted with this application that the Plan was authorized and adopted by resolution by the Local Government and that the public had an adequate opportunity to review and comment on its content. | AK41: Yes
A42: §302(c)(5) Applicant certified in the Resolution submitted with this application that the Plan submitted is for a term of five years (2019-2023). Local Governments agree to inform the Department of changes made to the Plan in each succeeding year of the term of the Plan. | AK42: Yes
A43: §302(c)(6) Applicant certified in the Resolution submitted with this application that it will ensure compliance with §302(c)(6) if funds are used for the acquisition, construction, or rehabilitation of for-sale housing projects or units within for-sale housing projects. | AK43: Yes
A44: §302(c)(7) Applicant certified in the Resolution submitted with this application that it will ensure that the PLHA assistance is in the form of a low-interest, deferred loan to the Sponsor of the Project, if funds are used for the development of an Affordable Rental Housing Development. The loan shall be evidenced through a Promissory Note secured by a Deed of Trust and a Regulatory Agreement shall restrict occupancy and rents in accordance with the Local government-approved underwriting of the Project for a term of at least 55 years. | AK44: Yes
A45: §302(c)(8) Has Applicant attached a program income reuse plan describing how repaid loans or accrued interest will be reused for eligible activities specified in Section 301? | AK45: Yes
A46: File Name: | D46: Reuse Plan | H46: Program Income Reuse Plan describing how repaid loans will be used for eligible activities in Section 301. | L46: Program Income Reuse Plan describing how repaid loans or accrued interest will be used for eligible activities in Section 301. | AE46: Narrative uploaded to HCD? | AK46: Yes
A47: Administration
A48: Applicant agrees to adhere to §500, Accounting Records. | AK48: Yes
A49: Applicant agrees to adhere to §501, Audits/Monitoring of Project Files. | AK49: Yes
A50: Applicant agrees to adhere to §502, Cancellation/Termination. | AK50: Yes
A51: Applicant agrees to adhere to §503, Reporting. | AK51: Yes
A52: Certifications
A53: On behalf of the entity identified below, I certify that: The information, statements and attachments included in this application are, to the best of my knowledge and belief, true and correct and I possess the legal authority to submit this application on behalf of the entity identified in the signature block.
A54: Arnoldo Rodriguez | M54: City Manager
A55: Authorized Representative Printed Name | M55: Title | U55: Signature | AK55: Date

Sheet Competitive Allocation (hidden)
A1: Competitive Allocation | AJ1: Rev. 2/19/19 | AS1: Unit of general purpose local government.
A2: Estimated Allocation From SB 2 Formula Allocation: | X2: Allowable Local Admin (5%):
A3: Eligible Applicants §400 | AP3: CA-512 | AQ3: Daly City/San Mateo County CoC | AR3: 627447
A4: (a) ) Eligible Applicants for the non-entitlement competitive allocation described in Section 100(b)(3) are limited to non-entitlement jurisdictions.
A5: §300(c) For a list of eligible Applicants for each program component, please see Appendix A of the PLHA Guidelines.
A6: Eligible Applicant:
A7: Applicant: | E7: Alpine County
A8: AE Name:
A9: Address:
A10: City: | J10: State: | O10: Zip: | U10: County: | W10: Alpine
A11: (d) Is Applicant designating another Local government to administer on its behalf its formula allocation of program funds?
A12: (d) If Applicant answered "Yes" above, have the governments enter into a legally binding agreement and the funds are expended for eligible activities and consistent with program requirements?
A13: Eligible Activites, §401, Threashold Requirements, §402 | AP13: CA-512 | AQ13: Daly City/San Mateo County CoC | AR13: 627447
A14: §402(a) Housing Element compliance: Does the Applicant and any co-applicants have a Housing Element that has been adopted by the jurisdiction’s governing body by the deadline specified in the NOFA and subsequently determined to be in substantial compliance with state Housing Element law pursuant to GC Section 65585? | AK14: Yes
A15: §402(b) Has the Applicant and any co-applicants submitted to the Department the APR required by GC Section 65400 for the current or prior year by the application deadline date? | AK15: Yes
A16: §401(a) Eligible activities are limited to the following and must take place within the jurisdiction of the Applicant Local government: | AH16: Included?
A17: §401(a)(1) Development of new multifamily rental housing that is Affordable to households at or below 60 percent of AMI or substantial rehabilitation of multifamily rental housing that will be Affordable to households at or below 60 percent of AMI, but which is not currently restricted as Affordable housing.
A18: §402 (c)(1) Applicant certifies that if the Local government proposes allocation of funds for any activity to another entity, the selection process shall avoid conflicts of interest, and shall be accessible to the public. | AK18: Yes
A19: §402 (c)(4) Does Applicant have site control? If yes, enter form of site control and most recent execution date.
A20: Form of site control: | Z20: Most recent document execution date:
A21: Provide details below for unusual site control special circumstances:
A23: File Name: | D23: B42 | F23: Site Control | L23: Provide documentation of the form of site control selected above meeting UMR §8303. | AE23: Attached and on USB?
A24: File Name: | D24: B43 | F24: Preliminary Title Report | L24: Provide a current preliminary report. | AE24: Attached and on USB?
A25: §401(a)(2) Assistance to persons who are experiencing or At risk of homelessness, including, but not limited to, through rapid rehousing, or rental assistance, or navigation centers, or new construction, rehabilitation, or preservation of permanent or transitional rental housing.
A26: §402 (c)(4) Does Applicant have site control? If yes, enter form of site control and most recent execution date.
A27: Form of site control: | Z27: Most recent document execution date:
A28: Provide details below for unusual site control special circumstances:
A30: File Name: | D30: C13 | F30: Site Control | L30: Provide documentation of the form of site control selected above meeting UMR §8303. | AE30: Attached and on USB?
A31: File Name: | D31: C14 | F31: Preliminary Title Report | L31: Provide a current preliminary report. | AE31: Attached and on USB?
A32: Selection Criteria, §403 | AE32: Total Points: | AJ32: =SUM(AK34,AK39) -> 0 | AP32: CA-512 | AQ32: Daly City/San Mateo County CoC | AR32: 627447
A33: (a) Applications submitted within a competitive funding round shall be evaluated using the following criteria. 100 Points Max. | AK33: Points
A34: (a)(1) Priority Points. 25 Points Max. | AK34: =SUM(AK35:AL36)+MAX(AK37,AK38) -> 0
A35: (a)(1)(A) Population – Is the Applicant a county that has a population of 200,000 or less within the unincorporated areas of the county? 5 Points. | AK35: =IF(AI35="Yes",5,0) -> 0
A36: (a)(1)(B ) Prior Award – Did the Applicant receive an award based on the formula specified in 42 USC, Section 5306 in 2016? | AK36: =IF(AI36="No",5,0) -> 0
A37: (a)(1)(C)(1) Assistance for Homeless Persons through Program Activities – Application will assist persons experiencing or At risk of homelessness, including but not limited to, through programs providing rapid rehousing, or rental assistance, or operating assistance to navigation centers? 15 Points; OR | AK37: =IF(AI37="Yes",15,0) -> 0
A38: (a)(1)(C )(2) Assistance for Homeless Persons through Rental Projects – Application is for the new construction, rehabilitation, or preservation of permanent or transitional rental housing in which all or at least 10% of the units are restricted to occupancy by tenants who are homeless or At risk of homelessness? 15 Points. | AK38: =IF(AI38="Yes",15,0) -> 0
A39: (a)(2) Evaluation Critera. 75 Points Max.
A40: (a)(2)(A) Community Need – Applicants will receive up to a maximum of 30 points based on the rate of households experiencing the most severe housing need according to the most recent HUD CHAS dataset in the Applicant Local government. Applicants will receive points in proportion to this percentage.
A41: (a)(2)(B ) Applicant Administrative Experience – Applicants with prior experience administering local, state or federal affordable housing or community development programs or who partner with an entity with prior experience in the implementation of local, state or federal affordable housing or community development programs will receive up to 15 points. | AI41: Yes
A42: (a)(2)(C) Demonstrated Capacity – 30 Points Max
A43: (i)(a) Sponsor experience in affordable housing development and ownership – 30 Points Max; OR
A44: (i)(b) Navigation center development experience (for development of these facilities) – 30 Points Max; OR
A45: (i)(c) Program Operator experience (for non-development Activities) – 30 Points Max
A46: Other Documents
A47: File Name: | D47: STD-204 | K47: Applicants that are not a government agency must submit a Payee Data Record (STD-204) | AE47: Attached and uploaded?
A48: File Name: | D48: Government TIN Form | K48: Applicants that are a government agency must submit a Government TIN Form | AE48: Attached and uploaded?
A49: File Name: | D49: Resolution | K49: Resolutions (Refer to Resolution Instructions and Sample Resolution on CESH Program website) | AE49: Attached and uploaded?
A50: Certifications
A51: On behalf of the entity identified below, I certify that: The information, statements and attachments included in this application are, to the best of my knowledge and belief, true and correct and I possess the legal authority to submit this application on behalf of the entity identified in the signature block.
A53: Authorized Representative Printed Name | O53: Title | U53: Signature | AK53: Date
A54: Entity name: | T54: Phone Number:
A55: Entity Address | V55: City | AC55: State | AH55: Zip

Sheet 302(c)(4) Plan
A1: §302(c)(4) Plan | AJ1: ='Formula Allocation Application'!AJ1:AL1 -> Rev. 2/16/22
A2: §302(c)(4)(A) Describe the manner in which allocated funds will be used for eligible activities.
A3: The City of Madera plans to use the PLHA funds for tow Eligible Activities: 1) for the predevelopment, development, acquisition, rehabalitation and preservation of rental housing that is affordable to extremely low-income, very low-income, and low income households; and 2) assisting persons who are experiencing or at risk of homelessness. PLHA funding for programs that assist persons who are experiencing or at risk of homelessness will be provided as a grant. PLHA assistance for development or preservation of affordable rental housing will be offerered in the form of no-interest, deferred payment loans.
A4: §302(c)(4)(B) Provide a description of the way the Local government will prioritize investments that increase the supply of housing for households with incomes at or below 60 percent of Area Median Income (AMI).
A5: PLHA funds will be made available to rental property owners or affordable housing developers who have experience working within the City of Madera expanding and/or preserving affordable housing inventory. The City will prioritize investments of PLHA funds to increase the suply of housing for households with incomes at or below 60 percent of Area Median Income (AMI). The City of Madera will also be utilizing PLHA funding to provide services to homele4ss individuals who are classified as "presumed beneficiaries" under the Department of HLousing and Urban Development (HUD) guidelines. This classification considers this group of individuals to be "extremely-low income" with incomes at 30% of AMI or less.
A6: §302(c)(4)(C) Provide a description of how the Plan is consistent with the programs set forth in the Local Government’s Housing Element.
A7: The City of Madera PLHA Plan furthers the Goal of the City support the creation and retention of affordale housing units. The following sections of the City's Housing Element demonstrate that the PLHA Plan is consistent with the City's overall Goals: Housing Element Goal H-2: Coordination between the City, private developers, and nonprofit entities to support the creation of new affordable housing opportunities. Housing Element Goal H-3: Conserve and improve the existing housing stock, improving housing availability and conditions for lower-income households. Housing Element Goal H-4: Provide decent housing and quality living environment for all Madera residents, and to provide a range of housing services for households with special needs, including homeless.
A8: Activities Detail (Activities Detail (Must Make a Selection on Formula Allocation Application worksheet under Eligible Activities, §301))
A9: §301(a)(1) The predevelopment, development, acquisition, rehabilitation, and preservation of multifamily, residential live-work, rental housing that is affordable to extremely low-,very low-, low-, or moderate-income households, including necessary Operating subsidies.
A10: §302(c)(4)(E)(i) Provide a detailed and complete description of how allocated funds will be used for each proposed Affordable Rental Housing Activity.
A11: The PLHA funds will be used for the predevelopment, development, acquisition, rehabilitation and/or preservation of multifamily rental housing that is affordable to low-income persons earning 80% or less of the area median income (AMI). Funds will be evidenced through a Promissory Note and secured by a Deed of Trust and a Regulatory Agreement restricting occupncy and rents in accordance with PLHA required terms.
A12: Complete the table below for each proposed Affordable Rental Housing Activity to be funded with 2019-2023 PLHA allocations. If a single Activity will be assisting households at more than one level of Area Median Income, please list the Activity as many times as needed to capture all of the AMI levels that will be assisted, but only show the percentage of annual funding allocated to the Activity one time (to avoid double counting).
A13: Funding Allocation Year | H13: 2019 | J13: 2020 | L13: 2021 | N13: 2022 | P13: 2023
A14: §302(c)(4)(E)(i) Percentage of Funds Allocated for the Proposed Affordable Rental Housing Activity | J14: 0.95 | L14: 0.95 | N14: 0.95 | P14: 0.95
A15: §302(c)(4)(E)(ii) Area Median Income Level Served | J15: 0.8 | L15: 0.8 | N15: 0.8 | P15: 0.8 | AJ15: TOTAL
A16: §302(c)(4)(E)(ii) Unmet share of the RHNA at the AMI Level Note: complete for years 2019, 2020, 2021 only | J16: 925 | L16: 925 | AJ16: =SUM(H16:AI16) -> 1850
A17: §302(c)(4)(E)(ii) Projected Number of Households Served | J17: 10 | L17: 10 | N17: 10 | P17: 10 | AJ17: =SUM(H17:AH17) -> 40
A18: §302(c)(4)(E)(iv) Period of Affordability for the Proposed Affordable Rental Housing Activity (55 years required for rental housing projects) | H18: 55 Years | J18: 55 Years | L18: 55 Years | N18: 55 Years | P18: 55 Years | R18: 55 Years | T18: 55 Years | V18: 55 Years | X18: 55 Years | Z18: 55 Years | AB18: 55 Years | AD18: 55 Years | AF18: 55 Years | AH18: 55 Years
A19: §302(c)(4)(E)(iii) A description of major steps/actions and a proposed schedule for the implementation and completion of the Activity.
A20: The PLHA funds will be included in the City's 2024-2025 NOFA that will be released in late 2023. The NOFA will include PLHA funds and any other housing funding awards received by the City. The City may award additional years funds to applicants who meet the guidelines of the PLHA program and offer ongoing activities.
A21: §301(a)(2) The predevelopment, development, acquisition, rehabilitation, and preservation of Affordable rental and ownership housing, including Accessory Dwelling Units (ADUs), that meets the needs of a growing workforce earning up to 120 percent of AMI, or 150 percent of AMI in high-cost areas. ADUs shall be available for occupancy for a term of no less than 30 days.
A22: §302(c)(4)(E)(i) Provide a detailed and complete description of how allocated funds will be used for each proposed Affordable Rental and Ownership Housing Activity. | AA22: Enter Percentage of Funds Allocated for Affordable Owner-occupied Workforce Housing
A24: Complete the table below for each proposed Affordable Rental and Ownership Housing Activity to be funded with 2019-2023 PLHA allocations. If a single Activity will be assisting households at more than one level of Area Median Income, please list the Activity as many times as needed to capture all of the AMI levels that will be assisted, but only show the percentage of annual funding allocated to the Activity one time (to avoid double counting).
A25: Funding Allocation Year
A26: Type of Affordable Housing Activity
A27: §302(c)(4)(E)(i) Percentage of Funds Allocated for Each Affordable Housing Activity
A28: §302(c)(4)(E)(ii) Area Median Income Level Served | AJ28: TOTAL
A29: §302(c)(4)(E)(ii) Unmet share of the RHNA at AMI Level Note: complete for years 2019, 2020, 2021 only | AJ29: =SUM(H29:AI29) -> 0
A30: §302(c)(4)(E)(ii) Projected Number of Households Served | AJ30: =SUM(H30:AH30) -> 0
A31: §302(c)(4)(E)(iv) Period of Affordability for the Proposed Activity (55 years required for rental housing projects)
A32: §302(c)(4)(E)(iii) A description of major steps/actions and a proposed schedule for the implementation and completion of each Affordable Rental and Ownership Housing project.
A34: §301(a)(3) Matching portions of funds placed into Local or Regional Housing Trust Funds.
A35: §302(c)(4)(E)(i) Provide a detailed and complete description of how allocated funds will be used for the proposed Activity. | AA35: Enter Percentage of Funds Allocated for Affordable Owner-occupied Workforce Housing
A37: Complete the table below for each proposed Activity to be funded with 2019-2023 PLHA allocations. If a single Activity will be assisting households at more than one level of Area Median Income, please list the Activity as many times as needed to capture all of the AMI levels that will be assisted, but only show the percentage of annual funding allocated to the Activity one time (to avoid double counting).
A38: Funding Allocation Year
A39: Type of Affordable Housing Activity
A40: §302(c)(4)(E)(i) Percentage of Funds Allocated for the Proposed Activity
A41: §302(c)(4)(E)(ii) Area Median Income Level Served | AJ41: TOTAL
A42: §302(c)(4)(E)(ii) Unmet share of the RHNA at AMI Level Note: complete for years 2019, 2020, 2021 only | AJ42: =SUM(H42:AI42) -> 0
A43: §302(c)(4)(E)(ii) Projected Number of Households Served | AJ43: =SUM(H43:AH43) -> 0
A44: §302(c)(4)(E)(iv) Period of Affordability for the Proposed Activity (55 years required for rental housing projects)
A45: §302(c)(4)(E)(iii) A description of major steps/actions and a proposed schedule for the implementation and completion of the Activity.
A47: §301(a)(4) Matching portions of funds available through the Low- and Moderate-Income Housing Asset Fund pursuant to subdivision (d) of HSC Section 34176.
A48: §302(c)(4)(E)(i) Provide a detailed and complete description of how allocated funds will be used for the proposed Activity. | AA48: Enter Percentage of Funds Allocated for Affordable Owner-occupied Workforce Housing
A50: Complete the table below for the proposed Activity to be funded with 2019-2023 PLHA allocations. If a single Activity will be assisting households at more than one level of Area Median Income, please list the Activity as many times as needed to capture all of the AMI levels that will be assisted, but only show the percentage of annual funding allocated to the Activity one time (to avoid double counting).
A51: Funding Allocation Year
A52: Type of Affordable Housing Activity
A53: §302(c)(4)(E)(i) Percentage of Funds Allocated for the Proposed Activity
A54: §302(c)(4)(E)(ii) Area Median Income Level Served | AJ54: TOTAL
A55: §302(c)(4)(E)(ii) Unmet share of the RHNA at AMI Level Note: complete for years 2019, 2020, 2021 only | AJ55: =SUM(H55:AI55) -> 0
A56: §302(c)(4)(E)(ii) Projected Number of Households Served | AJ56: =SUM(H56:AH56) -> 0
A57: §302(c)(4)(E)(iv) Period of Affordability for the Proposed Activity (55 years required for rental housing projects)
A58: §302(c)(4)(E)(iii) A description of major steps/actions and a proposed schedule for the implementation and completion of the Activity.
A60: §301(a)(5) Capitalized Reserves for Services connected to the preservation and creation of new permanent supportive housing.
A61: §302(c)(4)(E)(i) Provide a detailed and complete description of how allocated funds will be used for the proposed Activity .
A63: Complete the table below for each proposed Activity to be funded with 2019-2023 PLHA allocations. If a single Activity will be assisting households at more than one level of Area Median Income, please list the Activity as many times as needed to capture all of the AMI levels that will be assisted, but only show the percentage of annual funding allocated to the Activity one time (to avoid double counting).
A64: Funding Allocation Year
A65: Type of Permanent Supportive Housing Project
A66: §302(c)(4)(E)(i) Percentage of Funds Allocated for the Proposed Activity
A67: §302(c)(4)(E)(ii) Area Median Income Level Served | AJ67: TOTAL
A68: §302(c)(4)(E)(ii) Unmet share of the RHNA at AMI Level Note: complete for years 2019, 2020, 2021 only | AJ68: =SUM(H68:AH68) -> 0
A69: §302(c)(4)(E)(ii) Projected Number of Households Served | AJ69: =SUM(H69:AH69) -> 0
A70: §302(c)(4)(E)(iv) Period of Affordability for the Proposed Activity (55 years required for rental housing projects)
A71: §302(c)(4)(E)(iii) A description of major steps/actions and a proposed schedule for the implementation and completion of the Activity.
A73: §301(a)(6) Assisting persons who are experiencing or At risk of homelessness, including, but not limited to, providing rapid rehousing, rental assistance, supportive/case management services that allow people to obtain and retain housing, operating and capital costs for navigation centers and emergency shelters, and the new construction, rehabilitation, and preservation of permanent and transitional housing.
A74: §302(c)(4)(E)(i) Provide a detailed and complete description of how allocated funds will be used for the proposed Activity.
A75: The City will utilize its procurement process to solicit qualified subgrantees to manage and operate emergency shelter facilities, including the provision of support services to homeless person or those at risk of homelessness. Support services include but are not limeted to : operational costs of managing an emergency shelter. The PLHA funding will be utilized for the provision of Homeless Services in 2023-2024
A76: Complete the table below for each proposed Activity to be funded with 2019-2023 PLHA allocations. If a single Activity will be assisting households at more than one level of Area Median Income, please list the Activity as many times as needed to capture all of the AMI levels that will be assisted, but only show the percentage of annual funding allocated to the Activity one time (to avoid double counting).
A77: Funding Allocation Year | H77: 2019
A78: Type of Activity for Persons Experiencing or At Risk of Homelessness | H78: Emergency Shelter
A79: §302(c)(4)(E)(i) Percentage of Funds Allocated for the Proposed Activity | H79: 0.95
A80: §302(c)(4)(E)(ii) Area Median Income Level Served | H80: 0.3 | AJ80: TOTAL
A81: §302(c)(4)(E)(ii) Unmet share of the RHNA at AMI Level Note: complete for years 2019, 2020, 2021 only | H81: 1172 | AJ81: =SUM(H81:AI81) -> 1172
A82: §302(c)(4)(E)(ii) Projected Number of Households Served | H82: 500 | AJ82: =SUM(H82:AH82) -> 500
A83: §302(c)(4)(E)(iv) Period of Affordability for the Proposed Activity (55 years required for rental housing projects) | H83: NA
A84: §302(c)(4)(E)(iii) A description of major steps/actions and a proposed schedule for the implementation and completion of the Activity.
A85: Upon approval of the City of Madewra's PLHA application and execution of the Standard Agreement, the City will begin its procurement process to select subgrantee/service provider than will provide the services necessary to implement the proposed activity and will award contract to the provider that is most qualified and able to provide the required service. It is anticipated that subgrantee will be awarded frunds during the 2023-2024 program year. To monitor program funded with PLHA, staff will use similar reporting requirements as used for other grant funded programs the City administers. Sub grantee will be required to provide appropriate documentation demonstrating adherence to program regulations. Sub grantee will submit quarterly reports including numbers of persons served, description of beneficiaries, and description of services provided.
A86: §301(a)(7) Accessibility modifications in Lower-income Owner-occupied housing.
A87: §302(c)(4)(E)(i) Provide a detailed and complete description of how allocated funds will be used for the proposed Activity. | AA87: Enter Percentage of Funds Allocated for Affordable Owner-occupied Workforce Housing
A89: Complete the table below for each proposed Activity to be funded with 2019-2023 PLHA allocations. If a single Activity will be assisting households at more than one level of Area Median Income, please list the Activity as many times as needed to capture all of the AMI levels that will be assisted, but only show the percentage of annual funding allocated to the Activity one time (to avoid double counting).
A90: Funding Allocation Year
A91: §302(c)(4)(E)(i) Percentage of Funds Allocated for the Proposed Activity
A92: §302(c)(4)(E)(ii) Area Median Income Level Served | AJ92: TOTAL
A93: §302(c)(4)(E)(ii) Unmet share of the RHNA at AMI Level Note: complete for years 2019, 2020, 2021 only | AJ93: =SUM(H93:AI93) -> 0
A94: §302(c)(4)(E)(ii) Projected Number of Households Served | AJ94: =SUM(H94:AH94) -> 0
A95: §302(c)(4)(E)(iv) Period of Affordability for the Proposed Activity
A96: §302(c)(4)(E)(iii) A description of major steps/actions and a proposed schedule for the implementation and completion of the Activity.
A98: §301(a)(8) Efforts to acquire and rehabilitate foreclosed or vacant homes and apartments.
A99: §302(c)(4)(E)(i) Provide a detailed and complete description of how allocated funds will be used for the proposed Activity. | AA99: Enter Percentage of Funds Allocated for Affordable Owner-occupied Workforce Housing (AOWH)
A101: Complete the table below for each proposed Activity to be funded with 2019-2023 PLHA allocations. If a single Activity will be assisting households at more than one level of Area Median Income, please list the Activity as many times as needed to capture all of the AMI levels that will be assisted, but only show the percentage of annual funding allocated to the Activity one time (to avoid double counting).
A102: Funding Allocation Year
A103: Type of Activity
A104: §302(c)(4)(E)(i) Percentage of Funds Allocated for the Proposed Activity
A105: §302(c)(4)(E)(ii) Area Median Income Level Served | AJ105: TOTAL
A106: §302(c)(4)(E)(ii) Unmet share of the RHNA at AMI Level Note: complete for years 2019, 2020, 2021 only | AJ106: =SUM(H106:AI106) -> 0
A107: §302(c)(4)(E)(ii) Projected Number of Households Served | AJ107: =SUM(H107:AH107) -> 0
A108: §302(c)(4)(E)(iv) Period of Affordability for the Proposed Activity (55 years required for rental housing projects)
A109: §302(c)(4)(E)(iii) A description of major steps/actions and a proposed schedule for the implementation and completion of the Activity.
A111: §301(a)(9) Homeownership opportunities, including, but not limited to, down payment assistance.
A112: §302(c)(4)(E)(i) Provide a detailed and complete description of how allocated funds will be used for the proposed Activity. | AA112: Enter Percentage of Funds Allocated for Affordable Owner-occupied Workforce Housing (AOWH)
A114: Complete the table below for each proposed Activity to be funded with 2019-2023 PLHA allocations. If a single Activity will be assisting households at more than one level of Area Median Income, please list the Activity as many times as needed to capture all of the AMI levels that will be assisted, but only show the percentage of annual funding allocated to the Activity one time (to avoid double counting).
A115: Funding Allocation Year
A116: Type of Homeowner Assistance
A117: §302(c)(4)(E)(i) Percentage of Funds Allocated for the Proposed Activity
A118: §302(c)(4)(E)(ii) Area Median Income Level Served | AJ118: TOTAL
A119: §302(c)(4)(E)(ii) Unmet share of the RHNA at AMI Level Note: complete for years 2019, 2020, 2021 only | AJ119: =SUM(H119:AI119) -> 0
A120: §302(c)(4)(E)(ii) Projected Number of Households Served | AJ120: =SUM(H120:AH120) -> 0
A121: §302(c)(4)(E)(iv) Period of Affordability for the Proposed Activity
A122: §302(c)(4)(E)(iii) A description of major steps/actions and a proposed schedule for the implementation and completion of the Activity.
A124: §301(a)(10) Fiscal incentives made by a county to a city within the county to incentivize approval of one or more affordable housing Projects, or matching funds invested by a county in an affordable housing development Project in a city within the county, provided that the city has made an equal or greater investment in the Project. The county fiscal incentives shall be in the form of a grant or low-interest loan to an affordable housing Project. Matching funds investments by both the county and the city also shall be a grant or low-interest deferred loan to the affordable housing Project.
A125: §302(c)(4)(E)(i) Provide a detailed and complete description of how allocated funds will be used for the proposed Activity. | AA125: Enter Percentage of Funds Allocated for Affordable Owner-occupied Workforce Housing (AOWH)
A127: Complete the table below for each proposed Activity to be funded with 2019-2023 PLHA allocations. If a single Activity will be assisting households at more than one level of Area Median Income, please list the Activity as many times as needed to capture all of the AMI levels that will be assisted, but only show the percentage of annual funding allocated to the Activity one time (to avoid double counting).
A128: Funding Allocation Year
A129: Type of Activity
A130: Type of Affordable Housing Project | AM130: Fiscal Incentives
A131: §302(c)(4)(E)(i) Percentage of Funds Allocated for the Proposed Activity
A132: §302(c)(4)(E)(ii) Area Median Income Level Served | AJ132: TOTAL
A133: §302(c)(4)(E)(ii) Unmet share of the RHNA at AMI Level Note: complete for years 2019, 2020, 2021 only | AJ133: =SUM(H133:AI133) -> 0
A134: §302(c)(4)(E)(ii) Projected Number of Households Served | AJ134: =SUM(H134:AH134) -> 0
A135: §302(c)(4)(E)(iv) Period of Affordability for the Proposed Activity (55 years required for rental housing projects)
A136: §302(c)(4)(E)(iii) A description of major steps/actions and a proposed schedule for the implementation and completion of the Activity.
A138: File Name: | D138: Plan Adoption Reso | L138: §302(c)(4)(D) Evidence that the Plan was authorized and adopted by resolution by the Local jurisdiction and that the public had an adequate opportunity to review and comment on its content. | AE138: Uploaded to HCD?

Sheet Legislative Contacts (hidden)
A1: Legislative and Congressional Information | AJ1: ='Formula Allocation Application'!AJ1 -> Rev. 2/16/22
A2: Provide the Legislative and Congressional information for the applicant and each activity location, (if different than applicant location), included in this application.
A3: To locate or verify the Legislative and Congressional information, click on the respective links below and enter the applicant office location zip code, the activity location site zip code(s) (i.e. zip code(s) where activities are performed), and any additional activity location site(s), as applicable.
A4: California State Assembly | M4: California State Senate | Z4: U.S. House of Representatives
A5: Applicant Office Location
H6: District # | P6: First Name | Y6: Last Name
A7: State Assembly Member
A8: State Senate Member
A9: U.S. House of Representatives
A10: Activity Location 1 (if different from applicant location)
H11: District # | P11: First Name | Y11: Last Name
A12: State Assembly Member
A13: State Senate Member
A14: U.S. House of Representatives
A15: Activity Location 2 (if different from applicant location)
H16: District # | P16: First Name | Y16: Last Name
A17: State Assembly Member
A18: State Senate Member
A19: U.S. House of Representatives
A20: Activity Location 3 (if different from applicant location)
H21: District # | P21: First Name | Y21: Last Name
A22: State Assembly Member
A23: State Senate Member
A24: U.S. House of Representatives
A25: Activity Location 4 (if different from applicant location)
H26: District # | P26: First Name | Y26: Last Name
A27: State Assembly Member
A28: State Senate Member
A29: U.S. House of Representatives
A30: Activity Location 5 (if different from applicant location)
H31: District # | P31: First Name | Y31: Last Name
A32: State Assembly Member
A33: State Senate Member
A34: U.S. House of Representatives
A35: Activity Location 6 (if different from applicant location)
H36: District # | P36: First Name | Y36: Last Name
A37: State Assembly Member
A38: State Senate Member
A39: U.S. House of Representatives
A40: Activity Location 7 (if different from applicant location)
H41: District # | P41: First Name | Y41: Last Name
A42: State Assembly Member
A43: State Senate Member
A44: U.S. House of Representatives
A45: Activity Location 8 (if different from applicant location)
H46: District # | P46: First Name | Y46: Last Name
A47: State Assembly Member
A48: State Senate Member
A49: U.S. House of Representatives
A50: Activity Location 9 (if different from applicant location)
H51: District # | P51: First Name | Y51: Last Name
A52: State Assembly Member
A53: State Senate Member
A54: U.S. House of Representatives
A55: Activity Location 10 (if different from applicant location)
H56: District # | P56: First Name | Y56: Last Name
A57: State Assembly Member
A58: State Senate Member
A59: U.S. House of Representatives
A60: Activity Location 11 (if different from applicant location)
H61: District # | P61: First Name | Y61: Last Name
A62: State Assembly Member
A63: State Senate Member
A64: U.S. House of Representatives
A65: Activity Location 12 (if different from applicant location)
H66: District # | P66: First Name | Y66: Last Name
A67: State Assembly Member
A68: State Senate Member
A69: U.S. House of Representatives
A70: Activity Location 13 (if different from applicant location)
H71: District # | P71: First Name | Y71: Last Name
A72: State Assembly Member
A73: State Senate Member
A74: U.S. House of Representatives
A75: Activity Location 14 (if different from applicant location)
H76: District # | P76: First Name | Y76: Last Name
A77: State Assembly Member
A78: State Senate Member
A79: U.S. House of Representatives
A80: Activity Location 15 (if different from applicant location)
H81: District # | P81: First Name | Y81: Last Name
A82: State Assembly Member
A83: State Senate Member
A84: U.S. House of Representatives
A85: Activity Location 16 (if different from applicant location)
H86: District # | P86: First Name | Y86: Last Name
A87: State Assembly Member
A88: State Senate Member
A89: U.S. House of Representatives
A90: Activity Location 17 (if different from applicant location)
H91: District # | P91: First Name | Y91: Last Name
A92: State Assembly Member
A93: State Senate Member
A94: U.S. House of Representatives
A95: Activity Location 18 (if different from applicant location)
H96: District # | P96: First Name | Y96: Last Name
A97: State Assembly Member
A98: State Senate Member
A99: U.S. House of Representatives
A100: Activity Location 20 (if different from applicant location)
H101: District # | P101: First Name | Y101: Last Name
A102: State Assembly Member
A103: State Senate Member
A104: U.S. House of Representatives
A105: Activity Location 21 (if different from applicant location)
H106: District # | P106: First Name | Y106: Last Name
A107: State Assembly Member
A108: State Senate Member
A109: U.S. House of Representatives
A110: Activity Location 22 (if different from applicant location)
H111: District # | P111: First Name | Y111: Last Name
A112: State Assembly Member
A113: State Senate Member
A114: U.S. House of Representatives
A115: Activity Location 23 (if different from applicant location)
H116: District # | P116: First Name | Y116: Last Name
A117: State Assembly Member
A118: State Senate Member
A119: U.S. House of Representatives
A120: Activity Location 24 (if different from applicant location)
H121: District # | P121: First Name | Y121: Last Name
A122: State Assembly Member
A123: State Senate Member
A124: U.S. House of Representatives
A125: Activity Location 25 (if different from applicant location)
H126: District # | P126: First Name | Y126: Last Name
A127: State Assembly Member
A128: State Senate Member
A129: U.S. House of Representatives

Sheet cnty-splitbyplace13_17 (hidden)
A1: source | B1: sumlevel | C1: geoid | E1: name | F1: st | G1: place | H1: cnty | I1: T2_est1 | J1: T2_est2 | K1: T2_est3 | L1: T2_est4 | M1: T2_est5 | N1: T2_est6 | O1: T2_est7 | P1: T2_est8 | Q1: T2_est9 | R1: T2_est10 | S1: T2_est11 | T1: T2_est12 | U1: T2_est13 | V1: T2_est14 | W1: T2_est15 | X1: T2_est16 | Y1: T2_est17 | Z1: T2_est18 | AA1: T2_est19 | AB1: T2_est20 | AC1: T2_est21 | AD1: T2_est22 | AE1: T2_est23 | AF1: T2_est24 | AG1: T2_est25 | AH1: T2_est26 | AI1: T2_est27 | AJ1: T2_est28 | AK1: T2_est29 | AL1: T2_est30 | AM1: T2_est31 | AN1: T2_est32 | AO1: T2_est33 | AP1: T2_est34 | AQ1: T2_est35 | AR1: T2_est36 | AS1: T2_est37 | AT1: T2_est38 | AU1: T2_est39 | AV1: T2_est40 | AW1: T2_est41 | AX1: T2_est42 | AY1: T2_est43 | AZ1: T2_est44 | BA1: T2_est45 | BB1: T2_est46 | BC1: T2_est47 | BD1: T2_est48 | BE1: T2_est49 | BF1: T2_est50 | BG1: T2_est51 | BH1: T2_est52 | BI1: T2_est53 | BJ1: T2_est54 | BK1: T2_est55 | BL1: T2_est56 | BM1: T2_est57 | BN1: T2_est58 | BO1: T2_est59 | BP1: T2_est60 | BQ1: T2_est61 | BR1: T2_est62 | BS1: T2_est63 | BT1: T2_est64 | BU1: T2_est65 | BV1: T2_est66 | BW1: T2_est67 | BX1: T2_est68 | BY1: T2_est69 | BZ1: T2_est70 | CA1: T2_est71 | CB1: T2_est72 | CC1: T2_est73 | CD1: T2_est74 | CE1: T2_est75 | CF1: T2_est76 | CG1: T2_est77 | CH1: T2_est78 | CI1: T2_est79 | CJ1: T2_est80 | CK1: T2_est81 | CL1: T2_est82 | CM1: T2_est83 | CN1: T2_est84 | CO1: T2_est85 | CP1: T2_est86 | CQ1: T2_est87 | CR1: T2_est88 | CS1: T2_est89 | CT1: T2_est90 | CU1: T2_est91 | CV1: T2_est92 | CW1: T2_est93 | CX1: T2_est94 | CY1: T2_est95 | CZ1: T2_est96 | DA1: T2_est97 | DB1: T2_est98 | DC1: T2_est99 | DD1: T2_est100 | DE1: T2_est101 | DF1: T2_est102 | DG1: T2_est103 | DH1: T2_est104 | DI1: T2_est105 | DJ1: T2_est106 | DK1: T2_est107 | DL1: T2_est108 | DM1: T2_est109 | DN1: T2_est110 | DO1: T2_est111 | DP1: T2_est112 | DQ1: T2_est113 | DR1: T2_est114 | DS1: T2_est115 | DT1: T2_est116 | DU1: T2_est117 | DV1: T2_est118 | DW1: T2_est119 | DX1: T2_est120 | DY1: T2_est121 | DZ1: T2_est122 | EA1: T2_est123 | EB1: T2_est124 | EC1: T2_est125 | ED1: T2_est126 | EE1: T2_est127 | EF1: T2_est128 | EG1: T2_est129 | EH1: T2_est130 | EI1: T2_est131 | EJ1: T2_est132 | EK1: T2_est133 | EL1: T2_est134 | EM1: T2_est135 | EN1: T2_est136 | EO1: T2_est137 | EP1: T2_est138 | EQ1: T2_est139 | ER1: T2_est140 | ES1: T2_est141 | ET1: T2_est142 | EU1: T2_est143 | EV1: T2_est144 | EW1: T2_est145 | EX1: T2_est146 | EY1: T2_est147 | EZ1: T2_est148 | FA1: T2_est149 | FB1: T2_est150 | FC1: T2_est151 | FD1: T2_est152 | FE1: T2_est153 | FF1: T2_est154 | FG1: T2_est155 | FH1: T2_est156 | FI1: T2_est157 | FJ1: T2_est158 | FK1: T2_est159 | FL1: T2_est160 | FM1: T2_est161 | FN1: T2_est162 | FO1: T2_est163 | FP1: T2_est164 | FQ1: T2_est165 | FR1: T2_est166 | FS1: T2_est167 | FT1: T2_est168 | FU1: T2_est169 | FV1: T2_est170 | FW1: T2_est171 | FX1: T2_est172 | FY1: T2_est173 | FZ1: T2_est174 | GA1: T2_est175 | GB1: T2_est176 | GC1: T2_est177 | GD1: T2_est178 | GE1: T2_est179 | GF1: T2_est180 | GG1: T2_est181 | GH1: T2_est182 | GI1: T2_est183 | GJ1: T2_est184 | GK1: T2_est185 | GL1: T2_est186 | GM1: T2_est187 | GN1: T2_est188 | GO1: T2_est189 | GP1: T2_est190 | GQ1: T2_est191 | GR1: T2_est192 | GS1: T2_est193 | GT1: T2_est194 | GU1: T2_est195 | GV1: T2_est196 | GW1: T2_est197 | GX1: T2_est198 | GY1: T2_est199 | GZ1: T2_est200 | HA1: T2_est201 | HB1: T2_est202 | HC1: T2_est203 | HD1: T2_est204 | HE1: T2_est205 | HF1: T2_est206 | HG1: T2_est207 | HH1: T2_est208 | HI1: T2_est209 | HJ1: T2_est210 | HK1: T2_est211 | HL1: T2_est212 | HM1: T2_est213 | HN1: T2_est214 | HO1: T2_est215 | HP1: T2_est216 | HQ1: T2_est217 | HR1: T2_est218 | HS1: T2_est219 | HT1: T2_est220 | HU1: T2_est221 | HV1: T2_est222 | HW1: T2_est223 | HX1: T2_est224 | HY1: T2_est225 | HZ1: T2_est226 | IA1: T2_est227 | IB1: T2_est228 | IC1: T2_est229 | ID1: T2_est230 | IE1: T2_est231 | IF1: T2_est232 | IG1: T2_est233 | IH1: T2_est234 | II1: T2_est235 | IJ1: T2_est236 | IK1: T2_est237 | IL1: T2_est238 | IM1: T2_est239 | IN1: T2_est240 | IO1: T2_est241 | IP1: T2_est242 | IQ1: T2_est243 | IR1: T2_est244 | IS1: T2_est245 | IT1: T2_est246 | IU1: T2_est247 | IV1: T2_est248 | IW1: T2_est249 | IX1: T2_moe1 | IY1: T2_moe2 | IZ1: T2_moe3 | JA1: T2_moe4 | JB1: T2_moe5 | JC1: T2_moe6 | JD1: T2_moe7 | JE1: T2_moe8 | JF1: T2_moe9 | JG1: T2_moe10 | JH1: T2_moe11 | JI1: T2_moe12 | JJ1: T2_moe13 | JK1: T2_moe14 | JL1: T2_moe15 | JM1: T2_moe16 | JN1: T2_moe17 | JO1: T2_moe18 | JP1: T2_moe19 | JQ1: T2_moe20 | JR1: T2_moe21 | JS1: T2_moe22 | JT1: T2_moe23 | JU1: T2_moe24 | JV1: T2_moe25 | JW1: T2_moe26 | JX1: T2_moe27 | JY1: T2_moe28 | JZ1: T2_moe29 | KA1: T2_moe30 | KB1: T2_moe31 | KC1: T2_moe32 | KD1: T2_moe33 | KE1: T2_moe34 | KF1: T2_moe35 | KG1: T2_moe36 | KH1: T2_moe37 | KI1: T2_moe38 | KJ1: T2_moe39 | KK1: T2_moe40 | KL1: T2_moe41 | KM1: T2_moe42 | KN1: T2_moe43 | KO1: T2_moe44 | KP1: T2_moe45 | KQ1: T2_moe46 | KR1: T2_moe47 | KS1: T2_moe48 | KT1: T2_moe49 | KU1: T2_moe50 | KV1: T2_moe51 | KW1: T2_moe52 | KX1: T2_moe53 | KY1: T2_moe54 | KZ1: T2_moe55 | LA1: T2_moe56 | LB1: T2_moe57 | LC1: T2_moe58 | LD1: T2_moe59 | LE1: T2_moe60 | LF1: T2_moe61 | LG1: T2_moe62 | LH1: T2_moe63 | LI1: T2_moe64 | LJ1: T2_moe65 | LK1: T2_moe66 | LL1: T2_moe67 | LM1: T2_moe68 | LN1: T2_moe69 | LO1: T2_moe70 | LP1: T2_moe71 | LQ1: T2_moe72 | LR1: T2_moe73 | LS1: T2_moe74 | LT1: T2_moe75 | LU1: T2_moe76 | LV1: T2_moe77 | LW1: T2_moe78 | LX1: T2_moe79 | LY1: T2_moe80 | LZ1: T2_moe81 | MA1: T2_moe82 | MB1: T2_moe83 | MC1: T2_moe84 | MD1: T2_moe85 | ME1: T2_moe86 | MF1: T2_moe87 | MG1: T2_moe88 | MH1: T2_moe89 | MI1: T2_moe90 | MJ1: T2_moe91 | MK1: T2_moe92 | ML1: T2_moe93 | MM1: T2_moe94 | MN1: T2_moe95 | MO1: T2_moe96 | MP1: T2_moe97 | MQ1: T2_moe98 | MR1: T2_moe99 | MS1: T2_moe100 | MT1: T2_moe101 | MU1: T2_moe102 | MV1: T2_moe103 | MW1: T2_moe104 | MX1: T2_moe105 | MY1: T2_moe106 | MZ1: T2_moe107 | NA1: T2_moe108 | NB1: T2_moe109 | NC1: T2_moe110 | ND1: T2_moe111 | NE1: T2_moe112 | NF1: T2_moe113 | NG1: T2_moe114 | NH1: T2_moe115 | NI1: T2_moe116 | NJ1: T2_moe117 | NK1: T2_moe118 | NL1: T2_moe119 | NM1: T2_moe120 | NN1: T2_moe121 | NO1: T2_moe122 | NP1: T2_moe123 | NQ1: T2_moe124 | NR1: T2_moe125 | NS1: T2_moe126 | NT1: T2_moe127 | NU1: T2_moe128 | NV1: T2_moe129 | NW1: T2_moe130 | NX1: T2_moe131 | NY1: T2_moe132 | NZ1: T2_moe133 | OA1: T2_moe134 | OB1: T2_moe135 | OC1: T2_moe136 | OD1: T2_moe137 | OE1: T2_moe138 | OF1: T2_moe139 | OG1: T2_moe140 | OH1: T2_moe141 | OI1: T2_moe142 | OJ1: T2_moe143 | OK1: T2_moe144 | OL1: T2_moe145 | OM1: T2_moe146 | ON1: T2_moe147 | OO1: T2_moe148 | OP1: T2_moe149 | OQ1: T2_moe150 | OR1: T2_moe151 | OS1: T2_moe152 | OT1: T2_moe153 | OU1: T2_moe154 | OV1: T2_moe155 | OW1: T2_moe156 | OX1: T2_moe157 | OY1: T2_moe158 | OZ1: T2_moe159 | PA1: T2_moe160 | PB1: T2_moe161 | PC1: T2_moe162 | PD1: T2_moe163 | PE1: T2_moe164 | PF1: T2_moe165 | PG1: T2_moe166 | PH1: T2_moe167 | PI1: T2_moe168 | PJ1: T2_moe169 | PK1: T2_moe170 | PL1: T2_moe171 | PM1: T2_moe172 | PN1: T2_moe173 | PO1: T2_moe174 | PP1: T2_moe175 | PQ1: T2_moe176 | PR1: T2_moe177 | PS1: T2_moe178 | PT1: T2_moe179 | PU1: T2_moe180 | PV1: T2_moe181 | PW1: T2_moe182 | PX1: T2_moe183 | PY1: T2_moe184 | PZ1: T2_moe185 | QA1: T2_moe186 | QB1: T2_moe187 | QC1: T2_moe188 | QD1: T2_moe189 | QE1: T2_moe190 | QF1: T2_moe191 | QG1: T2_moe192 | QH1: T2_moe193 | QI1: T2_moe194 | QJ1: T2_moe195 | QK1: T2_moe196 | QL1: T2_moe197 | QM1: T2_moe198 | QN1: T2_moe199 | QO1: T2_moe200 | QP1: T2_moe201 | QQ1: T2_moe202 | QR1: T2_moe203 | QS1: T2_moe204 | QT1: T2_moe205 | QU1: T2_moe206 | QV1: T2_moe207 | QW1: T2_moe208 | QX1: T2_moe209 | QY1: T2_moe210 | QZ1: T2_moe211 | RA1: T2_moe212 | RB1: T2_moe213 | RC1: T2_moe214 | RD1: T2_moe215 | RE1: T2_moe216 | RF1: T2_moe217 | RG1: T2_moe218 | RH1: T2_moe219 | RI1: T2_moe220 | RJ1: T2_moe221 | RK1: T2_moe222 | RL1: T2_moe223 | RM1: T2_moe224 | RN1: T2_moe225 | RO1: T2_moe226 | RP1: T2_moe227 | RQ1: T2_moe228 | RR1: T2_moe229 | RS1: T2_moe230 | RT1: T2_moe231 | RU1: T2_moe232 | RV1: T2_moe233 | RW1: T2_moe234 | RX1: T2_moe235 | RY1: T2_moe236 | RZ1: T2_moe237 | SA1: T2_moe238 | SB1: T2_moe239 | SC1: T2_moe240 | SD1: T2_moe241 | SE1: T2_moe242 | SF1: T2_moe243 | SG1: T2_moe244 | SH1: T2_moe245 | SI1: T2_moe246 | SJ1: T2_moe247 | SK1: T2_moe248 | SL1: T2_moe249
A2: 2013thru2017 | B2: 155 | C2: 15500US0600562001 | D2: Alameda County | E2: Alameda County (part), Alameda city, California | G2: 562 | H2: 1 | I2: 30585 | J2: 14390 | K2: 1750 | L2: 615 | M2: 420 | N2: 15 | O2: 175 | P2: 0 | Q2: 0 | R2: 0 | S2: 10 | T2: 220 | U2: 125 | V2: 0 | W2: 90 | X2: 0 | Y2: 0 | Z2: 4 | AA2: 0 | AB2: 350 | AC2: 175 | AD2: 0 | AE2: 145 | AF2: 0 | AG2: 0 | AH2: 10 | AI2: 20 | AJ2: 210 | AK2: 115 | AL2: 0 | AM2: 55 | AN2: 0 | AO2: 0 | AP2: 40 | AQ2: 0 | AR2: 360 | AS2: 90 | AT2: 0 | AU2: 210 | AV2: 0 | AW2: 4 | AX2: 55 | AY2: 0 | AZ2: 12545 | BA2: 275 | BB2: 145 | BC2: 15 | BD2: 100 | BE2: 0 | BF2: 0 | BG2: 10 | BH2: 0 | BI2: 600 | BJ2: 445 | BK2: 0 | BL2: 120 | BM2: 0 | BN2: 0 | BO2: 35 | BP2: 0 | BQ2: 955 | BR2: 600 | BS2: 4 | BT2: 270 | BU2: 10 | BV2: 0 | BW2: 55 | BX2: 15 | BY2: 845 | BZ2: 450 | CA2: 10 | CB2: 270 | CC2: 10 | CD2: 0 | CE2: 80 | CF2: 25 | CG2: 9865 | CH2: 6160 | CI2: 195 | CJ2: 2690 | CK2: 20 | CL2: 55 | CM2: 520 | CN2: 230 | CO2: 100 | CP2: 100 | CQ2: 15 | CR2: 0 | CS2: 45 | CT2: 4 | CU2: 30 | CV2: 0 | CW2: 0 | CX2: 0 | CY2: 0 | CZ2: 0 | DA2: 0 | DB2: 0 | DC2: 0 | DD2: 0 | DE2: 0 | DF2: 0 | DG2: 0 | DH2: 0 | DI2: 0 | DJ2: 0 | DK2: 0 | DL2: 0 | DM2: 0 | DN2: 0 | DO2: 0 | DP2: 0 | DQ2: 0 | DR2: 0 | DS2: 0 | DT2: 0 | DU2: 0 | DV2: 0 | DW2: 0 | DX2: 0 | DY2: 0 | DZ2: 0 | EA2: 0 | EB2: 0 | EC2: 0 | ED2: 16195 | EE2: 3970 | EF2: 2200 | EG2: 900 | EH2: 300 | EI2: 700 | EJ2: 4 | EK2: 0 | EL2: 210 | EM2: 85 | EN2: 755 | EO2: 325 | EP2: 15 | EQ2: 160 | ER2: 0 | ES2: 4 | ET2: 135 | EU2: 115 | EV2: 365 | EW2: 130 | EX2: 25 | EY2: 160 | EZ2: 0 | FA2: 0 | FB2: 50 | FC2: 0 | FD2: 205 | FE2: 105 | FF2: 15 | FG2: 40 | FH2: 0 | FI2: 0 | FJ2: 35 | FK2: 10 | FL2: 445 | FM2: 165 | FN2: 30 | FO2: 220 | FP2: 0 | FQ2: 0 | FR2: 30 | FS2: 0 | FT2: 11870 | FU2: 885 | FV2: 260 | FW2: 270 | FX2: 230 | FY2: 0 | FZ2: 10 | GA2: 60 | GB2: 60 | GC2: 785 | GD2: 225 | GE2: 85 | GF2: 135 | GG2: 0 | GH2: 0 | GI2: 255 | GJ2: 85 | GK2: 1805 | GL2: 660 | GM2: 410 | GN2: 275 | GO2: 0 | GP2: 20 | GQ2: 265 | GR2: 170 | GS2: 1755 | GT2: 930 | GU2: 230 | GV2: 290 | GW2: 10 | GX2: 10 | GY2: 215 | GZ2: 70 | HA2: 6640 | HB2: 3680 | HC2: 660 | HD2: 1335 | HE2: 0 | HF2: 0 | HG2: 710 | HH2: 250 | HI2: 355 | HJ2: 355 | HK2: 130 | HL2: 80 | HM2: 145 | HN2: 0 | HO2: 0 | HP2: 0 | HQ2: 0 | HR2: 0 | HS2: 0 | HT2: 0 | HU2: 0 | HV2: 0 | HW2: 0 | HX2: 0 | HY2: 0 | HZ2: 0 | IA2: 0 | IB2: 0 | IC2: 0 | ID2: 0 | IE2: 0 | IF2: 0 | IG2: 0 | IH2: 0 | II2: 0 | IJ2: 0 | IK2: 0 | IL2: 0 | IM2: 0 | IN2: 0 | IO2: 0 | IP2: 0 | IQ2: 0 | IR2: 0 | IS2: 0 | IT2: 0 | IU2: 0 | IV2: 0 | IW2: 0 | IX2: 463 | IY2: 524 | IZ2: 250 | JA2: 156 | JB2: 141 | JC2: 24 | JD2: 65 | JE2: 29 | JF2: 29 | JG2: 29 | JH2: 13 | JI2: 81 | JJ2: 61 | JK2: 29 | JL2: 56 | JM2: 29 | JN2: 29 | JO2: 4 | JP2: 29 | JQ2: 109 | JR2: 73 | JS2: 29 | JT2: 83 | JU2: 29 | JV2: 29 | JW2: 19 | JX2: 33 | JY2: 82 | JZ2: 65 | KA2: 29 | KB2: 36 | KC2: 29 | KD2: 29 | KE2: 38 | KF2: 29 | KG2: 132 | KH2: 43 | KI2: 29 | KJ2: 107 | KK2: 29 | KL2: 6 | KM2: 56 | KN2: 29 | KO2: 511 | KP2: 96 | KQ2: 67 | KR2: 23 | KS2: 73 | KT2: 29 | KU2: 29 | KV2: 16 | KW2: 29 | KX2: 139 | KY2: 119 | KZ2: 29 | LA2: 71 | LB2: 29 | LC2: 29 | LD2: 40 | LE2: 29 | LF2: 195 | LG2: 144 | LH2: 8 | LI2: 102 | LJ2: 19 | LK2: 29 | LL2: 40 | LM2: 24 | LN2: 166 | LO2: 118 | LP2: 21 | LQ2: 104 | LR2: 13 | LS2: 29 | LT2: 53 | LU2: 26 | LV2: 411 | LW2: 360 | LX2: 87 | LY2: 281 | LZ2: 28 | MA2: 41 | MB2: 140 | MC2: 119 | MD2: 63 | ME2: 63 | MF2: 20 | MG2: 29 | MH2: 53 | MI2: 10 | MJ2: 31 | MK2: 29 | ML2: 29 | MM2: 29 | MN2: 29 | MO2: 29 | MP2: 29 | MQ2: 29 | MR2: 29 | MS2: 29 | MT2: 29 | MU2: 29 | MV2: 29 | MW2: 29 | MX2: 29 | MY2: 29 | MZ2: 29 | NA2: 29 | NB2: 29 | NC2: 29 | ND2: 29 | NE2: 29 | NF2: 29 | NG2: 29 | NH2: 29 | NI2: 29 | NJ2: 29 | NK2: 29 | NL2: 29 | NM2: 29 | NN2: 29 | NO2: 29 | NP2: 29 | NQ2: 29 | NR2: 29 | NS2: 502 | NT2: 382 | NU2: 289 | NV2: 218 | NW2: 113 | NX2: 174 | NY2: 29 | NZ2: 29 | OA2: 103 | OB2: 56 | OC2: 197 | OD2: 105 | OE2: 20 | OF2: 63 | OG2: 29 | OH2: 6 | OI2: 85 | OJ2: 112 | OK2: 112 | OL2: 54 | OM2: 39 | ON2: 84 | OO2: 29 | OP2: 29 | OQ2: 60 | OR2: 29 | OS2: 89 | OT2: 62 | OU2: 26 | OV2: 37 | OW2: 29 | OX2: 29 | OY2: 47 | OZ2: 17 | PA2: 128 | PB2: 95 | PC2: 43 | PD2: 85 | PE2: 29 | PF2: 29 | PG2: 33 | PH2: 29 | PI2: 591 | PJ2: 164 | PK2: 108 | PL2: 85 | PM2: 87 | PN2: 29 | PO2: 15 | PP2: 48 | PQ2: 45 | PR2: 190 | PS2: 91 | PT2: 59 | PU2: 78 | PV2: 29 | PW2: 29 | PX2: 108 | PY2: 51 | PZ2: 312 | QA2: 155 | QB2: 183 | QC2: 122 | QD2: 29 | QE2: 26 | QF2: 109 | QG2: 95 | QH2: 276 | QI2: 204 | QJ2: 125 | QK2: 120 | QL2: 18 | QM2: 14 | QN2: 96 | QO2: 60 | QP2: 471 | QQ2: 359 | QR2: 186 | QS2: 235 | QT2: 29 | QU2: 29 | QV2: 177 | QW2: 101 | QX2: 139 | QY2: 139 | QZ2: 65 | RA2: 68 | RB2: 97 | RC2: 29 | RD2: 29 | RE2: 29 | RF2: 29 | RG2: 29 | RH2: 29 | RI2: 29 | RJ2: 29 | RK2: 29 | RL2: 29 | RM2: 29 | RN2: 29 | RO2: 29 | RP2: 29 | RQ2: 29 | RR2: 29 | RS2: 29 | RT2: 29 | RU2: 29 | RV2: 29 | RW2: 29 | RX2: 29 | RY2: 29 | RZ2: 29 | SA2: 29 | SB2: 29 | SC2: 29 | SD2: 29 | SE2: 29 | SF2: 29 | SG2: 29 | SH2: 29 | SI2: 29 | SJ2: 29 | SK2: 29 | SL2: 29
A3: 2013thru2017 | B3: 155 | C3: 15500US0600674001 | D3: Alameda County | E3: Alameda County (part), Albany city, California | G3: 674 | H3: 1 | I3: 7370 | J3: 3510 | K3: 400 | L3: 130 | M3: 45 | N3: 40 | O3: 35 | P3: 0 | Q3: 0 | R3: 4 | S3: 4 | T3: 30 | U3: 25 | V3: 0 | W3: 4 | X3: 0 | Y3: 0 | Z3: 0 | AA3: 0 | AB3: 55 | AC3: 20 | AD3: 0 | AE3: 30 | AF3: 0 | AG3: 0 | AH3: 4 | AI3: 0 | AJ3: 60 | AK3: 50 | AL3: 0 | AM3: 0 | AN3: 0 | AO3: 0 | AP3: 10 | AQ3: 0 | AR3: 125 | AS3: 50 | AT3: 50 | AU3: 25 | AV3: 0 | AW3: 0 | AX3: 0 | AY3: 0 | AZ3: 3085 | BA3: 75 | BB3: 15 | BC3: 15 | BD3: 30 | BE3: 0 | BF3: 0 | BG3: 15 | BH3: 0 | BI3: 150 | BJ3: 70 | BK3: 0 | BL3: 75 | BM3: 0 | BN3: 0 | BO3: 4 | BP3: 0 | BQ3: 185 | BR3: 150 | BS3: 4 | BT3: 10 | BU3: 0 | BV3: 0 | BW3: 10 | BX3: 10 | BY3: 240 | BZ3: 145 | CA3: 4 | CB3: 75 | CC3: 4 | CD3: 0 | CE3: 0 | CF3: 10 | CG3: 2435 | CH3: 1710 | CI3: 45 | CJ3: 540 | CK3: 0 | CL3: 0 | CM3: 80 | CN3: 65 | CO3: 25 | CP3: 25 | CQ3: 0 | CR3: 0 | CS3: 25 | CT3: 0 | CU3: 0 | CV3: 0 | CW3: 0 | CX3: 0 | CY3: 0 | CZ3: 0 | DA3: 0 | DB3: 0 | DC3: 0 | DD3: 0 | DE3: 0 | DF3: 0 | DG3: 0 | DH3: 0 | DI3: 0 | DJ3: 0 | DK3: 0 | DL3: 0 | DM3: 0 | DN3: 0 | DO3: 0 | DP3: 0 | DQ3: 0 | DR3: 0 | DS3: 0 | DT3: 0 | DU3: 0 | DV3: 0 | DW3: 0 | DX3: 0 | DY3: 0 | DZ3: 0 | EA3: 0 | EB3: 0 | EC3: 0 | ED3: 3860 | EE3: 1400 | EF3: 570 | EG3: 190 | EH3: 45 | EI3: 140 | EJ3: 0 | EK3: 30 | EL3: 120 | EM3: 50 | EN3: 495 | EO3: 195 | EP3: 10 | EQ3: 200 | ER3: 0 | ES3: 0 | ET3: 60 | EU3: 25 | EV3: 130 | EW3: 60 | EX3: 0 | EY3: 70 | EZ3: 0 | FA3: 0 | FB3: 0 | FC3: 0 | FD3: 105 | FE3: 25 | FF3: 0 | FG3: 20 | FH3: 0 | FI3: 0 | FJ3: 45 | FK3: 15 | FL3: 100 | FM3: 60 | FN3: 0 | FO3: 10 | FP3: 0 | FQ3: 30 | FR3: 0 | FS3: 0 | FT3: 2410 | FU3: 100 | FV3: 60 | FW3: 25 | FX3: 15 | FY3: 0 | FZ3: 0 | GA3: 0 | GB3: 0 | GC3: 210 | GD3: 70 | GE3: 10 | GF3: 95 | GG3: 0 | GH3: 0 | GI3: 30 | GJ3: 10 | GK3: 410 | GL3: 190 | GM3: 30 | GN3: 125 | GO3: 4 | GP3: 20 | GQ3: 30 | GR3: 15 | GS3: 365 | GT3: 140 | GU3: 0 | GV3: 100 | GW3: 0 | GX3: 0 | GY3: 125 | GZ3: 4 | HA3: 1320 | HB3: 760 | HC3: 55 | HD3: 305 | HE3: 4 | HF3: 50 | HG3: 120 | HH3: 30 | HI3: 55 | HJ3: 55 | HK3: 30 | HL3: 0 | HM3: 15 | HN3: 0 | HO3: 0 | HP3: 4 | HQ3: 0 | HR3: 0 | HS3: 0 | HT3: 0 | HU3: 0 | HV3: 0 | HW3: 0 | HX3: 0 | HY3: 0 | HZ3: 0 | IA3: 0 | IB3: 0 | IC3: 0 | ID3: 0 | IE3: 0 | IF3: 0 | IG3: 0 | IH3: 0 | II3: 0 | IJ3: 0 | IK3: 0 | IL3: 0 | IM3: 0 | IN3: 0 | IO3: 0 | IP3: 0 | IQ3: 0 | IR3: 0 | IS3: 0 | IT3: 0 | IU3: 0 | IV3: 0 | IW3: 0 | IX3: 213 | IY3: 257 | IZ3: 127 | JA3: 64 | JB3: 28 | JC3: 43 | JD3: 35 | JE3: 19 | JF3: 19 | JG3: 5 | JH3: 6 | JI3: 24 | JJ3: 24 | JK3: 19 | JL3: 10 | JM3: 19 | JN3: 19 | JO3: 19 | JP3: 19 | JQ3: 39 | JR3: 26 | JS3: 19 | JT3: 31 | JU3: 19 | JV3: 19 | JW3: 10 | JX3: 19 | JY3: 41 | JZ3: 39 | KA3: 19 | KB3: 19 | KC3: 19 | KD3: 19 | KE3: 14 | KF3: 19 | KG3: 95 | KH3: 39 | KI3: 77 | KJ3: 33 | KK3: 19 | KL3: 19 | KM3: 19 | KN3: 19 | KO3: 239 | KP3: 48 | KQ3: 15 | KR3: 27 | KS3: 33 | KT3: 19 | KU3: 19 | KV3: 23 | KW3: 19 | KX3: 84 | KY3: 52 | KZ3: 19 | LA3: 58 | LB3: 19 | LC3: 19 | LD3: 4 | LE3: 19 | LF3: 76 | LG3: 69 | LH3: 14 | LI3: 13 | LJ3: 19 | LK3: 19 | LL3: 15 | LM3: 13 | LN3: 102 | LO3: 85 | LP3: 8 | LQ3: 55 | LR3: 19 | LS3: 19 | LT3: 19 | LU3: 16 | LV3: 227 | LW3: 198 | LX3: 65 | LY3: 125 | LZ3: 19 | MA3: 19 | MB3: 51 | MC3: 40 | MD3: 38 | ME3: 38 | MF3: 19 | MG3: 19 | MH3: 38 | MI3: 19 | MJ3: 19 | MK3: 19 | ML3: 19 | MM3: 19 | MN3: 19 | MO3: 19 | MP3: 19 | MQ3: 19 | MR3: 19 | MS3: 19 | MT3: 19 | MU3: 19 | MV3: 19 | MW3: 19 | MX3: 19 | MY3: 19 | MZ3: 19 | NA3: 19 | NB3: 19 | NC3: 19 | ND3: 19 | NE3: 19 | NF3: 19 | NG3: 19 | NH3: 19 | NI3: 19 | NJ3: 19 | NK3: 19 | NL3: 19 | NM3: 19 | NN3: 19 | NO3: 19 | NP3: 19 | NQ3: 19 | NR3: 19 | NS3: 276 | NT3: 215 | NU3: 164 | NV3: 73 | NW3: 52 | NX3: 64 | NY3: 19 | NZ3: 42 | OA3: 74 | OB3: 69 | OC3: 131 | OD3: 65 | OE3: 17 | OF3: 97 | OG3: 19 | OH3: 19 | OI3: 56 | OJ3: 28 | OK3: 58 | OL3: 36 | OM3: 19 | ON3: 50 | OO3: 19 | OP3: 19 | OQ3: 19 | OR3: 19 | OS3: 81 | OT3: 25 | OU3: 19 | OV3: 36 | OW3: 19 | OX3: 19 | OY3: 68 | OZ3: 26 | PA3: 66 | PB3: 56 | PC3: 19 | PD3: 14 | PE3: 19 | PF3: 48 | PG3: 19 | PH3: 19 | PI3: 278 | PJ3: 65 | PK3: 60 | PL3: 23 | PM3: 18 | PN3: 19 | PO3: 19 | PP3: 19 | PQ3: 19 | PR3: 70 | PS3: 35 | PT3: 16 | PU3: 50 | PV3: 19 | PW3: 19 | PX3: 29 | PY3: 13 | PZ3: 122 | QA3: 101 | QB3: 34 | QC3: 65 | QD3: 2 | QE3: 32 | QF3: 25 | QG3: 18 | QH3: 114 | QI3: 59 | QJ3: 19 | QK3: 59 | QL3: 19 | QM3: 19 | QN3: 84 | QO3: 17 | QP3: 194 | QQ3: 138 | QR3: 49 | QS3: 105 | QT3: 2 | QU3: 66 | QV3: 57 | QW3: 29 | QX3: 35 | QY3: 35 | QZ3: 25 | RA3: 19 | RB3: 20 | RC3: 19 | RD3: 19 | RE3: 10 | RF3: 19 | RG3: 19 | RH3: 19 | RI3: 19 | RJ3: 19 | RK3: 19 | RL3: 19 | RM3: 19 | RN3: 19 | RO3: 19 | RP3: 19 | RQ3: 19 | RR3: 19 | RS3: 19 | RT3: 19 | RU3: 19 | RV3: 19 | RW3: 19 | RX3: 19 | RY3: 19 | RZ3: 19 | SA3: 19 | SB3: 19 | SC3: 19 | SD3: 19 | SE3: 19 | SF3: 19 | SG3: 19 | SH3: 19 | SI3: 19 | SJ3: 19 | SK3: 19 | SL3: 19
A4: 2013thru2017 | B4: 155 | C4: 15500US0602980001 | D4: Alameda County | E4: Alameda County (part), Ashland CDP, California | F4: 1 | G4: 2980 | H4: 1 | I4: 7820 | J4: 2490 | K4: 575 | L4: 180 | M4: 75 | N4: 0 | O4: 55 | P4: 0 | Q4: 0 | R4: 55 | S4: 0 | T4: 75 | U4: 0 | V4: 20 | W4: 45 | X4: 0 | Y4: 0 | Z4: 10 | AA4: 0 | AB4: 90 | AC4: 10 | AD4: 20 | AE4: 45 | AF4: 0 | AG4: 0 | AH4: 15 | AI4: 0 | AJ4: 45 | AK4: 0 | AL4: 0 | AM4: 30 | AN4: 0 | AO4: 0 | AP4: 15 | AQ4: 0 | AR4: 185 | AS4: 50 | AT4: 0 | AU4: 80 | AV4: 0 | AW4: 0 | AX4: 55 | AY4: 0 | AZ4: 1815 | BA4: 75 | BB4: 50 | BC4: 0 | BD4: 15 | BE4: 0 | BF4: 4 | BG4: 4 | BH4: 0 | BI4: 215 | BJ4: 80 | BK4: 0 | BL4: 15 | BM4: 0 | BN4: 0 | BO4: 110 | BP4: 10 | BQ4: 295 | BR4: 85 | BS4: 0 | BT4: 115 | BU4: 0 | BV4: 0 | BW4: 85 | BX4: 4 | BY4: 270 | BZ4: 40 | CA4: 0 | CB4: 110 | CC4: 0 | CD4: 0 | CE4: 120 | CF4: 0 | CG4: 960 | CH4: 210 | CI4: 100 | CJ4: 395 | CK4: 0 | CL4: 0 | CM4: 240 | CN4: 20 | CO4: 100 | CP4: 100 | CQ4: 80 | CR4: 0 | CS4: 20 | CT4: 0 | CU4: 0 | CV4: 0 | CW4: 0 | CX4: 0 | CY4: 0 | CZ4: 0 | DA4: 0 | DB4: 0 | DC4: 0 | DD4: 0 | DE4: 0 | DF4: 0 | DG4: 0 | DH4: 0 | DI4: 0 | DJ4: 0 | DK4: 0 | DL4: 0 | DM4: 0 | DN4: 0 | DO4: 0 | DP4: 0 | DQ4: 0 | DR4: 0 | DS4: 0 | DT4: 0 | DU4: 0 | DV4: 0 | DW4: 0 | DX4: 0 | DY4: 0 | DZ4: 0 | EA4: 0 | EB4: 0 | EC4: 0 | ED4: 5330 | EE4: 2170 | EF4: 1255 | EG4: 70 | EH4: 555 | EI4: 120 | EJ4: 0 | EK4: 0 | EL4: 500 | EM4: 10 | EN4: 500 | EO4: 25 | EP4: 130 | EQ4: 40 | ER4: 0 | ES4: 0 | ET4: 295 | EU4: 15 | EV4: 235 | EW4: 15 | EX4: 80 | EY4: 10 | EZ4: 0 | FA4: 0 | FB4: 125 | FC4: 0 | FD4: 80 | FE4: 4 | FF4: 55 | FG4: 0 | FH4: 0 | FI4: 0 | FJ4: 20 | FK4: 0 | FL4: 100 | FM4: 90 | FN4: 0 | FO4: 0 | FP4: 0 | FQ4: 0 | FR4: 10 | FS4: 0 | FT4: 3055 | FU4: 220 | FV4: 40 | FW4: 60 | FX4: 40 | FY4: 0 | FZ4: 0 | GA4: 60 | GB4: 15 | GC4: 645 | GD4: 60 | GE4: 140 | GF4: 85 | GG4: 0 | GH4: 0 | GI4: 355 | GJ4: 4 | GK4: 905 | GL4: 240 | GM4: 325 | GN4: 35 | GO4: 0 | GP4: 10 | GQ4: 295 | GR4: 0 | GS4: 315 | GT4: 55 | GU4: 40 | GV4: 30 | GW4: 0 | GX4: 0 | GY4: 165 | GZ4: 30 | HA4: 970 | HB4: 180 | HC4: 345 | HD4: 65 | HE4: 4 | HF4: 0 | HG4: 375 | HH4: 0 | HI4: 105 | HJ4: 105 | HK4: 0 | HL4: 0 | HM4: 35 | HN4: 0 | HO4: 0 | HP4: 65 | HQ4: 0 | HR4: 0 | HS4: 0 | HT4: 0 | HU4: 0 | HV4: 0 | HW4: 0 | HX4: 0 | HY4: 0 | HZ4: 0 | IA4: 0 | IB4: 0 | IC4: 0 | ID4: 0 | IE4: 0 | IF4: 0 | IG4: 0 | IH4: 0 | II4: 0 | IJ4: 0 | IK4: 0 | IL4: 0 | IM4: 0 | IN4: 0 | IO4: 0 | IP4: 0 | IQ4: 0 | IR4: 0 | IS4: 0 | IT4: 0 | IU4: 0 | IV4: 0 | IW4: 0 | IX4: 224 | IY4: 244 | IZ4: 162 | JA4: 88 | JB4: 53 | JC4: 23 | JD4: 50 | JE4: 23 | JF4: 23 | JG4: 45 | JH4: 23 | JI4: 55 | JJ4: 23 | JK4: 31 | JL4: 41 | JM4: 23 | JN4: 23 | JO4: 17 | JP4: 23 | JQ4: 60 | JR4: 15 | JS4: 35 | JT4: 44 | JU4: 23 | JV4: 23 | JW4: 33 | JX4: 23 | JY4: 48 | JZ4: 23 | KA4: 23 | KB4: 45 | KC4: 23 | KD4: 23 | KE4: 23 | KF4: 23 | KG4: 94 | KH4: 47 | KI4: 23 | KJ4: 64 | KK4: 23 | KL4: 23 | KM4: 57 | KN4: 23 | KO4: 214 | KP4: 52 | KQ4: 48 | KR4: 23 | KS4: 23 | KT4: 23 | KU4: 19 | KV4: 12 | KW4: 23 | KX4: 94 | KY4: 51 | KZ4: 23 | LA4: 22 | LB4: 23 | LC4: 23 | LD4: 83 | LE4: 15 | LF4: 110 | LG4: 52 | LH4: 23 | LI4: 77 | LJ4: 23 | LK4: 23 | LL4: 74 | LM4: 16 | LN4: 125 | LO4: 30 | LP4: 23 | LQ4: 72 | LR4: 23 | LS4: 23 | LT4: 100 | LU4: 23 | LV4: 172 | LW4: 96 | LX4: 58 | LY4: 114 | LZ4: 23 | MA4: 23 | MB4: 116 | MC4: 23 | MD4: 93 | ME4: 93 | MF4: 88 | MG4: 23 | MH4: 33 | MI4: 23 | MJ4: 23 | MK4: 23 | ML4: 23 | MM4: 23 | MN4: 23 | MO4: 23 | MP4: 23 | MQ4: 23 | MR4: 23 | MS4: 23 | MT4: 23 | MU4: 23 | MV4: 23 | MW4: 23 | MX4: 23 | MY4: 23 | MZ4: 23 | NA4: 23 | NB4: 23 | NC4: 23 | ND4: 23 | NE4: 23 | NF4: 23 | NG4: 23 | NH4: 23 | NI4: 23 | NJ4: 23 | NK4: 23 | NL4: 23 | NM4: 23 | NN4: 23 | NO4: 23 | NP4: 23 | NQ4: 23 | NR4: 23 | NS4: 285 | NT4: 285 | NU4: 222 | NV4: 49 | NW4: 200 | NX4: 75 | NY4: 23 | NZ4: 23 | OA4: 173 | OB4: 13 | OC4: 195 | OD4: 28 | OE4: 118 | OF4: 37 | OG4: 23 | OH4: 23 | OI4: 129 | OJ4: 36 | OK4: 130 | OL4: 28 | OM4: 93 | ON4: 19 | OO4: 23 | OP4: 23 | OQ4: 85 | OR4: 23 | OS4: 78 | OT4: 8 | OU4: 75 | OV4: 23 | OW4: 23 | OX4: 23 | OY4: 27 | OZ4: 23 | PA4: 85 | PB4: 81 | PC4: 23 | PD4: 23 | PE4: 23 | PF4: 23 | PG4: 22 | PH4: 23 | PI4: 332 | PJ4: 100 | PK4: 39 | PL4: 51 | PM4: 36 | PN4: 23 | PO4: 23 | PP4: 70 | PQ4: 29 | PR4: 196 | PS4: 40 | PT4: 97 | PU4: 87 | PV4: 23 | PW4: 23 | PX4: 153 | PY4: 13 | PZ4: 269 | QA4: 124 | QB4: 174 | QC4: 47 | QD4: 23 | QE4: 16 | QF4: 141 | QG4: 23 | QH4: 139 | QI4: 47 | QJ4: 55 | QK4: 44 | QL4: 23 | QM4: 23 | QN4: 90 | QO4: 45 | QP4: 237 | QQ4: 87 | QR4: 155 | QS4: 59 | QT4: 14 | QU4: 23 | QV4: 152 | QW4: 23 | QX4: 79 | QY4: 79 | QZ4: 23 | RA4: 23 | RB4: 41 | RC4: 23 | RD4: 23 | RE4: 70 | RF4: 23 | RG4: 23 | RH4: 23 | RI4: 23 | RJ4: 23 | RK4: 23 | RL4: 23 | RM4: 23 | RN4: 23 | RO4: 23 | RP4: 23 | RQ4: 23 | RR4: 23 | RS4: 23 | RT4: 23 | RU4: 23 | RV4: 23 | RW4: 23 | RX4: 23 | RY4: 23 | RZ4: 23 | SA4: 23 | SB4: 23 | SC4: 23 | SD4: 23 | SE4: 23 | SF4: 23 | SG4: 23 | SH4: 23 | SI4: 23 | SJ4: 23 | SK4: 23 | SL4: 23
A5: 2013thru2017 | B5: 155 | C5: 15500US0606000001 | D5: Alameda County | E5: Alameda County (part), Berkeley city, California | G5: 6000 | H5: 1 | I5: 45515 | J5: 19515 | K5: 2620 | L5: 830 | M5: 505 | N5: 120 | O5: 165 | P5: 15 | Q5: 0 | R5: 10 | S5: 10 | T5: 565 | U5: 405 | V5: 90 | W5: 25 | X5: 0 | Y5: 0 | Z5: 10 | AA5: 35 | AB5: 475 | AC5: 345 | AD5: 75 | AE5: 25 | AF5: 0 | AG5: 0 | AH5: 4 | AI5: 30 | AJ5: 200 | AK5: 110 | AL5: 15 | AM5: 40 | AN5: 0 | AO5: 0 | AP5: 35 | AQ5: 0 | AR5: 550 | AS5: 270 | AT5: 65 | AU5: 125 | AV5: 0 | AW5: 0 | AX5: 90 | AY5: 0 | AZ5: 16805 | BA5: 215 | BB5: 120 | BC5: 65 | BD5: 25 | BE5: 0 | BF5: 0 | BG5: 0 | BH5: 0 | BI5: 470 | BJ5: 280 | BK5: 105 | BL5: 55 | BM5: 0 | BN5: 0 | BO5: 10 | BP5: 15 | BQ5: 975 | BR5: 695 | BS5: 135 | BT5: 65 | BU5: 0 | BV5: 20 | BW5: 30 | BX5: 30 | BY5: 995 | BZ5: 720 | CA5: 80 | CB5: 90 | CC5: 0 | CD5: 0 | CE5: 70 | CF5: 35 | CG5: 14150 | CH5: 11070 | CI5: 605 | CJ5: 1430 | CK5: 4 | CL5: 0 | CM5: 610 | CN5: 430 | CO5: 95 | CP5: 95 | CQ5: 65 | CR5: 10 | CS5: 10 | CT5: 0 | CU5: 0 | CV5: 0 | CW5: 15 | CX5: 0 | CY5: 0 | CZ5: 0 | DA5: 0 | DB5: 0 | DC5: 0 | DD5: 0 | DE5: 0 | DF5: 0 | DG5: 0 | DH5: 0 | DI5: 0 | DJ5: 0 | DK5: 0 | DL5: 0 | DM5: 0 | DN5: 0 | DO5: 0 | DP5: 0 | DQ5: 0 | DR5: 0 | DS5: 0 | DT5: 0 | DU5: 0 | DV5: 0 | DW5: 0 | DX5: 0 | DY5: 0 | DZ5: 0 | EA5: 0 | EB5: 0 | EC5: 0 | ED5: 26000 | EE5: 9475 | EF5: 6075 | EG5: 2525 | EH5: 745 | EI5: 1735 | EJ5: 40 | EK5: 110 | EL5: 590 | EM5: 330 | EN5: 2100 | EO5: 1010 | EP5: 245 | EQ5: 495 | ER5: 0 | ES5: 0 | ET5: 270 | EU5: 80 | EV5: 815 | EW5: 510 | EX5: 115 | EY5: 150 | EZ5: 4 | FA5: 0 | FB5: 30 | FC5: 10 | FD5: 165 | FE5: 80 | FF5: 0 | FG5: 25 | FH5: 0 | FI5: 0 | FJ5: 55 | FK5: 0 | FL5: 320 | FM5: 160 | FN5: 10 | FO5: 125 | FP5: 0 | FQ5: 0 | FR5: 25 | FS5: 0 | FT5: 15700 | FU5: 1620 | FV5: 640 | FW5: 495 | FX5: 240 | FY5: 40 | FZ5: 0 | GA5: 120 | GB5: 80 | GC5: 1775 | GD5: 925 | GE5: 410 | GF5: 225 | GG5: 0 | GH5: 0 | GI5: 165 | GJ5: 50 | GK5: 2280 | GL5: 1060 | GM5: 215 | GN5: 400 | GO5: 0 | GP5: 0 | GQ5: 370 | GR5: 235 | GS5: 2100 | GT5: 1070 | GU5: 125 | GV5: 460 | GW5: 4 | GX5: 10 | GY5: 255 | GZ5: 170 | HA5: 7920 | HB5: 5735 | HC5: 300 | HD5: 930 | HE5: 10 | HF5: 30 | HG5: 620 | HH5: 300 | HI5: 825 | HJ5: 825 | HK5: 220 | HL5: 70 | HM5: 485 | HN5: 0 | HO5: 0 | HP5: 10 | HQ5: 35 | HR5: 0 | HS5: 0 | HT5: 0 | HU5: 0 | HV5: 0 | HW5: 0 | HX5: 0 | HY5: 0 | HZ5: 0 | IA5: 0 | IB5: 0 | IC5: 0 | ID5: 0 | IE5: 0 | IF5: 0 | IG5: 0 | IH5: 0 | II5: 0 | IJ5: 0 | IK5: 0 | IL5: 0 | IM5: 0 | IN5: 0 | IO5: 0 | IP5: 0 | IQ5: 0 | IR5: 0 | IS5: 0 | IT5: 0 | IU5: 0 | IV5: 0 | IW5: 0 | IX5: 781 | IY5: 541 | IZ5: 299 | JA5: 164 | JB5: 118 | JC5: 79 | JD5: 77 | JE5: 19 | JF5: 29 | JG5: 20 | JH5: 14 | JI5: 140 | JJ5: 116 | JK5: 53 | JL5: 22 | JM5: 29 | JN5: 29 | JO5: 19 | JP5: 32 | JQ5: 119 | JR5: 88 | JS5: 58 | JT5: 21 | JU5: 29 | JV5: 29 | JW5: 10 | JX5: 41 | JY5: 77 | JZ5: 49 | KA5: 16 | KB5: 33 | KC5: 29 | KD5: 29 | KE5: 36 | KF5: 29 | KG5: 141 | KH5: 92 | KI5: 68 | KJ5: 64 | KK5: 29 | KL5: 29 | KM5: 62 | KN5: 29 | KO5: 470 | KP5: 70 | KQ5: 47 | KR5: 51 | KS5: 31 | KT5: 29 | KU5: 29 | KV5: 29 | KW5: 29 | KX5: 106 | KY5: 85 | KZ5: 47 | LA5: 39 | LB5: 29 | LC5: 29 | LD5: 15 | LE5: 31 | LF5: 166 | LG5: 138 | LH5: 61 | LI5: 44 | LJ5: 29 | LK5: 20 | LL5: 35 | LM5: 25 | LN5: 158 | LO5: 124 | LP5: 47 | LQ5: 50 | LR5: 29 | LS5: 29 | LT5: 45 | LU5: 29 | LV5: 481 | LW5: 418 | LX5: 138 | LY5: 179 | LZ5: 14 | MA5: 29 | MB5: 153 | MC5: 103 | MD5: 51 | ME5: 51 | MF5: 40 | MG5: 14 | MH5: 15 | MI5: 29 | MJ5: 29 | MK5: 29 | ML5: 24 | MM5: 29 | MN5: 29 | MO5: 29 | MP5: 29 | MQ5: 29 | MR5: 29 | MS5: 29 | MT5: 29 | MU5: 29 | MV5: 29 | MW5: 29 | MX5: 29 | MY5: 29 | MZ5: 29 | NA5: 29 | NB5: 29 | NC5: 29 | ND5: 29 | NE5: 29 | NF5: 29 | NG5: 29 | NH5: 29 | NI5: 29 | NJ5: 29 | NK5: 29 | NL5: 29 | NM5: 29 | NN5: 29 | NO5: 29 | NP5: 29 | NQ5: 29 | NR5: 29 | NS5: 626 | NT5: 516 | NU5: 385 | NV5: 308 | NW5: 198 | NX5: 232 | NY5: 35 | NZ5: 93 | OA5: 160 | OB5: 118 | OC5: 372 | OD5: 228 | OE5: 134 | OF5: 173 | OG5: 29 | OH5: 29 | OI5: 121 | OJ5: 61 | OK5: 172 | OL5: 125 | OM5: 92 | ON5: 75 | OO5: 4 | OP5: 29 | OQ5: 39 | OR5: 14 | OS5: 67 | OT5: 44 | OU5: 29 | OV5: 28 | OW5: 29 | OX5: 29 | OY5: 42 | OZ5: 29 | PA5: 112 | PB5: 83 | PC5: 13 | PD5: 72 | PE5: 29 | PF5: 29 | PG5: 30 | PH5: 29 | PI5: 593 | PJ5: 267 | PK5: 166 | PL5: 160 | PM5: 129 | PN5: 45 | PO5: 29 | PP5: 64 | PQ5: 91 | PR5: 229 | PS5: 152 | PT5: 124 | PU5: 85 | PV5: 29 | PW5: 29 | PX5: 76 | PY5: 45 | PZ5: 309 | QA5: 193 | QB5: 125 | QC5: 123 | QD5: 29 | QE5: 29 | QF5: 119 | QG5: 97 | QH5: 252 | QI5: 159 | QJ5: 72 | QK5: 159 | QL5: 9 | QM5: 22 | QN5: 106 | QO5: 94 | QP5: 461 | QQ5: 388 | QR5: 123 | QS5: 145 | QT5: 13 | QU5: 40 | QV5: 193 | QW5: 81 | QX5: 181 | QY5: 181 | QZ5: 93 | RA5: 63 | RB5: 131 | RC5: 29 | RD5: 29 | RE5: 13 | RF5: 33 | RG5: 29 | RH5: 29 | RI5: 29 | RJ5: 29 | RK5: 29 | RL5: 29 | RM5: 29 | RN5: 29 | RO5: 29 | RP5: 29 | RQ5: 29 | RR5: 29 | RS5: 29 | RT5: 29 | RU5: 29 | RV5: 29 | RW5: 29 | RX5: 29 | RY5: 29 | RZ5: 29 | SA5: 29 | SB5: 29 | SC5: 29 | SD5: 29 | SE5: 29 | SF5: 29 | SG5: 29 | SH5: 29 | SI5: 29 | SJ5: 29 | SK5: 29 | SL5: 29
A6: 2013thru2017 | B6: 155 | C6: 15500US0611964001 | D6: Alameda County | E6: Alameda County (part), Castro Valley CDP, California | F6: 1 | G6: 11964 | H6: 1 | I6: 23045 | J6: 15830 | K6: 1820 | L6: 385 | M6: 190 | N6: 0 | O6: 115 | P6: 15 | Q6: 0 | R6: 65 | S6: 0 | T6: 610 | U6: 395 | V6: 15 | W6: 145 | X6: 0 | Y6: 0 | Z6: 60 | AA6: 0 | AB6: 255 | AC6: 145 | AD6: 4 | AE6: 80 | AF6: 0 | AG6: 0 | AH6: 25 | AI6: 0 | AJ6: 145 | AK6: 80 | AL6: 0 | AM6: 25 | AN6: 0 | AO6: 10 | AP6: 20 | AQ6: 4 | AR6: 430 | AS6: 160 | AT6: 0 | AU6: 200 | AV6: 15 | AW6: 0 | AX6: 25 | AY6: 30 | AZ6: 13935 | BA6: 365 | BB6: 185 | BC6: 0 | BD6: 55 | BE6: 0 | BF6: 0 | BG6: 120 | BH6: 4 | BI6: 775 | BJ6: 495 | BK6: 30 | BL6: 175 | BM6: 0 | BN6: 0 | BO6: 50 | BP6: 30 | BQ6: 1265 | BR6: 700 | BS6: 125 | BT6: 275 | BU6: 0 | BV6: 10 | BW6: 130 | BX6: 20 | BY6: 1155 | BZ6: 735 | CA6: 50 | CB6: 265 | CC6: 0 | CD6: 0 | CE6: 60 | CF6: 40 | CG6: 10375 | CH6: 6160 | CI6: 390 | CJ6: 2585 | CK6: 25 | CL6: 4 | CM6: 955 | CN6: 255 | CO6: 75 | CP6: 75 | CQ6: 35 | CR6: 0 | CS6: 35 | CT6: 0 | CU6: 0 | CV6: 0 | CW6: 0 | CX6: 0 | CY6: 0 | CZ6: 0 | DA6: 0 | DB6: 0 | DC6: 0 | DD6: 0 | DE6: 0 | DF6: 0 | DG6: 0 | DH6: 0 | DI6: 0 | DJ6: 0 | DK6: 0 | DL6: 0 | DM6: 0 | DN6: 0 | DO6: 0 | DP6: 0 | DQ6: 0 | DR6: 0 | DS6: 0 | DT6: 0 | DU6: 0 | DV6: 0 | DW6: 0 | DX6: 0 | DY6: 0 | DZ6: 0 | EA6: 0 | EB6: 0 | EC6: 0 | ED6: 7215 | EE6: 2295 | EF6: 1330 | EG6: 635 | EH6: 195 | EI6: 235 | EJ6: 10 | EK6: 0 | EL6: 175 | EM6: 75 | EN6: 595 | EO6: 260 | EP6: 150 | EQ6: 25 | ER6: 0 | ES6: 0 | ET6: 140 | EU6: 20 | EV6: 170 | EW6: 50 | EX6: 35 | EY6: 15 | EZ6: 0 | FA6: 0 | FB6: 65 | FC6: 0 | FD6: 70 | FE6: 0 | FF6: 0 | FG6: 70 | FH6: 0 | FI6: 0 | FJ6: 0 | FK6: 0 | FL6: 130 | FM6: 50 | FN6: 0 | FO6: 15 | FP6: 0 | FQ6: 4 | FR6: 50 | FS6: 15 | FT6: 4920 | FU6: 185 | FV6: 60 | FW6: 35 | FX6: 55 | FY6: 10 | FZ6: 0 | GA6: 15 | GB6: 10 | GC6: 725 | GD6: 235 | GE6: 220 | GF6: 35 | GG6: 0 | GH6: 0 | GI6: 195 | GJ6: 50 | GK6: 855 | GL6: 380 | GM6: 165 | GN6: 105 | GO6: 0 | GP6: 4 | GQ6: 195 | GR6: 10 | GS6: 985 | GT6: 490 | GU6: 80 | GV6: 95 | GW6: 0 | GX6: 50 | GY6: 255 | GZ6: 15 | HA6: 2170 | HB6: 1240 | HC6: 115 | HD6: 295 | HE6: 4 | HF6: 70 | HG6: 370 | HH6: 80 | HI6: 0 | HJ6: 0 | HK6: 0 | HL6: 0 | HM6: 0 | HN6: 0 | HO6: 0 | HP6: 0 | HQ6: 0 | HR6: 0 | HS6: 0 | HT6: 0 | HU6: 0 | HV6: 0 | HW6: 0 | HX6: 0 | HY6: 0 | HZ6: 0 | IA6: 0 | IB6: 0 | IC6: 0 | ID6: 0 | IE6: 0 | IF6: 0 | IG6: 0 | IH6: 0 | II6: 0 | IJ6: 0 | IK6: 0 | IL6: 0 | IM6: 0 | IN6: 0 | IO6: 0 | IP6: 0 | IQ6: 0 | IR6: 0 | IS6: 0 | IT6: 0 | IU6: 0 | IV6: 0 | IW6: 0 | IX6: 402 | IY6: 499 | IZ6: 264 | JA6: 119 | JB6: 102 | JC6: 29 | JD6: 71 | JE6: 23 | JF6: 29 | JG6: 66 | JH6: 29 | JI6: 161 | JJ6: 121 | JK6: 22 | JL6: 78 | JM6: 29 | JN6: 29 | JO6: 54 | JP6: 29 | JQ6: 102 | JR6: 79 | JS6: 9 | JT6: 66 | JU6: 29 | JV6: 29 | JW6: 20 | JX6: 29 | JY6: 80 | JZ6: 65 | KA6: 29 | KB6: 37 | KC6: 29 | KD6: 20 | KE6: 21 | KF6: 11 | KG6: 121 | KH6: 79 | KI6: 29 | KJ6: 88 | KK6: 16 | KL6: 29 | KM6: 34 | KN6: 37 | KO6: 506 | KP6: 123 | KQ6: 76 | KR6: 29 | KS6: 56 | KT6: 29 | KU6: 29 | KV6: 102 | KW6: 7 | KX6: 180 | KY6: 129 | KZ6: 34 | LA6: 105 | LB6: 29 | LC6: 29 | LD6: 36 | LE6: 32 | LF6: 237 | LG6: 165 | LH6: 87 | LI6: 101 | LJ6: 29 | LK6: 15 | LL6: 69 | LM6: 20 | LN6: 186 | LO6: 136 | LP6: 47 | LQ6: 99 | LR6: 29 | LS6: 29 | LT6: 45 | LU6: 44 | LV6: 531 | LW6: 417 | LX6: 156 | LY6: 296 | LZ6: 25 | MA6: 6 | MB6: 189 | MC6: 115 | MD6: 46 | ME6: 46 | MF6: 32 | MG6: 29 | MH6: 37 | MI6: 29 | MJ6: 29 | MK6: 29 | ML6: 29 | MM6: 29 | MN6: 29 | MO6: 29 | MP6: 29 | MQ6: 29 | MR6: 29 | MS6: 29 | MT6: 29 | MU6: 29 | MV6: 29 | MW6: 29 | MX6: 29 | MY6: 29 | MZ6: 29 | NA6: 29 | NB6: 29 | NC6: 29 | ND6: 29 | NE6: 29 | NF6: 29 | NG6: 29 | NH6: 29 | NI6: 29 | NJ6: 29 | NK6: 29 | NL6: 29 | NM6: 29 | NN6: 29 | NO6: 29 | NP6: 29 | NQ6: 29 | NR6: 29 | NS6: 528 | NT6: 336 | NU6: 241 | NV6: 170 | NW6: 110 | NX6: 91 | NY6: 15 | NZ6: 29 | OA6: 87 | OB6: 79 | OC6: 208 | OD6: 133 | OE6: 127 | OF6: 29 | OG6: 29 | OH6: 29 | OI6: 83 | OJ6: 32 | OK6: 76 | OL6: 38 | OM6: 35 | ON6: 17 | OO6: 29 | OP6: 29 | OQ6: 49 | OR6: 29 | OS6: 74 | OT6: 29 | OU6: 29 | OV6: 74 | OW6: 29 | OX6: 29 | OY6: 29 | OZ6: 29 | PA6: 79 | PB6: 54 | PC6: 29 | PD6: 20 | PE6: 29 | PF6: 6 | PG6: 54 | PH6: 27 | PI6: 491 | PJ6: 78 | PK6: 49 | PL6: 30 | PM6: 52 | PN6: 14 | PO6: 29 | PP6: 20 | PQ6: 14 | PR6: 219 | PS6: 133 | PT6: 114 | PU6: 38 | PV6: 29 | PW6: 29 | PX6: 102 | PY6: 58 | PZ6: 219 | QA6: 142 | QB6: 144 | QC6: 62 | QD6: 29 | QE6: 6 | QF6: 129 | QG6: 14 | QH6: 278 | QI6: 248 | QJ6: 66 | QK6: 66 | QL6: 29 | QM6: 66 | QN6: 115 | QO6: 24 | QP6: 310 | QQ6: 215 | QR6: 73 | QS6: 111 | QT6: 29 | QU6: 50 | QV6: 135 | QW6: 49 | QX6: 29 | QY6: 29 | QZ6: 29 | RA6: 29 | RB6: 29 | RC6: 29 | RD6: 29 | RE6: 29 | RF6: 29 | RG6: 29 | RH6: 29 | RI6: 29 | RJ6: 29 | RK6: 29 | RL6: 29 | RM6: 29 | RN6: 29 | RO6: 29 | RP6: 29 | RQ6: 29 | RR6: 29 | RS6: 29 | RT6: 29 | RU6: 29 | RV6: 29 | RW6: 29 | RX6: 29 | RY6: 29 | RZ6: 29 | SA6: 29 | SB6: 29 | SC6: 29 | SD6: 29 | SE6: 29 | SF6: 29 | SG6: 29 | SH6: 29 | SI6: 29 | SJ6: 29 | SK6: 29 | SL6: 29
A7: 2013thru2017 | B7: 155 | C7: 15500US0612902001 | D7: Alameda County | E7: Alameda County (part), Cherryland CDP, California | F7: 1 | G7: 12902 | H7: 1 | I7: 4855 | J7: 1585 | K7: 330 | L7: 115 | M7: 55 | N7: 0 | O7: 35 | P7: 0 | Q7: 0 | R7: 20 | S7: 0 | T7: 90 | U7: 30 | V7: 0 | W7: 0 | X7: 0 | Y7: 0 | Z7: 60 | AA7: 0 | AB7: 10 | AC7: 0 | AD7: 0 | AE7: 0 | AF7: 0 | AG7: 0 | AH7: 10 | AI7: 0 | AJ7: 25 | AK7: 4 | AL7: 0 | AM7: 0 | AN7: 0 | AO7: 0 | AP7: 25 | AQ7: 0 | AR7: 95 | AS7: 0 | AT7: 0 | AU7: 35 | AV7: 0 | AW7: 0 | AX7: 55 | AY7: 0 | AZ7: 1255 | BA7: 35 | BB7: 35 | BC7: 0 | BD7: 0 | BE7: 0 | BF7: 0 | BG7: 0 | BH7: 0 | BI7: 130 | BJ7: 85 | BK7: 0 | BL7: 15 | BM7: 0 | BN7: 0 | BO7: 30 | BP7: 0 | BQ7: 290 | BR7: 85 | BS7: 0 | BT7: 20 | BU7: 0 | BV7: 0 | BW7: 175 | BX7: 10 | BY7: 185 | BZ7: 40 | CA7: 50 | CB7: 45 | CC7: 0 | CD7: 0 | CE7: 50 | CF7: 0 | CG7: 615 | CH7: 265 | CI7: 30 | CJ7: 85 | CK7: 0 | CL7: 15 | CM7: 205 | CN7: 15 | CO7: 0 | CP7: 0 | CQ7: 0 | CR7: 0 | CS7: 0 | CT7: 0 | CU7: 0 | CV7: 0 | CW7: 0 | CX7: 0 | CY7: 0 | CZ7: 0 | DA7: 0 | DB7: 0 | DC7: 0 | DD7: 0 | DE7: 0 | DF7: 0 | DG7: 0 | DH7: 0 | DI7: 0 | DJ7: 0 | DK7: 0 | DL7: 0 | DM7: 0 | DN7: 0 | DO7: 0 | DP7: 0 | DQ7: 0 | DR7: 0 | DS7: 0 | DT7: 0 | DU7: 0 | DV7: 0 | DW7: 0 | DX7: 0 | DY7: 0 | DZ7: 0 | EA7: 0 | EB7: 0 | EC7: 0 | ED7: 3270 | EE7: 1465 | EF7: 805 | EG7: 150 | EH7: 200 | EI7: 140 | EJ7: 0 | EK7: 0 | EL7: 290 | EM7: 25 | EN7: 285 | EO7: 4 | EP7: 30 | EQ7: 10 | ER7: 0 | ES7: 0 | ET7: 240 | EU7: 0 | EV7: 110 | EW7: 0 | EX7: 0 | EY7: 4 | EZ7: 0 | FA7: 0 | FB7: 100 | FC7: 0 | FD7: 65 | FE7: 0 | FF7: 0 | FG7: 0 | FH7: 0 | FI7: 0 | FJ7: 65 | FK7: 0 | FL7: 195 | FM7: 4 | FN7: 0 | FO7: 85 | FP7: 0 | FQ7: 0 | FR7: 105 | FS7: 0 | FT7: 1805 | FU7: 125 | FV7: 40 | FW7: 40 | FX7: 0 | FY7: 0 | FZ7: 0 | GA7: 50 | GB7: 0 | GC7: 345 | GD7: 100 | GE7: 25 | GF7: 0 | GG7: 0 | GH7: 0 | GI7: 195 | GJ7: 25 | GK7: 490 | GL7: 150 | GM7: 90 | GN7: 10 | GO7: 0 | GP7: 4 | GQ7: 235 | GR7: 0 | GS7: 240 | GT7: 45 | GU7: 15 | GV7: 0 | GW7: 4 | GX7: 0 | GY7: 100 | GZ7: 70 | HA7: 605 | HB7: 160 | HC7: 155 | HD7: 95 | HE7: 0 | HF7: 15 | HG7: 180 | HH7: 4 | HI7: 0 | HJ7: 0 | HK7: 0 | HL7: 0 | HM7: 0 | HN7: 0 | HO7: 0 | HP7: 0 | HQ7: 0 | HR7: 0 | HS7: 0 | HT7: 0 | HU7: 0 | HV7: 0 | HW7: 0 | HX7: 0 | HY7: 0 | HZ7: 0 | IA7: 0 | IB7: 0 | IC7: 0 | ID7: 0 | IE7: 0 | IF7: 0 | IG7: 0 | IH7: 0 | II7: 0 | IJ7: 0 | IK7: 0 | IL7: 0 | IM7: 0 | IN7: 0 | IO7: 0 | IP7: 0 | IQ7: 0 | IR7: 0 | IS7: 0 | IT7: 0 | IU7: 0 | IV7: 0 | IW7: 0 | IX7: 236 | IY7: 210 | IZ7: 105 | JA7: 61 | JB7: 36 | JC7: 19 | JD7: 49 | JE7: 19 | JF7: 19 | JG7: 26 | JH7: 19 | JI7: 72 | JJ7: 38 | JK7: 19 | JL7: 19 | JM7: 19 | JN7: 19 | JO7: 61 | JP7: 19 | JQ7: 14 | JR7: 19 | JS7: 19 | JT7: 19 | JU7: 19 | JV7: 19 | JW7: 14 | JX7: 19 | JY7: 40 | JZ7: 8 | KA7: 19 | KB7: 19 | KC7: 19 | KD7: 19 | KE7: 39 | KF7: 19 | KG7: 52 | KH7: 19 | KI7: 19 | KJ7: 25 | KK7: 19 | KL7: 19 | KM7: 44 | KN7: 19 | KO7: 169 | KP7: 39 | KQ7: 39 | KR7: 19 | KS7: 19 | KT7: 19 | KU7: 19 | KV7: 19 | KW7: 19 | KX7: 59 | KY7: 39 | KZ7: 19 | LA7: 23 | LB7: 19 | LC7: 19 | LD7: 40 | LE7: 19 | LF7: 118 | LG7: 47 | LH7: 19 | LI7: 25 | LJ7: 19 | LK7: 19 | LL7: 97 | LM7: 13 | LN7: 79 | LO7: 33 | LP7: 59 | LQ7: 43 | LR7: 19 | LS7: 19 | LT7: 37 | LU7: 19 | LV7: 138 | LW7: 79 | LX7: 32 | LY7: 50 | LZ7: 19 | MA7: 17 | MB7: 101 | MC7: 24 | MD7: 19 | ME7: 19 | MF7: 19 | MG7: 19 | MH7: 19 | MI7: 19 | MJ7: 19 | MK7: 19 | ML7: 19 | MM7: 19 | MN7: 19 | MO7: 19 | MP7: 19 | MQ7: 19 | MR7: 19 | MS7: 19 | MT7: 19 | MU7: 19 | MV7: 19 | MW7: 19 | MX7: 19 | MY7: 19 | MZ7: 19 | NA7: 19 | NB7: 19 | NC7: 19 | ND7: 19 | NE7: 19 | NF7: 19 | NG7: 19 | NH7: 19 | NI7: 19 | NJ7: 19 | NK7: 19 | NL7: 19 | NM7: 19 | NN7: 19 | NO7: 19 | NP7: 19 | NQ7: 19 | NR7: 19 | NS7: 257 | NT7: 252 | NU7: 213 | NV7: 63 | NW7: 125 | NX7: 73 | NY7: 19 | NZ7: 19 | OA7: 126 | OB7: 23 | OC7: 133 | OD7: 12 | OE7: 44 | OF7: 13 | OG7: 19 | OH7: 19 | OI7: 125 | OJ7: 19 | OK7: 71 | OL7: 19 | OM7: 19 | ON7: 12 | OO7: 19 | OP7: 19 | OQ7: 71 | OR7: 19 | OS7: 63 | OT7: 19 | OU7: 19 | OV7: 19 | OW7: 19 | OX7: 19 | OY7: 63 | OZ7: 19 | PA7: 93 | PB7: 10 | PC7: 19 | PD7: 69 | PE7: 19 | PF7: 19 | PG7: 70 | PH7: 19 | PI7: 269 | PJ7: 77 | PK7: 41 | PL7: 45 | PM7: 19 | PN7: 19 | PO7: 19 | PP7: 51 | PQ7: 19 | PR7: 136 | PS7: 58 | PT7: 26 | PU7: 19 | PV7: 19 | PW7: 19 | PX7: 121 | PY7: 29 | PZ7: 169 | QA7: 89 | QB7: 59 | QC7: 13 | QD7: 19 | QE7: 12 | QF7: 119 | QG7: 19 | QH7: 116 | QI7: 31 | QJ7: 23 | QK7: 19 | QL7: 5 | QM7: 19 | QN7: 74 | QO7: 73 | QP7: 175 | QQ7: 73 | QR7: 104 | QS7: 86 | QT7: 19 | QU7: 23 | QV7: 103 | QW7: 19 | QX7: 19 | QY7: 19 | QZ7: 19 | RA7: 19 | RB7: 19 | RC7: 19 | RD7: 19 | RE7: 19 | RF7: 19 | RG7: 19 | RH7: 19 | RI7: 19 | RJ7: 19 | RK7: 19 | RL7: 19 | RM7: 19 | RN7: 19 | RO7: 19 | RP7: 19 | RQ7: 19 | RR7: 19 | RS7: 19 | RT7: 19 | RU7: 19 | RV7: 19 | RW7: 19 | RX7: 19 | RY7: 19 | RZ7: 19 | SA7: 19 | SB7: 19 | SC7: 19 | SD7: 19 | SE7: 19 | SF7: 19 | SG7: 19 | SH7: 19 | SI7: 19 | SJ7: 19 | SK7: 19 | SL7: 19
A8: 2013thru2017 | B8: 155 | C8: 15500US0620018001 | D8: Alameda County | E8: Alameda County (part), Dublin city, California | G8: 20018 | H8: 1 | I8: 19025 | J8: 12515 | K8: 1060 | L8: 300 | M8: 90 | N8: 0 | O8: 115 | P8: 10 | Q8: 0 | R8: 75 | S8: 10 | T8: 265 | U8: 235 | V8: 0 | W8: 30 | X8: 0 | Y8: 0 | Z8: 0 | AA8: 0 | AB8: 115 | AC8: 45 | AD8: 0 | AE8: 50 | AF8: 0 | AG8: 0 | AH8: 20 | AI8: 0 | AJ8: 115 | AK8: 105 | AL8: 0 | AM8: 10 | AN8: 0 | AO8: 0 | AP8: 0 | AQ8: 0 | AR8: 265 | AS8: 70 | AT8: 15 | AU8: 185 | AV8: 0 | AW8: 0 | AX8: 0 | AY8: 0 | AZ8: 11435 | BA8: 115 | BB8: 80 | BC8: 0 | BD8: 20 | BE8: 15 | BF8: 0 | BG8: 0 | BH8: 0 | BI8: 195 | BJ8: 155 | BK8: 0 | BL8: 20 | BM8: 0 | BN8: 0 | BO8: 0 | BP8: 20 | BQ8: 575 | BR8: 405 | BS8: 10 | BT8: 115 | BU8: 0 | BV8: 4 | BW8: 30 | BX8: 4 | BY8: 610 | BZ8: 460 | CA8: 10 | CB8: 80 | CC8: 0 | CD8: 0 | CE8: 55 | CF8: 0 | CG8: 9940 | CH8: 4370 | CI8: 160 | CJ8: 4725 | CK8: 4 | CL8: 35 | CM8: 455 | CN8: 190 | CO8: 15 | CP8: 15 | CQ8: 0 | CR8: 0 | CS8: 10 | CT8: 0 | CU8: 0 | CV8: 0 | CW8: 10 | CX8: 0 | CY8: 0 | CZ8: 0 | DA8: 0 | DB8: 0 | DC8: 0 | DD8: 0 | DE8: 0 | DF8: 0 | DG8: 0 | DH8: 0 | DI8: 0 | DJ8: 0 | DK8: 0 | DL8: 0 | DM8: 0 | DN8: 0 | DO8: 0 | DP8: 0 | DQ8: 0 | DR8: 0 | DS8: 0 | DT8: 0 | DU8: 0 | DV8: 0 | DW8: 0 | DX8: 0 | DY8: 0 | DZ8: 0 | EA8: 0 | EB8: 0 | EC8: 0 | ED8: 6510 | EE8: 1460 | EF8: 420 | EG8: 240 | EH8: 45 | EI8: 95 | EJ8: 4 | EK8: 0 | EL8: 15 | EM8: 20 | EN8: 380 | EO8: 265 | EP8: 25 | EQ8: 35 | ER8: 0 | ES8: 10 | ET8: 25 | EU8: 20 | EV8: 270 | EW8: 145 | EX8: 0 | EY8: 40 | EZ8: 0 | FA8: 0 | FB8: 55 | FC8: 35 | FD8: 90 | FE8: 15 | FF8: 0 | FG8: 20 | FH8: 0 | FI8: 0 | FJ8: 20 | FK8: 40 | FL8: 300 | FM8: 95 | FN8: 0 | FO8: 180 | FP8: 0 | FQ8: 0 | FR8: 15 | FS8: 10 | FT8: 4990 | FU8: 180 | FV8: 20 | FW8: 4 | FX8: 60 | FY8: 0 | FZ8: 35 | GA8: 0 | GB8: 55 | GC8: 135 | GD8: 60 | GE8: 40 | GF8: 10 | GG8: 0 | GH8: 0 | GI8: 30 | GJ8: 0 | GK8: 260 | GL8: 160 | GM8: 10 | GN8: 55 | GO8: 0 | GP8: 0 | GQ8: 30 | GR8: 10 | GS8: 525 | GT8: 175 | GU8: 115 | GV8: 145 | GW8: 0 | GX8: 4 | GY8: 70 | GZ8: 10 | HA8: 3885 | HB8: 1920 | HC8: 200 | HD8: 1080 | HE8: 35 | HF8: 0 | HG8: 380 | HH8: 280 | HI8: 60 | HJ8: 60 | HK8: 0 | HL8: 0 | HM8: 55 | HN8: 0 | HO8: 0 | HP8: 4 | HQ8: 0 | HR8: 0 | HS8: 0 | HT8: 0 | HU8: 0 | HV8: 0 | HW8: 0 | HX8: 0 | HY8: 0 | HZ8: 0 | IA8: 0 | IB8: 0 | IC8: 0 | ID8: 0 | IE8: 0 | IF8: 0 | IG8: 0 | IH8: 0 | II8: 0 | IJ8: 0 | IK8: 0 | IL8: 0 | IM8: 0 | IN8: 0 | IO8: 0 | IP8: 0 | IQ8: 0 | IR8: 0 | IS8: 0 | IT8: 0 | IU8: 0 | IV8: 0 | IW8: 0 | IX8: 362 | IY8: 462 | IZ8: 217 | JA8: 106 | JB8: 45 | JC8: 29 | JD8: 64 | JE8: 15 | JF8: 29 | JG8: 76 | JH8: 14 | JI8: 118 | JJ8: 120 | JK8: 29 | JL8: 30 | JM8: 29 | JN8: 29 | JO8: 29 | JP8: 29 | JQ8: 55 | JR8: 32 | JS8: 29 | JT8: 37 | JU8: 29 | JV8: 29 | JW8: 25 | JX8: 29 | JY8: 61 | JZ8: 56 | KA8: 29 | KB8: 21 | KC8: 29 | KD8: 29 | KE8: 29 | KF8: 29 | KG8: 85 | KH8: 44 | KI8: 26 | KJ8: 71 | KK8: 29 | KL8: 29 | KM8: 29 | KN8: 29 | KO8: 453 | KP8: 76 | KQ8: 64 | KR8: 29 | KS8: 32 | KT8: 23 | KU8: 29 | KV8: 29 | KW8: 29 | KX8: 80 | KY8: 69 | KZ8: 29 | LA8: 26 | LB8: 29 | LC8: 29 | LD8: 29 | LE8: 29 | LF8: 135 | LG8: 113 | LH8: 14 | LI8: 64 | LJ8: 29 | LK8: 7 | LL8: 32 | LM8: 7 | LN8: 142 | LO8: 140 | LP8: 15 | LQ8: 43 | LR8: 29 | LS8: 29 | LT8: 37 | LU8: 29 | LV8: 467 | LW8: 340 | LX8: 73 | LY8: 280 | LZ8: 8 | MA8: 33 | MB8: 113 | MC8: 82 | MD8: 22 | ME8: 22 | MF8: 29 | MG8: 29 | MH8: 15 | MI8: 29 | MJ8: 29 | MK8: 29 | ML8: 15 | MM8: 29 | MN8: 29 | MO8: 29 | MP8: 29 | MQ8: 29 | MR8: 29 | MS8: 29 | MT8: 29 | MU8: 29 | MV8: 29 | MW8: 29 | MX8: 29 | MY8: 29 | MZ8: 29 | NA8: 29 | NB8: 29 | NC8: 29 | ND8: 29 | NE8: 29 | NF8: 29 | NG8: 29 | NH8: 29 | NI8: 29 | NJ8: 29 | NK8: 29 | NL8: 29 | NM8: 29 | NN8: 29 | NO8: 29 | NP8: 29 | NQ8: 29 | NR8: 29 | NS8: 354 | NT8: 249 | NU8: 121 | NV8: 98 | NW8: 50 | NX8: 60 | NY8: 11 | NZ8: 29 | OA8: 23 | OB8: 27 | OC8: 148 | OD8: 135 | OE8: 29 | OF8: 40 | OG8: 29 | OH8: 13 | OI8: 28 | OJ8: 35 | OK8: 105 | OL8: 77 | OM8: 29 | ON8: 48 | OO8: 29 | OP8: 29 | OQ8: 59 | OR8: 40 | OS8: 72 | OT8: 22 | OU8: 29 | OV8: 32 | OW8: 29 | OX8: 29 | OY8: 34 | OZ8: 60 | PA8: 111 | PB8: 65 | PC8: 29 | PD8: 89 | PE8: 29 | PF8: 29 | PG8: 18 | PH8: 13 | PI8: 292 | PJ8: 95 | PK8: 26 | PL8: 20 | PM8: 52 | PN8: 29 | PO8: 53 | PP8: 29 | PQ8: 62 | PR8: 69 | PS8: 37 | PT8: 51 | PU8: 14 | PV8: 29 | PW8: 29 | PX8: 29 | PY8: 29 | PZ8: 107 | QA8: 95 | QB8: 14 | QC8: 41 | QD8: 29 | QE8: 29 | QF8: 31 | QG8: 15 | QH8: 166 | QI8: 93 | QJ8: 92 | QK8: 87 | QL8: 29 | QM8: 4 | QN8: 61 | QO8: 15 | QP8: 307 | QQ8: 257 | QR8: 104 | QS8: 168 | QT8: 34 | QU8: 29 | QV8: 122 | QW8: 107 | QX8: 77 | QY8: 77 | QZ8: 29 | RA8: 29 | RB8: 76 | RC8: 29 | RD8: 29 | RE8: 5 | RF8: 29 | RG8: 29 | RH8: 29 | RI8: 29 | RJ8: 29 | RK8: 29 | RL8: 29 | RM8: 29 | RN8: 29 | RO8: 29 | RP8: 29 | RQ8: 29 | RR8: 29 | RS8: 29 | RT8: 29 | RU8: 29 | RV8: 29 | RW8: 29 | RX8: 29 | RY8: 29 | RZ8: 29 | SA8: 29 | SB8: 29 | SC8: 29 | SD8: 29 | SE8: 29 | SF8: 29 | SG8: 29 | SH8: 29 | SI8: 29 | SJ8: 29 | SK8: 29 | SL8: 29
A9: 2013thru2017 | B9: 155 | C9: 15500US0622594001 | D9: Alameda County | E9: Alameda County (part), Emeryville city, California | G9: 22594 | H9: 1 | I9: 6540 | J9: 2340 | K9: 385 | L9: 110 | M9: 45 | N9: 30 | O9: 10 | P9: 4 | Q9: 0 | R9: 20 | S9: 0 | T9: 75 | U9: 75 | V9: 0 | W9: 0 | X9: 0 | Y9: 0 | Z9: 0 | AA9: 0 | AB9: 150 | AC9: 80 | AD9: 0 | AE9: 70 | AF9: 0 | AG9: 0 | AH9: 0 | AI9: 0 | AJ9: 4 | AK9: 0 | AL9: 0 | AM9: 4 | AN9: 0 | AO9: 0 | AP9: 0 | AQ9: 0 | AR9: 50 | AS9: 30 | AT9: 0 | AU9: 20 | AV9: 0 | AW9: 0 | AX9: 0 | AY9: 0 | AZ9: 1900 | BA9: 70 | BB9: 45 | BC9: 10 | BD9: 0 | BE9: 0 | BF9: 0 | BG9: 0 | BH9: 15 | BI9: 155 | BJ9: 105 | BK9: 15 | BL9: 25 | BM9: 0 | BN9: 0 | BO9: 10 | BP9: 0 | BQ9: 85 | BR9: 60 | BS9: 15 | BT9: 10 | BU9: 0 | BV9: 0 | BW9: 0 | BX9: 0 | BY9: 160 | BZ9: 80 | CA9: 10 | CB9: 45 | CC9: 0 | CD9: 0 | CE9: 25 | CF9: 0 | CG9: 1435 | CH9: 745 | CI9: 70 | CJ9: 475 | CK9: 0 | CL9: 10 | CM9: 110 | CN9: 25 | CO9: 50 | CP9: 50 | CQ9: 20 | CR9: 15 | CS9: 20 | CT9: 0 | CU9: 0 | CV9: 0 | CW9: 0 | CX9: 0 | CY9: 0 | CZ9: 0 | DA9: 0 | DB9: 0 | DC9: 0 | DD9: 0 | DE9: 0 | DF9: 0 | DG9: 0 | DH9: 0 | DI9: 0 | DJ9: 0 | DK9: 0 | DL9: 0 | DM9: 0 | DN9: 0 | DO9: 0 | DP9: 0 | DQ9: 0 | DR9: 0 | DS9: 0 | DT9: 0 | DU9: 0 | DV9: 0 | DW9: 0 | DX9: 0 | DY9: 0 | DZ9: 0 | EA9: 0 | EB9: 0 | EC9: 0 | ED9: 4200 | EE9: 1055 | EF9: 445 | EG9: 155 | EH9: 135 | EI9: 95 | EJ9: 0 | EK9: 0 | EL9: 45 | EM9: 15 | EN9: 235 | EO9: 80 | EP9: 65 | EQ9: 45 | ER9: 0 | ES9: 0 | ET9: 45 | EU9: 0 | EV9: 155 | EW9: 75 | EX9: 10 | EY9: 45 | EZ9: 0 | FA9: 0 | FB9: 10 | FC9: 15 | FD9: 20 | FE9: 0 | FF9: 10 | FG9: 10 | FH9: 0 | FI9: 0 | FJ9: 0 | FK9: 0 | FL9: 200 | FM9: 75 | FN9: 25 | FO9: 60 | FP9: 0 | FQ9: 0 | FR9: 35 | FS9: 10 | FT9: 3045 | FU9: 215 | FV9: 30 | FW9: 150 | FX9: 10 | FY9: 0 | FZ9: 0 | GA9: 20 | GB9: 0 | GC9: 140 | GD9: 30 | GE9: 65 | GF9: 45 | GG9: 0 | GH9: 0 | GI9: 0 | GJ9: 0 | GK9: 340 | GL9: 115 | GM9: 110 | GN9: 100 | GO9: 0 | GP9: 0 | GQ9: 10 | GR9: 0 | GS9: 235 | GT9: 125 | GU9: 50 | GV9: 10 | GW9: 0 | GX9: 0 | GY9: 20 | GZ9: 30 | HA9: 2120 | HB9: 1010 | HC9: 130 | HD9: 650 | HE9: 0 | HF9: 15 | HG9: 180 | HH9: 130 | HI9: 100 | HJ9: 100 | HK9: 0 | HL9: 20 | HM9: 70 | HN9: 0 | HO9: 0 | HP9: 0 | HQ9: 10 | HR9: 0 | HS9: 0 | HT9: 0 | HU9: 0 | HV9: 0 | HW9: 0 | HX9: 0 | HY9: 0 | HZ9: 0 | IA9: 0 | IB9: 0 | IC9: 0 | ID9: 0 | IE9: 0 | IF9: 0 | IG9: 0 | IH9: 0 | II9: 0 | IJ9: 0 | IK9: 0 | IL9: 0 | IM9: 0 | IN9: 0 | IO9: 0 | IP9: 0 | IQ9: 0 | IR9: 0 | IS9: 0 | IT9: 0 | IU9: 0 | IV9: 0 | IW9: 0 | IX9: 279 | IY9: 231 | IZ9: 105 | JA9: 51 | JB9: 35 | JC9: 28 | JD9: 16 | JE9: 9 | JF9: 19 | JG9: 22 | JH9: 19 | JI9: 39 | JJ9: 39 | JK9: 19 | JL9: 19 | JM9: 19 | JN9: 19 | JO9: 19 | JP9: 19 | JQ9: 82 | JR9: 60 | JS9: 19 | JT9: 49 | JU9: 19 | JV9: 19 | JW9: 19 | JX9: 19 | JY9: 13 | JZ9: 19 | KA9: 19 | KB9: 13 | KC9: 19 | KD9: 19 | KE9: 19 | KF9: 19 | KG9: 33 | KH9: 25 | KI9: 19 | KJ9: 24 | KK9: 19 | KL9: 19 | KM9: 19 | KN9: 19 | KO9: 223 | KP9: 54 | KQ9: 48 | KR9: 19 | KS9: 19 | KT9: 19 | KU9: 19 | KV9: 19 | KW9: 23 | KX9: 53 | KY9: 47 | KZ9: 23 | LA9: 27 | LB9: 19 | LC9: 19 | LD9: 15 | LE9: 19 | LF9: 46 | LG9: 30 | LH9: 24 | LI9: 16 | LJ9: 19 | LK9: 19 | LL9: 19 | LM9: 19 | LN9: 62 | LO9: 38 | LP9: 15 | LQ9: 34 | LR9: 19 | LS9: 19 | LT9: 29 | LU9: 19 | LV9: 184 | LW9: 136 | LX9: 47 | LY9: 109 | LZ9: 19 | MA9: 14 | MB9: 56 | MC9: 24 | MD9: 37 | ME9: 37 | MF9: 22 | MG9: 25 | MH9: 22 | MI9: 19 | MJ9: 19 | MK9: 19 | ML9: 19 | MM9: 19 | MN9: 19 | MO9: 19 | MP9: 19 | MQ9: 19 | MR9: 19 | MS9: 19 | MT9: 19 | MU9: 19 | MV9: 19 | MW9: 19 | MX9: 19 | MY9: 19 | MZ9: 19 | NA9: 19 | NB9: 19 | NC9: 19 | ND9: 19 | NE9: 19 | NF9: 19 | NG9: 19 | NH9: 19 | NI9: 19 | NJ9: 19 | NK9: 19 | NL9: 19 | NM9: 19 | NN9: 19 | NO9: 19 | NP9: 19 | NQ9: 19 | NR9: 19 | NS9: 250 | NT9: 184 | NU9: 137 | NV9: 89 | NW9: 79 | NX9: 61 | NY9: 19 | NZ9: 19 | OA9: 45 | OB9: 21 | OC9: 122 | OD9: 52 | OE9: 68 | OF9: 39 | OG9: 19 | OH9: 19 | OI9: 59 | OJ9: 19 | OK9: 66 | OL9: 62 | OM9: 13 | ON9: 32 | OO9: 19 | OP9: 19 | OQ9: 17 | OR9: 26 | OS9: 16 | OT9: 19 | OU9: 17 | OV9: 13 | OW9: 19 | OX9: 19 | OY9: 19 | OZ9: 19 | PA9: 85 | PB9: 62 | PC9: 28 | PD9: 41 | PE9: 19 | PF9: 19 | PG9: 30 | PH9: 18 | PI9: 318 | PJ9: 85 | PK9: 36 | PL9: 74 | PM9: 19 | PN9: 19 | PO9: 19 | PP9: 34 | PQ9: 19 | PR9: 83 | PS9: 26 | PT9: 62 | PU9: 45 | PV9: 19 | PW9: 19 | PX9: 19 | PY9: 19 | PZ9: 112 | QA9: 62 | QB9: 91 | QC9: 59 | QD9: 19 | QE9: 19 | QF9: 15 | QG9: 19 | QH9: 76 | QI9: 63 | QJ9: 51 | QK9: 18 | QL9: 19 | QM9: 19 | QN9: 27 | QO9: 26 | QP9: 273 | QQ9: 157 | QR9: 65 | QS9: 138 | QT9: 19 | QU9: 27 | QV9: 85 | QW9: 75 | QX9: 66 | QY9: 66 | QZ9: 19 | RA9: 23 | RB9: 60 | RC9: 19 | RD9: 19 | RE9: 19 | RF9: 15 | RG9: 19 | RH9: 19 | RI9: 19 | RJ9: 19 | RK9: 19 | RL9: 19 | RM9: 19 | RN9: 19 | RO9: 19 | RP9: 19 | RQ9: 19 | RR9: 19 | RS9: 19 | RT9: 19 | RU9: 19 | RV9: 19 | RW9: 19 | RX9: 19 | RY9: 19 | RZ9: 19 | SA9: 19 | SB9: 19 | SC9: 19 | SD9: 19 | SE9: 19 | SF9: 19 | SG9: 19 | SH9: 19 | SI9: 19 | SJ9: 19 | SK9: 19 | SL9: 19
A10: 2013thru2017 | B10: 155 | C10: 15500US0623350001 | D10: Alameda County | E10: Alameda County (part), Fairview CDP, California | F10: 1 | G10: 23350 | H10: 1 | I10: 3630 | J10: 2860 | K10: 465 | L10: 150 | M10: 95 | N10: 40 | O10: 0 | P10: 0 | Q10: 0 | R10: 10 | S10: 0 | T10: 85 | U10: 45 | V10: 10 | W10: 15 | X10: 0 | Y10: 0 | Z10: 15 | AA10: 0 | AB10: 125 | AC10: 35 | AD10: 55 | AE10: 20 | AF10: 4 | AG10: 0 | AH10: 10 | AI10: 0 | AJ10: 65 | AK10: 10 | AL10: 0 | AM10: 0 | AN10: 0 | AO10: 0 | AP10: 55 | AQ10: 0 | AR10: 35 | AS10: 0 | AT10: 0 | AU10: 10 | AV10: 0 | AW10: 0 | AX10: 25 | AY10: 0 | AZ10: 2390 | BA10: 70 | BB10: 45 | BC10: 10 | BD10: 20 | BE10: 0 | BF10: 0 | BG10: 0 | BH10: 0 | BI10: 95 | BJ10: 95 | BK10: 0 | BL10: 0 | BM10: 0 | BN10: 0 | BO10: 4 | BP10: 0 | BQ10: 200 | BR10: 90 | BS10: 30 | BT10: 15 | BU10: 0 | BV10: 15 | BW10: 40 | BX10: 4 | BY10: 220 | BZ10: 40 | CA10: 40 | CB10: 20 | CC10: 0 | CD10: 0 | CE10: 70 | CF10: 55 | CG10: 1800 | CH10: 865 | CI10: 385 | CJ10: 305 | CK10: 0 | CL10: 0 | CM10: 175 | CN10: 60 | CO10: 10 | CP10: 10 | CQ10: 0 | CR10: 0 | CS10: 0 | CT10: 0 | CU10: 0 | CV10: 10 | CW10: 0 | CX10: 0 | CY10: 0 | CZ10: 0 | DA10: 0 | DB10: 0 | DC10: 0 | DD10: 0 | DE10: 0 | DF10: 0 | DG10: 0 | DH10: 0 | DI10: 0 | DJ10: 0 | DK10: 0 | DL10: 0 | DM10: 0 | DN10: 0 | DO10: 0 | DP10: 0 | DQ10: 0 | DR10: 0 | DS10: 0 | DT10: 0 | DU10: 0 | DV10: 0 | DW10: 0 | DX10: 0 | DY10: 0 | DZ10: 0 | EA10: 0 | EB10: 0 | EC10: 0 | ED10: 770 | EE10: 140 | EF10: 95 | EG10: 30 | EH10: 25 | EI10: 10 | EJ10: 0 | EK10: 0 | EL10: 0 | EM10: 30 | EN10: 30 | EO10: 30 | EP10: 0 | EQ10: 0 | ER10: 0 | ES10: 0 | ET10: 0 | EU10: 0 | EV10: 0 | EW10: 0 | EX10: 0 | EY10: 0 | EZ10: 0 | FA10: 0 | FB10: 0 | FC10: 0 | FD10: 0 | FE10: 0 | FF10: 0 | FG10: 0 | FH10: 0 | FI10: 0 | FJ10: 0 | FK10: 0 | FL10: 15 | FM10: 0 | FN10: 0 | FO10: 0 | FP10: 0 | FQ10: 0 | FR10: 15 | FS10: 0 | FT10: 630 | FU10: 85 | FV10: 10 | FW10: 35 | FX10: 30 | FY10: 0 | FZ10: 0 | GA10: 10 | GB10: 0 | GC10: 45 | GD10: 45 | GE10: 0 | GF10: 0 | GG10: 0 | GH10: 0 | GI10: 0 | GJ10: 0 | GK10: 100 | GL10: 0 | GM10: 10 | GN10: 0 | GO10: 0 | GP10: 0 | GQ10: 65 | GR10: 25 | GS10: 170 | GT10: 4 | GU10: 35 | GV10: 0 | GW10: 0 | GX10: 0 | GY10: 125 | GZ10: 0 | HA10: 230 | HB10: 95 | HC10: 75 | HD10: 0 | HE10: 0 | HF10: 0 | HG10: 10 | HH10: 45 | HI10: 0 | HJ10: 0 | HK10: 0 | HL10: 0 | HM10: 0 | HN10: 0 | HO10: 0 | HP10: 0 | HQ10: 0 | HR10: 0 | HS10: 0 | HT10: 0 | HU10: 0 | HV10: 0 | HW10: 0 | HX10: 0 | HY10: 0 | HZ10: 0 | IA10: 0 | IB10: 0 | IC10: 0 | ID10: 0 | IE10: 0 | IF10: 0 | IG10: 0 | IH10: 0 | II10: 0 | IJ10: 0 | IK10: 0 | IL10: 0 | IM10: 0 | IN10: 0 | IO10: 0 | IP10: 0 | IQ10: 0 | IR10: 0 | IS10: 0 | IT10: 0 | IU10: 0 | IV10: 0 | IW10: 0 | IX10: 212 | IY10: 215 | IZ10: 139 | JA10: 83 | JB10: 84 | JC10: 38 | JD10: 19 | JE10: 19 | JF10: 19 | JG10: 21 | JH10: 19 | JI10: 49 | JJ10: 40 | JK10: 16 | JL10: 21 | JM10: 19 | JN10: 19 | JO10: 20 | JP10: 19 | JQ10: 82 | JR10: 33 | JS10: 71 | JT10: 35 | JU10: 11 | JV10: 19 | JW10: 16 | JX10: 19 | JY10: 70 | JZ10: 22 | KA10: 19 | KB10: 19 | KC10: 19 | KD10: 19 | KE10: 69 | KF10: 19 | KG10: 42 | KH10: 19 | KI10: 19 | KJ10: 15 | KK10: 19 | KL10: 19 | KM10: 38 | KN10: 19 | KO10: 209 | KP10: 51 | KQ10: 37 | KR10: 14 | KS10: 32 | KT10: 19 | KU10: 19 | KV10: 19 | KW10: 19 | KX10: 79 | KY10: 79 | KZ10: 19 | LA10: 19 | LB10: 19 | LC10: 19 | LD10: 4 | LE10: 19 | LF10: 75 | LG10: 46 | LH10: 38 | LI10: 28 | LJ10: 19 | LK10: 26 | LL10: 39 | LM10: 14 | LN10: 105 | LO10: 33 | LP10: 34 | LQ10: 21 | LR10: 19 | LS10: 19 | LT10: 52 | LU10: 79 | LV10: 196 | LW10: 149 | LX10: 113 | LY10: 100 | LZ10: 19 | MA10: 19 | MB10: 76 | MC10: 45 | MD10: 12 | ME10: 12 | MF10: 19 | MG10: 19 | MH10: 19 | MI10: 19 | MJ10: 19 | MK10: 12 | ML10: 19 | MM10: 19 | MN10: 19 | MO10: 19 | MP10: 19 | MQ10: 19 | MR10: 19 | MS10: 19 | MT10: 19 | MU10: 19 | MV10: 19 | MW10: 19 | MX10: 19 | MY10: 19 | MZ10: 19 | NA10: 19 | NB10: 19 | NC10: 19 | ND10: 19 | NE10: 19 | NF10: 19 | NG10: 19 | NH10: 19 | NI10: 19 | NJ10: 19 | NK10: 19 | NL10: 19 | NM10: 19 | NN10: 19 | NO10: 19 | NP10: 19 | NQ10: 19 | NR10: 19 | NS10: 181 | NT10: 89 | NU10: 75 | NV10: 39 | NW10: 41 | NX10: 15 | NY10: 19 | NZ10: 19 | OA10: 19 | OB10: 45 | OC10: 40 | OD10: 40 | OE10: 19 | OF10: 19 | OG10: 19 | OH10: 19 | OI10: 19 | OJ10: 19 | OK10: 19 | OL10: 19 | OM10: 19 | ON10: 19 | OO10: 19 | OP10: 19 | OQ10: 19 | OR10: 19 | OS10: 19 | OT10: 19 | OU10: 19 | OV10: 19 | OW10: 19 | OX10: 19 | OY10: 19 | OZ10: 19 | PA10: 23 | PB10: 19 | PC10: 19 | PD10: 19 | PE10: 19 | PF10: 19 | PG10: 23 | PH10: 19 | PI10: 170 | PJ10: 60 | PK10: 15 | PL10: 58 | PM10: 34 | PN10: 19 | PO10: 19 | PP10: 19 | PQ10: 19 | PR10: 40 | PS10: 40 | PT10: 19 | PU10: 19 | PV10: 19 | PW10: 19 | PX10: 19 | PY10: 19 | PZ10: 93 | QA10: 19 | QB10: 15 | QC10: 19 | QD10: 19 | QE10: 19 | QF10: 84 | QG10: 38 | QH10: 127 | QI10: 18 | QJ10: 52 | QK10: 19 | QL10: 19 | QM10: 19 | QN10: 115 | QO10: 19 | QP10: 110 | QQ10: 49 | QR10: 68 | QS10: 19 | QT10: 19 | QU10: 19 | QV10: 15 | QW10: 69 | QX10: 19 | QY10: 19 | QZ10: 19 | RA10: 19 | RB10: 19 | RC10: 19 | RD10: 19 | RE10: 19 | RF10: 19 | RG10: 19 | RH10: 19 | RI10: 19 | RJ10: 19 | RK10: 19 | RL10: 19 | RM10: 19 | RN10: 19 | RO10: 19 | RP10: 19 | RQ10: 19 | RR10: 19 | RS10: 19 | RT10: 19 | RU10: 19 | RV10: 19 | RW10: 19 | RX10: 19 | RY10: 19 | RZ10: 19 | SA10: 19 | SB10: 19 | SC10: 19 | SD10: 19 | SE10: 19 | SF10: 19 | SG10: 19 | SH10: 19 | SI10: 19 | SJ10: 19 | SK10: 19 | SL10: 19
A11: 2013thru2017 | B11: 155 | C11: 15500US0626000001 | D11: Alameda County | E11: Alameda County (part), Fremont city, California | G11: 26000 | H11: 1 | I11: 73615 | J11: 45905 | K11: 5720 | L11: 1495 | M11: 425 | N11: 25 | O11: 790 | P11: 25 | Q11: 10 | R11: 165 | S11: 55 | T11: 975 | U11: 370 | V11: 15 | W11: 455 | X11: 10 | Y11: 0 | Z11: 100 | AA11: 20 | AB11: 1010 | AC11: 325 | AD11: 4 | AE11: 555 | AF11: 0 | AG11: 15 | AH11: 100 | AI11: 20 | AJ11: 545 | AK11: 25 | AL11: 0 | AM11: 435 | AN11: 0 | AO11: 0 | AP11: 85 | AQ11: 0 | AR11: 1695 | AS11: 285 | AT11: 30 | AU11: 1160 | AV11: 4 | AW11: 0 | AX11: 195 | AY11: 20 | AZ11: 40005 | BA11: 1095 | BB11: 505 | BC11: 4 | BD11: 390 | BE11: 10 | BF11: 4 | BG11: 165 | BH11: 20 | BI11: 1690 | BJ11: 865 | BK11: 0 | BL11: 540 | BM11: 10 | BN11: 15 | BO11: 235 | BP11: 25 | BQ11: 2155 | BR11: 985 | BS11: 55 | BT11: 770 | BU11: 10 | BV11: 20 | BW11: 290 | BX11: 30 | BY11: 2425 | BZ11: 1115 | CA11: 35 | CB11: 800 | CC11: 30 | CD11: 60 | CE11: 320 | CF11: 65 | CG11: 32635 | CH11: 8455 | CI11: 540 | CJ11: 20580 | CK11: 50 | CL11: 175 | CM11: 2115 | CN11: 730 | CO11: 180 | CP11: 180 | CQ11: 40 | CR11: 0 | CS11: 100 | CT11: 0 | CU11: 0 | CV11: 20 | CW11: 20 | CX11: 0 | CY11: 0 | CZ11: 0 | DA11: 0 | DB11: 0 | DC11: 0 | DD11: 0 | DE11: 0 | DF11: 0 | DG11: 0 | DH11: 0 | DI11: 0 | DJ11: 0 | DK11: 0 | DL11: 0 | DM11: 0 | DN11: 0 | DO11: 0 | DP11: 0 | DQ11: 0 | DR11: 0 | DS11: 0 | DT11: 0 | DU11: 0 | DV11: 0 | DW11: 0 | DX11: 0 | DY11: 0 | DZ11: 0 | EA11: 0 | EB11: 0 | EC11: 0 | ED11: 27715 | EE11: 9055 | EF11: 2415 | EG11: 850 | EH11: 150 | EI11: 810 | EJ11: 60 | EK11: 10 | EL11: 260 | EM11: 275 | EN11: 1695 | EO11: 515 | EP11: 125 | EQ11: 715 | ER11: 0 | ES11: 25 | ET11: 285 | EU11: 30 | EV11: 1245 | EW11: 380 | EX11: 50 | EY11: 410 | EZ11: 0 | FA11: 25 | FB11: 325 | FC11: 50 | FD11: 955 | FE11: 60 | FF11: 10 | FG11: 480 | FH11: 0 | FI11: 15 | FJ11: 365 | FK11: 20 | FL11: 2740 | FM11: 255 | FN11: 0 | FO11: 2130 | FP11: 4 | FQ11: 30 | FR11: 310 | FS11: 15 | FT11: 18490 | FU11: 665 | FV11: 160 | FW11: 100 | FX11: 270 | FY11: 4 | FZ11: 0 | GA11: 105 | GB11: 25 | GC11: 920 | GD11: 320 | GE11: 100 | GF11: 320 | GG11: 0 | GH11: 0 | GI11: 140 | GJ11: 35 | GK11: 1900 | GL11: 535 | GM11: 110 | GN11: 670 | GO11: 15 | GP11: 10 | GQ11: 435 | GR11: 125 | GS11: 2125 | GT11: 640 | GU11: 100 | GV11: 795 | GW11: 15 | GX11: 10 | GY11: 460 | GZ11: 105 | HA11: 12885 | HB11: 3100 | HC11: 605 | HD11: 7460 | HE11: 65 | HF11: 85 | HG11: 1255 | HH11: 315 | HI11: 165 | HJ11: 165 | HK11: 75 | HL11: 0 | HM11: 65 | HN11: 20 | HO11: 0 | HP11: 10 | HQ11: 0 | HR11: 0 | HS11: 0 | HT11: 0 | HU11: 0 | HV11: 0 | HW11: 0 | HX11: 0 | HY11: 0 | HZ11: 0 | IA11: 0 | IB11: 0 | IC11: 0 | ID11: 0 | IE11: 0 | IF11: 0 | IG11: 0 | IH11: 0 | II11: 0 | IJ11: 0 | IK11: 0 | IL11: 0 | IM11: 0 | IN11: 0 | IO11: 0 | IP11: 0 | IQ11: 0 | IR11: 0 | IS11: 0 | IT11: 0 | IU11: 0 | IV11: 0 | IW11: 0 | IX11: 810 | IY11: 937 | IZ11: 449 | JA11: 244 | JB11: 118 | JC11: 27 | JD11: 170 | JE11: 20 | JF11: 19 | JG11: 84 | JH11: 51 | JI11: 197 | JJ11: 126 | JK11: 22 | JL11: 146 | JM11: 14 | JN11: 29 | JO11: 68 | JP11: 28 | JQ11: 201 | JR11: 113 | JS11: 9 | JT11: 142 | JU11: 29 | JV11: 24 | JW11: 84 | JX11: 23 | JY11: 169 | JZ11: 25 | KA11: 29 | KB11: 156 | KC11: 29 | KD11: 29 | KE11: 58 | KF11: 29 | KG11: 274 | KH11: 126 | KI11: 63 | KJ11: 189 | KK11: 2 | KL11: 29 | KM11: 88 | KN11: 23 | KO11: 953 | KP11: 166 | KQ11: 137 | KR11: 17 | KS11: 126 | KT11: 20 | KU11: 7 | KV11: 71 | KW11: 24 | KX11: 267 | KY11: 209 | KZ11: 29 | LA11: 132 | LB11: 15 | LC11: 24 | LD11: 97 | LE11: 36 | LF11: 251 | LG11: 188 | LH11: 45 | LI11: 171 | LJ11: 12 | LK11: 24 | LL11: 106 | LM11: 19 | LN11: 254 | LO11: 169 | LP11: 30 | LQ11: 171 | LR11: 29 | LS11: 61 | LT11: 115 | LU11: 54 | LV11: 860 | LW11: 458 | LX11: 145 | LY11: 669 | LZ11: 34 | MA11: 86 | MB11: 282 | MC11: 174 | MD11: 66 | ME11: 66 | MF11: 33 | MG11: 29 | MH11: 50 | MI11: 29 | MJ11: 29 | MK11: 26 | ML11: 33 | MM11: 29 | MN11: 29 | MO11: 29 | MP11: 29 | MQ11: 29 | MR11: 29 | MS11: 29 | MT11: 29 | MU11: 29 | MV11: 29 | MW11: 29 | MX11: 29 | MY11: 29 | MZ11: 29 | NA11: 29 | NB11: 29 | NC11: 29 | ND11: 29 | NE11: 29 | NF11: 29 | NG11: 29 | NH11: 29 | NI11: 29 | NJ11: 29 | NK11: 29 | NL11: 29 | NM11: 29 | NN11: 29 | NO11: 29 | NP11: 29 | NQ11: 29 | NR11: 29 | NS11: 736 | NT11: 465 | NU11: 310 | NV11: 194 | NW11: 88 | NX11: 220 | NY11: 48 | NZ11: 14 | OA11: 117 | OB11: 105 | OC11: 291 | OD11: 152 | OE11: 88 | OF11: 203 | OG11: 29 | OH11: 39 | OI11: 91 | OJ11: 31 | OK11: 237 | OL11: 122 | OM11: 55 | ON11: 147 | OO11: 29 | OP11: 33 | OQ11: 127 | OR11: 45 | OS11: 235 | OT11: 48 | OU11: 20 | OV11: 196 | OW11: 29 | OX11: 34 | OY11: 141 | OZ11: 23 | PA11: 391 | PB11: 117 | PC11: 29 | PD11: 347 | PE11: 29 | PF11: 44 | PG11: 139 | PH11: 23 | PI11: 725 | PJ11: 173 | PK11: 74 | PL11: 75 | PM11: 95 | PN11: 4 | PO11: 29 | PP11: 82 | PQ11: 26 | PR11: 229 | PS11: 120 | PT11: 85 | PU11: 123 | PV11: 29 | PW11: 29 | PX11: 85 | PY11: 55 | PZ11: 310 | QA11: 168 | QB11: 82 | QC11: 167 | QD11: 17 | QE11: 15 | QF11: 148 | QG11: 73 | QH11: 310 | QI11: 152 | QJ11: 80 | QK11: 158 | QL11: 24 | QM11: 14 | QN11: 186 | QO11: 66 | QP11: 622 | QQ11: 352 | QR11: 143 | QS11: 489 | QT11: 37 | QU11: 72 | QV11: 275 | QW11: 115 | QX11: 82 | QY11: 82 | QZ11: 54 | RA11: 29 | RB11: 59 | RC11: 22 | RD11: 29 | RE11: 15 | RF11: 29 | RG11: 29 | RH11: 29 | RI11: 29 | RJ11: 29 | RK11: 29 | RL11: 29 | RM11: 29 | RN11: 29 | RO11: 29 | RP11: 29 | RQ11: 29 | RR11: 29 | RS11: 29 | RT11: 29 | RU11: 29 | RV11: 29 | RW11: 29 | RX11: 29 | RY11: 29 | RZ11: 29 | SA11: 29 | SB11: 29 | SC11: 29 | SD11: 29 | SE11: 29 | SF11: 29 | SG11: 29 | SH11: 29 | SI11: 29 | SJ11: 29 | SK11: 29 | SL11: 29
A12: 2013thru2017 | B12: 155 | C12: 15500US0633000001 | D12: Alameda County | E12: Alameda County (part), Hayward city, California | G12: 33000 | H12: 1 | I12: 47045 | J12: 24270 | K12: 4220 | L12: 1215 | M12: 425 | N12: 120 | O12: 295 | P12: 0 | Q12: 15 | R12: 340 | S12: 20 | T12: 1095 | U12: 265 | V12: 60 | W12: 355 | X12: 4 | Y12: 4 | Z12: 400 | AA12: 4 | AB12: 560 | AC12: 125 | AD12: 0 | AE12: 150 | AF12: 0 | AG12: 25 | AH12: 250 | AI12: 15 | AJ12: 295 | AK12: 30 | AL12: 30 | AM12: 105 | AN12: 0 | AO12: 0 | AP12: 105 | AQ12: 25 | AR12: 1050 | AS12: 50 | AT12: 55 | AU12: 440 | AV12: 0 | AW12: 40 | AX12: 410 | AY12: 60 | AZ12: 19950 | BA12: 760 | BB12: 470 | BC12: 25 | BD12: 50 | BE12: 0 | BF12: 0 | BG12: 205 | BH12: 10 | BI12: 1485 | BJ12: 685 | BK12: 45 | BL12: 335 | BM12: 25 | BN12: 4 | BO12: 360 | BP12: 35 | BQ12: 2500 | BR12: 715 | BS12: 95 | BT12: 645 | BU12: 4 | BV12: 55 | BW12: 895 | BX12: 95 | BY12: 2315 | BZ12: 635 | CA12: 130 | CB12: 735 | CC12: 10 | CD12: 40 | CE12: 700 | CF12: 65 | CG12: 12885 | CH12: 3915 | CI12: 980 | CJ12: 4655 | CK12: 70 | CL12: 240 | CM12: 2600 | CN12: 425 | CO12: 105 | CP12: 105 | CQ12: 40 | CR12: 10 | CS12: 30 | CT12: 0 | CU12: 15 | CV12: 4 | CW12: 0 | CX12: 0 | CY12: 0 | CZ12: 0 | DA12: 0 | DB12: 0 | DC12: 0 | DD12: 0 | DE12: 0 | DF12: 0 | DG12: 0 | DH12: 0 | DI12: 0 | DJ12: 0 | DK12: 0 | DL12: 0 | DM12: 0 | DN12: 0 | DO12: 0 | DP12: 0 | DQ12: 0 | DR12: 0 | DS12: 0 | DT12: 0 | DU12: 0 | DV12: 0 | DW12: 0 | DX12: 0 | DY12: 0 | DZ12: 0 | EA12: 0 | EB12: 0 | EC12: 0 | ED12: 22775 | EE12: 8815 | EF12: 3890 | EG12: 560 | EH12: 880 | EI12: 430 | EJ12: 15 | EK12: 4 | EL12: 1775 | EM12: 225 | EN12: 2210 | EO12: 245 | EP12: 345 | EQ12: 205 | ER12: 0 | ES12: 60 | ET12: 1310 | EU12: 40 | EV12: 1225 | EW12: 120 | EX12: 55 | EY12: 70 | EZ12: 0 | FA12: 20 | FB12: 905 | FC12: 45 | FD12: 645 | FE12: 50 | FF12: 55 | FG12: 170 | FH12: 0 | FI12: 4 | FJ12: 340 | FK12: 20 | FL12: 850 | FM12: 110 | FN12: 45 | FO12: 175 | FP12: 0 | FQ12: 55 | FR12: 460 | FS12: 0 | FT12: 13750 | FU12: 995 | FV12: 235 | FW12: 305 | FX12: 185 | FY12: 10 | FZ12: 0 | GA12: 245 | GB12: 15 | GC12: 1850 | GD12: 310 | GE12: 360 | GF12: 345 | GG12: 0 | GH12: 90 | GI12: 665 | GJ12: 85 | GK12: 3155 | GL12: 380 | GM12: 770 | GN12: 425 | GO12: 15 | GP12: 95 | GQ12: 1310 | GR12: 160 | GS12: 2135 | GT12: 565 | GU12: 460 | GV12: 330 | GW12: 4 | GX12: 50 | GY12: 680 | GZ12: 45 | HA12: 5615 | HB12: 1725 | HC12: 1010 | HD12: 1125 | HE12: 40 | HF12: 25 | HG12: 1490 | HH12: 195 | HI12: 210 | HJ12: 210 | HK12: 15 | HL12: 50 | HM12: 55 | HN12: 0 | HO12: 4 | HP12: 60 | HQ12: 20 | HR12: 0 | HS12: 0 | HT12: 0 | HU12: 0 | HV12: 0 | HW12: 0 | HX12: 0 | HY12: 0 | HZ12: 0 | IA12: 0 | IB12: 0 | IC12: 0 | ID12: 0 | IE12: 0 | IF12: 0 | IG12: 0 | IH12: 0 | II12: 0 | IJ12: 0 | IK12: 0 | IL12: 0 | IM12: 0 | IN12: 0 | IO12: 0 | IP12: 0 | IQ12: 0 | IR12: 0 | IS12: 0 | IT12: 0 | IU12: 0 | IV12: 0 | IW12: 0 | IX12: 632 | IY12: 657 | IZ12: 366 | JA12: 229 | JB12: 98 | JC12: 70 | JD12: 112 | JE12: 29 | JF12: 19 | JG12: 124 | JH12: 22 | JI12: 186 | JJ12: 91 | JK12: 47 | JL12: 124 | JM12: 29 | JN12: 2 | JO12: 111 | JP12: 17 | JQ12: 148 | JR12: 61 | JS12: 29 | JT12: 66 | JU12: 29 | JV12: 29 | JW12: 100 | JX12: 20 | JY12: 92 | JZ12: 30 | KA12: 36 | KB12: 58 | KC12: 29 | KD12: 29 | KE12: 53 | KF12: 34 | KG12: 200 | KH12: 34 | KI12: 36 | KJ12: 113 | KK12: 29 | KL12: 29 | KM12: 129 | KN12: 41 | KO12: 611 | KP12: 154 | KQ12: 113 | KR12: 35 | KS12: 51 | KT12: 29 | KU12: 29 | KV12: 79 | KW12: 15 | KX12: 215 | KY12: 144 | KZ12: 37 | LA12: 103 | LB12: 31 | LC12: 2 | LD12: 108 | LE12: 24 | LF12: 269 | LG12: 148 | LH12: 49 | LI12: 144 | LJ12: 29 | LK12: 44 | LL12: 167 | LM12: 58 | LN12: 289 | LO12: 131 | LP12: 72 | LQ12: 144 | LR12: 13 | LS12: 31 | LT12: 177 | LU12: 54 | LV12: 529 | LW12: 366 | LX12: 232 | LY12: 352 | LZ12: 38 | MA12: 85 | MB12: 252 | MC12: 113 | MD12: 47 | ME12: 47 | MF12: 30 | MG12: 14 | MH12: 26 | MI12: 29 | MJ12: 25 | MK12: 6 | ML12: 29 | MM12: 29 | MN12: 29 | MO12: 29 | MP12: 29 | MQ12: 29 | MR12: 29 | MS12: 29 | MT12: 29 | MU12: 29 | MV12: 29 | MW12: 29 | MX12: 29 | MY12: 29 | MZ12: 29 | NA12: 29 | NB12: 29 | NC12: 29 | ND12: 29 | NE12: 29 | NF12: 29 | NG12: 29 | NH12: 29 | NI12: 29 | NJ12: 29 | NK12: 29 | NL12: 29 | NM12: 29 | NN12: 29 | NO12: 29 | NP12: 29 | NQ12: 29 | NR12: 29 | NS12: 695 | NT12: 469 | NU12: 364 | NV12: 151 | NW12: 236 | NX12: 117 | NY12: 22 | NZ12: 29 | OA12: 306 | OB12: 109 | OC12: 317 | OD12: 91 | OE12: 123 | OF12: 94 | OG12: 29 | OH12: 52 | OI12: 256 | OJ12: 48 | OK12: 226 | OL12: 64 | OM12: 49 | ON12: 51 | OO12: 29 | OP12: 32 | OQ12: 188 | OR12: 39 | OS12: 172 | OT12: 39 | OU12: 64 | OV12: 87 | OW12: 29 | OX12: 7 | OY12: 121 | OZ12: 22 | PA12: 172 | PB12: 68 | PC12: 41 | PD12: 74 | PE12: 29 | PF12: 48 | PG12: 126 | PH12: 29 | PI12: 672 | PJ12: 242 | PK12: 85 | PL12: 169 | PM12: 69 | PN12: 15 | PO12: 29 | PP12: 96 | PQ12: 22 | PR12: 261 | PS12: 106 | PT12: 127 | PU12: 112 | PV12: 29 | PW12: 55 | PX12: 185 | PY12: 57 | PZ12: 456 | QA12: 140 | QB12: 247 | QC12: 147 | QD12: 29 | QE12: 73 | QF12: 208 | QG12: 104 | QH12: 312 | QI12: 170 | QJ12: 183 | QK12: 112 | QL12: 7 | QM12: 37 | QN12: 169 | QO12: 46 | QP12: 480 | QQ12: 306 | QR12: 234 | QS12: 185 | QT12: 33 | QU12: 27 | QV12: 251 | QW12: 83 | QX12: 83 | QY12: 83 | QZ12: 20 | RA12: 43 | RB12: 52 | RC12: 29 | RD12: 14 | RE12: 46 | RF12: 23 | RG12: 29 | RH12: 29 | RI12: 29 | RJ12: 29 | RK12: 29 | RL12: 29 | RM12: 29 | RN12: 29 | RO12: 29 | RP12: 29 | RQ12: 29 | RR12: 29 | RS12: 29 | RT12: 29 | RU12: 29 | RV12: 29 | RW12: 29 | RX12: 29 | RY12: 29 | RZ12: 29 | SA12: 29 | SB12: 29 | SC12: 29 | SD12: 29 | SE12: 29 | SF12: 29 | SG12: 29 | SH12: 29 | SI12: 29 | SJ12: 29 | SK12: 29 | SL12: 29
A13: 2013thru2017 | B13: 155 | C13: 15500US0641992001 | D13: Alameda County | E13: Alameda County (part), Livermore city, California | G13: 41992 | H13: 1 | I13: 31345 | J13: 22305 | K13: 2580 | L13: 560 | M13: 400 | N13: 0 | O13: 75 | P13: 0 | Q13: 0 | R13: 70 | S13: 10 | T13: 725 | U13: 480 | V13: 15 | W13: 60 | X13: 0 | Y13: 0 | Z13: 145 | AA13: 25 | AB13: 435 | AC13: 360 | AD13: 20 | AE13: 10 | AF13: 0 | AG13: 0 | AH13: 40 | AI13: 10 | AJ13: 285 | AK13: 170 | AL13: 20 | AM13: 60 | AN13: 0 | AO13: 0 | AP13: 35 | AQ13: 0 | AR13: 575 | AS13: 370 | AT13: 0 | AU13: 60 | AV13: 0 | AW13: 0 | AX13: 130 | AY13: 20 | AZ13: 19600 | BA13: 280 | BB13: 235 | BC13: 0 | BD13: 15 | BE13: 0 | BF13: 0 | BG13: 20 | BH13: 4 | BI13: 685 | BJ13: 535 | BK13: 15 | BL13: 40 | BM13: 0 | BN13: 0 | BO13: 90 | BP13: 4 | BQ13: 1220 | BR13: 940 | BS13: 0 | BT13: 95 | BU13: 0 | BV13: 0 | BW13: 140 | BX13: 50 | BY13: 1345 | BZ13: 1070 | CA13: 0 | CB13: 175 | CC13: 0 | CD13: 0 | CE13: 90 | CF13: 10 | CG13: 16070 | CH13: 12510 | CI13: 160 | CJ13: 1580 | CK13: 15 | CL13: 15 | CM13: 1360 | CN13: 430 | CO13: 125 | CP13: 125 | CQ13: 105 | CR13: 0 | CS13: 10 | CT13: 0 | CU13: 0 | CV13: 15 | CW13: 0 | CX13: 0 | CY13: 0 | CZ13: 0 | DA13: 0 | DB13: 0 | DC13: 0 | DD13: 0 | DE13: 0 | DF13: 0 | DG13: 0 | DH13: 0 | DI13: 0 | DJ13: 0 | DK13: 0 | DL13: 0 | DM13: 0 | DN13: 0 | DO13: 0 | DP13: 0 | DQ13: 0 | DR13: 0 | DS13: 0 | DT13: 0 | DU13: 0 | DV13: 0 | DW13: 0 | DX13: 0 | DY13: 0 | DZ13: 0 | EA13: 0 | EB13: 0 | EC13: 0 | ED13: 9040 | EE13: 2620 | EF13: 820 | EG13: 505 | EH13: 10 | EI13: 55 | EJ13: 0 | EK13: 20 | EL13: 230 | EM13: 0 | EN13: 895 | EO13: 485 | EP13: 10 | EQ13: 75 | ER13: 4 | ES13: 0 | ET13: 260 | EU13: 60 | EV13: 590 | EW13: 335 | EX13: 0 | EY13: 140 | EZ13: 0 | FA13: 0 | FB13: 80 | FC13: 35 | FD13: 130 | FE13: 70 | FF13: 0 | FG13: 0 | FH13: 0 | FI13: 0 | FJ13: 60 | FK13: 0 | FL13: 180 | FM13: 115 | FN13: 0 | FO13: 10 | FP13: 0 | FQ13: 0 | FR13: 55 | FS13: 0 | FT13: 6340 | FU13: 515 | FV13: 275 | FW13: 0 | FX13: 130 | FY13: 0 | FZ13: 0 | GA13: 105 | GB13: 4 | GC13: 705 | GD13: 405 | GE13: 15 | GF13: 0 | GG13: 0 | GH13: 0 | GI13: 285 | GJ13: 0 | GK13: 1355 | GL13: 770 | GM13: 60 | GN13: 30 | GO13: 10 | GP13: 10 | GQ13: 420 | GR13: 55 | GS13: 830 | GT13: 525 | GU13: 35 | GV13: 90 | GW13: 0 | GX13: 0 | GY13: 160 | GZ13: 20 | HA13: 2940 | HB13: 2155 | HC13: 35 | HD13: 165 | HE13: 0 | HF13: 20 | HG13: 550 | HH13: 20 | HI13: 80 | HJ13: 80 | HK13: 30 | HL13: 0 | HM13: 15 | HN13: 0 | HO13: 0 | HP13: 20 | HQ13: 15 | HR13: 0 | HS13: 0 | HT13: 0 | HU13: 0 | HV13: 0 | HW13: 0 | HX13: 0 | HY13: 0 | HZ13: 0 | IA13: 0 | IB13: 0 | IC13: 0 | ID13: 0 | IE13: 0 | IF13: 0 | IG13: 0 | IH13: 0 | II13: 0 | IJ13: 0 | IK13: 0 | IL13: 0 | IM13: 0 | IN13: 0 | IO13: 0 | IP13: 0 | IQ13: 0 | IR13: 0 | IS13: 0 | IT13: 0 | IU13: 0 | IV13: 0 | IW13: 0 | IX13: 390 | IY13: 568 | IZ13: 322 | JA13: 150 | JB13: 137 | JC13: 29 | JD13: 51 | JE13: 29 | JF13: 29 | JG13: 54 | JH13: 15 | JI13: 219 | JJ13: 177 | JK13: 27 | JL13: 44 | JM13: 29 | JN13: 29 | JO13: 107 | JP13: 24 | JQ13: 145 | JR13: 130 | JS13: 32 | JT13: 20 | JU13: 29 | JV13: 29 | JW13: 45 | JX13: 16 | JY13: 90 | JZ13: 69 | KA13: 26 | KB13: 51 | KC13: 29 | KD13: 29 | KE13: 37 | KF13: 29 | KG13: 143 | KH13: 122 | KI13: 29 | KJ13: 47 | KK13: 29 | KL13: 29 | KM13: 62 | KN13: 34 | KO13: 586 | KP13: 98 | KQ13: 99 | KR13: 29 | KS13: 30 | KT13: 29 | KU13: 29 | KV13: 27 | KW13: 11 | KX13: 170 | KY13: 176 | KZ13: 28 | LA13: 41 | LB13: 29 | LC13: 29 | LD13: 62 | LE13: 29 | LF13: 230 | LG13: 191 | LH13: 29 | LI13: 68 | LJ13: 29 | LK13: 29 | LL13: 69 | LM13: 52 | LN13: 252 | LO13: 225 | LP13: 29 | LQ13: 109 | LR13: 29 | LS13: 29 | LT13: 47 | LU13: 14 | LV13: 572 | LW13: 489 | LX13: 106 | LY13: 211 | LZ13: 18 | MA13: 25 | MB13: 264 | MC13: 118 | MD13: 81 | ME13: 81 | MF13: 77 | MG13: 29 | MH13: 14 | MI13: 29 | MJ13: 29 | MK13: 23 | ML13: 29 | MM13: 29 | MN13: 29 | MO13: 29 | MP13: 29 | MQ13: 29 | MR13: 29 | MS13: 29 | MT13: 29 | MU13: 29 | MV13: 29 | MW13: 29 | MX13: 29 | MY13: 29 | MZ13: 29 | NA13: 29 | NB13: 29 | NC13: 29 | ND13: 29 | NE13: 29 | NF13: 29 | NG13: 29 | NH13: 29 | NI13: 29 | NJ13: 29 | NK13: 29 | NL13: 29 | NM13: 29 | NN13: 29 | NO13: 29 | NP13: 29 | NQ13: 29 | NR13: 29 | NS13: 483 | NT13: 318 | NU13: 184 | NV13: 155 | NW13: 14 | NX13: 46 | NY13: 29 | NZ13: 33 | OA13: 122 | OB13: 29 | OC13: 217 | OD13: 185 | OE13: 13 | OF13: 86 | OG13: 8 | OH13: 29 | OI13: 129 | OJ13: 63 | OK13: 168 | OL13: 146 | OM13: 29 | ON13: 102 | OO13: 29 | OP13: 29 | OQ13: 71 | OR13: 44 | OS13: 61 | OT13: 51 | OU13: 29 | OV13: 29 | OW13: 29 | OX13: 29 | OY13: 41 | OZ13: 29 | PA13: 109 | PB13: 94 | PC13: 29 | PD13: 19 | PE13: 29 | PF13: 29 | PG13: 46 | PH13: 29 | PI13: 409 | PJ13: 156 | PK13: 112 | PL13: 29 | PM13: 84 | PN13: 29 | PO13: 29 | PP13: 96 | PQ13: 16 | PR13: 201 | PS13: 140 | PT13: 24 | PU13: 29 | PV13: 29 | PW13: 29 | PX13: 127 | PY13: 29 | PZ13: 319 | QA13: 254 | QB13: 89 | QC13: 36 | QD13: 15 | QE13: 14 | QF13: 196 | QG13: 56 | QH13: 192 | QI13: 153 | QJ13: 57 | QK13: 68 | QL13: 29 | QM13: 29 | QN13: 98 | QO13: 26 | QP13: 367 | QQ13: 297 | QR13: 38 | QS13: 88 | QT13: 29 | QU13: 32 | QV13: 170 | QW13: 22 | QX13: 51 | QY13: 51 | QZ13: 36 | RA13: 29 | RB13: 23 | RC13: 29 | RD13: 29 | RE13: 25 | RF13: 23 | RG13: 29 | RH13: 29 | RI13: 29 | RJ13: 29 | RK13: 29 | RL13: 29 | RM13: 29 | RN13: 29 | RO13: 29 | RP13: 29 | RQ13: 29 | RR13: 29 | RS13: 29 | RT13: 29 | RU13: 29 | RV13: 29 | RW13: 29 | RX13: 29 | RY13: 29 | RZ13: 29 | SA13: 29 | SB13: 29 | SC13: 29 | SD13: 29 | SE13: 29 | SF13: 29 | SG13: 29 | SH13: 29 | SI13: 29 | SJ13: 29 | SK13: 29 | SL13: 29
A14: 2013thru2017 | B14: 155 | C14: 15500US0650916001 | D14: Alameda County | E14: Alameda County (part), Newark city, California | G14: 50916 | H14: 1 | I14: 13395 | J14: 9270 | K14: 1250 | L14: 235 | M14: 50 | N14: 0 | O14: 105 | P14: 0 | Q14: 0 | R14: 60 | S14: 20 | T14: 240 | U14: 25 | V14: 0 | W14: 130 | X14: 0 | Y14: 0 | Z14: 70 | AA14: 10 | AB14: 245 | AC14: 30 | AD14: 0 | AE14: 50 | AF14: 0 | AG14: 0 | AH14: 165 | AI14: 0 | AJ14: 165 | AK14: 45 | AL14: 25 | AM14: 10 | AN14: 0 | AO14: 0 | AP14: 90 | AQ14: 0 | AR14: 365 | AS14: 30 | AT14: 0 | AU14: 160 | AV14: 0 | AW14: 10 | AX14: 165 | AY14: 0 | AZ14: 7960 | BA14: 340 | BB14: 120 | BC14: 4 | BD14: 150 | BE14: 0 | BF14: 0 | BG14: 40 | BH14: 20 | BI14: 385 | BJ14: 215 | BK14: 0 | BL14: 55 | BM14: 15 | BN14: 25 | BO14: 70 | BP14: 10 | BQ14: 765 | BR14: 350 | BS14: 65 | BT14: 100 | BU14: 0 | BV14: 4 | BW14: 245 | BX14: 0 | BY14: 835 | BZ14: 490 | CA14: 20 | CB14: 180 | CC14: 0 | CD14: 4 | CE14: 130 | CF14: 10 | CG14: 5635 | CH14: 2290 | CI14: 180 | CJ14: 2045 | CK14: 25 | CL14: 15 | CM14: 915 | CN14: 160 | CO14: 60 | CP14: 60 | CQ14: 35 | CR14: 10 | CS14: 15 | CT14: 0 | CU14: 0 | CV14: 0 | CW14: 0 | CX14: 0 | CY14: 0 | CZ14: 0 | DA14: 0 | DB14: 0 | DC14: 0 | DD14: 0 | DE14: 0 | DF14: 0 | DG14: 0 | DH14: 0 | DI14: 0 | DJ14: 0 | DK14: 0 | DL14: 0 | DM14: 0 | DN14: 0 | DO14: 0 | DP14: 0 | DQ14: 0 | DR14: 0 | DS14: 0 | DT14: 0 | DU14: 0 | DV14: 0 | DW14: 0 | DX14: 0 | DY14: 0 | DZ14: 0 | EA14: 0 | EB14: 0 | EC14: 0 | ED14: 4125 | EE14: 1615 | EF14: 495 | EG14: 135 | EH14: 45 | EI14: 40 | EJ14: 0 | EK14: 0 | EL14: 260 | EM14: 15 | EN14: 385 | EO14: 65 | EP14: 45 | EQ14: 30 | ER14: 0 | ES14: 0 | ET14: 230 | EU14: 15 | EV14: 270 | EW14: 0 | EX14: 20 | EY14: 60 | EZ14: 0 | FA14: 0 | FB14: 180 | FC14: 15 | FD14: 190 | FE14: 4 | FF14: 0 | FG14: 40 | FH14: 0 | FI14: 0 | FJ14: 140 | FK14: 10 | FL14: 265 | FM14: 4 | FN14: 0 | FO14: 155 | FP14: 0 | FQ14: 10 | FR14: 90 | FS14: 10 | FT14: 2450 | FU14: 195 | FV14: 25 | FW14: 0 | FX14: 125 | FY14: 0 | FZ14: 0 | GA14: 40 | GB14: 10 | GC14: 115 | GD14: 4 | GE14: 0 | GF14: 60 | GG14: 0 | GH14: 0 | GI14: 40 | GJ14: 10 | GK14: 400 | GL14: 55 | GM14: 60 | GN14: 155 | GO14: 0 | GP14: 0 | GQ14: 130 | GR14: 4 | GS14: 305 | GT14: 125 | GU14: 15 | GV14: 55 | GW14: 0 | GX14: 15 | GY14: 90 | GZ14: 0 | HA14: 1435 | HB14: 470 | HC14: 220 | HD14: 430 | HE14: 20 | HF14: 10 | HG14: 250 | HH14: 30 | HI14: 60 | HJ14: 60 | HK14: 25 | HL14: 35 | HM14: 0 | HN14: 0 | HO14: 0 | HP14: 0 | HQ14: 0 | HR14: 0 | HS14: 0 | HT14: 0 | HU14: 0 | HV14: 0 | HW14: 0 | HX14: 0 | HY14: 0 | HZ14: 0 | IA14: 0 | IB14: 0 | IC14: 0 | ID14: 0 | IE14: 0 | IF14: 0 | IG14: 0 | IH14: 0 | II14: 0 | IJ14: 0 | IK14: 0 | IL14: 0 | IM14: 0 | IN14: 0 | IO14: 0 | IP14: 0 | IQ14: 0 | IR14: 0 | IS14: 0 | IT14: 0 | IU14: 0 | IV14: 0 | IW14: 0 | IX14: 340 | IY14: 384 | IZ14: 218 | JA14: 78 | JB14: 31 | JC14: 26 | JD14: 55 | JE14: 26 | JF14: 26 | JG14: 35 | JH14: 30 | JI14: 92 | JJ14: 26 | JK14: 26 | JL14: 73 | JM14: 26 | JN14: 26 | JO14: 56 | JP14: 18 | JQ14: 90 | JR14: 28 | JS14: 26 | JT14: 36 | JU14: 26 | JV14: 26 | JW14: 80 | JX14: 26 | JY14: 83 | JZ14: 42 | KA14: 34 | KB14: 15 | KC14: 26 | KD14: 26 | KE14: 68 | KF14: 26 | KG14: 129 | KH14: 34 | KI14: 26 | KJ14: 82 | KK14: 26 | KL14: 14 | KM14: 82 | KN14: 26 | KO14: 442 | KP14: 116 | KQ14: 51 | KR14: 19 | KS14: 93 | KT14: 26 | KU14: 26 | KV14: 38 | KW14: 25 | KX14: 103 | KY14: 74 | KZ14: 26 | LA14: 44 | LB14: 28 | LC14: 24 | LD14: 54 | LE14: 13 | LF14: 146 | LG14: 108 | LH14: 56 | LI14: 60 | LJ14: 26 | LK14: 6 | LL14: 95 | LM14: 26 | LN14: 158 | LO14: 123 | LP14: 23 | LQ14: 74 | LR14: 26 | LS14: 4 | LT14: 78 | LU14: 19 | LV14: 424 | LW14: 251 | LX14: 101 | LY14: 250 | LZ14: 24 | MA14: 26 | MB14: 188 | MC14: 70 | MD14: 44 | ME14: 44 | MF14: 34 | MG14: 13 | MH14: 18 | MI14: 26 | MJ14: 26 | MK14: 26 | ML14: 26 | MM14: 26 | MN14: 26 | MO14: 26 | MP14: 26 | MQ14: 26 | MR14: 26 | MS14: 26 | MT14: 26 | MU14: 26 | MV14: 26 | MW14: 26 | MX14: 26 | MY14: 26 | MZ14: 26 | NA14: 26 | NB14: 26 | NC14: 26 | ND14: 26 | NE14: 26 | NF14: 26 | NG14: 26 | NH14: 26 | NI14: 26 | NJ14: 26 | NK14: 26 | NL14: 26 | NM14: 26 | NN14: 26 | NO14: 26 | NP14: 26 | NQ14: 26 | NR14: 26 | NS14: 329 | NT14: 192 | NU14: 142 | NV14: 78 | NW14: 32 | NX14: 32 | NY14: 26 | NZ14: 26 | OA14: 107 | OB14: 17 | OC14: 117 | OD14: 42 | OE14: 58 | OF14: 25 | OG14: 26 | OH14: 26 | OI14: 108 | OJ14: 29 | OK14: 67 | OL14: 26 | OM14: 23 | ON14: 37 | OO14: 26 | OP14: 26 | OQ14: 73 | OR14: 24 | OS14: 88 | OT14: 8 | OU14: 26 | OV14: 47 | OW14: 26 | OX14: 26 | OY14: 74 | OZ14: 14 | PA14: 114 | PB14: 7 | PC14: 26 | PD14: 80 | PE14: 26 | PF14: 16 | PG14: 68 | PH14: 23 | PI14: 332 | PJ14: 97 | PK14: 27 | PL14: 26 | PM14: 79 | PN14: 26 | PO14: 26 | PP14: 46 | PQ14: 14 | PR14: 59 | PS14: 20 | PT14: 26 | PU14: 47 | PV14: 26 | PW14: 26 | PX14: 29 | PY14: 13 | PZ14: 151 | QA14: 43 | QB14: 66 | QC14: 103 | QD14: 26 | QE14: 26 | QF14: 84 | QG14: 3 | QH14: 96 | QI14: 70 | QJ14: 20 | QK14: 36 | QL14: 26 | QM14: 27 | QN14: 64 | QO14: 26 | QP14: 237 | QQ14: 135 | QR14: 105 | QS14: 129 | QT14: 23 | QU14: 22 | QV14: 98 | QW14: 29 | QX14: 65 | QY14: 65 | QZ14: 30 | RA14: 57 | RB14: 26 | RC14: 26 | RD14: 26 | RE14: 26 | RF14: 26 | RG14: 26 | RH14: 26 | RI14: 26 | RJ14: 26 | RK14: 26 | RL14: 26 | RM14: 26 | RN14: 26 | RO14: 26 | RP14: 26 | RQ14: 26 | RR14: 26 | RS14: 26 | RT14: 26 | RU14: 26 | RV14: 26 | RW14: 26 | RX14: 26 | RY14: 26 | RZ14: 26 | SA14: 26 | SB14: 26 | SC14: 26 | SD14: 26 | SE14: 26 | SF14: 26 | SG14: 26 | SH14: 26 | SI14: 26 | SJ14: 26 | SK14: 26 | SL14: 26
A15: 2013thru2017 | B15: 155 | C15: 15500US0653000001 | D15: Alameda County | E15: Alameda County (part), Oakland city, California | G15: 53000 | H15: 1 | I15: 159450 | J15: 63400 | K15: 11440 | L15: 3825 | M15: 880 | N15: 1475 | O15: 825 | P15: 4 | Q15: 15 | R15: 575 | S15: 55 | T15: 2580 | U15: 770 | V15: 735 | W15: 440 | X15: 0 | Y15: 10 | Z15: 550 | AA15: 80 | AB15: 2130 | AC15: 525 | AD15: 490 | AE15: 375 | AF15: 0 | AG15: 0 | AH15: 640 | AI15: 100 | AJ15: 1125 | AK15: 325 | AL15: 220 | AM15: 190 | AN15: 10 | AO15: 0 | AP15: 330 | AQ15: 55 | AR15: 1780 | AS15: 695 | AT15: 280 | AU15: 300 | AV15: 0 | AW15: 4 | AX15: 420 | AY15: 75 | AZ15: 51530 | BA15: 1550 | BB15: 305 | BC15: 590 | BD15: 460 | BE15: 15 | BF15: 10 | BG15: 160 | BH15: 10 | BI15: 3485 | BJ15: 925 | BK15: 890 | BL15: 860 | BM15: 20 | BN15: 40 | BO15: 725 | BP15: 30 | BQ15: 4830 | BR15: 1365 | BS15: 1435 | BT15: 640 | BU15: 20 | BV15: 20 | BW15: 1140 | BX15: 210 | BY15: 4235 | BZ15: 1285 | CA15: 1235 | CB15: 1010 | CC15: 35 | CD15: 20 | CE15: 600 | CF15: 50 | CG15: 37435 | CH15: 21265 | CI15: 6255 | CJ15: 5055 | CK15: 95 | CL15: 65 | CM15: 3150 | CN15: 1545 | CO15: 430 | CP15: 430 | CQ15: 115 | CR15: 105 | CS15: 100 | CT15: 0 | CU15: 0 | CV15: 75 | CW15: 30 | CX15: 0 | CY15: 0 | CZ15: 0 | DA15: 0 | DB15: 0 | DC15: 0 | DD15: 0 | DE15: 0 | DF15: 0 | DG15: 0 | DH15: 0 | DI15: 0 | DJ15: 0 | DK15: 0 | DL15: 0 | DM15: 0 | DN15: 0 | DO15: 0 | DP15: 0 | DQ15: 0 | DR15: 0 | DS15: 0 | DT15: 0 | DU15: 0 | DV15: 0 | DW15: 0 | DX15: 0 | DY15: 0 | DZ15: 0 | EA15: 0 | EB15: 0 | EC15: 0 | ED15: 96050 | EE15: 33585 | EF15: 21250 | EG15: 3315 | EH15: 8305 | EI15: 3490 | EJ15: 120 | EK15: 85 | EL15: 5065 | EM15: 870 | EN15: 6935 | EO15: 1075 | EP15: 2220 | EQ15: 920 | ER15: 20 | ES15: 45 | ET15: 2370 | EU15: 285 | EV15: 2520 | EW15: 570 | EX15: 525 | EY15: 405 | EZ15: 0 | FA15: 0 | FB15: 985 | FC15: 40 | FD15: 1100 | FE15: 260 | FF15: 185 | FG15: 120 | FH15: 10 | FI15: 30 | FJ15: 475 | FK15: 20 | FL15: 1780 | FM15: 585 | FN15: 295 | FO15: 315 | FP15: 20 | FQ15: 10 | FR15: 490 | FS15: 65 | FT15: 60740 | FU15: 8550 | FV15: 465 | FW15: 3800 | FX15: 3250 | FY15: 25 | FZ15: 50 | GA15: 740 | GB15: 220 | GC15: 9155 | GD15: 1395 | GE15: 3705 | GF15: 1080 | GG15: 100 | GH15: 125 | GI15: 2265 | GJ15: 485 | GK15: 10655 | GL15: 2845 | GM15: 3415 | GN15: 1145 | GO15: 65 | GP15: 40 | GQ15: 2685 | GR15: 460 | GS15: 7295 | GT15: 2755 | GU15: 1930 | GV15: 645 | GW15: 85 | GX15: 70 | GY15: 1460 | GZ15: 350 | HA15: 25080 | HB15: 13815 | HC15: 3945 | HD15: 2930 | HE15: 80 | HF15: 65 | HG15: 2995 | HH15: 1250 | HI15: 1725 | HJ15: 1725 | HK15: 265 | HL15: 745 | HM15: 305 | HN15: 15 | HO15: 0 | HP15: 305 | HQ15: 95 | HR15: 0 | HS15: 0 | HT15: 0 | HU15: 0 | HV15: 0 | HW15: 0 | HX15: 0 | HY15: 0 | HZ15: 0 | IA15: 0 | IB15: 0 | IC15: 0 | ID15: 0 | IE15: 0 | IF15: 0 | IG15: 0 | IH15: 0 | II15: 0 | IJ15: 0 | IK15: 0 | IL15: 0 | IM15: 0 | IN15: 0 | IO15: 0 | IP15: 0 | IQ15: 0 | IR15: 0 | IS15: 0 | IT15: 0 | IU15: 0 | IV15: 0 | IW15: 0 | IX15: 1109 | IY15: 1065 | IZ15: 623 | JA15: 407 | JB15: 152 | JC15: 240 | JD15: 187 | JE15: 2 | JF15: 19 | JG15: 150 | JH15: 45 | JI15: 296 | JJ15: 176 | JK15: 178 | JL15: 121 | JM15: 29 | JN15: 14 | JO15: 151 | JP15: 46 | JQ15: 297 | JR15: 138 | JS15: 184 | JT15: 116 | JU15: 29 | JV15: 29 | JW15: 160 | JX15: 91 | JY15: 189 | JZ15: 115 | KA15: 79 | KB15: 84 | KC15: 14 | KD15: 29 | KE15: 89 | KF15: 56 | KG15: 263 | KH15: 171 | KI15: 129 | KJ15: 98 | KK15: 29 | KL15: 14 | KM15: 111 | KN15: 52 | KO15: 1050 | KP15: 200 | KQ15: 99 | KR15: 147 | KS15: 124 | KT15: 17 | KU15: 15 | KV15: 69 | KW15: 15 | KX15: 322 | KY15: 154 | KZ15: 185 | LA15: 175 | LB15: 21 | LC15: 57 | LD15: 147 | LE15: 21 | LF15: 419 | LG15: 208 | LH15: 243 | LI15: 142 | LJ15: 21 | LK15: 24 | LL15: 203 | LM15: 118 | LN15: 382 | LO15: 204 | LP15: 191 | LQ15: 210 | LR15: 35 | LS15: 26 | LT15: 136 | LU15: 38 | LV15: 966 | LW15: 678 | LX15: 461 | LY15: 388 | LZ15: 68 | MA15: 40 | MB15: 346 | MC15: 251 | MD15: 113 | ME15: 113 | MF15: 57 | MG15: 54 | MH15: 65 | MI15: 29 | MJ15: 29 | MK15: 58 | ML15: 31 | MM15: 29 | MN15: 29 | MO15: 29 | MP15: 29 | MQ15: 29 | MR15: 29 | MS15: 29 | MT15: 29 | MU15: 29 | MV15: 29 | MW15: 29 | MX15: 29 | MY15: 29 | MZ15: 29 | NA15: 29 | NB15: 29 | NC15: 29 | ND15: 29 | NE15: 29 | NF15: 29 | NG15: 29 | NH15: 29 | NI15: 29 | NJ15: 29 | NK15: 29 | NL15: 29 | NM15: 29 | NN15: 29 | NO15: 29 | NP15: 29 | NQ15: 29 | NR15: 29 | NS15: 1174 | NT15: 1018 | NU15: 927 | NV15: 381 | NW15: 561 | NX15: 359 | NY15: 49 | NZ15: 69 | OA15: 464 | OB15: 193 | OC15: 501 | OD15: 183 | OE15: 327 | OF15: 180 | OG15: 16 | OH15: 40 | OI15: 321 | OJ15: 125 | OK15: 320 | OL15: 136 | OM15: 162 | ON15: 120 | OO15: 29 | OP15: 29 | OQ15: 198 | OR15: 30 | OS15: 207 | OT15: 87 | OU15: 97 | OV15: 67 | OW15: 17 | OX15: 33 | OY15: 136 | OZ15: 32 | PA15: 236 | PB15: 135 | PC15: 104 | PD15: 113 | PE15: 31 | PF15: 18 | PG15: 142 | PH15: 40 | PI15: 1281 | PJ15: 514 | PK15: 119 | PL15: 398 | PM15: 347 | PN15: 33 | PO15: 40 | PP15: 196 | PQ15: 84 | PR15: 632 | PS15: 216 | PT15: 418 | PU15: 211 | PV15: 60 | PW15: 68 | PX15: 313 | PY15: 167 | PZ15: 564 | QA15: 286 | QB15: 397 | QC15: 234 | QD15: 39 | QE15: 40 | QF15: 320 | QG15: 149 | QH15: 590 | QI15: 290 | QJ15: 310 | QK15: 167 | QL15: 52 | QM15: 52 | QN15: 281 | QO15: 139 | QP15: 993 | QQ15: 659 | QR15: 413 | QS15: 324 | QT15: 47 | QU15: 47 | QV15: 408 | QW15: 233 | QX15: 252 | QY15: 252 | QZ15: 96 | RA15: 163 | RB15: 124 | RC15: 18 | RD15: 29 | RE15: 121 | RF15: 63 | RG15: 29 | RH15: 29 | RI15: 29 | RJ15: 29 | RK15: 29 | RL15: 29 | RM15: 29 | RN15: 29 | RO15: 29 | RP15: 29 | RQ15: 29 | RR15: 29 | RS15: 29 | RT15: 29 | RU15: 29 | RV15: 29 | RW15: 29 | RX15: 29 | RY15: 29 | RZ15: 29 | SA15: 29 | SB15: 29 | SC15: 29 | SD15: 29 | SE15: 29 | SF15: 29 | SG15: 29 | SH15: 29 | SI15: 29 | SJ15: 29 | SK15: 29 | SL15: 29
A16: 2013thru2017 | B16: 155 | C16: 15500US0656938001 | D16: Alameda County | E16: Alameda County (part), Piedmont city, California | G16: 56938 | H16: 1 | I16: 3920 | J16: 3430 | K16: 455 | L16: 130 | M16: 80 | N16: 0 | O16: 35 | P16: 0 | Q16: 0 | R16: 10 | S16: 4 | T16: 120 | U16: 70 | V16: 0 | W16: 50 | X16: 0 | Y16: 0 | Z16: 0 | AA16: 0 | AB16: 0 | AC16: 0 | AD16: 0 | AE16: 0 | AF16: 0 | AG16: 0 | AH16: 0 | AI16: 0 | AJ16: 30 | AK16: 30 | AL16: 0 | AM16: 0 | AN16: 0 | AO16: 0 | AP16: 0 | AQ16: 0 | AR16: 175 | AS16: 70 | AT16: 0 | AU16: 85 | AV16: 0 | AW16: 0 | AX16: 15 | AY16: 0 | AZ16: 2950 | BA16: 10 | BB16: 10 | BC16: 0 | BD16: 0 | BE16: 0 | BF16: 0 | BG16: 0 | BH16: 0 | BI16: 50 | BJ16: 35 | BK16: 0 | BL16: 15 | BM16: 0 | BN16: 0 | BO16: 0 | BP16: 0 | BQ16: 50 | BR16: 50 | BS16: 0 | BT16: 0 | BU16: 0 | BV16: 0 | BW16: 0 | BX16: 0 | BY16: 120 | BZ16: 100 | CA16: 0 | CB16: 20 | CC16: 0 | CD16: 0 | CE16: 0 | CF16: 0 | CG16: 2715 | CH16: 2205 | CI16: 30 | CJ16: 425 | CK16: 0 | CL16: 0 | CM16: 45 | CN16: 15 | CO16: 25 | CP16: 25 | CQ16: 25 | CR16: 0 | CS16: 0 | CT16: 0 | CU16: 0 | CV16: 0 | CW16: 0 | CX16: 0 | CY16: 0 | CZ16: 0 | DA16: 0 | DB16: 0 | DC16: 0 | DD16: 0 | DE16: 0 | DF16: 0 | DG16: 0 | DH16: 0 | DI16: 0 | DJ16: 0 | DK16: 0 | DL16: 0 | DM16: 0 | DN16: 0 | DO16: 0 | DP16: 0 | DQ16: 0 | DR16: 0 | DS16: 0 | DT16: 0 | DU16: 0 | DV16: 0 | DW16: 0 | DX16: 0 | DY16: 0 | DZ16: 0 | EA16: 0 | EB16: 0 | EC16: 0 | ED16: 490 | EE16: 120 | EF16: 70 | EG16: 50 | EH16: 0 | EI16: 0 | EJ16: 0 | EK16: 0 | EL16: 20 | EM16: 0 | EN16: 25 | EO16: 25 | EP16: 0 | EQ16: 0 | ER16: 0 | ES16: 0 | ET16: 0 | EU16: 0 | EV16: 0 | EW16: 0 | EX16: 0 | EY16: 0 | EZ16: 0 | FA16: 0 | FB16: 0 | FC16: 0 | FD16: 25 | FE16: 15 | FF16: 0 | FG16: 0 | FH16: 0 | FI16: 0 | FJ16: 10 | FK16: 0 | FL16: 4 | FM16: 4 | FN16: 0 | FO16: 0 | FP16: 0 | FQ16: 0 | FR16: 0 | FS16: 0 | FT16: 365 | FU16: 0 | FV16: 0 | FW16: 0 | FX16: 0 | FY16: 0 | FZ16: 0 | GA16: 0 | GB16: 0 | GC16: 25 | GD16: 15 | GE16: 0 | GF16: 0 | GG16: 0 | GH16: 0 | GI16: 0 | GJ16: 15 | GK16: 30 | GL16: 15 | GM16: 10 | GN16: 0 | GO16: 0 | GP16: 0 | GQ16: 0 | GR16: 0 | GS16: 30 | GT16: 30 | GU16: 0 | GV16: 0 | GW16: 0 | GX16: 0 | GY16: 0 | GZ16: 0 | HA16: 280 | HB16: 250 | HC16: 0 | HD16: 20 | HE16: 0 | HF16: 0 | HG16: 15 | HH16: 0 | HI16: 0 | HJ16: 0 | HK16: 0 | HL16: 0 | HM16: 0 | HN16: 0 | HO16: 0 | HP16: 0 | HQ16: 0 | HR16: 0 | HS16: 0 | HT16: 0 | HU16: 0 | HV16: 0 | HW16: 0 | HX16: 0 | HY16: 0 | HZ16: 0 | IA16: 0 | IB16: 0 | IC16: 0 | ID16: 0 | IE16: 0 | IF16: 0 | IG16: 0 | IH16: 0 | II16: 0 | IJ16: 0 | IK16: 0 | IL16: 0 | IM16: 0 | IN16: 0 | IO16: 0 | IP16: 0 | IQ16: 0 | IR16: 0 | IS16: 0 | IT16: 0 | IU16: 0 | IV16: 0 | IW16: 0 | IX16: 163 | IY16: 208 | IZ16: 164 | JA16: 64 | JB16: 48 | JC16: 19 | JD16: 34 | JE16: 19 | JF16: 19 | JG16: 15 | JH16: 10 | JI16: 74 | JJ16: 43 | JK16: 19 | JL16: 58 | JM16: 19 | JN16: 19 | JO16: 19 | JP16: 19 | JQ16: 19 | JR16: 19 | JS16: 19 | JT16: 19 | JU16: 19 | JV16: 19 | JW16: 19 | JX16: 19 | JY16: 28 | JZ16: 28 | KA16: 19 | KB16: 19 | KC16: 19 | KD16: 19 | KE16: 19 | KF16: 19 | KG16: 116 | KH16: 51 | KI16: 19 | KJ16: 95 | KK16: 19 | KL16: 19 | KM16: 26 | KN16: 19 | KO16: 233 | KP16: 21 | KQ16: 21 | KR16: 19 | KS16: 19 | KT16: 19 | KU16: 19 | KV16: 19 | KW16: 19 | KX16: 40 | KY16: 30 | KZ16: 19 | LA16: 29 | LB16: 19 | LC16: 19 | LD16: 19 | LE16: 19 | LF16: 37 | LG16: 37 | LH16: 19 | LI16: 19 | LJ16: 19 | LK16: 19 | LL16: 19 | LM16: 19 | LN16: 64 | LO16: 58 | LP16: 19 | LQ16: 25 | LR16: 19 | LS16: 19 | LT16: 19 | LU16: 19 | LV16: 234 | LW16: 212 | LX16: 40 | LY16: 122 | LZ16: 19 | MA16: 19 | MB16: 31 | MC16: 19 | MD16: 34 | ME16: 34 | MF16: 34 | MG16: 19 | MH16: 19 | MI16: 19 | MJ16: 19 | MK16: 19 | ML16: 19 | MM16: 19 | MN16: 19 | MO16: 19 | MP16: 19 | MQ16: 19 | MR16: 19 | MS16: 19 | MT16: 19 | MU16: 19 | MV16: 19 | MW16: 19 | MX16: 19 | MY16: 19 | MZ16: 19 | NA16: 19 | NB16: 19 | NC16: 19 | ND16: 19 | NE16: 19 | NF16: 19 | NG16: 19 | NH16: 19 | NI16: 19 | NJ16: 19 | NK16: 19 | NL16: 19 | NM16: 19 | NN16: 19 | NO16: 19 | NP16: 19 | NQ16: 19 | NR16: 19 | NS16: 134 | NT16: 79 | NU16: 70 | NV16: 55 | NW16: 19 | NX16: 19 | NY16: 19 | NZ16: 19 | OA16: 33 | OB16: 19 | OC16: 31 | OD16: 31 | OE16: 19 | OF16: 19 | OG16: 19 | OH16: 19 | OI16: 19 | OJ16: 19 | OK16: 19 | OL16: 19 | OM16: 19 | ON16: 19 | OO16: 19 | OP16: 19 | OQ16: 19 | OR16: 19 | OS16: 28 | OT16: 24 | OU16: 19 | OV16: 19 | OW16: 19 | OX16: 19 | OY16: 15 | OZ16: 19 | PA16: 9 | PB16: 9 | PC16: 19 | PD16: 19 | PE16: 19 | PF16: 19 | PG16: 19 | PH16: 19 | PI16: 122 | PJ16: 19 | PK16: 19 | PL16: 19 | PM16: 19 | PN16: 19 | PO16: 19 | PP16: 19 | PQ16: 19 | PR16: 29 | PS16: 17 | PT16: 19 | PU16: 19 | PV16: 19 | PW16: 19 | PX16: 19 | PY16: 24 | PZ16: 29 | QA16: 18 | QB16: 21 | QC16: 19 | QD16: 19 | QE16: 19 | QF16: 19 | QG16: 19 | QH16: 28 | QI16: 28 | QJ16: 19 | QK16: 19 | QL16: 19 | QM16: 19 | QN16: 19 | QO16: 19 | QP16: 113 | QQ16: 113 | QR16: 19 | QS16: 23 | QT16: 19 | QU16: 19 | QV16: 22 | QW16: 19 | QX16: 19 | QY16: 19 | QZ16: 19 | RA16: 19 | RB16: 19 | RC16: 19 | RD16: 19 | RE16: 19 | RF16: 19 | RG16: 19 | RH16: 19 | RI16: 19 | RJ16: 19 | RK16: 19 | RL16: 19 | RM16: 19 | RN16: 19 | RO16: 19 | RP16: 19 | RQ16: 19 | RR16: 19 | RS16: 19 | RT16: 19 | RU16: 19 | RV16: 19 | RW16: 19 | RX16: 19 | RY16: 19 | RZ16: 19 | SA16: 19 | SB16: 19 | SC16: 19 | SD16: 19 | SE16: 19 | SF16: 19 | SG16: 19 | SH16: 19 | SI16: 19 | SJ16: 19 | SK16: 19 | SL16: 19
A17: 2013thru2017 | B17: 155 | C17: 15500US0657792001 | D17: Alameda County | E17: Alameda County (part), Pleasanton city, California | G17: 57792 | H17: 1 | I17: 27920 | J17: 19470 | K17: 2130 | L17: 620 | M17: 395 | N17: 25 | O17: 125 | P17: 0 | Q17: 0 | R17: 65 | S17: 10 | T17: 340 | U17: 230 | V17: 25 | W17: 65 | X17: 0 | Y17: 0 | Z17: 20 | AA17: 0 | AB17: 305 | AC17: 220 | AD17: 0 | AE17: 85 | AF17: 4 | AG17: 0 | AH17: 0 | AI17: 0 | AJ17: 325 | AK17: 180 | AL17: 0 | AM17: 110 | AN17: 0 | AO17: 0 | AP17: 40 | AQ17: 0 | AR17: 540 | AS17: 275 | AT17: 0 | AU17: 170 | AV17: 0 | AW17: 0 | AX17: 35 | AY17: 60 | AZ17: 17235 | BA17: 195 | BB17: 140 | BC17: 0 | BD17: 20 | BE17: 0 | BF17: 0 | BG17: 35 | BH17: 0 | BI17: 600 | BJ17: 550 | BK17: 0 | BL17: 30 | BM17: 0 | BN17: 4 | BO17: 15 | BP17: 0 | BQ17: 590 | BR17: 490 | BS17: 0 | BT17: 45 | BU17: 25 | BV17: 0 | BW17: 30 | BX17: 0 | BY17: 705 | BZ17: 515 | CA17: 0 | CB17: 150 | CC17: 0 | CD17: 0 | CE17: 45 | CF17: 0 | CG17: 15140 | CH17: 9375 | CI17: 125 | CJ17: 4520 | CK17: 30 | CL17: 4 | CM17: 720 | CN17: 365 | CO17: 105 | CP17: 105 | CQ17: 100 | CR17: 0 | CS17: 10 | CT17: 0 | CU17: 0 | CV17: 0 | CW17: 0 | CX17: 0 | CY17: 0 | CZ17: 0 | DA17: 0 | DB17: 0 | DC17: 0 | DD17: 0 | DE17: 0 | DF17: 0 | DG17: 0 | DH17: 0 | DI17: 0 | DJ17: 0 | DK17: 0 | DL17: 0 | DM17: 0 | DN17: 0 | DO17: 0 | DP17: 0 | DQ17: 0 | DR17: 0 | DS17: 0 | DT17: 0 | DU17: 0 | DV17: 0 | DW17: 0 | DX17: 0 | DY17: 0 | DZ17: 0 | EA17: 0 | EB17: 0 | EC17: 0 | ED17: 8450 | EE17: 2210 | EF17: 970 | EG17: 445 | EH17: 40 | EI17: 150 | EJ17: 0 | EK17: 30 | EL17: 180 | EM17: 125 | EN17: 455 | EO17: 290 | EP17: 0 | EQ17: 65 | ER17: 10 | ES17: 0 | ET17: 65 | EU17: 25 | EV17: 210 | EW17: 125 | EX17: 0 | EY17: 65 | EZ17: 0 | FA17: 0 | FB17: 10 | FC17: 15 | FD17: 125 | FE17: 25 | FF17: 35 | FG17: 55 | FH17: 0 | FI17: 4 | FJ17: 0 | FK17: 0 | FL17: 450 | FM17: 65 | FN17: 0 | FO17: 250 | FP17: 4 | FQ17: 0 | FR17: 90 | FS17: 40 | FT17: 6210 | FU17: 205 | FV17: 160 | FW17: 0 | FX17: 35 | FY17: 0 | FZ17: 0 | GA17: 10 | GB17: 0 | GC17: 300 | GD17: 150 | GE17: 0 | GF17: 130 | GG17: 10 | GH17: 0 | GI17: 10 | GJ17: 0 | GK17: 505 | GL17: 345 | GM17: 30 | GN17: 60 | GO17: 0 | GP17: 10 | GQ17: 55 | GR17: 0 | GS17: 645 | GT17: 315 | GU17: 25 | GV17: 185 | GW17: 4 | GX17: 45 | GY17: 55 | GZ17: 10 | HA17: 4560 | HB17: 2665 | HC17: 70 | HD17: 1280 | HE17: 10 | HF17: 10 | HG17: 405 | HH17: 120 | HI17: 30 | HJ17: 30 | HK17: 4 | HL17: 0 | HM17: 15 | HN17: 0 | HO17: 0 | HP17: 10 | HQ17: 0 | HR17: 0 | HS17: 0 | HT17: 0 | HU17: 0 | HV17: 0 | HW17: 0 | HX17: 0 | HY17: 0 | HZ17: 0 | IA17: 0 | IB17: 0 | IC17: 0 | ID17: 0 | IE17: 0 | IF17: 0 | IG17: 0 | IH17: 0 | II17: 0 | IJ17: 0 | IK17: 0 | IL17: 0 | IM17: 0 | IN17: 0 | IO17: 0 | IP17: 0 | IQ17: 0 | IR17: 0 | IS17: 0 | IT17: 0 | IU17: 0 | IV17: 0 | IW17: 0 | IX17: 439 | IY17: 472 | IZ17: 295 | JA17: 146 | JB17: 113 | JC17: 33 | JD17: 68 | JE17: 29 | JF17: 29 | JG17: 42 | JH17: 14 | JI17: 116 | JJ17: 88 | JK17: 41 | JL17: 57 | JM17: 29 | JN17: 29 | JO17: 23 | JP17: 29 | JQ17: 109 | JR17: 89 | JS17: 29 | JT17: 59 | JU17: 1 | JV17: 29 | JW17: 29 | JX17: 29 | JY17: 109 | JZ17: 91 | KA17: 29 | KB17: 67 | KC17: 29 | KD17: 29 | KE17: 42 | KF17: 29 | KG17: 173 | KH17: 119 | KI17: 29 | KJ17: 83 | KK17: 29 | KL17: 29 | KM17: 40 | KN17: 91 | KO17: 543 | KP17: 73 | KQ17: 57 | KR17: 29 | KS17: 28 | KT17: 29 | KU17: 29 | KV17: 33 | KW17: 29 | KX17: 135 | KY17: 137 | KZ17: 29 | LA17: 29 | LB17: 29 | LC17: 7 | LD17: 24 | LE17: 29 | LF17: 135 | LG17: 129 | LH17: 29 | LI17: 34 | LJ17: 33 | LK17: 29 | LL17: 44 | LM17: 29 | LN17: 171 | LO17: 141 | LP17: 29 | LQ17: 75 | LR17: 29 | LS17: 29 | LT17: 46 | LU17: 29 | LV17: 478 | LW17: 396 | LX17: 75 | LY17: 286 | LZ17: 25 | MA17: 14 | MB17: 154 | MC17: 115 | MD17: 111 | ME17: 111 | MF17: 112 | MG17: 29 | MH17: 15 | MI17: 29 | MJ17: 29 | MK17: 29 | ML17: 29 | MM17: 29 | MN17: 29 | MO17: 29 | MP17: 29 | MQ17: 29 | MR17: 29 | MS17: 29 | MT17: 29 | MU17: 29 | MV17: 29 | MW17: 29 | MX17: 29 | MY17: 29 | MZ17: 29 | NA17: 29 | NB17: 29 | NC17: 29 | ND17: 29 | NE17: 29 | NF17: 29 | NG17: 29 | NH17: 29 | NI17: 29 | NJ17: 29 | NK17: 29 | NL17: 29 | NM17: 29 | NN17: 29 | NO17: 29 | NP17: 29 | NQ17: 29 | NR17: 29 | NS17: 349 | NT17: 283 | NU17: 213 | NV17: 122 | NW17: 54 | NX17: 66 | NY17: 29 | NZ17: 42 | OA17: 94 | OB17: 119 | OC17: 158 | OD17: 139 | OE17: 29 | OF17: 50 | OG17: 16 | OH17: 29 | OI17: 73 | OJ17: 31 | OK17: 87 | OL17: 71 | OM17: 29 | ON17: 53 | OO17: 29 | OP17: 29 | OQ17: 17 | OR17: 22 | OS17: 81 | OT17: 28 | OU17: 63 | OV17: 41 | OW17: 29 | OX17: 16 | OY17: 29 | OZ17: 29 | PA17: 134 | PB17: 40 | PC17: 29 | PD17: 110 | PE17: 8 | PF17: 29 | PG17: 67 | PH17: 55 | PI17: 452 | PJ17: 65 | PK17: 61 | PL17: 29 | PM17: 26 | PN17: 29 | PO17: 29 | PP17: 13 | PQ17: 29 | PR17: 132 | PS17: 67 | PT17: 29 | PU17: 119 | PV17: 14 | PW17: 29 | PX17: 17 | PY17: 29 | PZ17: 188 | QA17: 155 | QB17: 53 | QC17: 60 | QD17: 29 | QE17: 13 | QF17: 58 | QG17: 29 | QH17: 196 | QI17: 122 | QJ17: 41 | QK17: 99 | QL17: 8 | QM17: 51 | QN17: 52 | QO17: 19 | QP17: 405 | QQ17: 347 | QR17: 51 | QS17: 215 | QT17: 14 | QU17: 20 | QV17: 156 | QW17: 68 | QX17: 26 | QY17: 26 | QZ17: 12 | RA17: 29 | RB17: 21 | RC17: 29 | RD17: 29 | RE17: 16 | RF17: 29 | RG17: 29 | RH17: 29 | RI17: 29 | RJ17: 29 | RK17: 29 | RL17: 29 | RM17: 29 | RN17: 29 | RO17: 29 | RP17: 29 | RQ17: 29 | RR17: 29 | RS17: 29 | RT17: 29 | RU17: 29 | RV17: 29 | RW17: 29 | RX17: 29 | RY17: 29 | RZ17: 29 | SA17: 29 | SB17: 29 | SC17: 29 | SD17: 29 | SE17: 29 | SF17: 29 | SG17: 29 | SH17: 29 | SI17: 29 | SJ17: 29 | SK17: 29 | SL17: 29
A18: 2013thru2017 | B18: 155 | C18: 15500US0668084001 | D18: Alameda County | E18: Alameda County (part), San Leandro city, California | G18: 68084 | H18: 1 | I18: 32290 | J18: 17630 | K18: 3230 | L18: 1035 | M18: 420 | N18: 35 | O18: 410 | P18: 4 | Q18: 0 | R18: 145 | S18: 25 | T18: 790 | U18: 270 | V18: 10 | W18: 365 | X18: 0 | Y18: 0 | Z18: 105 | AA18: 40 | AB18: 660 | AC18: 170 | AD18: 115 | AE18: 185 | AF18: 15 | AG18: 0 | AH18: 160 | AI18: 15 | AJ18: 270 | AK18: 75 | AL18: 15 | AM18: 115 | AN18: 0 | AO18: 0 | AP18: 60 | AQ18: 4 | AR18: 470 | AS18: 85 | AT18: 40 | AU18: 160 | AV18: 4 | AW18: 0 | AX18: 175 | AY18: 0 | AZ18: 14280 | BA18: 790 | BB18: 375 | BC18: 30 | BD18: 275 | BE18: 4 | BF18: 0 | BG18: 105 | BH18: 0 | BI18: 1485 | BJ18: 585 | BK18: 0 | BL18: 595 | BM18: 20 | BN18: 0 | BO18: 275 | BP18: 4 | BQ18: 1350 | BR18: 450 | BS18: 125 | BT18: 490 | BU18: 10 | BV18: 0 | BW18: 215 | BX18: 60 | BY18: 1550 | BZ18: 545 | CA18: 60 | CB18: 495 | CC18: 30 | CD18: 10 | CE18: 365 | CF18: 45 | CG18: 9105 | CH18: 3820 | CI18: 575 | CJ18: 3055 | CK18: 65 | CL18: 105 | CM18: 1305 | CN18: 180 | CO18: 120 | CP18: 120 | CQ18: 40 | CR18: 20 | CS18: 50 | CT18: 0 | CU18: 0 | CV18: 0 | CW18: 10 | CX18: 0 | CY18: 0 | CZ18: 0 | DA18: 0 | DB18: 0 | DC18: 0 | DD18: 0 | DE18: 0 | DF18: 0 | DG18: 0 | DH18: 0 | DI18: 0 | DJ18: 0 | DK18: 0 | DL18: 0 | DM18: 0 | DN18: 0 | DO18: 0 | DP18: 0 | DQ18: 0 | DR18: 0 | DS18: 0 | DT18: 0 | DU18: 0 | DV18: 0 | DW18: 0 | DX18: 0 | DY18: 0 | DZ18: 0 | EA18: 0 | EB18: 0 | EC18: 0 | ED18: 14660 | EE18: 4820 | EF18: 2415 | EG18: 560 | EH18: 660 | EI18: 485 | EJ18: 25 | EK18: 10 | EL18: 645 | EM18: 35 | EN18: 1370 | EO18: 315 | EP18: 345 | EQ18: 250 | ER18: 0 | ES18: 10 | ET18: 450 | EU18: 0 | EV18: 560 | EW18: 35 | EX18: 110 | EY18: 140 | EZ18: 4 | FA18: 0 | FB18: 275 | FC18: 0 | FD18: 195 | FE18: 0 | FF18: 90 | FG18: 85 | FH18: 0 | FI18: 0 | FJ18: 25 | FK18: 0 | FL18: 275 | FM18: 40 | FN18: 15 | FO18: 95 | FP18: 0 | FQ18: 0 | FR18: 90 | FS18: 40 | FT18: 9525 | FU18: 810 | FV18: 105 | FW18: 245 | FX18: 255 | FY18: 4 | FZ18: 20 | GA18: 145 | GB18: 35 | GC18: 1755 | GD18: 430 | GE18: 290 | GF18: 330 | GG18: 4 | GH18: 0 | GI18: 615 | GJ18: 90 | GK18: 1935 | GL18: 400 | GM18: 550 | GN18: 290 | GO18: 0 | GP18: 0 | GQ18: 585 | GR18: 110 | GS18: 1495 | GT18: 385 | GU18: 490 | GV18: 175 | GW18: 0 | GX18: 30 | GY18: 350 | GZ18: 60 | HA18: 3530 | HB18: 1225 | HC18: 605 | HD18: 670 | HE18: 4 | HF18: 105 | HG18: 760 | HH18: 165 | HI18: 315 | HJ18: 315 | HK18: 15 | HL18: 65 | HM18: 145 | HN18: 0 | HO18: 0 | HP18: 80 | HQ18: 10 | HR18: 0 | HS18: 0 | HT18: 0 | HU18: 0 | HV18: 0 | HW18: 0 | HX18: 0 | HY18: 0 | HZ18: 0 | IA18: 0 | IB18: 0 | IC18: 0 | ID18: 0 | IE18: 0 | IF18: 0 | IG18: 0 | IH18: 0 | II18: 0 | IJ18: 0 | IK18: 0 | IL18: 0 | IM18: 0 | IN18: 0 | IO18: 0 | IP18: 0 | IQ18: 0 | IR18: 0 | IS18: 0 | IT18: 0 | IU18: 0 | IV18: 0 | IW18: 0 | IX18: 539 | IY18: 577 | IZ18: 379 | JA18: 229 | JB18: 144 | JC18: 37 | JD18: 144 | JE18: 6 | JF18: 29 | JG18: 79 | JH18: 27 | JI18: 162 | JJ18: 109 | JK18: 19 | JL18: 125 | JM18: 29 | JN18: 29 | JO18: 66 | JP18: 53 | JQ18: 181 | JR18: 108 | JS18: 62 | JT18: 106 | JU18: 26 | JV18: 29 | JW18: 82 | JX18: 23 | JY18: 112 | JZ18: 55 | KA18: 24 | KB18: 63 | KC18: 29 | KD18: 29 | KE18: 45 | KF18: 12 | KG18: 126 | KH18: 49 | KI18: 24 | KJ18: 89 | KK18: 10 | KL18: 29 | KM18: 68 | KN18: 29 | KO18: 584 | KP18: 167 | KQ18: 123 | KR18: 27 | KS18: 116 | KT18: 5 | KU18: 29 | KV18: 63 | KW18: 29 | KX18: 279 | KY18: 132 | KZ18: 29 | LA18: 184 | LB18: 29 | LC18: 29 | LD18: 115 | LE18: 9 | LF18: 237 | LG18: 136 | LH18: 102 | LI18: 121 | LJ18: 20 | LK18: 29 | LL18: 94 | LM18: 59 | LN18: 250 | LO18: 125 | LP18: 54 | LQ18: 163 | LR18: 39 | LS18: 15 | LT18: 144 | LU18: 42 | LV18: 490 | LW18: 344 | LX18: 176 | LY18: 291 | LZ18: 48 | MA18: 53 | MB18: 234 | MC18: 81 | MD18: 70 | ME18: 70 | MF18: 37 | MG18: 29 | MH18: 48 | MI18: 29 | MJ18: 29 | MK18: 29 | ML18: 15 | MM18: 29 | MN18: 29 | MO18: 29 | MP18: 29 | MQ18: 29 | MR18: 29 | MS18: 29 | MT18: 29 | MU18: 29 | MV18: 29 | MW18: 29 | MX18: 29 | MY18: 29 | MZ18: 29 | NA18: 29 | NB18: 29 | NC18: 29 | ND18: 29 | NE18: 29 | NF18: 29 | NG18: 29 | NH18: 29 | NI18: 29 | NJ18: 29 | NK18: 29 | NL18: 29 | NM18: 29 | NN18: 29 | NO18: 29 | NP18: 29 | NQ18: 29 | NR18: 29 | NS18: 528 | NT18: 431 | NU18: 329 | NV18: 146 | NW18: 183 | NX18: 201 | NY18: 32 | NZ18: 16 | OA18: 168 | OB18: 34 | OC18: 274 | OD18: 132 | OE18: 162 | OF18: 114 | OG18: 29 | OH18: 16 | OI18: 142 | OJ18: 29 | OK18: 172 | OL18: 34 | OM18: 67 | ON18: 98 | OO18: 12 | OP18: 29 | OQ18: 114 | OR18: 29 | OS18: 135 | OT18: 29 | OU18: 99 | OV18: 67 | OW18: 29 | OX18: 29 | OY18: 38 | OZ18: 29 | PA18: 121 | PB18: 34 | PC18: 24 | PD18: 76 | PE18: 29 | PF18: 29 | PG18: 76 | PH18: 62 | PI18: 588 | PJ18: 222 | PK18: 89 | PL18: 125 | PM18: 137 | PN18: 3 | PO18: 25 | PP18: 79 | PQ18: 47 | PR18: 332 | PS18: 149 | PT18: 143 | PU18: 137 | PV18: 29 | PW18: 29 | PX18: 207 | PY18: 59 | PZ18: 344 | QA18: 139 | QB18: 190 | QC18: 129 | QD18: 29 | QE18: 29 | QF18: 194 | QG18: 82 | QH18: 282 | QI18: 147 | QJ18: 194 | QK18: 78 | QL18: 29 | QM18: 47 | QN18: 135 | QO18: 65 | QP18: 425 | QQ18: 221 | QR18: 178 | QS18: 190 | QT18: 10 | QU18: 91 | QV18: 187 | QW18: 90 | QX18: 167 | QY18: 167 | QZ18: 21 | RA18: 55 | RB18: 128 | RC18: 29 | RD18: 29 | RE18: 90 | RF18: 14 | RG18: 29 | RH18: 29 | RI18: 29 | RJ18: 29 | RK18: 29 | RL18: 29 | RM18: 29 | RN18: 29 | RO18: 29 | RP18: 29 | RQ18: 29 | RR18: 29 | RS18: 29 | RT18: 29 | RU18: 29 | RV18: 29 | RW18: 29 | RX18: 29 | RY18: 29 | RZ18: 29 | SA18: 29 | SB18: 29 | SC18: 29 | SD18: 29 | SE18: 29 | SF18: 29 | SG18: 29 | SH18: 29 | SI18: 29 | SJ18: 29 | SK18: 29 | SL18: 29
A19: 2013thru2017 | B19: 155 | C19: 15500US0668112001 | D19: Alameda County | E19: Alameda County (part), San Lorenzo CDP, California | F19: 1 | G19: 68112 | H19: 1 | I19: 7555 | J19: 5470 | K19: 830 | L19: 235 | M19: 55 | N19: 0 | O19: 75 | P19: 0 | Q19: 0 | R19: 85 | S19: 15 | T19: 140 | U19: 60 | V19: 4 | W19: 15 | X19: 0 | Y19: 0 | Z19: 60 | AA19: 0 | AB19: 160 | AC19: 15 | AD19: 10 | AE19: 40 | AF19: 0 | AG19: 0 | AH19: 85 | AI19: 10 | AJ19: 95 | AK19: 20 | AL19: 0 | AM19: 35 | AN19: 0 | AO19: 0 | AP19: 40 | AQ19: 0 | AR19: 205 | AS19: 40 | AT19: 0 | AU19: 55 | AV19: 0 | AW19: 0 | AX19: 115 | AY19: 0 | AZ19: 4625 | BA19: 230 | BB19: 175 | BC19: 0 | BD19: 25 | BE19: 0 | BF19: 0 | BG19: 30 | BH19: 0 | BI19: 365 | BJ19: 205 | BK19: 4 | BL19: 80 | BM19: 0 | BN19: 0 | BO19: 75 | BP19: 0 | BQ19: 655 | BR19: 280 | BS19: 10 | BT19: 140 | BU19: 15 | BV19: 0 | BW19: 185 | BX19: 25 | BY19: 360 | BZ19: 145 | CA19: 0 | CB19: 85 | CC19: 0 | CD19: 10 | CE19: 120 | CF19: 0 | CG19: 3015 | CH19: 1210 | CI19: 65 | CJ19: 740 | CK19: 0 | CL19: 10 | CM19: 900 | CN19: 85 | CO19: 10 | CP19: 10 | CQ19: 0 | CR19: 0 | CS19: 10 | CT19: 0 | CU19: 0 | CV19: 0 | CW19: 0 | CX19: 0 | CY19: 0 | CZ19: 0 | DA19: 0 | DB19: 0 | DC19: 0 | DD19: 0 | DE19: 0 | DF19: 0 | DG19: 0 | DH19: 0 | DI19: 0 | DJ19: 0 | DK19: 0 | DL19: 0 | DM19: 0 | DN19: 0 | DO19: 0 | DP19: 0 | DQ19: 0 | DR19: 0 | DS19: 0 | DT19: 0 | DU19: 0 | DV19: 0 | DW19: 0 | DX19: 0 | DY19: 0 | DZ19: 0 | EA19: 0 | EB19: 0 | EC19: 0 | ED19: 2085 | EE19: 645 | EF19: 190 | EG19: 30 | EH19: 40 | EI19: 30 | EJ19: 0 | EK19: 0 | EL19: 75 | EM19: 20 | EN19: 140 | EO19: 25 | EP19: 0 | EQ19: 25 | ER19: 0 | ES19: 0 | ET19: 70 | EU19: 15 | EV19: 145 | EW19: 0 | EX19: 10 | EY19: 25 | EZ19: 0 | FA19: 0 | FB19: 95 | FC19: 20 | FD19: 45 | FE19: 10 | FF19: 0 | FG19: 15 | FH19: 0 | FI19: 0 | FJ19: 20 | FK19: 0 | FL19: 120 | FM19: 0 | FN19: 4 | FO19: 20 | FP19: 0 | FQ19: 0 | FR19: 95 | FS19: 0 | FT19: 1400 | FU19: 130 | FV19: 35 | FW19: 20 | FX19: 75 | FY19: 0 | FZ19: 0 | GA19: 4 | GB19: 0 | GC19: 125 | GD19: 75 | GE19: 0 | GF19: 10 | GG19: 0 | GH19: 4 | GI19: 40 | GJ19: 0 | GK19: 210 | GL19: 80 | GM19: 35 | GN19: 10 | GO19: 0 | GP19: 0 | GQ19: 75 | GR19: 4 | GS19: 185 | GT19: 55 | GU19: 0 | GV19: 30 | GW19: 20 | GX19: 0 | GY19: 70 | GZ19: 10 | HA19: 750 | HB19: 315 | HC19: 55 | HD19: 125 | HE19: 0 | HF19: 0 | HG19: 250 | HH19: 10 | HI19: 40 | HJ19: 40 | HK19: 15 | HL19: 0 | HM19: 25 | HN19: 0 | HO19: 0 | HP19: 0 | HQ19: 0 | HR19: 0 | HS19: 0 | HT19: 0 | HU19: 0 | HV19: 0 | HW19: 0 | HX19: 0 | HY19: 0 | HZ19: 0 | IA19: 0 | IB19: 0 | IC19: 0 | ID19: 0 | IE19: 0 | IF19: 0 | IG19: 0 | IH19: 0 | II19: 0 | IJ19: 0 | IK19: 0 | IL19: 0 | IM19: 0 | IN19: 0 | IO19: 0 | IP19: 0 | IQ19: 0 | IR19: 0 | IS19: 0 | IT19: 0 | IU19: 0 | IV19: 0 | IW19: 0 | IX19: 181 | IY19: 285 | IZ19: 158 | JA19: 84 | JB19: 35 | JC19: 23 | JD19: 50 | JE19: 23 | JF19: 23 | JG19: 55 | JH19: 27 | JI19: 71 | JJ19: 41 | JK19: 18 | JL19: 22 | JM19: 23 | JN19: 23 | JO19: 51 | JP19: 23 | JQ19: 73 | JR19: 22 | JS19: 14 | JT19: 31 | JU19: 23 | JV19: 23 | JW19: 63 | JX19: 16 | JY19: 57 | JZ19: 25 | KA19: 23 | KB19: 34 | KC19: 23 | KD19: 23 | KE19: 45 | KF19: 23 | KG19: 94 | KH19: 37 | KI19: 23 | KJ19: 28 | KK19: 23 | KL19: 23 | KM19: 72 | KN19: 23 | KO19: 286 | KP19: 76 | KQ19: 65 | KR19: 23 | KS19: 31 | KT19: 23 | KU19: 23 | KV19: 27 | KW19: 23 | KX19: 92 | KY19: 75 | KZ19: 19 | LA19: 47 | LB19: 23 | LC19: 23 | LD19: 41 | LE19: 23 | LF19: 129 | LG19: 82 | LH19: 14 | LI19: 75 | LJ19: 22 | LK19: 23 | LL19: 91 | LM19: 26 | LN19: 100 | LO19: 58 | LP19: 23 | LQ19: 46 | LR19: 23 | LS19: 14 | LT19: 60 | LU19: 23 | LV19: 270 | LW19: 166 | LX19: 43 | LY19: 147 | LZ19: 23 | MA19: 15 | MB19: 191 | MC19: 48 | MD19: 20 | ME19: 20 | MF19: 23 | MG19: 23 | MH19: 20 | MI19: 23 | MJ19: 23 | MK19: 23 | ML19: 23 | MM19: 23 | MN19: 23 | MO19: 23 | MP19: 23 | MQ19: 23 | MR19: 23 | MS19: 23 | MT19: 23 | MU19: 23 | MV19: 23 | MW19: 23 | MX19: 23 | MY19: 23 | MZ19: 23 | NA19: 23 | NB19: 23 | NC19: 23 | ND19: 23 | NE19: 23 | NF19: 23 | NG19: 23 | NH19: 23 | NI19: 23 | NJ19: 23 | NK19: 23 | NL19: 23 | NM19: 23 | NN19: 23 | NO19: 23 | NP19: 23 | NQ19: 23 | NR19: 23 | NS19: 254 | NT19: 150 | NU19: 79 | NV19: 29 | NW19: 30 | NX19: 29 | NY19: 23 | NZ19: 23 | OA19: 74 | OB19: 30 | OC19: 65 | OD19: 29 | OE19: 23 | OF19: 29 | OG19: 23 | OH19: 23 | OI19: 56 | OJ19: 19 | OK19: 75 | OL19: 23 | OM19: 14 | ON19: 27 | OO19: 23 | OP19: 23 | OQ19: 64 | OR19: 33 | OS19: 37 | OT19: 15 | OU19: 23 | OV19: 28 | OW19: 23 | OX19: 23 | OY19: 26 | OZ19: 23 | PA19: 92 | PB19: 23 | PC19: 11 | PD19: 26 | PE19: 23 | PF19: 23 | PG19: 87 | PH19: 23 | PI19: 227 | PJ19: 63 | PK19: 26 | PL19: 24 | PM19: 53 | PN19: 23 | PO19: 23 | PP19: 12 | PQ19: 23 | PR19: 74 | PS19: 58 | PT19: 23 | PU19: 13 | PV19: 23 | PW19: 11 | PX19: 48 | PY19: 23 | PZ19: 84 | QA19: 52 | QB19: 29 | QC19: 15 | QD19: 23 | QE19: 23 | QF19: 55 | QG19: 12 | QH19: 74 | QI19: 42 | QJ19: 23 | QK19: 31 | QL19: 28 | QM19: 23 | QN19: 54 | QO19: 15 | QP19: 182 | QQ19: 126 | QR19: 66 | QS19: 58 | QT19: 23 | QU19: 23 | QV19: 111 | QW19: 20 | QX19: 47 | QY19: 47 | QZ19: 23 | RA19: 23 | RB19: 42 | RC19: 23 | RD19: 23 | RE19: 23 | RF19: 23 | RG19: 23 | RH19: 23 | RI19: 23 | RJ19: 23 | RK19: 23 | RL19: 23 | RM19: 23 | RN19: 23 | RO19: 23 | RP19: 23 | RQ19: 23 | RR19: 23 | RS19: 23 | RT19: 23 | RU19: 23 | RV19: 23 | RW19: 23 | RX19: 23 | RY19: 23 | RZ19: 23 | SA19: 23 | SB19: 23 | SC19: 23 | SD19: 23 | SE19: 23 | SF19: 23 | SG19: 23 | SH19: 23 | SI19: 23 | SJ19: 23 | SK19: 23 | SL19: 23
A20: 2013thru2017 | B20: 155 | C20: 15500US0677042001 | D20: Alameda County | E20: Alameda County (part), Sunol CDP, California | F20: 1 | G20: 77042 | H20: 1 | I20: 365 | J20: 260 | K20: 30 | L20: 0 | M20: 0 | N20: 0 | O20: 0 | P20: 0 | Q20: 0 | R20: 0 | S20: 0 | T20: 4 | U20: 4 | V20: 0 | W20: 0 | X20: 0 | Y20: 0 | Z20: 0 | AA20: 0 | AB20: 4 | AC20: 4 | AD20: 0 | AE20: 0 | AF20: 0 | AG20: 0 | AH20: 0 | AI20: 0 | AJ20: 0 | AK20: 0 | AL20: 0 | AM20: 0 | AN20: 0 | AO20: 0 | AP20: 0 | AQ20: 0 | AR20: 20 | AS20: 10 | AT20: 0 | AU20: 10 | AV20: 0 | AW20: 0 | AX20: 0 | AY20: 0 | AZ20: 230 | BA20: 4 | BB20: 4 | BC20: 0 | BD20: 4 | BE20: 0 | BF20: 0 | BG20: 0 | BH20: 0 | BI20: 10 | BJ20: 10 | BK20: 0 | BL20: 0 | BM20: 0 | BN20: 0 | BO20: 0 | BP20: 0 | BQ20: 30 | BR20: 25 | BS20: 0 | BT20: 4 | BU20: 0 | BV20: 0 | BW20: 4 | BX20: 0 | BY20: 15 | BZ20: 15 | CA20: 0 | CB20: 0 | CC20: 0 | CD20: 0 | CE20: 0 | CF20: 0 | CG20: 165 | CH20: 145 | CI20: 0 | CJ20: 10 | CK20: 0 | CL20: 0 | CM20: 10 | CN20: 4 | CO20: 0 | CP20: 0 | CQ20: 0 | CR20: 0 | CS20: 0 | CT20: 0 | CU20: 0 | CV20: 0 | CW20: 0 | CX20: 0 | CY20: 0 | CZ20: 0 | DA20: 0 | DB20: 0 | DC20: 0 | DD20: 0 | DE20: 0 | DF20: 0 | DG20: 0 | DH20: 0 | DI20: 0 | DJ20: 0 | DK20: 0 | DL20: 0 | DM20: 0 | DN20: 0 | DO20: 0 | DP20: 0 | DQ20: 0 | DR20: 0 | DS20: 0 | DT20: 0 | DU20: 0 | DV20: 0 | DW20: 0 | DX20: 0 | DY20: 0 | DZ20: 0 | EA20: 0 | EB20: 0 | EC20: 0 | ED20: 105 | EE20: 15 | EF20: 15 | EG20: 15 | EH20: 0 | EI20: 0 | EJ20: 0 | EK20: 0 | EL20: 0 | EM20: 0 | EN20: 0 | EO20: 0 | EP20: 0 | EQ20: 0 | ER20: 0 | ES20: 0 | ET20: 0 | EU20: 0 | EV20: 0 | EW20: 0 | EX20: 0 | EY20: 0 | EZ20: 0 | FA20: 0 | FB20: 0 | FC20: 0 | FD20: 0 | FE20: 0 | FF20: 0 | FG20: 0 | FH20: 0 | FI20: 0 | FJ20: 0 | FK20: 0 | FL20: 0 | FM20: 0 | FN20: 0 | FO20: 0 | FP20: 0 | FQ20: 0 | FR20: 0 | FS20: 0 | FT20: 90 | FU20: 4 | FV20: 4 | FW20: 0 | FX20: 0 | FY20: 0 | FZ20: 0 | GA20: 4 | GB20: 0 | GC20: 4 | GD20: 4 | GE20: 0 | GF20: 0 | GG20: 0 | GH20: 0 | GI20: 4 | GJ20: 0 | GK20: 10 | GL20: 10 | GM20: 0 | GN20: 0 | GO20: 0 | GP20: 0 | GQ20: 0 | GR20: 0 | GS20: 20 | GT20: 20 | GU20: 0 | GV20: 0 | GW20: 0 | GX20: 0 | GY20: 4 | GZ20: 0 | HA20: 45 | HB20: 45 | HC20: 0 | HD20: 0 | HE20: 0 | HF20: 0 | HG20: 0 | HH20: 0 | HI20: 0 | HJ20: 0 | HK20: 0 | HL20: 0 | HM20: 0 | HN20: 0 | HO20: 0 | HP20: 0 | HQ20: 0 | HR20: 0 | HS20: 0 | HT20: 0 | HU20: 0 | HV20: 0 | HW20: 0 | HX20: 0 | HY20: 0 | HZ20: 0 | IA20: 0 | IB20: 0 | IC20: 0 | ID20: 0 | IE20: 0 | IF20: 0 | IG20: 0 | IH20: 0 | II20: 0 | IJ20: 0 | IK20: 0 | IL20: 0 | IM20: 0 | IN20: 0 | IO20: 0 | IP20: 0 | IQ20: 0 | IR20: 0 | IS20: 0 | IT20: 0 | IU20: 0 | IV20: 0 | IW20: 0 | IX20: 63 | IY20: 41 | IZ20: 21 | JA20: 12 | JB20: 12 | JC20: 12 | JD20: 12 | JE20: 12 | JF20: 12 | JG20: 12 | JH20: 12 | JI20: 3 | JJ20: 3 | JK20: 12 | JL20: 12 | JM20: 12 | JN20: 12 | JO20: 12 | JP20: 12 | JQ20: 7 | JR20: 7 | JS20: 12 | JT20: 12 | JU20: 12 | JV20: 12 | JW20: 12 | JX20: 12 | JY20: 12 | JZ20: 12 | KA20: 12 | KB20: 12 | KC20: 12 | KD20: 12 | KE20: 12 | KF20: 12 | KG20: 19 | KH20: 12 | KI20: 12 | KJ20: 14 | KK20: 12 | KL20: 12 | KM20: 12 | KN20: 12 | KO20: 41 | KP20: 14 | KQ20: 3 | KR20: 12 | KS20: 12 | KT20: 12 | KU20: 12 | KV20: 12 | KW20: 12 | KX20: 12 | KY20: 12 | KZ20: 12 | LA20: 12 | LB20: 12 | LC20: 12 | LD20: 12 | LE20: 12 | LF20: 22 | LG20: 20 | LH20: 12 | LI20: 2 | LJ20: 12 | LK20: 12 | LL20: 1 | LM20: 12 | LN20: 13 | LO20: 13 | LP20: 12 | LQ20: 12 | LR20: 12 | LS20: 12 | LT20: 12 | LU20: 12 | LV20: 31 | LW20: 28 | LX20: 12 | LY20: 16 | LZ20: 12 | MA20: 12 | MB20: 14 | MC20: 7 | MD20: 12 | ME20: 12 | MF20: 12 | MG20: 12 | MH20: 12 | MI20: 12 | MJ20: 12 | MK20: 12 | ML20: 12 | MM20: 12 | MN20: 12 | MO20: 12 | MP20: 12 | MQ20: 12 | MR20: 12 | MS20: 12 | MT20: 12 | MU20: 12 | MV20: 12 | MW20: 12 | MX20: 12 | MY20: 12 | MZ20: 12 | NA20: 12 | NB20: 12 | NC20: 12 | ND20: 12 | NE20: 12 | NF20: 12 | NG20: 12 | NH20: 12 | NI20: 12 | NJ20: 12 | NK20: 12 | NL20: 12 | NM20: 12 | NN20: 12 | NO20: 12 | NP20: 12 | NQ20: 12 | NR20: 12 | NS20: 40 | NT20: 16 | NU20: 16 | NV20: 16 | NW20: 12 | NX20: 12 | NY20: 12 | NZ20: 12 | OA20: 12 | OB20: 12 | OC20: 12 | OD20: 12 | OE20: 12 | OF20: 12 | OG20: 12 | OH20: 12 | OI20: 12 | OJ20: 12 | OK20: 12 | OL20: 12 | OM20: 12 | ON20: 12 | OO20: 12 | OP20: 12 | OQ20: 12 | OR20: 12 | OS20: 12 | OT20: 12 | OU20: 12 | OV20: 12 | OW20: 12 | OX20: 12 | OY20: 12 | OZ20: 12 | PA20: 12 | PB20: 12 | PC20: 12 | PD20: 12 | PE20: 12 | PF20: 12 | PG20: 12 | PH20: 12 | PI20: 39 | PJ20: 10 | PK20: 2 | PL20: 12 | PM20: 12 | PN20: 12 | PO20: 12 | PP20: 12 | PQ20: 12 | PR20: 9 | PS20: 12 | PT20: 12 | PU20: 12 | PV20: 12 | PW20: 12 | PX20: 12 | PY20: 12 | PZ20: 14 | QA20: 14 | QB20: 12 | QC20: 12 | QD20: 12 | QE20: 12 | QF20: 12 | QG20: 12 | QH20: 21 | QI20: 20 | QJ20: 12 | QK20: 12 | QL20: 12 | QM20: 12 | QN20: 3 | QO20: 12 | QP20: 29 | QQ20: 29 | QR20: 12 | QS20: 12 | QT20: 12 | QU20: 12 | QV20: 12 | QW20: 12 | QX20: 12 | QY20: 12 | QZ20: 12 | RA20: 12 | RB20: 12 | RC20: 12 | RD20: 12 | RE20: 12 | RF20: 12 | RG20: 12 | RH20: 12 | RI20: 12 | RJ20: 12 | RK20: 12 | RL20: 12 | RM20: 12 | RN20: 12 | RO20: 12 | RP20: 12 | RQ20: 12 | RR20: 12 | RS20: 12 | RT20: 12 | RU20: 12 | RV20: 12 | RW20: 12 | RX20: 12 | RY20: 12 | RZ20: 12 | SA20: 12 | SB20: 12 | SC20: 12 | SD20: 12 | SE20: 12 | SF20: 12 | SG20: 12 | SH20: 12 | SI20: 12 | SJ20: 12 | SK20: 12 | SL20: 12
A21: 2013thru2017 | B21: 155 | C21: 15500US0681204001 | D21: Alameda County | E21: Alameda County (part), Union City city, California | G21: 81204 | H21: 1 | I21: 21105 | J21: 13860 | K21: 2190 | L21: 520 | M21: 80 | N21: 35 | O21: 345 | P21: 4 | Q21: 0 | R21: 45 | S21: 15 | T21: 555 | U21: 105 | V21: 40 | W21: 260 | X21: 4 | Y21: 0 | Z21: 115 | AA21: 25 | AB21: 350 | AC21: 30 | AD21: 25 | AE21: 210 | AF21: 0 | AG21: 0 | AH21: 75 | AI21: 10 | AJ21: 235 | AK21: 40 | AL21: 0 | AM21: 120 | AN21: 0 | AO21: 4 | AP21: 75 | AQ21: 0 | AR21: 535 | AS21: 25 | AT21: 0 | AU21: 425 | AV21: 0 | AW21: 0 | AX21: 75 | AY21: 4 | AZ21: 11625 | BA21: 335 | BB21: 105 | BC21: 15 | BD21: 135 | BE21: 4 | BF21: 0 | BG21: 55 | BH21: 15 | BI21: 780 | BJ21: 290 | BK21: 10 | BL21: 235 | BM21: 0 | BN21: 25 | BO21: 205 | BP21: 15 | BQ21: 1115 | BR21: 285 | BS21: 50 | BT21: 435 | BU21: 0 | BV21: 4 | BW21: 330 | BX21: 10 | BY21: 1180 | BZ21: 240 | CA21: 60 | CB21: 540 | CC21: 4 | CD21: 10 | CE21: 295 | CF21: 25 | CG21: 8210 | CH21: 1785 | CI21: 320 | CJ21: 4805 | CK21: 30 | CL21: 90 | CM21: 935 | CN21: 245 | CO21: 45 | CP21: 45 | CQ21: 4 | CR21: 0 | CS21: 35 | CT21: 0 | CU21: 0 | CV21: 4 | CW21: 0 | CX21: 0 | CY21: 0 | CZ21: 0 | DA21: 0 | DB21: 0 | DC21: 0 | DD21: 0 | DE21: 0 | DF21: 0 | DG21: 0 | DH21: 0 | DI21: 0 | DJ21: 0 | DK21: 0 | DL21: 0 | DM21: 0 | DN21: 0 | DO21: 0 | DP21: 0 | DQ21: 0 | DR21: 0 | DS21: 0 | DT21: 0 | DU21: 0 | DV21: 0 | DW21: 0 | DX21: 0 | DY21: 0 | DZ21: 0 | EA21: 0 | EB21: 0 | EC21: 0 | ED21: 7245 | EE21: 2470 | EF21: 800 | EG21: 195 | EH21: 115 | EI21: 190 | EJ21: 0 | EK21: 25 | EL21: 250 | EM21: 30 | EN21: 585 | EO21: 145 | EP21: 45 | EQ21: 160 | ER21: 4 | ES21: 15 | ET21: 190 | EU21: 25 | EV21: 385 | EW21: 60 | EX21: 55 | EY21: 135 | EZ21: 30 | FA21: 10 | FB21: 100 | FC21: 4 | FD21: 155 | FE21: 30 | FF21: 0 | FG21: 125 | FH21: 0 | FI21: 0 | FJ21: 0 | FK21: 0 | FL21: 540 | FM21: 35 | FN21: 0 | FO21: 365 | FP21: 0 | FQ21: 30 | FR21: 110 | FS21: 0 | FT21: 4670 | FU21: 295 | FV21: 70 | FW21: 10 | FX21: 165 | FY21: 0 | FZ21: 4 | GA21: 35 | GB21: 10 | GC21: 330 | GD21: 85 | GE21: 30 | GF21: 120 | GG21: 0 | GH21: 0 | GI21: 65 | GJ21: 35 | GK21: 1005 | GL21: 160 | GM21: 155 | GN21: 295 | GO21: 4 | GP21: 55 | GQ21: 310 | GR21: 25 | GS21: 595 | GT21: 105 | GU21: 55 | GV21: 230 | GW21: 0 | GX21: 4 | GY21: 160 | GZ21: 40 | HA21: 2445 | HB21: 475 | HC21: 155 | HD21: 1255 | HE21: 30 | HF21: 4 | HG21: 375 | HH21: 150 | HI21: 105 | HJ21: 105 | HK21: 70 | HL21: 4 | HM21: 15 | HN21: 0 | HO21: 0 | HP21: 10 | HQ21: 4 | HR21: 0 | HS21: 0 | HT21: 0 | HU21: 0 | HV21: 0 | HW21: 0 | HX21: 0 | HY21: 0 | HZ21: 0 | IA21: 0 | IB21: 0 | IC21: 0 | ID21: 0 | IE21: 0 | IF21: 0 | IG21: 0 | IH21: 0 | II21: 0 | IJ21: 0 | IK21: 0 | IL21: 0 | IM21: 0 | IN21: 0 | IO21: 0 | IP21: 0 | IQ21: 0 | IR21: 0 | IS21: 0 | IT21: 0 | IU21: 0 | IV21: 0 | IW21: 0 | IX21: 392 | IY21: 353 | IZ21: 272 | JA21: 114 | JB21: 40 | JC21: 54 | JD21: 87 | JE21: 8 | JF21: 29 | JG21: 30 | JH21: 20 | JI21: 150 | JJ21: 84 | JK21: 41 | JL21: 90 | JM21: 12 | JN21: 29 | JO21: 59 | JP21: 33 | JQ21: 103 | JR21: 26 | JS21: 22 | JT21: 86 | JU21: 29 | JV21: 29 | JW21: 50 | JX21: 13 | JY21: 122 | JZ21: 50 | KA21: 29 | KB21: 87 | KC21: 29 | KD21: 8 | KE21: 57 | KF21: 29 | KG21: 139 | KH21: 19 | KI21: 29 | KJ21: 120 | KK21: 29 | KL21: 29 | KM21: 63 | KN21: 13 | KO21: 373 | KP21: 110 | KQ21: 71 | KR21: 24 | KS21: 64 | KT21: 16 | KU21: 29 | KV21: 39 | KW21: 24 | KX21: 162 | KY21: 94 | KZ21: 14 | LA21: 90 | LB21: 29 | LC21: 32 | LD21: 94 | LE21: 15 | LF21: 189 | LG21: 89 | LH21: 42 | LI21: 118 | LJ21: 29 | LK21: 8 | LL21: 130 | LM21: 14 | LN21: 228 | LO21: 86 | LP21: 48 | LQ21: 156 | LR21: 10 | LS21: 13 | LT21: 106 | LU21: 23 | LV21: 361 | LW21: 185 | LX21: 85 | LY21: 306 | LZ21: 20 | MA21: 49 | MB21: 172 | MC21: 69 | MD21: 33 | ME21: 33 | MF21: 5 | MG21: 29 | MH21: 29 | MI21: 29 | MJ21: 29 | MK21: 8 | ML21: 29 | MM21: 29 | MN21: 29 | MO21: 29 | MP21: 29 | MQ21: 29 | MR21: 29 | MS21: 29 | MT21: 29 | MU21: 29 | MV21: 29 | MW21: 29 | MX21: 29 | MY21: 29 | MZ21: 29 | NA21: 29 | NB21: 29 | NC21: 29 | ND21: 29 | NE21: 29 | NF21: 29 | NG21: 29 | NH21: 29 | NI21: 29 | NJ21: 29 | NK21: 29 | NL21: 29 | NM21: 29 | NN21: 29 | NO21: 29 | NP21: 29 | NQ21: 29 | NR21: 29 | NS21: 341 | NT21: 275 | NU21: 171 | NV21: 75 | NW21: 51 | NX21: 70 | NY21: 29 | NZ21: 31 | OA21: 114 | OB21: 23 | OC21: 154 | OD21: 49 | OE21: 44 | OF21: 71 | OG21: 13 | OH21: 26 | OI21: 87 | OJ21: 36 | OK21: 117 | OL21: 39 | OM21: 50 | ON21: 76 | OO21: 42 | OP21: 19 | OQ21: 76 | OR21: 4 | OS21: 51 | OT21: 27 | OU21: 29 | OV21: 56 | OW21: 29 | OX21: 29 | OY21: 29 | OZ21: 29 | PA21: 149 | PB21: 34 | PC21: 29 | PD21: 105 | PE21: 29 | PF21: 29 | PG21: 78 | PH21: 29 | PI21: 345 | PJ21: 86 | PK21: 42 | PL21: 15 | PM21: 74 | PN21: 29 | PO21: 13 | PP21: 33 | PQ21: 20 | PR21: 97 | PS21: 52 | PT21: 44 | PU21: 65 | PV21: 29 | PW21: 29 | PX21: 54 | PY21: 34 | PZ21: 199 | QA21: 77 | QB21: 75 | QC21: 102 | QD21: 29 | QE21: 52 | QF21: 139 | QG21: 25 | QH21: 129 | QI21: 53 | QJ21: 49 | QK21: 109 | QL21: 29 | QM21: 9 | QN21: 89 | QO21: 44 | QP21: 318 | QQ21: 144 | QR21: 94 | QS21: 216 | QT21: 31 | QU21: 15 | QV21: 162 | QW21: 84 | QX21: 97 | QY21: 97 | QZ21: 94 | RA21: 15 | RB21: 16 | RC21: 29 | RD21: 29 | RE21: 15 | RF21: 15 | RG21: 29 | RH21: 29 | RI21: 29 | RJ21: 29 | RK21: 29 | RL21: 29 | RM21: 29 | RN21: 29 | RO21: 29 | RP21: 29 | RQ21: 29 | RR21: 29 | RS21: 29 | RT21: 29 | RU21: 29 | RV21: 29 | RW21: 29 | RX21: 29 | RY21: 29 | RZ21: 29 | SA21: 29 | SB21: 29 | SC21: 29 | SD21: 29 | SE21: 29 | SF21: 29 | SG21: 29 | SH21: 29 | SI21: 29 | SJ21: 29 | SK21: 29 | SL21: 29
A22: 2013thru2017 | B22: 155 | C22: 15500US0601228003 | D22: Alpine County | E22: Alpine County (part), Alpine Village CDP, California | F22: 1 | G22: 1228 | H22: 3 | I22: 35 | J22: 30 | K22: 0 | L22: 0 | M22: 0 | N22: 0 | O22: 0 | P22: 0 | Q22: 0 | R22: 0 | S22: 0 | T22: 0 | U22: 0 | V22: 0 | W22: 0 | X22: 0 | Y22: 0 | Z22: 0 | AA22: 0 | AB22: 0 | AC22: 0 | AD22: 0 | AE22: 0 | AF22: 0 | AG22: 0 | AH22: 0 | AI22: 0 | AJ22: 0 | AK22: 0 | AL22: 0 | AM22: 0 | AN22: 0 | AO22: 0 | AP22: 0 | AQ22: 0 | AR22: 0 | AS22: 0 | AT22: 0 | AU22: 0 | AV22: 0 | AW22: 0 | AX22: 0 | AY22: 0 | AZ22: 30 | BA22: 0 | BB22: 0 | BC22: 0 | BD22: 0 | BE22: 0 | BF22: 0 | BG22: 0 | BH22: 0 | BI22: 0 | BJ22: 0 | BK22: 0 | BL22: 0 | BM22: 0 | BN22: 0 | BO22: 0 | BP22: 0 | BQ22: 4 | BR22: 4 | BS22: 0 | BT22: 0 | BU22: 4 | BV22: 0 | BW22: 0 | BX22: 0 | BY22: 0 | BZ22: 0 | CA22: 0 | CB22: 0 | CC22: 0 | CD22: 0 | CE22: 0 | CF22: 0 | CG22: 25 | CH22: 25 | CI22: 0 | CJ22: 0 | CK22: 0 | CL22: 0 | CM22: 0 | CN22: 0 | CO22: 0 | CP22: 0 | CQ22: 0 | CR22: 0 | CS22: 0 | CT22: 0 | CU22: 0 | CV22: 0 | CW22: 0 | CX22: 0 | CY22: 0 | CZ22: 0 | DA22: 0 | DB22: 0 | DC22: 0 | DD22: 0 | DE22: 0 | DF22: 0 | DG22: 0 | DH22: 0 | DI22: 0 | DJ22: 0 | DK22: 0 | DL22: 0 | DM22: 0 | DN22: 0 | DO22: 0 | DP22: 0 | DQ22: 0 | DR22: 0 | DS22: 0 | DT22: 0 | DU22: 0 | DV22: 0 | DW22: 0 | DX22: 0 | DY22: 0 | DZ22: 0 | EA22: 0 | EB22: 0 | EC22: 0 | ED22: 4 | EE22: 0 | EF22: 0 | EG22: 0 | EH22: 0 | EI22: 0 | EJ22: 0 | EK22: 0 | EL22: 0 | EM22: 0 | EN22: 0 | EO22: 0 | EP22: 0 | EQ22: 0 | ER22: 0 | ES22: 0 | ET22: 0 | EU22: 0 | EV22: 0 | EW22: 0 | EX22: 0 | EY22: 0 | EZ22: 0 | FA22: 0 | FB22: 0 | FC22: 0 | FD22: 0 | FE22: 0 | FF22: 0 | FG22: 0 | FH22: 0 | FI22: 0 | FJ22: 0 | FK22: 0 | FL22: 0 | FM22: 0 | FN22: 0 | FO22: 0 | FP22: 0 | FQ22: 0 | FR22: 0 | FS22: 0 | FT22: 4 | FU22: 0 | FV22: 0 | FW22: 0 | FX22: 0 | FY22: 0 | FZ22: 0 | GA22: 0 | GB22: 0 | GC22: 0 | GD22: 0 | GE22: 0 | GF22: 0 | GG22: 0 | GH22: 0 | GI22: 0 | GJ22: 0 | GK22: 0 | GL22: 0 | GM22: 0 | GN22: 0 | GO22: 0 | GP22: 0 | GQ22: 0 | GR22: 0 | GS22: 4 | GT22: 4 | GU22: 0 | GV22: 0 | GW22: 0 | GX22: 0 | GY22: 0 | GZ22: 0 | HA22: 0 | HB22: 0 | HC22: 0 | HD22: 0 | HE22: 0 | HF22: 0 | HG22: 0 | HH22: 0 | HI22: 4 | HJ22: 4 | HK22: 4 | HL22: 0 | HM22: 0 | HN22: 0 | HO22: 0 | HP22: 0 | HQ22: 0 | HR22: 0 | HS22: 0 | HT22: 0 | HU22: 0 | HV22: 0 | HW22: 0 | HX22: 0 | HY22: 0 | HZ22: 0 | IA22: 0 | IB22: 0 | IC22: 0 | ID22: 0 | IE22: 0 | IF22: 0 | IG22: 0 | IH22: 0 | II22: 0 | IJ22: 0 | IK22: 0 | IL22: 0 | IM22: 0 | IN22: 0 | IO22: 0 | IP22: 0 | IQ22: 0 | IR22: 0 | IS22: 0 | IT22: 0 | IU22: 0 | IV22: 0 | IW22: 0 | IX22: 16 | IY22: 16 | IZ22: 12 | JA22: 12 | JB22: 12 | JC22: 12 | JD22: 12 | JE22: 12 | JF22: 12 | JG22: 12 | JH22: 12 | JI22: 12 | JJ22: 12 | JK22: 12 | JL22: 12 | JM22: 12 | JN22: 12 | JO22: 12 | JP22: 12 | JQ22: 12 | JR22: 12 | JS22: 12 | JT22: 12 | JU22: 12 | JV22: 12 | JW22: 12 | JX22: 12 | JY22: 12 | JZ22: 12 | KA22: 12 | KB22: 12 | KC22: 12 | KD22: 12 | KE22: 12 | KF22: 12 | KG22: 12 | KH22: 12 | KI22: 12 | KJ22: 12 | KK22: 12 | KL22: 12 | KM22: 12 | KN22: 12 | KO22: 16 | KP22: 12 | KQ22: 12 | KR22: 12 | KS22: 12 | KT22: 12 | KU22: 12 | KV22: 12 | KW22: 12 | KX22: 12 | KY22: 12 | KZ22: 12 | LA22: 12 | LB22: 12 | LC22: 12 | LD22: 12 | LE22: 12 | LF22: 9 | LG22: 1 | LH22: 12 | LI22: 12 | LJ22: 12 | LK22: 12 | LL22: 12 | LM22: 12 | LN22: 12 | LO22: 12 | LP22: 12 | LQ22: 12 | LR22: 12 | LS22: 12 | LT22: 12 | LU22: 12 | LV22: 13 | LW22: 13 | LX22: 12 | LY22: 12 | LZ22: 12 | MA22: 12 | MB22: 12 | MC22: 12 | MD22: 12 | ME22: 12 | MF22: 12 | MG22: 12 | MH22: 12 | MI22: 12 | MJ22: 12 | MK22: 12 | ML22: 12 | MM22: 12 | MN22: 12 | MO22: 12 | MP22: 12 | MQ22: 12 | MR22: 12 | MS22: 12 | MT22: 12 | MU22: 12 | MV22: 12 | MW22: 12 | MX22: 12 | MY22: 12 | MZ22: 12 | NA22: 12 | NB22: 12 | NC22: 12 | ND22: 12 | NE22: 12 | NF22: 12 | NG22: 12 | NH22: 12 | NI22: 12 | NJ22: 12 | NK22: 12 | NL22: 12 | NM22: 12 | NN22: 12 | NO22: 12 | NP22: 12 | NQ22: 12 | NR22: 12 | NS22: 7 | NT22: 12 | NU22: 12 | NV22: 12 | NW22: 12 | NX22: 12 | NY22: 12 | NZ22: 12 | OA22: 12 | OB22: 12 | OC22: 12 | OD22: 12 | OE22: 12 | OF22: 12 | OG22: 12 | OH22: 12 | OI22: 12 | OJ22: 12 | OK22: 12 | OL22: 12 | OM22: 12 | ON22: 12 | OO22: 12 | OP22: 12 | OQ22: 12 | OR22: 12 | OS22: 12 | OT22: 12 | OU22: 12 | OV22: 12 | OW22: 12 | OX22: 12 | OY22: 12 | OZ22: 12 | PA22: 12 | PB22: 12 | PC22: 12 | PD22: 12 | PE22: 12 | PF22: 12 | PG22: 12 | PH22: 12 | PI22: 12 | PJ22: 12 | PK22: 12 | PL22: 12 | PM22: 12 | PN22: 12 | PO22: 12 | PP22: 12 | PQ22: 12 | PR22: 12 | PS22: 12 | PT22: 12 | PU22: 12 | PV22: 12 | PW22: 12 | PX22: 12 | PY22: 12 | PZ22: 12 | QA22: 12 | QB22: 12 | QC22: 12 | QD22: 12 | QE22: 12 | QF22: 12 | QG22: 12 | QH22: 12 | QI22: 12 | QJ22: 12 | QK22: 12 | QL22: 12 | QM22: 12 | QN22: 12 | QO22: 12 | QP22: 12 | QQ22: 12 | QR22: 12 | QS22: 12 | QT22: 12 | QU22: 12 | QV22: 12 | QW22: 12 | QX22: 12 | QY22: 12 | QZ22: 12 | RA22: 12 | RB22: 12 | RC22: 12 | RD22: 12 | RE22: 12 | RF22: 12 | RG22: 12 | RH22: 12 | RI22: 12 | RJ22: 12 | RK22: 12 | RL22: 12 | RM22: 12 | RN22: 12 | RO22: 12 | RP22: 12 | RQ22: 12 | RR22: 12 | RS22: 12 | RT22: 12 | RU22: 12 | RV22: 12 | RW22: 12 | RX22: 12 | RY22: 12 | RZ22: 12 | SA22: 12 | SB22: 12 | SC22: 12 | SD22: 12 | SE22: 12 | SF22: 12 | SG22: 12 | SH22: 12 | SI22: 12 | SJ22: 12 | SK22: 12 | SL22: 12
A23: 2013thru2017 | B23: 155 | C23: 15500US0604716003 | D23: Alpine County | E23: Alpine County (part), Bear Valley CDP (Alpine County), California | F23: 1 | G23: 4716 | H23: 3 | I23: 25 | J23: 15 | K23: 4 | L23: 0 | M23: 0 | N23: 0 | O23: 0 | P23: 0 | Q23: 0 | R23: 0 | S23: 0 | T23: 0 | U23: 0 | V23: 0 | W23: 0 | X23: 0 | Y23: 0 | Z23: 0 | AA23: 0 | AB23: 0 | AC23: 0 | AD23: 0 | AE23: 0 | AF23: 0 | AG23: 0 | AH23: 0 | AI23: 0 | AJ23: 4 | AK23: 4 | AL23: 0 | AM23: 0 | AN23: 0 | AO23: 0 | AP23: 0 | AQ23: 0 | AR23: 0 | AS23: 0 | AT23: 0 | AU23: 0 | AV23: 0 | AW23: 0 | AX23: 0 | AY23: 0 | AZ23: 15 | BA23: 0 | BB23: 0 | BC23: 0 | BD23: 0 | BE23: 0 | BF23: 0 | BG23: 0 | BH23: 0 | BI23: 0 | BJ23: 0 | BK23: 0 | BL23: 0 | BM23: 0 | BN23: 0 | BO23: 0 | BP23: 0 | BQ23: 0 | BR23: 0 | BS23: 0 | BT23: 0 | BU23: 0 | BV23: 0 | BW23: 0 | BX23: 0 | BY23: 0 | BZ23: 0 | CA23: 0 | CB23: 0 | CC23: 0 | CD23: 0 | CE23: 0 | CF23: 0 | CG23: 15 | CH23: 15 | CI23: 0 | CJ23: 0 | CK23: 0 | CL23: 0 | CM23: 0 | CN23: 0 | CO23: 0 | CP23: 0 | CQ23: 0 | CR23: 0 | CS23: 0 | CT23: 0 | CU23: 0 | CV23: 0 | CW23: 0 | CX23: 0 | CY23: 0 | CZ23: 0 | DA23: 0 | DB23: 0 | DC23: 0 | DD23: 0 | DE23: 0 | DF23: 0 | DG23: 0 | DH23: 0 | DI23: 0 | DJ23: 0 | DK23: 0 | DL23: 0 | DM23: 0 | DN23: 0 | DO23: 0 | DP23: 0 | DQ23: 0 | DR23: 0 | DS23: 0 | DT23: 0 | DU23: 0 | DV23: 0 | DW23: 0 | DX23: 0 | DY23: 0 | DZ23: 0 | EA23: 0 | EB23: 0 | EC23: 0 | ED23: 10 | EE23: 4 | EF23: 0 | EG23: 0 | EH23: 0 | EI23: 0 | EJ23: 0 | EK23: 0 | EL23: 0 | EM23: 0 | EN23: 0 | EO23: 0 | EP23: 0 | EQ23: 0 | ER23: 0 | ES23: 0 | ET23: 0 | EU23: 0 | EV23: 0 | EW23: 0 | EX23: 0 | EY23: 0 | EZ23: 0 | FA23: 0 | FB23: 0 | FC23: 0 | FD23: 4 | FE23: 4 | FF23: 0 | FG23: 0 | FH23: 0 | FI23: 0 | FJ23: 0 | FK23: 0 | FL23: 0 | FM23: 0 | FN23: 0 | FO23: 0 | FP23: 0 | FQ23: 0 | FR23: 0 | FS23: 0 | FT23: 4 | FU23: 0 | FV23: 0 | FW23: 0 | FX23: 0 | FY23: 0 | FZ23: 0 | GA23: 0 | GB23: 0 | GC23: 0 | GD23: 0 | GE23: 0 | GF23: 0 | GG23: 0 | GH23: 0 | GI23: 0 | GJ23: 0 | GK23: 0 | GL23: 0 | GM23: 0 | GN23: 0 | GO23: 0 | GP23: 0 | GQ23: 0 | GR23: 0 | GS23: 0 | GT23: 0 | GU23: 0 | GV23: 0 | GW23: 0 | GX23: 0 | GY23: 0 | GZ23: 0 | HA23: 4 | HB23: 4 | HC23: 0 | HD23: 0 | HE23: 0 | HF23: 0 | HG23: 0 | HH23: 0 | HI23: 0 | HJ23: 0 | HK23: 0 | HL23: 0 | HM23: 0 | HN23: 0 | HO23: 0 | HP23: 0 | HQ23: 0 | HR23: 0 | HS23: 0 | HT23: 0 | HU23: 0 | HV23: 0 | HW23: 0 | HX23: 0 | HY23: 0 | HZ23: 0 | IA23: 0 | IB23: 0 | IC23: 0 | ID23: 0 | IE23: 0 | IF23: 0 | IG23: 0 | IH23: 0 | II23: 0 | IJ23: 0 | IK23: 0 | IL23: 0 | IM23: 0 | IN23: 0 | IO23: 0 | IP23: 0 | IQ23: 0 | IR23: 0 | IS23: 0 | IT23: 0 | IU23: 0 | IV23: 0 | IW23: 0 | IX23: 18 | IY23: 17 | IZ23: 3 | JA23: 12 | JB23: 12 | JC23: 12 | JD23: 12 | JE23: 12 | JF23: 12 | JG23: 12 | JH23: 12 | JI23: 12 | JJ23: 12 | JK23: 12 | JL23: 12 | JM23: 12 | JN23: 12 | JO23: 12 | JP23: 12 | JQ23: 12 | JR23: 12 | JS23: 12 | JT23: 12 | JU23: 12 | JV23: 12 | JW23: 12 | JX23: 12 | JY23: 3 | JZ23: 3 | KA23: 12 | KB23: 12 | KC23: 12 | KD23: 12 | KE23: 12 | KF23: 12 | KG23: 12 | KH23: 12 | KI23: 12 | KJ23: 12 | KK23: 12 | KL23: 12 | KM23: 12 | KN23: 12 | KO23: 15 | KP23: 12 | KQ23: 12 | KR23: 12 | KS23: 12 | KT23: 12 | KU23: 12 | KV23: 12 | KW23: 12 | KX23: 12 | KY23: 12 | KZ23: 12 | LA23: 12 | LB23: 12 | LC23: 12 | LD23: 12 | LE23: 12 | LF23: 12 | LG23: 12 | LH23: 12 | LI23: 12 | LJ23: 12 | LK23: 12 | LL23: 12 | LM23: 12 | LN23: 12 | LO23: 12 | LP23: 12 | LQ23: 12 | LR23: 12 | LS23: 12 | LT23: 12 | LU23: 12 | LV23: 15 | LW23: 15 | LX23: 12 | LY23: 12 | LZ23: 12 | MA23: 12 | MB23: 12 | MC23: 12 | MD23: 12 | ME23: 12 | MF23: 12 | MG23: 12 | MH23: 12 | MI23: 12 | MJ23: 12 | MK23: 12 | ML23: 12 | MM23: 12 | MN23: 12 | MO23: 12 | MP23: 12 | MQ23: 12 | MR23: 12 | MS23: 12 | MT23: 12 | MU23: 12 | MV23: 12 | MW23: 12 | MX23: 12 | MY23: 12 | MZ23: 12 | NA23: 12 | NB23: 12 | NC23: 12 | ND23: 12 | NE23: 12 | NF23: 12 | NG23: 12 | NH23: 12 | NI23: 12 | NJ23: 12 | NK23: 12 | NL23: 12 | NM23: 12 | NN23: 12 | NO23: 12 | NP23: 12 | NQ23: 12 | NR23: 12 | NS23: 14 | NT23: 8 | NU23: 12 | NV23: 12 | NW23: 12 | NX23: 12 | NY23: 12 | NZ23: 12 | OA23: 12 | OB23: 12 | OC23: 12 | OD23: 12 | OE23: 12 | OF23: 12 | OG23: 12 | OH23: 12 | OI23: 12 | OJ23: 12 | OK23: 12 | OL23: 12 | OM23: 12 | ON23: 12 | OO23: 12 | OP23: 12 | OQ23: 12 | OR23: 12 | OS23: 8 | OT23: 8 | OU23: 12 | OV23: 12 | OW23: 12 | OX23: 12 | OY23: 12 | OZ23: 12 | PA23: 12 | PB23: 12 | PC23: 12 | PD23: 12 | PE23: 12 | PF23: 12 | PG23: 12 | PH23: 12 | PI23: 3 | PJ23: 12 | PK23: 12 | PL23: 12 | PM23: 12 | PN23: 12 | PO23: 12 | PP23: 12 | PQ23: 12 | PR23: 12 | PS23: 12 | PT23: 12 | PU23: 12 | PV23: 12 | PW23: 12 | PX23: 12 | PY23: 12 | PZ23: 12 | QA23: 12 | QB23: 12 | QC23: 12 | QD23: 12 | QE23: 12 | QF23: 12 | QG23: 12 | QH23: 12 | QI23: 12 | QJ23: 12 | QK23: 12 | QL23: 12 | QM23: 12 | QN23: 12 | QO23: 12 | QP23: 3 | QQ23: 3 | QR23: 12 | QS23: 12 | QT23: 12 | QU23: 12 | QV23: 12 | QW23: 12 | QX23: 12 | QY23: 12 | QZ23: 12 | RA23: 12 | RB23: 12 | RC23: 12 | RD23: 12 | RE23: 12 | RF23: 12 | RG23: 12 | RH23: 12 | RI23: 12 | RJ23: 12 | RK23: 12 | RL23: 12 | RM23: 12 | RN23: 12 | RO23: 12 | RP23: 12 | RQ23: 12 | RR23: 12 | RS23: 12 | RT23: 12 | RU23: 12 | RV23: 12 | RW23: 12 | RX23: 12 | RY23: 12 | RZ23: 12 | SA23: 12 | SB23: 12 | SC23: 12 | SD23: 12 | SE23: 12 | SF23: 12 | SG23: 12 | SH23: 12 | SI23: 12 | SJ23: 12 | SK23: 12 | SL23: 12
A24: 2013thru2017 | B24: 155 | C24: 15500US0638646003 | D24: Alpine County | E24: Alpine County (part), Kirkwood CDP, California | F24: 1 | G24: 38646 | H24: 3 | I24: 10 | J24: 4 | K24: 0 | L24: 0 | M24: 0 | N24: 0 | O24: 0 | P24: 0 | Q24: 0 | R24: 0 | S24: 0 | T24: 0 | U24: 0 | V24: 0 | W24: 0 | X24: 0 | Y24: 0 | Z24: 0 | AA24: 0 | AB24: 0 | AC24: 0 | AD24: 0 | AE24: 0 | AF24: 0 | AG24: 0 | AH24: 0 | AI24: 0 | AJ24: 0 | AK24: 0 | AL24: 0 | AM24: 0 | AN24: 0 | AO24: 0 | AP24: 0 | AQ24: 0 | AR24: 0 | AS24: 0 | AT24: 0 | AU24: 0 | AV24: 0 | AW24: 0 | AX24: 0 | AY24: 0 | AZ24: 4 | BA24: 0 | BB24: 0 | BC24: 0 | BD24: 0 | BE24: 0 | BF24: 0 | BG24: 0 | BH24: 0 | BI24: 0 | BJ24: 0 | BK24: 0 | BL24: 0 | BM24: 0 | BN24: 0 | BO24: 0 | BP24: 0 | BQ24: 0 | BR24: 0 | BS24: 0 | BT24: 0 | BU24: 0 | BV24: 0 | BW24: 0 | BX24: 0 | BY24: 0 | BZ24: 0 | CA24: 0 | CB24: 0 | CC24: 0 | CD24: 0 | CE24: 0 | CF24: 0 | CG24: 4 | CH24: 4 | CI24: 0 | CJ24: 0 | CK24: 0 | CL24: 0 | CM24: 0 | CN24: 0 | CO24: 0 | CP24: 0 | CQ24: 0 | CR24: 0 | CS24: 0 | CT24: 0 | CU24: 0 | CV24: 0 | CW24: 0 | CX24: 0 | CY24: 0 | CZ24: 0 | DA24: 0 | DB24: 0 | DC24: 0 | DD24: 0 | DE24: 0 | DF24: 0 | DG24: 0 | DH24: 0 | DI24: 0 | DJ24: 0 | DK24: 0 | DL24: 0 | DM24: 0 | DN24: 0 | DO24: 0 | DP24: 0 | DQ24: 0 | DR24: 0 | DS24: 0 | DT24: 0 | DU24: 0 | DV24: 0 | DW24: 0 | DX24: 0 | DY24: 0 | DZ24: 0 | EA24: 0 | EB24: 0 | EC24: 0 | ED24: 4 | EE24: 0 | EF24: 0 | EG24: 0 | EH24: 0 | EI24: 0 | EJ24: 0 | EK24: 0 | EL24: 0 | EM24: 0 | EN24: 0 | EO24: 0 | EP24: 0 | EQ24: 0 | ER24: 0 | ES24: 0 | ET24: 0 | EU24: 0 | EV24: 0 | EW24: 0 | EX24: 0 | EY24: 0 | EZ24: 0 | FA24: 0 | FB24: 0 | FC24: 0 | FD24: 0 | FE24: 0 | FF24: 0 | FG24: 0 | FH24: 0 | FI24: 0 | FJ24: 0 | FK24: 0 | FL24: 0 | FM24: 0 | FN24: 0 | FO24: 0 | FP24: 0 | FQ24: 0 | FR24: 0 | FS24: 0 | FT24: 4 | FU24: 0 | FV24: 0 | FW24: 0 | FX24: 0 | FY24: 0 | FZ24: 0 | GA24: 0 | GB24: 0 | GC24: 4 | GD24: 4 | GE24: 0 | GF24: 0 | GG24: 0 | GH24: 0 | GI24: 0 | GJ24: 0 | GK24: 0 | GL24: 0 | GM24: 0 | GN24: 0 | GO24: 0 | GP24: 0 | GQ24: 0 | GR24: 0 | GS24: 0 | GT24: 0 | GU24: 0 | GV24: 0 | GW24: 0 | GX24: 0 | GY24: 0 | GZ24: 0 | HA24: 4 | HB24: 4 | HC24: 0 | HD24: 0 | HE24: 0 | HF24: 0 | HG24: 0 | HH24: 0 | HI24: 0 | HJ24: 0 | HK24: 0 | HL24: 0 | HM24: 0 | HN24: 0 | HO24: 0 | HP24: 0 | HQ24: 0 | HR24: 0 | HS24: 0 | HT24: 0 | HU24: 0 | HV24: 0 | HW24: 0 | HX24: 0 | HY24: 0 | HZ24: 0 | IA24: 0 | IB24: 0 | IC24: 0 | ID24: 0 | IE24: 0 | IF24: 0 | IG24: 0 | IH24: 0 | II24: 0 | IJ24: 0 | IK24: 0 | IL24: 0 | IM24: 0 | IN24: 0 | IO24: 0 | IP24: 0 | IQ24: 0 | IR24: 0 | IS24: 0 | IT24: 0 | IU24: 0 | IV24: 0 | IW24: 0 | IX24: 12 | IY24: 13 | IZ24: 12 | JA24: 12 | JB24: 12 | JC24: 12 | JD24: 12 | JE24: 12 | JF24: 12 | JG24: 12 | JH24: 12 | JI24: 12 | JJ24: 12 | JK24: 12 | JL24: 12 | JM24: 12 | JN24: 12 | JO24: 12 | JP24: 12 | JQ24: 12 | JR24: 12 | JS24: 12 | JT24: 12 | JU24: 12 | JV24: 12 | JW24: 12 | JX24: 12 | JY24: 12 | JZ24: 12 | KA24: 12 | KB24: 12 | KC24: 12 | KD24: 12 | KE24: 12 | KF24: 12 | KG24: 12 | KH24: 12 | KI24: 12 | KJ24: 12 | KK24: 12 | KL24: 12 | KM24: 12 | KN24: 12 | KO24: 13 | KP24: 12 | KQ24: 12 | KR24: 12 | KS24: 12 | KT24: 12 | KU24: 12 | KV24: 12 | KW24: 12 | KX24: 12 | KY24: 12 | KZ24: 12 | LA24: 12 | LB24: 12 | LC24: 12 | LD24: 12 | LE24: 12 | LF24: 12 | LG24: 12 | LH24: 12 | LI24: 12 | LJ24: 12 | LK24: 12 | LL24: 12 | LM24: 12 | LN24: 12 | LO24: 12 | LP24: 12 | LQ24: 12 | LR24: 12 | LS24: 12 | LT24: 12 | LU24: 12 | LV24: 13 | LW24: 13 | LX24: 12 | LY24: 12 | LZ24: 12 | MA24: 12 | MB24: 12 | MC24: 12 | MD24: 12 | ME24: 12 | MF24: 12 | MG24: 12 | MH24: 12 | MI24: 12 | MJ24: 12 | MK24: 12 | ML24: 12 | MM24: 12 | MN24: 12 | MO24: 12 | MP24: 12 | MQ24: 12 | MR24: 12 | MS24: 12 | MT24: 12 | MU24: 12 | MV24: 12 | MW24: 12 | MX24: 12 | MY24: 12 | MZ24: 12 | NA24: 12 | NB24: 12 | NC24: 12 | ND24: 12 | NE24: 12 | NF24: 12 | NG24: 12 | NH24: 12 | NI24: 12 | NJ24: 12 | NK24: 12 | NL24: 12 | NM24: 12 | NN24: 12 | NO24: 12 | NP24: 12 | NQ24: 12 | NR24: 12 | NS24: 3 | NT24: 12 | NU24: 12 | NV24: 12 | NW24: 12 | NX24: 12 | NY24: 12 | NZ24: 12 | OA24: 12 | OB24: 12 | OC24: 12 | OD24: 12 | OE24: 12 | OF24: 12 | OG24: 12 | OH24: 12 | OI24: 12 | OJ24: 12 | OK24: 12 | OL24: 12 | OM24: 12 | ON24: 12 | OO24: 12 | OP24: 12 | OQ24: 12 | OR24: 12 | OS24: 12 | OT24: 12 | OU24: 12 | OV24: 12 | OW24: 12 | OX24: 12 | OY24: 12 | OZ24: 12 | PA24: 12 | PB24: 12 | PC24: 12 | PD24: 12 | PE24: 12 | PF24: 12 | PG24: 12 | PH24: 12 | PI24: 3 | PJ24: 12 | PK24: 12 | PL24: 12 | PM24: 12 | PN24: 12 | PO24: 12 | PP24: 12 | PQ24: 12 | PR24: 4 | PS24: 4 | PT24: 12 | PU24: 12 | PV24: 12 | PW24: 12 | PX24: 12 | PY24: 12 | PZ24: 12 | QA24: 12 | QB24: 12 | QC24: 12 | QD24: 12 | QE24: 12 | QF24: 12 | QG24: 12 | QH24: 12 | QI24: 12 | QJ24: 12 | QK24: 12 | QL24: 12 | QM24: 12 | QN24: 12 | QO24: 12 | QP24: 6 | QQ24: 6 | QR24: 12 | QS24: 12 | QT24: 12 | QU24: 12 | QV24: 12 | QW24: 12 | QX24: 12 | QY24: 12 | QZ24: 12 | RA24: 12 | RB24: 12 | RC24: 12 | RD24: 12 | RE24: 12 | RF24: 12 | RG24: 12 | RH24: 12 | RI24: 12 | RJ24: 12 | RK24: 12 | RL24: 12 | RM24: 12 | RN24: 12 | RO24: 12 | RP24: 12 | RQ24: 12 | RR24: 12 | RS24: 12 | RT24: 12 | RU24: 12 | RV24: 12 | RW24: 12 | RX24: 12 | RY24: 12 | RZ24: 12 | SA24: 12 | SB24: 12 | SC24: 12 | SD24: 12 | SE24: 12 | SF24: 12 | SG24: 12 | SH24: 12 | SI24: 12 | SJ24: 12 | SK24: 12 | SL24: 12
A25: 2013thru2017 | B25: 155 | C25: 15500US0645988003 | D25: Alpine County | E25: Alpine County (part), Markleeville CDP, California | F25: 1 | G25: 45988 | H25: 3 | I25: 65 | J25: 65 | K25: 25 | L25: 10 | M25: 10 | N25: 0 | O25: 0 | P25: 0 | Q25: 0 | R25: 0 | S25: 0 | T25: 4 | U25: 4 | V25: 0 | W25: 0 | X25: 0 | Y25: 0 | Z25: 0 | AA25: 0 | AB25: 0 | AC25: 0 | AD25: 0 | AE25: 0 | AF25: 0 | AG25: 0 | AH25: 0 | AI25: 0 | AJ25: 4 | AK25: 4 | AL25: 0 | AM25: 0 | AN25: 0 | AO25: 0 | AP25: 0 | AQ25: 0 | AR25: 0 | AS25: 0 | AT25: 0 | AU25: 0 | AV25: 0 | AW25: 0 | AX25: 0 | AY25: 0 | AZ25: 40 | BA25: 0 | BB25: 0 | BC25: 0 | BD25: 0 | BE25: 0 | BF25: 0 | BG25: 0 | BH25: 0 | BI25: 4 | BJ25: 0 | BK25: 0 | BL25: 0 | BM25: 0 | BN25: 0 | BO25: 0 | BP25: 4 | BQ25: 0 | BR25: 0 | BS25: 0 | BT25: 0 | BU25: 0 | BV25: 0 | BW25: 0 | BX25: 0 | BY25: 0 | BZ25: 0 | CA25: 0 | CB25: 0 | CC25: 0 | CD25: 0 | CE25: 0 | CF25: 0 | CG25: 30 | CH25: 30 | CI25: 0 | CJ25: 0 | CK25: 0 | CL25: 0 | CM25: 0 | CN25: 0 | CO25: 0 | CP25: 0 | CQ25: 0 | CR25: 0 | CS25: 0 | CT25: 0 | CU25: 0 | CV25: 0 | CW25: 0 | CX25: 0 | CY25: 0 | CZ25: 0 | DA25: 0 | DB25: 0 | DC25: 0 | DD25: 0 | DE25: 0 | DF25: 0 | DG25: 0 | DH25: 0 | DI25: 0 | DJ25: 0 | DK25: 0 | DL25: 0 | DM25: 0 | DN25: 0 | DO25: 0 | DP25: 0 | DQ25: 0 | DR25: 0 | DS25: 0 | DT25: 0 | DU25: 0 | DV25: 0 | DW25: 0 | DX25: 0 | DY25: 0 | DZ25: 0 | EA25: 0 | EB25: 0 | EC25: 0 | ED25: 4 | EE25: 0 | EF25: 0 | EG25: 0 | EH25: 0 | EI25: 0 | EJ25: 0 | EK25: 0 | EL25: 0 | EM25: 0 | EN25: 0 | EO25: 0 | EP25: 0 | EQ25: 0 | ER25: 0 | ES25: 0 | ET25: 0 | EU25: 0 | EV25: 0 | EW25: 0 | EX25: 0 | EY25: 0 | EZ25: 0 | FA25: 0 | FB25: 0 | FC25: 0 | FD25: 0 | FE25: 0 | FF25: 0 | FG25: 0 | FH25: 0 | FI25: 0 | FJ25: 0 | FK25: 0 | FL25: 0 | FM25: 0 | FN25: 0 | FO25: 0 | FP25: 0 | FQ25: 0 | FR25: 0 | FS25: 0 | FT25: 4 | FU25: 0 | FV25: 0 | FW25: 0 | FX25: 0 | FY25: 0 | FZ25: 0 | GA25: 0 | GB25: 0 | GC25: 0 | GD25: 0 | GE25: 0 | GF25: 0 | GG25: 0 | GH25: 0 | GI25: 0 | GJ25: 0 | GK25: 0 | GL25: 0 | GM25: 0 | GN25: 0 | GO25: 0 | GP25: 0 | GQ25: 0 | GR25: 0 | GS25: 4 | GT25: 4 | GU25: 0 | GV25: 0 | GW25: 0 | GX25: 0 | GY25: 0 | GZ25: 0 | HA25: 0 | HB25: 0 | HC25: 0 | HD25: 0 | HE25: 0 | HF25: 0 | HG25: 0 | HH25: 0 | HI25: 0 | HJ25: 0 | HK25: 0 | HL25: 0 | HM25: 0 | HN25: 0 | HO25: 0 | HP25: 0 | HQ25: 0 | HR25: 0 | HS25: 0 | HT25: 0 | HU25: 0 | HV25: 0 | HW25: 0 | HX25: 0 | HY25: 0 | HZ25: 0 | IA25: 0 | IB25: 0 | IC25: 0 | ID25: 0 | IE25: 0 | IF25: 0 | IG25: 0 | IH25: 0 | II25: 0 | IJ25: 0 | IK25: 0 | IL25: 0 | IM25: 0 | IN25: 0 | IO25: 0 | IP25: 0 | IQ25: 0 | IR25: 0 | IS25: 0 | IT25: 0 | IU25: 0 | IV25: 0 | IW25: 0 | IX25: 41 | IY25: 41 | IZ25: 26 | JA25: 21 | JB25: 21 | JC25: 12 | JD25: 12 | JE25: 12 | JF25: 12 | JG25: 12 | JH25: 12 | JI25: 9 | JJ25: 9 | JK25: 12 | JL25: 12 | JM25: 12 | JN25: 12 | JO25: 12 | JP25: 12 | JQ25: 12 | JR25: 12 | JS25: 12 | JT25: 12 | JU25: 12 | JV25: 12 | JW25: 12 | JX25: 12 | JY25: 14 | JZ25: 14 | KA25: 12 | KB25: 12 | KC25: 12 | KD25: 12 | KE25: 12 | KF25: 12 | KG25: 12 | KH25: 12 | KI25: 12 | KJ25: 12 | KK25: 12 | KL25: 12 | KM25: 12 | KN25: 12 | KO25: 33 | KP25: 12 | KQ25: 12 | KR25: 12 | KS25: 12 | KT25: 12 | KU25: 12 | KV25: 12 | KW25: 12 | KX25: 13 | KY25: 12 | KZ25: 12 | LA25: 12 | LB25: 12 | LC25: 12 | LD25: 12 | LE25: 13 | LF25: 12 | LG25: 12 | LH25: 12 | LI25: 12 | LJ25: 12 | LK25: 12 | LL25: 12 | LM25: 12 | LN25: 12 | LO25: 12 | LP25: 12 | LQ25: 12 | LR25: 12 | LS25: 12 | LT25: 12 | LU25: 12 | LV25: 34 | LW25: 34 | LX25: 12 | LY25: 12 | LZ25: 12 | MA25: 12 | MB25: 12 | MC25: 12 | MD25: 12 | ME25: 12 | MF25: 12 | MG25: 12 | MH25: 12 | MI25: 12 | MJ25: 12 | MK25: 12 | ML25: 12 | MM25: 12 | MN25: 12 | MO25: 12 | MP25: 12 | MQ25: 12 | MR25: 12 | MS25: 12 | MT25: 12 | MU25: 12 | MV25: 12 | MW25: 12 | MX25: 12 | MY25: 12 | MZ25: 12 | NA25: 12 | NB25: 12 | NC25: 12 | ND25: 12 | NE25: 12 | NF25: 12 | NG25: 12 | NH25: 12 | NI25: 12 | NJ25: 12 | NK25: 12 | NL25: 12 | NM25: 12 | NN25: 12 | NO25: 12 | NP25: 12 | NQ25: 12 | NR25: 12 | NS25: 12 | NT25: 12 | NU25: 12 | NV25: 12 | NW25: 12 | NX25: 12 | NY25: 12 | NZ25: 12 | OA25: 12 | OB25: 12 | OC25: 12 | OD25: 12 | OE25: 12 | OF25: 12 | OG25: 12 | OH25: 12 | OI25: 12 | OJ25: 12 | OK25: 12 | OL25: 12 | OM25: 12 | ON25: 12 | OO25: 12 | OP25: 12 | OQ25: 12 | OR25: 12 | OS25: 12 | OT25: 12 | OU25: 12 | OV25: 12 | OW25: 12 | OX25: 12 | OY25: 12 | OZ25: 12 | PA25: 12 | PB25: 12 | PC25: 12 | PD25: 12 | PE25: 12 | PF25: 12 | PG25: 12 | PH25: 12 | PI25: 12 | PJ25: 12 | PK25: 12 | PL25: 12 | PM25: 12 | PN25: 12 | PO25: 12 | PP25: 12 | PQ25: 12 | PR25: 12 | PS25: 12 | PT25: 12 | PU25: 12 | PV25: 12 | PW25: 12 | PX25: 12 | PY25: 12 | PZ25: 12 | QA25: 12 | QB25: 12 | QC25: 12 | QD25: 12 | QE25: 12 | QF25: 12 | QG25: 12 | QH25: 12 | QI25: 12 | QJ25: 12 | QK25: 12 | QL25: 12 | QM25: 12 | QN25: 12 | QO25: 12 | QP25: 12 | QQ25: 12 | QR25: 12 | QS25: 12 | QT25: 12 | QU25: 12 | QV25: 12 | QW25: 12 | QX25: 12 | QY25: 12 | QZ25: 12 | RA25: 12 | RB25: 12 | RC25: 12 | RD25: 12 | RE25: 12 | RF25: 12 | RG25: 12 | RH25: 12 | RI25: 12 | RJ25: 12 | RK25: 12 | RL25: 12 | RM25: 12 | RN25: 12 | RO25: 12 | RP25: 12 | RQ25: 12 | RR25: 12 | RS25: 12 | RT25: 12 | RU25: 12 | RV25: 12 | RW25: 12 | RX25: 12 | RY25: 12 | RZ25: 12 | SA25: 12 | SB25: 12 | SC25: 12 | SD25: 12 | SE25: 12 | SF25: 12 | SG25: 12 | SH25: 12 | SI25: 12 | SJ25: 12 | SK25: 12 | SL25: 12
A26: 2013thru2017 | B26: 155 | C26: 15500US0647086003 | D26: Alpine County | E26: Alpine County (part), Mesa Vista CDP, California | F26: 1 | G26: 47086 | H26: 3 | I26: 80 | J26: 70 | K26: 20 | L26: 4 | M26: 4 | N26: 0 | O26: 0 | P26: 0 | Q26: 0 | R26: 0 | S26: 0 | T26: 0 | U26: 0 | V26: 0 | W26: 0 | X26: 0 | Y26: 0 | Z26: 0 | AA26: 0 | AB26: 4 | AC26: 4 | AD26: 0 | AE26: 0 | AF26: 0 | AG26: 0 | AH26: 0 | AI26: 0 | AJ26: 4 | AK26: 4 | AL26: 0 | AM26: 0 | AN26: 0 | AO26: 0 | AP26: 0 | AQ26: 0 | AR26: 4 | AS26: 4 | AT26: 0 | AU26: 0 | AV26: 0 | AW26: 0 | AX26: 0 | AY26: 0 | AZ26: 45 | BA26: 4 | BB26: 4 | BC26: 0 | BD26: 0 | BE26: 0 | BF26: 0 | BG26: 0 | BH26: 0 | BI26: 0 | BJ26: 0 | BK26: 0 | BL26: 0 | BM26: 0 | BN26: 0 | BO26: 0 | BP26: 0 | BQ26: 4 | BR26: 4 | BS26: 0 | BT26: 0 | BU26: 0 | BV26: 0 | BW26: 0 | BX26: 4 | BY26: 0 | BZ26: 0 | CA26: 0 | CB26: 0 | CC26: 0 | CD26: 0 | CE26: 0 | CF26: 0 | CG26: 40 | CH26: 35 | CI26: 0 | CJ26: 0 | CK26: 4 | CL26: 0 | CM26: 0 | CN26: 0 | CO26: 4 | CP26: 4 | CQ26: 4 | CR26: 0 | CS26: 0 | CT26: 0 | CU26: 0 | CV26: 0 | CW26: 0 | CX26: 0 | CY26: 0 | CZ26: 0 | DA26: 0 | DB26: 0 | DC26: 0 | DD26: 0 | DE26: 0 | DF26: 0 | DG26: 0 | DH26: 0 | DI26: 0 | DJ26: 0 | DK26: 0 | DL26: 0 | DM26: 0 | DN26: 0 | DO26: 0 | DP26: 0 | DQ26: 0 | DR26: 0 | DS26: 0 | DT26: 0 | DU26: 0 | DV26: 0 | DW26: 0 | DX26: 0 | DY26: 0 | DZ26: 0 | EA26: 0 | EB26: 0 | EC26: 0 | ED26: 10 | EE26: 4 | EF26: 0 | EG26: 0 | EH26: 0 | EI26: 0 | EJ26: 0 | EK26: 0 | EL26: 0 | EM26: 0 | EN26: 0 | EO26: 0 | EP26: 0 | EQ26: 0 | ER26: 0 | ES26: 0 | ET26: 0 | EU26: 0 | EV26: 4 | EW26: 4 | EX26: 0 | EY26: 0 | EZ26: 0 | FA26: 0 | FB26: 0 | FC26: 0 | FD26: 0 | FE26: 0 | FF26: 0 | FG26: 0 | FH26: 0 | FI26: 0 | FJ26: 0 | FK26: 0 | FL26: 0 | FM26: 0 | FN26: 0 | FO26: 0 | FP26: 0 | FQ26: 0 | FR26: 0 | FS26: 0 | FT26: 4 | FU26: 0 | FV26: 0 | FW26: 0 | FX26: 0 | FY26: 0 | FZ26: 0 | GA26: 0 | GB26: 0 | GC26: 0 | GD26: 0 | GE26: 0 | GF26: 0 | GG26: 0 | GH26: 0 | GI26: 0 | GJ26: 0 | GK26: 0 | GL26: 0 | GM26: 0 | GN26: 0 | GO26: 0 | GP26: 0 | GQ26: 0 | GR26: 0 | GS26: 4 | GT26: 4 | GU26: 0 | GV26: 0 | GW26: 0 | GX26: 0 | GY26: 0 | GZ26: 0 | HA26: 0 | HB26: 0 | HC26: 0 | HD26: 0 | HE26: 0 | HF26: 0 | HG26: 0 | HH26: 0 | HI26: 0 | HJ26: 0 | HK26: 0 | HL26: 0 | HM26: 0 | HN26: 0 | HO26: 0 | HP26: 0 | HQ26: 0 | HR26: 0 | HS26: 0 | HT26: 0 | HU26: 0 | HV26: 0 | HW26: 0 | HX26: 0 | HY26: 0 | HZ26: 0 | IA26: 0 | IB26: 0 | IC26: 0 | ID26: 0 | IE26: 0 | IF26: 0 | IG26: 0 | IH26: 0 | II26: 0 | IJ26: 0 | IK26: 0 | IL26: 0 | IM26: 0 | IN26: 0 | IO26: 0 | IP26: 0 | IQ26: 0 | IR26: 0 | IS26: 0 | IT26: 0 | IU26: 0 | IV26: 0 | IW26: 0 | IX26: 29 | IY26: 29 | IZ26: 14 | JA26: 4 | JB26: 4 | JC26: 12 | JD26: 12 | JE26: 12 | JF26: 12 | JG26: 12 | JH26: 12 | JI26: 12 | JJ26: 12 | JK26: 12 | JL26: 12 | JM26: 12 | JN26: 12 | JO26: 12 | JP26: 12 | JQ26: 13 | JR26: 13 | JS26: 12 | JT26: 12 | JU26: 12 | JV26: 12 | JW26: 12 | JX26: 12 | JY26: 7 | JZ26: 7 | KA26: 12 | KB26: 12 | KC26: 12 | KD26: 12 | KE26: 12 | KF26: 12 | KG26: 13 | KH26: 13 | KI26: 12 | KJ26: 12 | KK26: 12 | KL26: 12 | KM26: 12 | KN26: 12 | KO26: 27 | KP26: 1 | KQ26: 1 | KR26: 12 | KS26: 12 | KT26: 12 | KU26: 12 | KV26: 12 | KW26: 12 | KX26: 12 | KY26: 12 | KZ26: 12 | LA26: 12 | LB26: 12 | LC26: 12 | LD26: 12 | LE26: 12 | LF26: 17 | LG26: 12 | LH26: 12 | LI26: 12 | LJ26: 12 | LK26: 12 | LL26: 12 | LM26: 3 | LN26: 12 | LO26: 12 | LP26: 12 | LQ26: 12 | LR26: 12 | LS26: 12 | LT26: 12 | LU26: 12 | LV26: 21 | LW26: 19 | LX26: 12 | LY26: 12 | LZ26: 8 | MA26: 12 | MB26: 12 | MC26: 12 | MD26: 12 | ME26: 12 | MF26: 12 | MG26: 12 | MH26: 12 | MI26: 12 | MJ26: 12 | MK26: 12 | ML26: 12 | MM26: 12 | MN26: 12 | MO26: 12 | MP26: 12 | MQ26: 12 | MR26: 12 | MS26: 12 | MT26: 12 | MU26: 12 | MV26: 12 | MW26: 12 | MX26: 12 | MY26: 12 | MZ26: 12 | NA26: 12 | NB26: 12 | NC26: 12 | ND26: 12 | NE26: 12 | NF26: 12 | NG26: 12 | NH26: 12 | NI26: 12 | NJ26: 12 | NK26: 12 | NL26: 12 | NM26: 12 | NN26: 12 | NO26: 12 | NP26: 12 | NQ26: 12 | NR26: 12 | NS26: 13 | NT26: 9 | NU26: 12 | NV26: 12 | NW26: 12 | NX26: 12 | NY26: 12 | NZ26: 12 | OA26: 12 | OB26: 12 | OC26: 12 | OD26: 12 | OE26: 12 | OF26: 12 | OG26: 12 | OH26: 12 | OI26: 12 | OJ26: 12 | OK26: 9 | OL26: 9 | OM26: 12 | ON26: 12 | OO26: 12 | OP26: 12 | OQ26: 12 | OR26: 12 | OS26: 12 | OT26: 12 | OU26: 12 | OV26: 12 | OW26: 12 | OX26: 12 | OY26: 12 | OZ26: 12 | PA26: 12 | PB26: 12 | PC26: 12 | PD26: 12 | PE26: 12 | PF26: 12 | PG26: 12 | PH26: 12 | PI26: 1 | PJ26: 12 | PK26: 12 | PL26: 12 | PM26: 12 | PN26: 12 | PO26: 12 | PP26: 12 | PQ26: 12 | PR26: 12 | PS26: 12 | PT26: 12 | PU26: 12 | PV26: 12 | PW26: 12 | PX26: 12 | PY26: 12 | PZ26: 12 | QA26: 12 | QB26: 12 | QC26: 12 | QD26: 12 | QE26: 12 | QF26: 12 | QG26: 12 | QH26: 1 | QI26: 1 | QJ26: 12 | QK26: 12 | QL26: 12 | QM26: 12 | QN26: 12 | QO26: 12 | QP26: 12 | QQ26: 12 | QR26: 12 | QS26: 12 | QT26: 12 | QU26: 12 | QV26: 12 | QW26: 12 | QX26: 12 | QY26: 12 | QZ26: 12 | RA26: 12 | RB26: 12 | RC26: 12 | RD26: 12 | RE26: 12 | RF26: 12 | RG26: 12 | RH26: 12 | RI26: 12 | RJ26: 12 | RK26: 12 | RL26: 12 | RM26: 12 | RN26: 12 | RO26: 12 | RP26: 12 | RQ26: 12 | RR26: 12 | RS26: 12 | RT26: 12 | RU26: 12 | RV26: 12 | RW26: 12 | RX26: 12 | RY26: 12 | RZ26: 12 | SA26: 12 | SB26: 12 | SC26: 12 | SD26: 12 | SE26: 12 | SF26: 12 | SG26: 12 | SH26: 12 | SI26: 12 | SJ26: 12 | SK26: 12 | SL26: 12
A27: 2013thru2017 | B27: 155 | C27: 15500US0601514005 | D27: Amador County | E27: Amador County (part), Amador City city, California | G27: 1514 | H27: 5 | I27: 70 | J27: 35 | K27: 4 | L27: 0 | M27: 0 | N27: 0 | O27: 0 | P27: 0 | Q27: 0 | R27: 0 | S27: 0 | T27: 0 | U27: 0 | V27: 0 | W27: 0 | X27: 0 | Y27: 0 | Z27: 0 | AA27: 0 | AB27: 4 | AC27: 0 | AD27: 0 | AE27: 0 | AF27: 0 | AG27: 0 | AH27: 0 | AI27: 4 | AJ27: 0 | AK27: 0 | AL27: 0 | AM27: 0 | AN27: 0 | AO27: 0 | AP27: 0 | AQ27: 0 | AR27: 4 | AS27: 4 | AT27: 0 | AU27: 0 | AV27: 0 | AW27: 0 | AX27: 0 | AY27: 0 | AZ27: 25 | BA27: 0 | BB27: 0 | BC27: 0 | BD27: 0 | BE27: 0 | BF27: 0 | BG27: 0 | BH27: 0 | BI27: 4 | BJ27: 4 | BK27: 0 | BL27: 0 | BM27: 0 | BN27: 0 | BO27: 0 | BP27: 0 | BQ27: 0 | BR27: 0 | BS27: 0 | BT27: 0 | BU27: 0 | BV27: 0 | BW27: 0 | BX27: 0 | BY27: 4 | BZ27: 4 | CA27: 0 | CB27: 0 | CC27: 0 | CD27: 0 | CE27: 0 | CF27: 0 | CG27: 15 | CH27: 15 | CI27: 0 | CJ27: 0 | CK27: 0 | CL27: 0 | CM27: 0 | CN27: 0 | CO27: 4 | CP27: 4 | CQ27: 4 | CR27: 0 | CS27: 0 | CT27: 0 | CU27: 0 | CV27: 0 | CW27: 0 | CX27: 0 | CY27: 0 | CZ27: 0 | DA27: 0 | DB27: 0 | DC27: 0 | DD27: 0 | DE27: 0 | DF27: 0 | DG27: 0 | DH27: 0 | DI27: 0 | DJ27: 0 | DK27: 0 | DL27: 0 | DM27: 0 | DN27: 0 | DO27: 0 | DP27: 0 | DQ27: 0 | DR27: 0 | DS27: 0 | DT27: 0 | DU27: 0 | DV27: 0 | DW27: 0 | DX27: 0 | DY27: 0 | DZ27: 0 | EA27: 0 | EB27: 0 | EC27: 0 | ED27: 40 | EE27: 4 | EF27: 4 | EG27: 4 | EH27: 0 | EI27: 0 | EJ27: 0 | EK27: 0 | EL27: 0 | EM27: 0 | EN27: 0 | EO27: 0 | EP27: 0 | EQ27: 0 | ER27: 0 | ES27: 0 | ET27: 0 | EU27: 0 | EV27: 0 | EW27: 0 | EX27: 0 | EY27: 0 | EZ27: 0 | FA27: 0 | FB27: 0 | FC27: 0 | FD27: 4 | FE27: 4 | FF27: 0 | FG27: 0 | FH27: 0 | FI27: 0 | FJ27: 0 | FK27: 0 | FL27: 0 | FM27: 0 | FN27: 0 | FO27: 0 | FP27: 0 | FQ27: 0 | FR27: 0 | FS27: 0 | FT27: 30 | FU27: 0 | FV27: 0 | FW27: 0 | FX27: 0 | FY27: 0 | FZ27: 0 | GA27: 0 | GB27: 0 | GC27: 0 | GD27: 0 | GE27: 0 | GF27: 0 | GG27: 0 | GH27: 0 | GI27: 0 | GJ27: 0 | GK27: 15 | GL27: 4 | GM27: 0 | GN27: 0 | GO27: 0 | GP27: 0 | GQ27: 10 | GR27: 0 | GS27: 0 | GT27: 0 | GU27: 0 | GV27: 0 | GW27: 0 | GX27: 0 | GY27: 0 | GZ27: 0 | HA27: 15 | HB27: 10 | HC27: 0 | HD27: 0 | HE27: 0 | HF27: 0 | HG27: 0 | HH27: 4 | HI27: 0 | HJ27: 0 | HK27: 0 | HL27: 0 | HM27: 0 | HN27: 0 | HO27: 0 | HP27: 0 | HQ27: 0 | HR27: 0 | HS27: 0 | HT27: 0 | HU27: 0 | HV27: 0 | HW27: 0 | HX27: 0 | HY27: 0 | HZ27: 0 | IA27: 0 | IB27: 0 | IC27: 0 | ID27: 0 | IE27: 0 | IF27: 0 | IG27: 0 | IH27: 0 | II27: 0 | IJ27: 0 | IK27: 0 | IL27: 0 | IM27: 0 | IN27: 0 | IO27: 0 | IP27: 0 | IQ27: 0 | IR27: 0 | IS27: 0 | IT27: 0 | IU27: 0 | IV27: 0 | IW27: 0 | IX27: 32 | IY27: 18 | IZ27: 9 | JA27: 12 | JB27: 12 | JC27: 12 | JD27: 12 | JE27: 12 | JF27: 12 | JG27: 12 | JH27: 12 | JI27: 12 | JJ27: 12 | JK27: 12 | JL27: 12 | JM27: 12 | JN27: 12 | JO27: 12 | JP27: 12 | JQ27: 5 | JR27: 12 | JS27: 12 | JT27: 12 | JU27: 12 | JV27: 12 | JW27: 12 | JX27: 5 | JY27: 12 | JZ27: 12 | KA27: 12 | KB27: 12 | KC27: 12 | KD27: 12 | KE27: 12 | KF27: 12 | KG27: 4 | KH27: 4 | KI27: 12 | KJ27: 12 | KK27: 12 | KL27: 12 | KM27: 12 | KN27: 12 | KO27: 15 | KP27: 12 | KQ27: 12 | KR27: 12 | KS27: 12 | KT27: 12 | KU27: 12 | KV27: 12 | KW27: 12 | KX27: 5 | KY27: 5 | KZ27: 12 | LA27: 12 | LB27: 12 | LC27: 12 | LD27: 12 | LE27: 12 | LF27: 12 | LG27: 12 | LH27: 12 | LI27: 12 | LJ27: 12 | LK27: 12 | LL27: 12 | LM27: 12 | LN27: 7 | LO27: 7 | LP27: 12 | LQ27: 12 | LR27: 12 | LS27: 12 | LT27: 12 | LU27: 12 | LV27: 15 | LW27: 15 | LX27: 12 | LY27: 12 | LZ27: 12 | MA27: 12 | MB27: 12 | MC27: 12 | MD27: 5 | ME27: 5 | MF27: 5 | MG27: 12 | MH27: 12 | MI27: 12 | MJ27: 12 | MK27: 12 | ML27: 12 | MM27: 12 | MN27: 12 | MO27: 12 | MP27: 12 | MQ27: 12 | MR27: 12 | MS27: 12 | MT27: 12 | MU27: 12 | MV27: 12 | MW27: 12 | MX27: 12 | MY27: 12 | MZ27: 12 | NA27: 12 | NB27: 12 | NC27: 12 | ND27: 12 | NE27: 12 | NF27: 12 | NG27: 12 | NH27: 12 | NI27: 12 | NJ27: 12 | NK27: 12 | NL27: 12 | NM27: 12 | NN27: 12 | NO27: 12 | NP27: 12 | NQ27: 12 | NR27: 12 | NS27: 25 | NT27: 14 | NU27: 10 | NV27: 10 | NW27: 12 | NX27: 12 | NY27: 12 | NZ27: 12 | OA27: 12 | OB27: 12 | OC27: 12 | OD27: 12 | OE27: 12 | OF27: 12 | OG27: 12 | OH27: 12 | OI27: 12 | OJ27: 12 | OK27: 12 | OL27: 12 | OM27: 12 | ON27: 12 | OO27: 12 | OP27: 12 | OQ27: 12 | OR27: 12 | OS27: 5 | OT27: 5 | OU27: 12 | OV27: 12 | OW27: 12 | OX27: 12 | OY27: 12 | OZ27: 12 | PA27: 12 | PB27: 12 | PC27: 12 | PD27: 12 | PE27: 12 | PF27: 12 | PG27: 12 | PH27: 12 | PI27: 22 | PJ27: 12 | PK27: 12 | PL27: 12 | PM27: 12 | PN27: 12 | PO27: 12 | PP27: 12 | PQ27: 12 | PR27: 12 | PS27: 12 | PT27: 12 | PU27: 12 | PV27: 12 | PW27: 12 | PX27: 12 | PY27: 12 | PZ27: 20 | QA27: 13 | QB27: 12 | QC27: 12 | QD27: 12 | QE27: 12 | QF27: 15 | QG27: 12 | QH27: 12 | QI27: 12 | QJ27: 12 | QK27: 12 | QL27: 12 | QM27: 12 | QN27: 12 | QO27: 12 | QP27: 13 | QQ27: 12 | QR27: 12 | QS27: 12 | QT27: 12 | QU27: 12 | QV27: 12 | QW27: 3 | QX27: 12 | QY27: 12 | QZ27: 12 | RA27: 12 | RB27: 12 | RC27: 12 | RD27: 12 | RE27: 12 | RF27: 12 | RG27: 12 | RH27: 12 | RI27: 12 | RJ27: 12 | RK27: 12 | RL27: 12 | RM27: 12 | RN27: 12 | RO27: 12 | RP27: 12 | RQ27: 12 | RR27: 12 | RS27: 12 | RT27: 12 | RU27: 12 | RV27: 12 | RW27: 12 | RX27: 12 | RY27: 12 | RZ27: 12 | SA27: 12 | SB27: 12 | SC27: 12 | SD27: 12 | SE27: 12 | SF27: 12 | SG27: 12 | SH27: 12 | SI27: 12 | SJ27: 12 | SK27: 12 | SL27: 12
A28: 2013thru2017 | B28: 155 | C28: 15500US0608680005 | D28: Amador County | E28: Amador County (part), Buckhorn CDP, California | F28: 1 | G28: 8680 | H28: 5 | I28: 1090 | J28: 880 | K28: 115 | L28: 50 | M28: 50 | N28: 0 | O28: 0 | P28: 0 | Q28: 0 | R28: 0 | S28: 0 | T28: 30 | U28: 30 | V28: 0 | W28: 0 | X28: 0 | Y28: 0 | Z28: 0 | AA28: 0 | AB28: 20 | AC28: 20 | AD28: 0 | AE28: 0 | AF28: 0 | AG28: 0 | AH28: 0 | AI28: 0 | AJ28: 4 | AK28: 4 | AL28: 0 | AM28: 0 | AN28: 0 | AO28: 0 | AP28: 0 | AQ28: 0 | AR28: 10 | AS28: 10 | AT28: 0 | AU28: 0 | AV28: 0 | AW28: 0 | AX28: 0 | AY28: 0 | AZ28: 765 | BA28: 15 | BB28: 15 | BC28: 0 | BD28: 0 | BE28: 0 | BF28: 0 | BG28: 0 | BH28: 0 | BI28: 70 | BJ28: 70 | BK28: 0 | BL28: 0 | BM28: 0 | BN28: 0 | BO28: 0 | BP28: 0 | BQ28: 220 | BR28: 210 | BS28: 0 | BT28: 0 | BU28: 0 | BV28: 0 | BW28: 10 | BX28: 0 | BY28: 105 | BZ28: 105 | CA28: 0 | CB28: 0 | CC28: 0 | CD28: 0 | CE28: 0 | CF28: 0 | CG28: 355 | CH28: 335 | CI28: 0 | CJ28: 4 | CK28: 10 | CL28: 0 | CM28: 10 | CN28: 0 | CO28: 0 | CP28: 0 | CQ28: 0 | CR28: 0 | CS28: 0 | CT28: 0 | CU28: 0 | CV28: 0 | CW28: 0 | CX28: 0 | CY28: 0 | CZ28: 0 | DA28: 0 | DB28: 0 | DC28: 0 | DD28: 0 | DE28: 0 | DF28: 0 | DG28: 0 | DH28: 0 | DI28: 0 | DJ28: 0 | DK28: 0 | DL28: 0 | DM28: 0 | DN28: 0 | DO28: 0 | DP28: 0 | DQ28: 0 | DR28: 0 | DS28: 0 | DT28: 0 | DU28: 0 | DV28: 0 | DW28: 0 | DX28: 0 | DY28: 0 | DZ28: 0 | EA28: 0 | EB28: 0 | EC28: 0 | ED28: 205 | EE28: 110 | EF28: 55 | EG28: 55 | EH28: 0 | EI28: 0 | EJ28: 0 | EK28: 0 | EL28: 0 | EM28: 0 | EN28: 10 | EO28: 10 | EP28: 0 | EQ28: 0 | ER28: 0 | ES28: 0 | ET28: 0 | EU28: 0 | EV28: 45 | EW28: 45 | EX28: 0 | EY28: 0 | EZ28: 0 | FA28: 0 | FB28: 0 | FC28: 0 | FD28: 0 | FE28: 0 | FF28: 0 | FG28: 0 | FH28: 0 | FI28: 0 | FJ28: 0 | FK28: 0 | FL28: 0 | FM28: 0 | FN28: 0 | FO28: 0 | FP28: 0 | FQ28: 0 | FR28: 0 | FS28: 0 | FT28: 100 | FU28: 0 | FV28: 0 | FW28: 0 | FX28: 0 | FY28: 0 | FZ28: 0 | GA28: 0 | GB28: 0 | GC28: 30 | GD28: 30 | GE28: 0 | GF28: 0 | GG28: 0 | GH28: 0 | GI28: 0 | GJ28: 0 | GK28: 35 | GL28: 35 | GM28: 0 | GN28: 0 | GO28: 0 | GP28: 0 | GQ28: 0 | GR28: 0 | GS28: 10 | GT28: 10 | GU28: 0 | GV28: 0 | GW28: 0 | GX28: 0 | GY28: 0 | GZ28: 0 | HA28: 30 | HB28: 10 | HC28: 0 | HD28: 10 | HE28: 0 | HF28: 0 | HG28: 0 | HH28: 10 | HI28: 0 | HJ28: 0 | HK28: 0 | HL28: 0 | HM28: 0 | HN28: 0 | HO28: 0 | HP28: 0 | HQ28: 0 | HR28: 0 | HS28: 0 | HT28: 0 | HU28: 0 | HV28: 0 | HW28: 0 | HX28: 0 | HY28: 0 | HZ28: 0 | IA28: 0 | IB28: 0 | IC28: 0 | ID28: 0 | IE28: 0 | IF28: 0 | IG28: 0 | IH28: 0 | II28: 0 | IJ28: 0 | IK28: 0 | IL28: 0 | IM28: 0 | IN28: 0 | IO28: 0 | IP28: 0 | IQ28: 0 | IR28: 0 | IS28: 0 | IT28: 0 | IU28: 0 | IV28: 0 | IW28: 0 | IX28: 132 | IY28: 119 | IZ28: 49 | JA28: 32 | JB28: 32 | JC28: 12 | JD28: 12 | JE28: 12 | JF28: 12 | JG28: 12 | JH28: 12 | JI28: 27 | JJ28: 27 | JK28: 12 | JL28: 12 | JM28: 12 | JN28: 12 | JO28: 12 | JP28: 12 | JQ28: 23 | JR28: 23 | JS28: 12 | JT28: 12 | JU28: 12 | JV28: 12 | JW28: 12 | JX28: 12 | JY28: 10 | JZ28: 10 | KA28: 12 | KB28: 12 | KC28: 12 | KD28: 12 | KE28: 12 | KF28: 12 | KG28: 14 | KH28: 14 | KI28: 12 | KJ28: 12 | KK28: 12 | KL28: 12 | KM28: 12 | KN28: 12 | KO28: 113 | KP28: 20 | KQ28: 20 | KR28: 12 | KS28: 12 | KT28: 12 | KU28: 12 | KV28: 12 | KW28: 12 | KX28: 37 | KY28: 37 | KZ28: 12 | LA28: 12 | LB28: 12 | LC28: 12 | LD28: 12 | LE28: 12 | LF28: 83 | LG28: 81 | LH28: 12 | LI28: 12 | LJ28: 12 | LK28: 12 | LL28: 13 | LM28: 12 | LN28: 45 | LO28: 45 | LP28: 12 | LQ28: 12 | LR28: 12 | LS28: 12 | LT28: 12 | LU28: 12 | LV28: 78 | LW28: 80 | LX28: 12 | LY28: 4 | LZ28: 14 | MA28: 12 | MB28: 16 | MC28: 12 | MD28: 12 | ME28: 12 | MF28: 12 | MG28: 12 | MH28: 12 | MI28: 12 | MJ28: 12 | MK28: 12 | ML28: 12 | MM28: 12 | MN28: 12 | MO28: 12 | MP28: 12 | MQ28: 12 | MR28: 12 | MS28: 12 | MT28: 12 | MU28: 12 | MV28: 12 | MW28: 12 | MX28: 12 | MY28: 12 | MZ28: 12 | NA28: 12 | NB28: 12 | NC28: 12 | ND28: 12 | NE28: 12 | NF28: 12 | NG28: 12 | NH28: 12 | NI28: 12 | NJ28: 12 | NK28: 12 | NL28: 12 | NM28: 12 | NN28: 12 | NO28: 12 | NP28: 12 | NQ28: 12 | NR28: 12 | NS28: 82 | NT28: 72 | NU28: 51 | NV28: 51 | NW28: 12 | NX28: 12 | NY28: 12 | NZ28: 12 | OA28: 12 | OB28: 12 | OC28: 13 | OD28: 13 | OE28: 12 | OF28: 12 | OG28: 12 | OH28: 12 | OI28: 12 | OJ28: 12 | OK28: 50 | OL28: 50 | OM28: 12 | ON28: 12 | OO28: 12 | OP28: 12 | OQ28: 12 | OR28: 12 | OS28: 12 | OT28: 12 | OU28: 12 | OV28: 12 | OW28: 12 | OX28: 12 | OY28: 12 | OZ28: 12 | PA28: 12 | PB28: 12 | PC28: 12 | PD28: 12 | PE28: 12 | PF28: 12 | PG28: 12 | PH28: 12 | PI28: 48 | PJ28: 12 | PK28: 12 | PL28: 12 | PM28: 12 | PN28: 12 | PO28: 12 | PP28: 12 | PQ28: 12 | PR28: 25 | PS28: 25 | PT28: 12 | PU28: 12 | PV28: 12 | PW28: 12 | PX28: 12 | PY28: 12 | PZ28: 31 | QA28: 31 | QB28: 12 | QC28: 12 | QD28: 12 | QE28: 12 | QF28: 12 | QG28: 12 | QH28: 13 | QI28: 13 | QJ28: 12 | QK28: 12 | QL28: 12 | QM28: 12 | QN28: 12 | QO28: 12 | QP28: 23 | QQ28: 17 | QR28: 12 | QS28: 16 | QT28: 12 | QU28: 12 | QV28: 12 | QW28: 16 | QX28: 12 | QY28: 12 | QZ28: 12 | RA28: 12 | RB28: 12 | RC28: 12 | RD28: 12 | RE28: 12 | RF28: 12 | RG28: 12 | RH28: 12 | RI28: 12 | RJ28: 12 | RK28: 12 | RL28: 12 | RM28: 12 | RN28: 12 | RO28: 12 | RP28: 12 | RQ28: 12 | RR28: 12 | RS28: 12 | RT28: 12 | RU28: 12 | RV28: 12 | RW28: 12 | RX28: 12 | RY28: 12 | RZ28: 12 | SA28: 12 | SB28: 12 | SC28: 12 | SD28: 12 | SE28: 12 | SF28: 12 | SG28: 12 | SH28: 12 | SI28: 12 | SJ28: 12 | SK28: 12 | SL28: 12
A29: 2013thru2017 | B29: 155 | C29: 15500US0608828005 | D29: Amador County | E29: Amador County (part), Buena Vista CDP, California | F29: 1 | G29: 8828 | H29: 5 | I29: 155 | J29: 135 | K29: 10 | L29: 0 | M29: 0 | N29: 0 | O29: 0 | P29: 0 | Q29: 0 | R29: 0 | S29: 0 | T29: 10 | U29: 10 | V29: 0 | W29: 0 | X29: 0 | Y29: 0 | Z29: 0 | AA29: 0 | AB29: 0 | AC29: 0 | AD29: 0 | AE29: 0 | AF29: 0 | AG29: 0 | AH29: 0 | AI29: 0 | AJ29: 0 | AK29: 0 | AL29: 0 | AM29: 0 | AN29: 0 | AO29: 0 | AP29: 0 | AQ29: 0 | AR29: 0 | AS29: 0 | AT29: 0 | AU29: 0 | AV29: 0 | AW29: 0 | AX29: 0 | AY29: 0 | AZ29: 125 | BA29: 30 | BB29: 30 | BC29: 0 | BD29: 0 | BE29: 0 | BF29: 0 | BG29: 0 | BH29: 0 | BI29: 15 | BJ29: 15 | BK29: 0 | BL29: 0 | BM29: 0 | BN29: 0 | BO29: 0 | BP29: 0 | BQ29: 10 | BR29: 10 | BS29: 0 | BT29: 0 | BU29: 0 | BV29: 0 | BW29: 0 | BX29: 0 | BY29: 15 | BZ29: 15 | CA29: 0 | CB29: 0 | CC29: 0 | CD29: 0 | CE29: 0 | CF29: 0 | CG29: 55 | CH29: 45 | CI29: 0 | CJ29: 0 | CK29: 0 | CL29: 0 | CM29: 10 | CN29: 0 | CO29: 0 | CP29: 0 | CQ29: 0 | CR29: 0 | CS29: 0 | CT29: 0 | CU29: 0 | CV29: 0 | CW29: 0 | CX29: 0 | CY29: 0 | CZ29: 0 | DA29: 0 | DB29: 0 | DC29: 0 | DD29: 0 | DE29: 0 | DF29: 0 | DG29: 0 | DH29: 0 | DI29: 0 | DJ29: 0 | DK29: 0 | DL29: 0 | DM29: 0 | DN29: 0 | DO29: 0 | DP29: 0 | DQ29: 0 | DR29: 0 | DS29: 0 | DT29: 0 | DU29: 0 | DV29: 0 | DW29: 0 | DX29: 0 | DY29: 0 | DZ29: 0 | EA29: 0 | EB29: 0 | EC29: 0 | ED29: 15 | EE29: 0 | EF29: 0 | EG29: 0 | EH29: 0 | EI29: 0 | EJ29: 0 | EK29: 0 | EL29: 0 | EM29: 0 | EN29: 0 | EO29: 0 | EP29: 0 | EQ29: 0 | ER29: 0 | ES29: 0 | ET29: 0 | EU29: 0 | EV29: 0 | EW29: 0 | EX29: 0 | EY29: 0 | EZ29: 0 | FA29: 0 | FB29: 0 | FC29: 0 | FD29: 0 | FE29: 0 | FF29: 0 | FG29: 0 | FH29: 0 | FI29: 0 | FJ29: 0 | FK29: 0 | FL29: 0 | FM29: 0 | FN29: 0 | FO29: 0 | FP29: 0 | FQ29: 0 | FR29: 0 | FS29: 0 | FT29: 15 | FU29: 0 | FV29: 0 | FW29: 0 | FX29: 0 | FY29: 0 | FZ29: 0 | GA29: 0 | GB29: 0 | GC29: 4 | GD29: 4 | GE29: 0 | GF29: 0 | GG29: 0 | GH29: 0 | GI29: 0 | GJ29: 0 | GK29: 4 | GL29: 0 | GM29: 0 | GN29: 0 | GO29: 0 | GP29: 0 | GQ29: 0 | GR29: 4 | GS29: 0 | GT29: 0 | GU29: 0 | GV29: 0 | GW29: 0 | GX29: 0 | GY29: 0 | GZ29: 0 | HA29: 4 | HB29: 0 | HC29: 0 | HD29: 0 | HE29: 0 | HF29: 0 | HG29: 4 | HH29: 0 | HI29: 0 | HJ29: 0 | HK29: 0 | HL29: 0 | HM29: 0 | HN29: 0 | HO29: 0 | HP29: 0 | HQ29: 0 | HR29: 0 | HS29: 0 | HT29: 0 | HU29: 0 | HV29: 0 | HW29: 0 | HX29: 0 | HY29: 0 | HZ29: 0 | IA29: 0 | IB29: 0 | IC29: 0 | ID29: 0 | IE29: 0 | IF29: 0 | IG29: 0 | IH29: 0 | II29: 0 | IJ29: 0 | IK29: 0 | IL29: 0 | IM29: 0 | IN29: 0 | IO29: 0 | IP29: 0 | IQ29: 0 | IR29: 0 | IS29: 0 | IT29: 0 | IU29: 0 | IV29: 0 | IW29: 0 | IX29: 53 | IY29: 56 | IZ29: 17 | JA29: 12 | JB29: 12 | JC29: 12 | JD29: 12 | JE29: 12 | JF29: 12 | JG29: 12 | JH29: 12 | JI29: 17 | JJ29: 17 | JK29: 12 | JL29: 12 | JM29: 12 | JN29: 12 | JO29: 12 | JP29: 12 | JQ29: 12 | JR29: 12 | JS29: 12 | JT29: 12 | JU29: 12 | JV29: 12 | JW29: 12 | JX29: 12 | JY29: 12 | JZ29: 12 | KA29: 12 | KB29: 12 | KC29: 12 | KD29: 12 | KE29: 12 | KF29: 12 | KG29: 12 | KH29: 12 | KI29: 12 | KJ29: 12 | KK29: 12 | KL29: 12 | KM29: 12 | KN29: 12 | KO29: 57 | KP29: 36 | KQ29: 36 | KR29: 12 | KS29: 12 | KT29: 12 | KU29: 12 | KV29: 12 | KW29: 12 | KX29: 19 | KY29: 19 | KZ29: 12 | LA29: 12 | LB29: 12 | LC29: 12 | LD29: 12 | LE29: 12 | LF29: 16 | LG29: 16 | LH29: 12 | LI29: 12 | LJ29: 12 | LK29: 12 | LL29: 12 | LM29: 12 | LN29: 20 | LO29: 20 | LP29: 12 | LQ29: 12 | LR29: 12 | LS29: 12 | LT29: 12 | LU29: 12 | LV29: 46 | LW29: 42 | LX29: 12 | LY29: 12 | LZ29: 12 | MA29: 12 | MB29: 17 | MC29: 12 | MD29: 12 | ME29: 12 | MF29: 12 | MG29: 12 | MH29: 12 | MI29: 12 | MJ29: 12 | MK29: 12 | ML29: 12 | MM29: 12 | MN29: 12 | MO29: 12 | MP29: 12 | MQ29: 12 | MR29: 12 | MS29: 12 | MT29: 12 | MU29: 12 | MV29: 12 | MW29: 12 | MX29: 12 | MY29: 12 | MZ29: 12 | NA29: 12 | NB29: 12 | NC29: 12 | ND29: 12 | NE29: 12 | NF29: 12 | NG29: 12 | NH29: 12 | NI29: 12 | NJ29: 12 | NK29: 12 | NL29: 12 | NM29: 12 | NN29: 12 | NO29: 12 | NP29: 12 | NQ29: 12 | NR29: 12 | NS29: 20 | NT29: 12 | NU29: 12 | NV29: 12 | NW29: 12 | NX29: 12 | NY29: 12 | NZ29: 12 | OA29: 12 | OB29: 12 | OC29: 12 | OD29: 12 | OE29: 12 | OF29: 12 | OG29: 12 | OH29: 12 | OI29: 12 | OJ29: 12 | OK29: 12 | OL29: 12 | OM29: 12 | ON29: 12 | OO29: 12 | OP29: 12 | OQ29: 12 | OR29: 12 | OS29: 12 | OT29: 12 | OU29: 12 | OV29: 12 | OW29: 12 | OX29: 12 | OY29: 12 | OZ29: 12 | PA29: 12 | PB29: 12 | PC29: 12 | PD29: 12 | PE29: 12 | PF29: 12 | PG29: 12 | PH29: 12 | PI29: 20 | PJ29: 12 | PK29: 12 | PL29: 12 | PM29: 12 | PN29: 12 | PO29: 12 | PP29: 12 | PQ29: 12 | PR29: 7 | PS29: 7 | PT29: 12 | PU29: 12 | PV29: 12 | PW29: 12 | PX29: 12 | PY29: 12 | PZ29: 8 | QA29: 12 | QB29: 12 | QC29: 12 | QD29: 12 | QE29: 12 | QF29: 12 | QG29: 8 | QH29: 12 | QI29: 12 | QJ29: 12 | QK29: 12 | QL29: 12 | QM29: 12 | QN29: 12 | QO29: 12 | QP29: 17 | QQ29: 12 | QR29: 12 | QS29: 12 | QT29: 12 | QU29: 12 | QV29: 17 | QW29: 12 | QX29: 12 | QY29: 12 | QZ29: 12 | RA29: 12 | RB29: 12 | RC29: 12 | RD29: 12 | RE29: 12 | RF29: 12 | RG29: 12 | RH29: 12 | RI29: 12 | RJ29: 12 | RK29: 12 | RL29: 12 | RM29: 12 | RN29: 12 | RO29: 12 | RP29: 12 | RQ29: 12 | RR29: 12 | RS29: 12 | RT29: 12 | RU29: 12 | RV29: 12 | RW29: 12 | RX29: 12 | RY29: 12 | RZ29: 12 | SA29: 12 | SB29: 12 | SC29: 12 | SD29: 12 | SE29: 12 | SF29: 12 | SG29: 12 | SH29: 12 | SI29: 12 | SJ29: 12 | SK29: 12 | SL29: 12
A30: 2013thru2017 | B30: 155 | C30: 15500US0610042005 | D30: Amador County | E30: Amador County (part), Camanche North Shore CDP, California | F30: 1 | G30: 10042 | H30: 5 | I30: 360 | J30: 240 | K30: 35 | L30: 0 | M30: 0 | N30: 0 | O30: 0 | P30: 0 | Q30: 0 | R30: 0 | S30: 0 | T30: 0 | U30: 0 | V30: 0 | W30: 0 | X30: 0 | Y30: 0 | Z30: 0 | AA30: 0 | AB30: 15 | AC30: 4 | AD30: 0 | AE30: 4 | AF30: 0 | AG30: 0 | AH30: 0 | AI30: 0 | AJ30: 20 | AK30: 20 | AL30: 0 | AM30: 0 | AN30: 0 | AO30: 0 | AP30: 0 | AQ30: 0 | AR30: 0 | AS30: 0 | AT30: 0 | AU30: 0 | AV30: 0 | AW30: 0 | AX30: 0 | AY30: 0 | AZ30: 205 | BA30: 0 | BB30: 0 | BC30: 0 | BD30: 0 | BE30: 0 | BF30: 0 | BG30: 0 | BH30: 0 | BI30: 0 | BJ30: 0 | BK30: 0 | BL30: 0 | BM30: 0 | BN30: 0 | BO30: 0 | BP30: 0 | BQ30: 35 | BR30: 35 | BS30: 0 | BT30: 0 | BU30: 0 | BV30: 0 | BW30: 0 | BX30: 0 | BY30: 0 | BZ30: 0 | CA30: 0 | CB30: 0 | CC30: 0 | CD30: 0 | CE30: 0 | CF30: 0 | CG30: 170 | CH30: 105 | CI30: 0 | CJ30: 0 | CK30: 0 | CL30: 0 | CM30: 70 | CN30: 0 | CO30: 0 | CP30: 0 | CQ30: 0 | CR30: 0 | CS30: 0 | CT30: 0 | CU30: 0 | CV30: 0 | CW30: 0 | CX30: 0 | CY30: 0 | CZ30: 0 | DA30: 0 | DB30: 0 | DC30: 0 | DD30: 0 | DE30: 0 | DF30: 0 | DG30: 0 | DH30: 0 | DI30: 0 | DJ30: 0 | DK30: 0 | DL30: 0 | DM30: 0 | DN30: 0 | DO30: 0 | DP30: 0 | DQ30: 0 | DR30: 0 | DS30: 0 | DT30: 0 | DU30: 0 | DV30: 0 | DW30: 0 | DX30: 0 | DY30: 0 | DZ30: 0 | EA30: 0 | EB30: 0 | EC30: 0 | ED30: 120 | EE30: 20 | EF30: 0 | EG30: 0 | EH30: 0 | EI30: 0 | EJ30: 0 | EK30: 0 | EL30: 0 | EM30: 0 | EN30: 10 | EO30: 10 | EP30: 0 | EQ30: 0 | ER30: 0 | ES30: 0 | ET30: 0 | EU30: 0 | EV30: 10 | EW30: 10 | EX30: 0 | EY30: 0 | EZ30: 0 | FA30: 0 | FB30: 0 | FC30: 0 | FD30: 0 | FE30: 0 | FF30: 0 | FG30: 0 | FH30: 0 | FI30: 0 | FJ30: 0 | FK30: 0 | FL30: 0 | FM30: 0 | FN30: 0 | FO30: 0 | FP30: 0 | FQ30: 0 | FR30: 0 | FS30: 0 | FT30: 100 | FU30: 0 | FV30: 0 | FW30: 0 | FX30: 0 | FY30: 0 | FZ30: 0 | GA30: 0 | GB30: 0 | GC30: 10 | GD30: 10 | GE30: 0 | GF30: 0 | GG30: 0 | GH30: 0 | GI30: 0 | GJ30: 0 | GK30: 30 | GL30: 30 | GM30: 0 | GN30: 0 | GO30: 0 | GP30: 0 | GQ30: 0 | GR30: 0 | GS30: 30 | GT30: 30 | GU30: 0 | GV30: 0 | GW30: 0 | GX30: 0 | GY30: 0 | GZ30: 0 | HA30: 30 | HB30: 30 | HC30: 0 | HD30: 0 | HE30: 0 | HF30: 0 | HG30: 0 | HH30: 0 | HI30: 0 | HJ30: 0 | HK30: 0 | HL30: 0 | HM30: 0 | HN30: 0 | HO30: 0 | HP30: 0 | HQ30: 0 | HR30: 0 | HS30: 0 | HT30: 0 | HU30: 0 | HV30: 0 | HW30: 0 | HX30: 0 | HY30: 0 | HZ30: 0 | IA30: 0 | IB30: 0 | IC30: 0 | ID30: 0 | IE30: 0 | IF30: 0 | IG30: 0 | IH30: 0 | II30: 0 | IJ30: 0 | IK30: 0 | IL30: 0 | IM30: 0 | IN30: 0 | IO30: 0 | IP30: 0 | IQ30: 0 | IR30: 0 | IS30: 0 | IT30: 0 | IU30: 0 | IV30: 0 | IW30: 0 | IX30: 87 | IY30: 76 | IZ30: 38 | JA30: 12 | JB30: 12 | JC30: 12 | JD30: 12 | JE30: 12 | JF30: 12 | JG30: 12 | JH30: 12 | JI30: 12 | JJ30: 12 | JK30: 12 | JL30: 12 | JM30: 12 | JN30: 12 | JO30: 12 | JP30: 12 | JQ30: 18 | JR30: 13 | JS30: 12 | JT30: 14 | JU30: 12 | JV30: 12 | JW30: 12 | JX30: 12 | JY30: 35 | JZ30: 35 | KA30: 12 | KB30: 12 | KC30: 12 | KD30: 12 | KE30: 12 | KF30: 12 | KG30: 12 | KH30: 12 | KI30: 12 | KJ30: 12 | KK30: 12 | KL30: 12 | KM30: 12 | KN30: 12 | KO30: 76 | KP30: 12 | KQ30: 12 | KR30: 12 | KS30: 12 | KT30: 12 | KU30: 12 | KV30: 12 | KW30: 12 | KX30: 12 | KY30: 12 | KZ30: 12 | LA30: 12 | LB30: 12 | LC30: 12 | LD30: 12 | LE30: 12 | LF30: 44 | LG30: 44 | LH30: 12 | LI30: 12 | LJ30: 12 | LK30: 12 | LL30: 12 | LM30: 12 | LN30: 12 | LO30: 12 | LP30: 12 | LQ30: 12 | LR30: 12 | LS30: 12 | LT30: 12 | LU30: 12 | LV30: 64 | LW30: 50 | LX30: 12 | LY30: 12 | LZ30: 12 | MA30: 12 | MB30: 51 | MC30: 12 | MD30: 12 | ME30: 12 | MF30: 12 | MG30: 12 | MH30: 12 | MI30: 12 | MJ30: 12 | MK30: 12 | ML30: 12 | MM30: 12 | MN30: 12 | MO30: 12 | MP30: 12 | MQ30: 12 | MR30: 12 | MS30: 12 | MT30: 12 | MU30: 12 | MV30: 12 | MW30: 12 | MX30: 12 | MY30: 12 | MZ30: 12 | NA30: 12 | NB30: 12 | NC30: 12 | ND30: 12 | NE30: 12 | NF30: 12 | NG30: 12 | NH30: 12 | NI30: 12 | NJ30: 12 | NK30: 12 | NL30: 12 | NM30: 12 | NN30: 12 | NO30: 12 | NP30: 12 | NQ30: 12 | NR30: 12 | NS30: 67 | NT30: 23 | NU30: 12 | NV30: 12 | NW30: 12 | NX30: 12 | NY30: 12 | NZ30: 12 | OA30: 12 | OB30: 12 | OC30: 17 | OD30: 17 | OE30: 12 | OF30: 12 | OG30: 12 | OH30: 12 | OI30: 12 | OJ30: 12 | OK30: 16 | OL30: 16 | OM30: 12 | ON30: 12 | OO30: 12 | OP30: 12 | OQ30: 12 | OR30: 12 | OS30: 12 | OT30: 12 | OU30: 12 | OV30: 12 | OW30: 12 | OX30: 12 | OY30: 12 | OZ30: 12 | PA30: 12 | PB30: 12 | PC30: 12 | PD30: 12 | PE30: 12 | PF30: 12 | PG30: 12 | PH30: 12 | PI30: 69 | PJ30: 12 | PK30: 12 | PL30: 12 | PM30: 12 | PN30: 12 | PO30: 12 | PP30: 12 | PQ30: 12 | PR30: 19 | PS30: 19 | PT30: 12 | PU30: 12 | PV30: 12 | PW30: 12 | PX30: 12 | PY30: 12 | PZ30: 31 | QA30: 31 | QB30: 12 | QC30: 12 | QD30: 12 | QE30: 12 | QF30: 12 | QG30: 12 | QH30: 44 | QI30: 44 | QJ30: 12 | QK30: 12 | QL30: 12 | QM30: 12 | QN30: 12 | QO30: 12 | QP30: 48 | QQ30: 48 | QR30: 12 | QS30: 12 | QT30: 12 | QU30: 12 | QV30: 12 | QW30: 12 | QX30: 12 | QY30: 12 | QZ30: 12 | RA30: 12 | RB30: 12 | RC30: 12 | RD30: 12 | RE30: 12 | RF30: 12 | RG30: 12 | RH30: 12 | RI30: 12 | RJ30: 12 | RK30: 12 | RL30: 12 | RM30: 12 | RN30: 12 | RO30: 12 | RP30: 12 | RQ30: 12 | RR30: 12 | RS30: 12 | RT30: 12 | RU30: 12 | RV30: 12 | RW30: 12 | RX30: 12 | RY30: 12 | RZ30: 12 | SA30: 12 | SB30: 12 | SC30: 12 | SD30: 12 | SE30: 12 | SF30: 12 | SG30: 12 | SH30: 12 | SI30: 12 | SJ30: 12 | SK30: 12 | SL30: 12
A31: 2013thru2017 | B31: 155 | C31: 15500US0610044005 | D31: Amador County | E31: Amador County (part), Camanche Village CDP, California | F31: 1 | G31: 10044 | H31: 5 | I31: 285 | J31: 265 | K31: 45 | L31: 20 | M31: 20 | N31: 0 | O31: 0 | P31: 0 | Q31: 0 | R31: 0 | S31: 0 | T31: 0 | U31: 0 | V31: 0 | W31: 0 | X31: 0 | Y31: 0 | Z31: 0 | AA31: 0 | AB31: 10 | AC31: 10 | AD31: 0 | AE31: 0 | AF31: 0 | AG31: 0 | AH31: 0 | AI31: 0 | AJ31: 15 | AK31: 15 | AL31: 0 | AM31: 0 | AN31: 0 | AO31: 0 | AP31: 0 | AQ31: 0 | AR31: 0 | AS31: 0 | AT31: 0 | AU31: 0 | AV31: 0 | AW31: 0 | AX31: 0 | AY31: 0 | AZ31: 220 | BA31: 4 | BB31: 0 | BC31: 0 | BD31: 0 | BE31: 0 | BF31: 0 | BG31: 0 | BH31: 4 | BI31: 0 | BJ31: 0 | BK31: 0 | BL31: 0 | BM31: 0 | BN31: 0 | BO31: 0 | BP31: 0 | BQ31: 30 | BR31: 30 | BS31: 0 | BT31: 0 | BU31: 0 | BV31: 0 | BW31: 0 | BX31: 0 | BY31: 10 | BZ31: 10 | CA31: 0 | CB31: 0 | CC31: 0 | CD31: 0 | CE31: 0 | CF31: 0 | CG31: 175 | CH31: 150 | CI31: 0 | CJ31: 0 | CK31: 0 | CL31: 0 | CM31: 25 | CN31: 0 | CO31: 0 | CP31: 0 | CQ31: 0 | CR31: 0 | CS31: 0 | CT31: 0 | CU31: 0 | CV31: 0 | CW31: 0 | CX31: 0 | CY31: 0 | CZ31: 0 | DA31: 0 | DB31: 0 | DC31: 0 | DD31: 0 | DE31: 0 | DF31: 0 | DG31: 0 | DH31: 0 | DI31: 0 | DJ31: 0 | DK31: 0 | DL31: 0 | DM31: 0 | DN31: 0 | DO31: 0 | DP31: 0 | DQ31: 0 | DR31: 0 | DS31: 0 | DT31: 0 | DU31: 0 | DV31: 0 | DW31: 0 | DX31: 0 | DY31: 0 | DZ31: 0 | EA31: 0 | EB31: 0 | EC31: 0 | ED31: 20 | EE31: 0 | EF31: 0 | EG31: 0 | EH31: 0 | EI31: 0 | EJ31: 0 | EK31: 0 | EL31: 0 | EM31: 0 | EN31: 0 | EO31: 0 | EP31: 0 | EQ31: 0 | ER31: 0 | ES31: 0 | ET31: 0 | EU31: 0 | EV31: 0 | EW31: 0 | EX31: 0 | EY31: 0 | EZ31: 0 | FA31: 0 | FB31: 0 | FC31: 0 | FD31: 0 | FE31: 0 | FF31: 0 | FG31: 0 | FH31: 0 | FI31: 0 | FJ31: 0 | FK31: 0 | FL31: 0 | FM31: 0 | FN31: 0 | FO31: 0 | FP31: 0 | FQ31: 0 | FR31: 0 | FS31: 0 | FT31: 20 | FU31: 0 | FV31: 0 | FW31: 0 | FX31: 0 | FY31: 0 | FZ31: 0 | GA31: 0 | GB31: 0 | GC31: 0 | GD31: 0 | GE31: 0 | GF31: 0 | GG31: 0 | GH31: 0 | GI31: 0 | GJ31: 0 | GK31: 0 | GL31: 0 | GM31: 0 | GN31: 0 | GO31: 0 | GP31: 0 | GQ31: 0 | GR31: 0 | GS31: 0 | GT31: 0 | GU31: 0 | GV31: 0 | GW31: 0 | GX31: 0 | GY31: 0 | GZ31: 0 | HA31: 20 | HB31: 10 | HC31: 0 | HD31: 0 | HE31: 0 | HF31: 0 | HG31: 10 | HH31: 0 | HI31: 0 | HJ31: 0 | HK31: 0 | HL31: 0 | HM31: 0 | HN31: 0 | HO31: 0 | HP31: 0 | HQ31: 0 | HR31: 0 | HS31: 0 | HT31: 0 | HU31: 0 | HV31: 0 | HW31: 0 | HX31: 0 | HY31: 0 | HZ31: 0 | IA31: 0 | IB31: 0 | IC31: 0 | ID31: 0 | IE31: 0 | IF31: 0 | IG31: 0 | IH31: 0 | II31: 0 | IJ31: 0 | IK31: 0 | IL31: 0 | IM31: 0 | IN31: 0 | IO31: 0 | IP31: 0 | IQ31: 0 | IR31: 0 | IS31: 0 | IT31: 0 | IU31: 0 | IV31: 0 | IW31: 0 | IX31: 74 | IY31: 75 | IZ31: 30 | JA31: 26 | JB31: 26 | JC31: 12 | JD31: 12 | JE31: 12 | JF31: 12 | JG31: 12 | JH31: 12 | JI31: 12 | JJ31: 12 | JK31: 12 | JL31: 12 | JM31: 12 | JN31: 12 | JO31: 12 | JP31: 12 | JQ31: 14 | JR31: 14 | JS31: 12 | JT31: 12 | JU31: 12 | JV31: 12 | JW31: 12 | JX31: 12 | JY31: 22 | JZ31: 22 | KA31: 12 | KB31: 12 | KC31: 12 | KD31: 12 | KE31: 12 | KF31: 12 | KG31: 12 | KH31: 12 | KI31: 12 | KJ31: 12 | KK31: 12 | KL31: 12 | KM31: 12 | KN31: 12 | KO31: 75 | KP31: 12 | KQ31: 12 | KR31: 12 | KS31: 12 | KT31: 12 | KU31: 12 | KV31: 12 | KW31: 12 | KX31: 12 | KY31: 12 | KZ31: 12 | LA31: 12 | LB31: 12 | LC31: 12 | LD31: 12 | LE31: 12 | LF31: 31 | LG31: 31 | LH31: 12 | LI31: 12 | LJ31: 12 | LK31: 12 | LL31: 12 | LM31: 12 | LN31: 18 | LO31: 18 | LP31: 12 | LQ31: 12 | LR31: 12 | LS31: 12 | LT31: 12 | LU31: 12 | LV31: 77 | LW31: 80 | LX31: 12 | LY31: 12 | LZ31: 12 | MA31: 12 | MB31: 22 | MC31: 12 | MD31: 12 | ME31: 12 | MF31: 12 | MG31: 12 | MH31: 12 | MI31: 12 | MJ31: 12 | MK31: 12 | ML31: 12 | MM31: 12 | MN31: 12 | MO31: 12 | MP31: 12 | MQ31: 12 | MR31: 12 | MS31: 12 | MT31: 12 | MU31: 12 | MV31: 12 | MW31: 12 | MX31: 12 | MY31: 12 | MZ31: 12 | NA31: 12 | NB31: 12 | NC31: 12 | ND31: 12 | NE31: 12 | NF31: 12 | NG31: 12 | NH31: 12 | NI31: 12 | NJ31: 12 | NK31: 12 | NL31: 12 | NM31: 12 | NN31: 12 | NO31: 12 | NP31: 12 | NQ31: 12 | NR31: 12 | NS31: 25 | NT31: 12 | NU31: 12 | NV31: 12 | NW31: 12 | NX31: 12 | NY31: 12 | NZ31: 12 | OA31: 12 | OB31: 12 | OC31: 12 | OD31: 12 | OE31: 12 | OF31: 12 | OG31: 12 | OH31: 12 | OI31: 12 | OJ31: 12 | OK31: 12 | OL31: 12 | OM31: 12 | ON31: 12 | OO31: 12 | OP31: 12 | OQ31: 12 | OR31: 12 | OS31: 12 | OT31: 12 | OU31: 12 | OV31: 12 | OW31: 12 | OX31: 12 | OY31: 12 | OZ31: 12 | PA31: 12 | PB31: 12 | PC31: 12 | PD31: 12 | PE31: 12 | PF31: 12 | PG31: 12 | PH31: 12 | PI31: 25 | PJ31: 12 | PK31: 12 | PL31: 12 | PM31: 12 | PN31: 12 | PO31: 12 | PP31: 12 | PQ31: 12 | PR31: 12 | PS31: 12 | PT31: 12 | PU31: 12 | PV31: 12 | PW31: 12 | PX31: 12 | PY31: 12 | PZ31: 12 | QA31: 12 | QB31: 12 | QC31: 12 | QD31: 12 | QE31: 12 | QF31: 12 | QG31: 12 | QH31: 12 | QI31: 12 | QJ31: 12 | QK31: 12 | QL31: 12 | QM31: 12 | QN31: 12 | QO31: 12 | QP31: 25 | QQ31: 15 | QR31: 12 | QS31: 12 | QT31: 12 | QU31: 12 | QV31: 19 | QW31: 12 | QX31: 12 | QY31: 12 | QZ31: 12 | RA31: 12 | RB31: 12 | RC31: 12 | RD31: 12 | RE31: 12 | RF31: 12 | RG31: 12 | RH31: 12 | RI31: 12 | RJ31: 12 | RK31: 12 | RL31: 12 | RM31: 12 | RN31: 12 | RO31: 12 | RP31: 12 | RQ31: 12 | RR31: 12 | RS31: 12 | RT31: 12 | RU31: 12 | RV31: 12 | RW31: 12 | RX31: 12 | RY31: 12 | RZ31: 12 | SA31: 12 | SB31: 12 | SC31: 12 | SD31: 12 | SE31: 12 | SF31: 12 | SG31: 12 | SH31: 12 | SI31: 12 | SJ31: 12 | SK31: 12 | SL31: 12
A32: 2013thru2017 | B32: 155 | C32: 15500US0619976005 | D32: Amador County | E32: Amador County (part), Drytown CDP, California | F32: 1 | G32: 19976 | H32: 5 | I32: 70 | J32: 70 | K32: 70 | L32: 15 | M32: 15 | N32: 0 | O32: 0 | P32: 0 | Q32: 0 | R32: 0 | S32: 0 | T32: 0 | U32: 0 | V32: 0 | W32: 0 | X32: 0 | Y32: 0 | Z32: 0 | AA32: 0 | AB32: 4 | AC32: 4 | AD32: 0 | AE32: 0 | AF32: 0 | AG32: 0 | AH32: 0 | AI32: 0 | AJ32: 0 | AK32: 0 | AL32: 0 | AM32: 0 | AN32: 0 | AO32: 0 | AP32: 0 | AQ32: 0 | AR32: 50 | AS32: 0 | AT32: 0 | AU32: 50 | AV32: 0 | AW32: 0 | AX32: 0 | AY32: 0 | AZ32: 0 | BA32: 0 | BB32: 0 | BC32: 0 | BD32: 0 | BE32: 0 | BF32: 0 | BG32: 0 | BH32: 0 | BI32: 0 | BJ32: 0 | BK32: 0 | BL32: 0 | BM32: 0 | BN32: 0 | BO32: 0 | BP32: 0 | BQ32: 0 | BR32: 0 | BS32: 0 | BT32: 0 | BU32: 0 | BV32: 0 | BW32: 0 | BX32: 0 | BY32: 0 | BZ32: 0 | CA32: 0 | CB32: 0 | CC32: 0 | CD32: 0 | CE32: 0 | CF32: 0 | CG32: 0 | CH32: 0 | CI32: 0 | CJ32: 0 | CK32: 0 | CL32: 0 | CM32: 0 | CN32: 0 | CO32: 0 | CP32: 0 | CQ32: 0 | CR32: 0 | CS32: 0 | CT32: 0 | CU32: 0 | CV32: 0 | CW32: 0 | CX32: 0 | CY32: 0 | CZ32: 0 | DA32: 0 | DB32: 0 | DC32: 0 | DD32: 0 | DE32: 0 | DF32: 0 | DG32: 0 | DH32: 0 | DI32: 0 | DJ32: 0 | DK32: 0 | DL32: 0 | DM32: 0 | DN32: 0 | DO32: 0 | DP32: 0 | DQ32: 0 | DR32: 0 | DS32: 0 | DT32: 0 | DU32: 0 | DV32: 0 | DW32: 0 | DX32: 0 | DY32: 0 | DZ32: 0 | EA32: 0 | EB32: 0 | EC32: 0 | ED32: 0 | EE32: 0 | EF32: 0 | EG32: 0 | EH32: 0 | EI32: 0 | EJ32: 0 | EK32: 0 | EL32: 0 | EM32: 0 | EN32: 0 | EO32: 0 | EP32: 0 | EQ32: 0 | ER32: 0 | ES32: 0 | ET32: 0 | EU32: 0 | EV32: 0 | EW32: 0 | EX32: 0 | EY32: 0 | EZ32: 0 | FA32: 0 | FB32: 0 | FC32: 0 | FD32: 0 | FE32: 0 | FF32: 0 | FG32: 0 | FH32: 0 | FI32: 0 | FJ32: 0 | FK32: 0 | FL32: 0 | FM32: 0 | FN32: 0 | FO32: 0 | FP32: 0 | FQ32: 0 | FR32: 0 | FS32: 0 | FT32: 0 | FU32: 0 | FV32: 0 | FW32: 0 | FX32: 0 | FY32: 0 | FZ32: 0 | GA32: 0 | GB32: 0 | GC32: 0 | GD32: 0 | GE32: 0 | GF32: 0 | GG32: 0 | GH32: 0 | GI32: 0 | GJ32: 0 | GK32: 0 | GL32: 0 | GM32: 0 | GN32: 0 | GO32: 0 | GP32: 0 | GQ32: 0 | GR32: 0 | GS32: 0 | GT32: 0 | GU32: 0 | GV32: 0 | GW32: 0 | GX32: 0 | GY32: 0 | GZ32: 0 | HA32: 0 | HB32: 0 | HC32: 0 | HD32: 0 | HE32: 0 | HF32: 0 | HG32: 0 | HH32: 0 | HI32: 0 | HJ32: 0 | HK32: 0 | HL32: 0 | HM32: 0 | HN32: 0 | HO32: 0 | HP32: 0 | HQ32: 0 | HR32: 0 | HS32: 0 | HT32: 0 | HU32: 0 | HV32: 0 | HW32: 0 | HX32: 0 | HY32: 0 | HZ32: 0 | IA32: 0 | IB32: 0 | IC32: 0 | ID32: 0 | IE32: 0 | IF32: 0 | IG32: 0 | IH32: 0 | II32: 0 | IJ32: 0 | IK32: 0 | IL32: 0 | IM32: 0 | IN32: 0 | IO32: 0 | IP32: 0 | IQ32: 0 | IR32: 0 | IS32: 0 | IT32: 0 | IU32: 0 | IV32: 0 | IW32: 0 | IX32: 63 | IY32: 63 | IZ32: 63 | JA32: 22 | JB32: 22 | JC32: 12 | JD32: 12 | JE32: 12 | JF32: 12 | JG32: 12 | JH32: 12 | JI32: 12 | JJ32: 12 | JK32: 12 | JL32: 12 | JM32: 12 | JN32: 12 | JO32: 12 | JP32: 12 | JQ32: 10 | JR32: 10 | JS32: 12 | JT32: 12 | JU32: 12 | JV32: 12 | JW32: 12 | JX32: 12 | JY32: 12 | JZ32: 12 | KA32: 12 | KB32: 12 | KC32: 12 | KD32: 12 | KE32: 12 | KF32: 12 | KG32: 50 | KH32: 12 | KI32: 12 | KJ32: 50 | KK32: 12 | KL32: 12 | KM32: 12 | KN32: 12 | KO32: 12 | KP32: 12 | KQ32: 12 | KR32: 12 | KS32: 12 | KT32: 12 | KU32: 12 | KV32: 12 | KW32: 12 | KX32: 12 | KY32: 12 | KZ32: 12 | LA32: 12 | LB32: 12 | LC32: 12 | LD32: 12 | LE32: 12 | LF32: 12 | LG32: 12 | LH32: 12 | LI32: 12 | LJ32: 12 | LK32: 12 | LL32: 12 | LM32: 12 | LN32: 12 | LO32: 12 | LP32: 12 | LQ32: 12 | LR32: 12 | LS32: 12 | LT32: 12 | LU32: 12 | LV32: 12 | LW32: 12 | LX32: 12 | LY32: 12 | LZ32: 12 | MA32: 12 | MB32: 12 | MC32: 12 | MD32: 12 | ME32: 12 | MF32: 12 | MG32: 12 | MH32: 12 | MI32: 12 | MJ32: 12 | MK32: 12 | ML32: 12 | MM32: 12 | MN32: 12 | MO32: 12 | MP32: 12 | MQ32: 12 | MR32: 12 | MS32: 12 | MT32: 12 | MU32: 12 | MV32: 12 | MW32: 12 | MX32: 12 | MY32: 12 | MZ32: 12 | NA32: 12 | NB32: 12 | NC32: 12 | ND32: 12 | NE32: 12 | NF32: 12 | NG32: 12 | NH32: 12 | NI32: 12 | NJ32: 12 | NK32: 12 | NL32: 12 | NM32: 12 | NN32: 12 | NO32: 12 | NP32: 12 | NQ32: 12 | NR32: 12 | NS32: 12 | NT32: 12 | NU32: 12 | NV32: 12 | NW32: 12 | NX32: 12 | NY32: 12 | NZ32: 12 | OA32: 12 | OB32: 12 | OC32: 12 | OD32: 12 | OE32: 12 | OF32: 12 | OG32: 12 | OH32: 12 | OI32: 12 | OJ32: 12 | OK32: 12 | OL32: 12 | OM32: 12 | ON32: 12 | OO32: 12 | OP32: 12 | OQ32: 12 | OR32: 12 | OS32: 12 | OT32: 12 | OU32: 12 | OV32: 12 | OW32: 12 | OX32: 12 | OY32: 12 | OZ32: 12 | PA32: 12 | PB32: 12 | PC32: 12 | PD32: 12 | PE32: 12 | PF32: 12 | PG32: 12 | PH32: 12 | PI32: 12 | PJ32: 12 | PK32: 12 | PL32: 12 | PM32: 12 | PN32: 12 | PO32: 12 | PP32: 12 | PQ32: 12 | PR32: 12 | PS32: 12 | PT32: 12 | PU32: 12 | PV32: 12 | PW32: 12 | PX32: 12 | PY32: 12 | PZ32: 12 | QA32: 12 | QB32: 12 | QC32: 12 | QD32: 12 | QE32: 12 | QF32: 12 | QG32: 12 | QH32: 12 | QI32: 12 | QJ32: 12 | QK32: 12 | QL32: 12 | QM32: 12 | QN32: 12 | QO32: 12 | QP32: 12 | QQ32: 12 | QR32: 12 | QS32: 12 | QT32: 12 | QU32: 12 | QV32: 12 | QW32: 12 | QX32: 12 | QY32: 12 | QZ32: 12 | RA32: 12 | RB32: 12 | RC32: 12 | RD32: 12 | RE32: 12 | RF32: 12 | RG32: 12 | RH32: 12 | RI32: 12 | RJ32: 12 | RK32: 12 | RL32: 12 | RM32: 12 | RN32: 12 | RO32: 12 | RP32: 12 | RQ32: 12 | RR32: 12 | RS32: 12 | RT32: 12 | RU32: 12 | RV32: 12 | RW32: 12 | RX32: 12 | RY32: 12 | RZ32: 12 | SA32: 12 | SB32: 12 | SC32: 12 | SD32: 12 | SE32: 12 | SF32: 12 | SG32: 12 | SH32: 12 | SI32: 12 | SJ32: 12 | SK32: 12 | SL32: 12
A33: 2013thru2017 | B33: 155 | C33: 15500US0623980005 | D33: Amador County | E33: Amador County (part), Fiddletown CDP, California | F33: 1 | G33: 23980 | H33: 5 | I33: 145 | J33: 55 | K33: 10 | L33: 0 | M33: 0 | N33: 0 | O33: 0 | P33: 0 | Q33: 0 | R33: 0 | S33: 0 | T33: 0 | U33: 0 | V33: 0 | W33: 0 | X33: 0 | Y33: 0 | Z33: 0 | AA33: 0 | AB33: 10 | AC33: 0 | AD33: 0 | AE33: 0 | AF33: 0 | AG33: 0 | AH33: 10 | AI33: 0 | AJ33: 0 | AK33: 0 | AL33: 0 | AM33: 0 | AN33: 0 | AO33: 0 | AP33: 0 | AQ33: 0 | AR33: 0 | AS33: 0 | AT33: 0 | AU33: 0 | AV33: 0 | AW33: 0 | AX33: 0 | AY33: 0 | AZ33: 45 | BA33: 0 | BB33: 0 | BC33: 0 | BD33: 0 | BE33: 0 | BF33: 0 | BG33: 0 | BH33: 0 | BI33: 0 | BJ33: 0 | BK33: 0 | BL33: 0 | BM33: 0 | BN33: 0 | BO33: 0 | BP33: 0 | BQ33: 0 | BR33: 0 | BS33: 0 | BT33: 0 | BU33: 0 | BV33: 0 | BW33: 0 | BX33: 0 | BY33: 0 | BZ33: 0 | CA33: 0 | CB33: 0 | CC33: 0 | CD33: 0 | CE33: 0 | CF33: 0 | CG33: 45 | CH33: 45 | CI33: 0 | CJ33: 0 | CK33: 0 | CL33: 0 | CM33: 0 | CN33: 0 | CO33: 0 | CP33: 0 | CQ33: 0 | CR33: 0 | CS33: 0 | CT33: 0 | CU33: 0 | CV33: 0 | CW33: 0 | CX33: 0 | CY33: 0 | CZ33: 0 | DA33: 0 | DB33: 0 | DC33: 0 | DD33: 0 | DE33: 0 | DF33: 0 | DG33: 0 | DH33: 0 | DI33: 0 | DJ33: 0 | DK33: 0 | DL33: 0 | DM33: 0 | DN33: 0 | DO33: 0 | DP33: 0 | DQ33: 0 | DR33: 0 | DS33: 0 | DT33: 0 | DU33: 0 | DV33: 0 | DW33: 0 | DX33: 0 | DY33: 0 | DZ33: 0 | EA33: 0 | EB33: 0 | EC33: 0 | ED33: 90 | EE33: 15 | EF33: 15 | EG33: 15 | EH33: 0 | EI33: 0 | EJ33: 0 | EK33: 0 | EL33: 0 | EM33: 0 | EN33: 0 | EO33: 0 | EP33: 0 | EQ33: 0 | ER33: 0 | ES33: 0 | ET33: 0 | EU33: 0 | EV33: 0 | EW33: 0 | EX33: 0 | EY33: 0 | EZ33: 0 | FA33: 0 | FB33: 0 | FC33: 0 | FD33: 0 | FE33: 0 | FF33: 0 | FG33: 0 | FH33: 0 | FI33: 0 | FJ33: 0 | FK33: 0 | FL33: 0 | FM33: 0 | FN33: 0 | FO33: 0 | FP33: 0 | FQ33: 0 | FR33: 0 | FS33: 0 | FT33: 75 | FU33: 0 | FV33: 0 | FW33: 0 | FX33: 0 | FY33: 0 | FZ33: 0 | GA33: 0 | GB33: 0 | GC33: 0 | GD33: 0 | GE33: 0 | GF33: 0 | GG33: 0 | GH33: 0 | GI33: 0 | GJ33: 0 | GK33: 0 | GL33: 0 | GM33: 0 | GN33: 0 | GO33: 0 | GP33: 0 | GQ33: 0 | GR33: 0 | GS33: 0 | GT33: 0 | GU33: 0 | GV33: 0 | GW33: 0 | GX33: 0 | GY33: 0 | GZ33: 0 | HA33: 75 | HB33: 75 | HC33: 0 | HD33: 0 | HE33: 0 | HF33: 0 | HG33: 0 | HH33: 0 | HI33: 0 | HJ33: 0 | HK33: 0 | HL33: 0 | HM33: 0 | HN33: 0 | HO33: 0 | HP33: 0 | HQ33: 0 | HR33: 0 | HS33: 0 | HT33: 0 | HU33: 0 | HV33: 0 | HW33: 0 | HX33: 0 | HY33: 0 | HZ33: 0 | IA33: 0 | IB33: 0 | IC33: 0 | ID33: 0 | IE33: 0 | IF33: 0 | IG33: 0 | IH33: 0 | II33: 0 | IJ33: 0 | IK33: 0 | IL33: 0 | IM33: 0 | IN33: 0 | IO33: 0 | IP33: 0 | IQ33: 0 | IR33: 0 | IS33: 0 | IT33: 0 | IU33: 0 | IV33: 0 | IW33: 0 | IX33: 88 | IY33: 38 | IZ33: 16 | JA33: 12 | JB33: 12 | JC33: 12 | JD33: 12 | JE33: 12 | JF33: 12 | JG33: 12 | JH33: 12 | JI33: 12 | JJ33: 12 | JK33: 12 | JL33: 12 | JM33: 12 | JN33: 12 | JO33: 12 | JP33: 12 | JQ33: 16 | JR33: 12 | JS33: 12 | JT33: 12 | JU33: 12 | JV33: 12 | JW33: 16 | JX33: 12 | JY33: 12 | JZ33: 12 | KA33: 12 | KB33: 12 | KC33: 12 | KD33: 12 | KE33: 12 | KF33: 12 | KG33: 12 | KH33: 12 | KI33: 12 | KJ33: 12 | KK33: 12 | KL33: 12 | KM33: 12 | KN33: 12 | KO33: 37 | KP33: 12 | KQ33: 12 | KR33: 12 | KS33: 12 | KT33: 12 | KU33: 12 | KV33: 12 | KW33: 12 | KX33: 12 | KY33: 12 | KZ33: 12 | LA33: 12 | LB33: 12 | LC33: 12 | LD33: 12 | LE33: 12 | LF33: 12 | LG33: 12 | LH33: 12 | LI33: 12 | LJ33: 12 | LK33: 12 | LL33: 12 | LM33: 12 | LN33: 12 | LO33: 12 | LP33: 12 | LQ33: 12 | LR33: 12 | LS33: 12 | LT33: 12 | LU33: 12 | LV33: 37 | LW33: 37 | LX33: 12 | LY33: 12 | LZ33: 12 | MA33: 12 | MB33: 12 | MC33: 12 | MD33: 12 | ME33: 12 | MF33: 12 | MG33: 12 | MH33: 12 | MI33: 12 | MJ33: 12 | MK33: 12 | ML33: 12 | MM33: 12 | MN33: 12 | MO33: 12 | MP33: 12 | MQ33: 12 | MR33: 12 | MS33: 12 | MT33: 12 | MU33: 12 | MV33: 12 | MW33: 12 | MX33: 12 | MY33: 12 | MZ33: 12 | NA33: 12 | NB33: 12 | NC33: 12 | ND33: 12 | NE33: 12 | NF33: 12 | NG33: 12 | NH33: 12 | NI33: 12 | NJ33: 12 | NK33: 12 | NL33: 12 | NM33: 12 | NN33: 12 | NO33: 12 | NP33: 12 | NQ33: 12 | NR33: 12 | NS33: 80 | NT33: 27 | NU33: 27 | NV33: 27 | NW33: 12 | NX33: 12 | NY33: 12 | NZ33: 12 | OA33: 12 | OB33: 12 | OC33: 12 | OD33: 12 | OE33: 12 | OF33: 12 | OG33: 12 | OH33: 12 | OI33: 12 | OJ33: 12 | OK33: 12 | OL33: 12 | OM33: 12 | ON33: 12 | OO33: 12 | OP33: 12 | OQ33: 12 | OR33: 12 | OS33: 12 | OT33: 12 | OU33: 12 | OV33: 12 | OW33: 12 | OX33: 12 | OY33: 12 | OZ33: 12 | PA33: 12 | PB33: 12 | PC33: 12 | PD33: 12 | PE33: 12 | PF33: 12 | PG33: 12 | PH33: 12 | PI33: 76 | PJ33: 12 | PK33: 12 | PL33: 12 | PM33: 12 | PN33: 12 | PO33: 12 | PP33: 12 | PQ33: 12 | PR33: 12 | PS33: 12 | PT33: 12 | PU33: 12 | PV33: 12 | PW33: 12 | PX33: 12 | PY33: 12 | PZ33: 12 | QA33: 12 | QB33: 12 | QC33: 12 | QD33: 12 | QE33: 12 | QF33: 12 | QG33: 12 | QH33: 12 | QI33: 12 | QJ33: 12 | QK33: 12 | QL33: 12 | QM33: 12 | QN33: 12 | QO33: 12 | QP33: 76 | QQ33: 76 | QR33: 12 | QS33: 12 | QT33: 12 | QU33: 12 | QV33: 12 | QW33: 12 | QX33: 12 | QY33: 12 | QZ33: 12 | RA33: 12 | RB33: 12 | RC33: 12 | RD33: 12 | RE33: 12 | RF33: 12 | RG33: 12 | RH33: 12 | RI33: 12 | RJ33: 12 | RK33: 12 | RL33: 12 | RM33: 12 | RN33: 12 | RO33: 12 | RP33: 12 | RQ33: 12 | RR33: 12 | RS33: 12 | RT33: 12 | RU33: 12 | RV33: 12 | RW33: 12 | RX33: 12 | RY33: 12 | RZ33: 12 | SA33: 12 | SB33: 12 | SC33: 12 | SD33: 12 | SE33: 12 | SF33: 12 | SG33: 12 | SH33: 12 | SI33: 12 | SJ33: 12 | SK33: 12 | SL33: 12
A34: 2013thru2017 | B34: 155 | C34: 15500US0636672005 | D34: Amador County | E34: Amador County (part), Ione city, California | G34: 36672 | H34: 5 | I34: 1520 | J34: 1205 | K34: 160 | L34: 85 | M34: 55 | N34: 0 | O34: 0 | P34: 0 | Q34: 0 | R34: 30 | S34: 0 | T34: 55 | U34: 40 | V34: 0 | W34: 0 | X34: 0 | Y34: 0 | Z34: 20 | AA34: 0 | AB34: 25 | AC34: 25 | AD34: 0 | AE34: 0 | AF34: 0 | AG34: 0 | AH34: 0 | AI34: 0 | AJ34: 0 | AK34: 0 | AL34: 0 | AM34: 0 | AN34: 0 | AO34: 0 | AP34: 0 | AQ34: 0 | AR34: 0 | AS34: 0 | AT34: 0 | AU34: 0 | AV34: 0 | AW34: 0 | AX34: 0 | AY34: 0 | AZ34: 1045 | BA34: 0 | BB34: 0 | BC34: 0 | BD34: 0 | BE34: 0 | BF34: 0 | BG34: 0 | BH34: 0 | BI34: 55 | BJ34: 55 | BK34: 0 | BL34: 0 | BM34: 0 | BN34: 0 | BO34: 0 | BP34: 0 | BQ34: 75 | BR34: 75 | BS34: 0 | BT34: 0 | BU34: 0 | BV34: 0 | BW34: 0 | BX34: 0 | BY34: 145 | BZ34: 145 | CA34: 0 | CB34: 0 | CC34: 0 | CD34: 0 | CE34: 0 | CF34: 0 | CG34: 770 | CH34: 675 | CI34: 0 | CJ34: 0 | CK34: 15 | CL34: 0 | CM34: 85 | CN34: 0 | CO34: 0 | CP34: 0 | CQ34: 0 | CR34: 0 | CS34: 0 | CT34: 0 | CU34: 0 | CV34: 0 | CW34: 0 | CX34: 0 | CY34: 0 | CZ34: 0 | DA34: 0 | DB34: 0 | DC34: 0 | DD34: 0 | DE34: 0 | DF34: 0 | DG34: 0 | DH34: 0 | DI34: 0 | DJ34: 0 | DK34: 0 | DL34: 0 | DM34: 0 | DN34: 0 | DO34: 0 | DP34: 0 | DQ34: 0 | DR34: 0 | DS34: 0 | DT34: 0 | DU34: 0 | DV34: 0 | DW34: 0 | DX34: 0 | DY34: 0 | DZ34: 0 | EA34: 0 | EB34: 0 | EC34: 0 | ED34: 315 | EE34: 105 | EF34: 50 | EG34: 50 | EH34: 0 | EI34: 0 | EJ34: 0 | EK34: 0 | EL34: 0 | EM34: 0 | EN34: 30 | EO34: 4 | EP34: 0 | EQ34: 0 | ER34: 0 | ES34: 0 | ET34: 25 | EU34: 0 | EV34: 25 | EW34: 25 | EX34: 0 | EY34: 0 | EZ34: 0 | FA34: 0 | FB34: 0 | FC34: 0 | FD34: 0 | FE34: 0 | FF34: 0 | FG34: 0 | FH34: 0 | FI34: 0 | FJ34: 0 | FK34: 0 | FL34: 0 | FM34: 0 | FN34: 0 | FO34: 0 | FP34: 0 | FQ34: 0 | FR34: 0 | FS34: 0 | FT34: 210 | FU34: 25 | FV34: 25 | FW34: 0 | FX34: 0 | FY34: 0 | FZ34: 0 | GA34: 0 | GB34: 0 | GC34: 0 | GD34: 0 | GE34: 0 | GF34: 0 | GG34: 0 | GH34: 0 | GI34: 0 | GJ34: 0 | GK34: 80 | GL34: 80 | GM34: 0 | GN34: 0 | GO34: 0 | GP34: 0 | GQ34: 0 | GR34: 0 | GS34: 4 | GT34: 4 | GU34: 0 | GV34: 0 | GW34: 0 | GX34: 0 | GY34: 0 | GZ34: 0 | HA34: 100 | HB34: 95 | HC34: 0 | HD34: 0 | HE34: 0 | HF34: 0 | HG34: 4 | HH34: 0 | HI34: 0 | HJ34: 0 | HK34: 0 | HL34: 0 | HM34: 0 | HN34: 0 | HO34: 0 | HP34: 0 | HQ34: 0 | HR34: 0 | HS34: 0 | HT34: 0 | HU34: 0 | HV34: 0 | HW34: 0 | HX34: 0 | HY34: 0 | HZ34: 0 | IA34: 0 | IB34: 0 | IC34: 0 | ID34: 0 | IE34: 0 | IF34: 0 | IG34: 0 | IH34: 0 | II34: 0 | IJ34: 0 | IK34: 0 | IL34: 0 | IM34: 0 | IN34: 0 | IO34: 0 | IP34: 0 | IQ34: 0 | IR34: 0 | IS34: 0 | IT34: 0 | IU34: 0 | IV34: 0 | IW34: 0 | IX34: 201 | IY34: 176 | IZ34: 75 | JA34: 54 | JB34: 40 | JC34: 17 | JD34: 17 | JE34: 17 | JF34: 17 | JG34: 43 | JH34: 17 | JI34: 45 | JJ34: 40 | JK34: 17 | JL34: 17 | JM34: 17 | JN34: 17 | JO34: 28 | JP34: 17 | JQ34: 31 | JR34: 31 | JS34: 17 | JT34: 17 | JU34: 17 | JV34: 17 | JW34: 17 | JX34: 17 | JY34: 17 | JZ34: 17 | KA34: 17 | KB34: 17 | KC34: 17 | KD34: 17 | KE34: 17 | KF34: 17 | KG34: 17 | KH34: 17 | KI34: 17 | KJ34: 17 | KK34: 17 | KL34: 17 | KM34: 17 | KN34: 17 | KO34: 171 | KP34: 17 | KQ34: 17 | KR34: 17 | KS34: 17 | KT34: 17 | KU34: 17 | KV34: 17 | KW34: 17 | KX34: 47 | KY34: 47 | KZ34: 17 | LA34: 17 | LB34: 17 | LC34: 17 | LD34: 17 | LE34: 17 | LF34: 54 | LG34: 54 | LH34: 17 | LI34: 17 | LJ34: 17 | LK34: 17 | LL34: 17 | LM34: 17 | LN34: 91 | LO34: 91 | LP34: 17 | LQ34: 17 | LR34: 17 | LS34: 17 | LT34: 17 | LU34: 17 | LV34: 147 | LW34: 162 | LX34: 17 | LY34: 17 | LZ34: 27 | MA34: 17 | MB34: 61 | MC34: 17 | MD34: 17 | ME34: 17 | MF34: 17 | MG34: 17 | MH34: 17 | MI34: 17 | MJ34: 17 | MK34: 17 | ML34: 17 | MM34: 17 | MN34: 17 | MO34: 17 | MP34: 17 | MQ34: 17 | MR34: 17 | MS34: 17 | MT34: 17 | MU34: 17 | MV34: 17 | MW34: 17 | MX34: 17 | MY34: 17 | MZ34: 17 | NA34: 17 | NB34: 17 | NC34: 17 | ND34: 17 | NE34: 17 | NF34: 17 | NG34: 17 | NH34: 17 | NI34: 17 | NJ34: 17 | NK34: 17 | NL34: 17 | NM34: 17 | NN34: 17 | NO34: 17 | NP34: 17 | NQ34: 17 | NR34: 17 | NS34: 102 | NT34: 68 | NU34: 60 | NV34: 60 | NW34: 17 | NX34: 17 | NY34: 17 | NZ34: 17 | OA34: 17 | OB34: 17 | OC34: 42 | OD34: 1 | OE34: 17 | OF34: 17 | OG34: 17 | OH34: 17 | OI34: 41 | OJ34: 17 | OK34: 35 | OL34: 35 | OM34: 17 | ON34: 17 | OO34: 17 | OP34: 17 | OQ34: 17 | OR34: 17 | OS34: 17 | OT34: 17 | OU34: 17 | OV34: 17 | OW34: 17 | OX34: 17 | OY34: 17 | OZ34: 17 | PA34: 17 | PB34: 17 | PC34: 17 | PD34: 17 | PE34: 17 | PF34: 17 | PG34: 17 | PH34: 17 | PI34: 105 | PJ34: 30 | PK34: 30 | PL34: 17 | PM34: 17 | PN34: 17 | PO34: 17 | PP34: 17 | PQ34: 17 | PR34: 17 | PS34: 17 | PT34: 17 | PU34: 17 | PV34: 17 | PW34: 17 | PX34: 17 | PY34: 17 | PZ34: 67 | QA34: 67 | QB34: 17 | QC34: 17 | QD34: 17 | QE34: 17 | QF34: 17 | QG34: 17 | QH34: 6 | QI34: 6 | QJ34: 17 | QK34: 17 | QL34: 17 | QM34: 17 | QN34: 17 | QO34: 17 | QP34: 71 | QQ34: 70 | QR34: 17 | QS34: 17 | QT34: 17 | QU34: 17 | QV34: 1 | QW34: 17 | QX34: 17 | QY34: 17 | QZ34: 17 | RA34: 17 | RB34: 17 | RC34: 17 | RD34: 17 | RE34: 17 | RF34: 17 | RG34: 17 | RH34: 17 | RI34: 17 | RJ34: 17 | RK34: 17 | RL34: 17 | RM34: 17 | RN34: 17 | RO34: 17 | RP34: 17 | RQ34: 17 | RR34: 17 | RS34: 17 | RT34: 17 | RU34: 17 | RV34: 17 | RW34: 17 | RX34: 17 | RY34: 17 | RZ34: 17 | SA34: 17 | SB34: 17 | SC34: 17 | SD34: 17 | SE34: 17 | SF34: 17 | SG34: 17 | SH34: 17 | SI34: 17 | SJ34: 17 | SK34: 17 | SL34: 17
A35: 2013thru2017 | B35: 155 | C35: 15500US0636980005 | D35: Amador County | E35: Amador County (part), Jackson city, California | G35: 36980 | H35: 5 | I35: 2055 | J35: 1230 | K35: 240 | L35: 110 | M35: 110 | N35: 0 | O35: 0 | P35: 0 | Q35: 0 | R35: 0 | S35: 0 | T35: 75 | U35: 75 | V35: 0 | W35: 0 | X35: 0 | Y35: 0 | Z35: 0 | AA35: 0 | AB35: 25 | AC35: 25 | AD35: 0 | AE35: 0 | AF35: 0 | AG35: 0 | AH35: 0 | AI35: 0 | AJ35: 30 | AK35: 30 | AL35: 0 | AM35: 0 | AN35: 0 | AO35: 0 | AP35: 0 | AQ35: 0 | AR35: 0 | AS35: 0 | AT35: 0 | AU35: 0 | AV35: 0 | AW35: 0 | AX35: 0 | AY35: 0 | AZ35: 990 | BA35: 0 | BB35: 0 | BC35: 0 | BD35: 0 | BE35: 0 | BF35: 0 | BG35: 0 | BH35: 0 | BI35: 125 | BJ35: 125 | BK35: 0 | BL35: 0 | BM35: 0 | BN35: 0 | BO35: 0 | BP35: 0 | BQ35: 210 | BR35: 200 | BS35: 0 | BT35: 0 | BU35: 0 | BV35: 0 | BW35: 10 | BX35: 0 | BY35: 85 | BZ35: 85 | CA35: 0 | CB35: 0 | CC35: 0 | CD35: 0 | CE35: 0 | CF35: 0 | CG35: 570 | CH35: 495 | CI35: 0 | CJ35: 4 | CK35: 0 | CL35: 0 | CM35: 10 | CN35: 60 | CO35: 0 | CP35: 0 | CQ35: 0 | CR35: 0 | CS35: 0 | CT35: 0 | CU35: 0 | CV35: 0 | CW35: 0 | CX35: 0 | CY35: 0 | CZ35: 0 | DA35: 0 | DB35: 0 | DC35: 0 | DD35: 0 | DE35: 0 | DF35: 0 | DG35: 0 | DH35: 0 | DI35: 0 | DJ35: 0 | DK35: 0 | DL35: 0 | DM35: 0 | DN35: 0 | DO35: 0 | DP35: 0 | DQ35: 0 | DR35: 0 | DS35: 0 | DT35: 0 | DU35: 0 | DV35: 0 | DW35: 0 | DX35: 0 | DY35: 0 | DZ35: 0 | EA35: 0 | EB35: 0 | EC35: 0 | ED35: 825 | EE35: 235 | EF35: 65 | EG35: 55 | EH35: 0 | EI35: 0 | EJ35: 0 | EK35: 0 | EL35: 10 | EM35: 0 | EN35: 150 | EO35: 125 | EP35: 0 | EQ35: 0 | ER35: 0 | ES35: 0 | ET35: 25 | EU35: 0 | EV35: 0 | EW35: 0 | EX35: 0 | EY35: 0 | EZ35: 0 | FA35: 0 | FB35: 0 | FC35: 0 | FD35: 0 | FE35: 0 | FF35: 0 | FG35: 0 | FH35: 0 | FI35: 0 | FJ35: 0 | FK35: 0 | FL35: 20 | FM35: 20 | FN35: 0 | FO35: 0 | FP35: 0 | FQ35: 0 | FR35: 0 | FS35: 0 | FT35: 595 | FU35: 40 | FV35: 35 | FW35: 0 | FX35: 0 | FY35: 0 | FZ35: 0 | GA35: 4 | GB35: 0 | GC35: 160 | GD35: 160 | GE35: 0 | GF35: 0 | GG35: 0 | GH35: 0 | GI35: 0 | GJ35: 0 | GK35: 110 | GL35: 75 | GM35: 0 | GN35: 0 | GO35: 0 | GP35: 0 | GQ35: 0 | GR35: 35 | GS35: 30 | GT35: 30 | GU35: 0 | GV35: 0 | GW35: 0 | GX35: 0 | GY35: 0 | GZ35: 0 | HA35: 260 | HB35: 185 | HC35: 0 | HD35: 30 | HE35: 0 | HF35: 0 | HG35: 25 | HH35: 15 | HI35: 0 | HJ35: 0 | HK35: 0 | HL35: 0 | HM35: 0 | HN35: 0 | HO35: 0 | HP35: 0 | HQ35: 0 | HR35: 0 | HS35: 0 | HT35: 0 | HU35: 0 | HV35: 0 | HW35: 0 | HX35: 0 | HY35: 0 | HZ35: 0 | IA35: 0 | IB35: 0 | IC35: 0 | ID35: 0 | IE35: 0 | IF35: 0 | IG35: 0 | IH35: 0 | II35: 0 | IJ35: 0 | IK35: 0 | IL35: 0 | IM35: 0 | IN35: 0 | IO35: 0 | IP35: 0 | IQ35: 0 | IR35: 0 | IS35: 0 | IT35: 0 | IU35: 0 | IV35: 0 | IW35: 0 | IX35: 175 | IY35: 159 | IZ35: 119 | JA35: 102 | JB35: 102 | JC35: 12 | JD35: 12 | JE35: 12 | JF35: 12 | JG35: 12 | JH35: 12 | JI35: 45 | JJ35: 45 | JK35: 12 | JL35: 12 | JM35: 12 | JN35: 12 | JO35: 12 | JP35: 12 | JQ35: 25 | JR35: 25 | JS35: 12 | JT35: 12 | JU35: 12 | JV35: 12 | JW35: 12 | JX35: 12 | JY35: 31 | JZ35: 31 | KA35: 12 | KB35: 12 | KC35: 12 | KD35: 12 | KE35: 12 | KF35: 12 | KG35: 12 | KH35: 12 | KI35: 12 | KJ35: 12 | KK35: 12 | KL35: 12 | KM35: 12 | KN35: 12 | KO35: 144 | KP35: 12 | KQ35: 12 | KR35: 12 | KS35: 12 | KT35: 12 | KU35: 12 | KV35: 12 | KW35: 12 | KX35: 73 | KY35: 73 | KZ35: 12 | LA35: 12 | LB35: 12 | LC35: 12 | LD35: 12 | LE35: 12 | LF35: 89 | LG35: 90 | LH35: 12 | LI35: 12 | LJ35: 12 | LK35: 12 | LL35: 15 | LM35: 12 | LN35: 55 | LO35: 55 | LP35: 12 | LQ35: 12 | LR35: 12 | LS35: 12 | LT35: 12 | LU35: 12 | LV35: 115 | LW35: 133 | LX35: 12 | LY35: 11 | LZ35: 12 | MA35: 12 | MB35: 14 | MC35: 53 | MD35: 12 | ME35: 12 | MF35: 12 | MG35: 12 | MH35: 12 | MI35: 12 | MJ35: 12 | MK35: 12 | ML35: 12 | MM35: 12 | MN35: 12 | MO35: 12 | MP35: 12 | MQ35: 12 | MR35: 12 | MS35: 12 | MT35: 12 | MU35: 12 | MV35: 12 | MW35: 12 | MX35: 12 | MY35: 12 | MZ35: 12 | NA35: 12 | NB35: 12 | NC35: 12 | ND35: 12 | NE35: 12 | NF35: 12 | NG35: 12 | NH35: 12 | NI35: 12 | NJ35: 12 | NK35: 12 | NL35: 12 | NM35: 12 | NN35: 12 | NO35: 12 | NP35: 12 | NQ35: 12 | NR35: 12 | NS35: 151 | NT35: 131 | NU35: 63 | NV35: 63 | NW35: 12 | NX35: 12 | NY35: 12 | NZ35: 12 | OA35: 16 | OB35: 12 | OC35: 109 | OD35: 105 | OE35: 12 | OF35: 12 | OG35: 12 | OH35: 12 | OI35: 39 | OJ35: 12 | OK35: 12 | OL35: 12 | OM35: 12 | ON35: 12 | OO35: 12 | OP35: 12 | OQ35: 12 | OR35: 12 | OS35: 12 | OT35: 12 | OU35: 12 | OV35: 12 | OW35: 12 | OX35: 12 | OY35: 12 | OZ35: 12 | PA35: 36 | PB35: 36 | PC35: 12 | PD35: 12 | PE35: 12 | PF35: 12 | PG35: 12 | PH35: 12 | PI35: 113 | PJ35: 35 | PK35: 33 | PL35: 12 | PM35: 12 | PN35: 12 | PO35: 12 | PP35: 9 | PQ35: 12 | PR35: 88 | PS35: 88 | PT35: 12 | PU35: 12 | PV35: 12 | PW35: 12 | PX35: 12 | PY35: 12 | PZ35: 66 | QA35: 46 | QB35: 12 | QC35: 12 | QD35: 12 | QE35: 12 | QF35: 12 | QG35: 40 | QH35: 35 | QI35: 35 | QJ35: 12 | QK35: 12 | QL35: 12 | QM35: 12 | QN35: 12 | QO35: 12 | QP35: 81 | QQ35: 72 | QR35: 12 | QS35: 26 | QT35: 12 | QU35: 12 | QV35: 43 | QW35: 21 | QX35: 12 | QY35: 12 | QZ35: 12 | RA35: 12 | RB35: 12 | RC35: 12 | RD35: 12 | RE35: 12 | RF35: 12 | RG35: 12 | RH35: 12 | RI35: 12 | RJ35: 12 | RK35: 12 | RL35: 12 | RM35: 12 | RN35: 12 | RO35: 12 | RP35: 12 | RQ35: 12 | RR35: 12 | RS35: 12 | RT35: 12 | RU35: 12 | RV35: 12 | RW35: 12 | RX35: 12 | RY35: 12 | RZ35: 12 | SA35: 12 | SB35: 12 | SC35: 12 | SD35: 12 | SE35: 12 | SF35: 12 | SG35: 12 | SH35: 12 | SI35: 12 | SJ35: 12 | SK35: 12 | SL35: 12
A36: 2013thru2017 | B36: 155 | C36: 15500US0638646005 | D36: Amador County | E36: Amador County (part), Kirkwood CDP, California | F36: 1 | G36: 38646 | H36: 5 | I36: 0 | J36: 0 | K36: 0 | L36: 0 | M36: 0 | N36: 0 | O36: 0 | P36: 0 | Q36: 0 | R36: 0 | S36: 0 | T36: 0 | U36: 0 | V36: 0 | W36: 0 | X36: 0 | Y36: 0 | Z36: 0 | AA36: 0 | AB36: 0 | AC36: 0 | AD36: 0 | AE36: 0 | AF36: 0 | AG36: 0 | AH36: 0 | AI36: 0 | AJ36: 0 | AK36: 0 | AL36: 0 | AM36: 0 | AN36: 0 | AO36: 0 | AP36: 0 | AQ36: 0 | AR36: 0 | AS36: 0 | AT36: 0 | AU36: 0 | AV36: 0 | AW36: 0 | AX36: 0 | AY36: 0 | AZ36: 0 | BA36: 0 | BB36: 0 | BC36: 0 | BD36: 0 | BE36: 0 | BF36: 0 | BG36: 0 | BH36: 0 | BI36: 0 | BJ36: 0 | BK36: 0 | BL36: 0 | BM36: 0 | BN36: 0 | BO36: 0 | BP36: 0 | BQ36: 0 | BR36: 0 | BS36: 0 | BT36: 0 | BU36: 0 | BV36: 0 | BW36: 0 | BX36: 0 | BY36: 0 | BZ36: 0 | CA36: 0 | CB36: 0 | CC36: 0 | CD36: 0 | CE36: 0 | CF36: 0 | CG36: 0 | CH36: 0 | CI36: 0 | CJ36: 0 | CK36: 0 | CL36: 0 | CM36: 0 | CN36: 0 | CO36: 0 | CP36: 0 | CQ36: 0 | CR36: 0 | CS36: 0 | CT36: 0 | CU36: 0 | CV36: 0 | CW36: 0 | CX36: 0 | CY36: 0 | CZ36: 0 | DA36: 0 | DB36: 0 | DC36: 0 | DD36: 0 | DE36: 0 | DF36: 0 | DG36: 0 | DH36: 0 | DI36: 0 | DJ36: 0 | DK36: 0 | DL36: 0 | DM36: 0 | DN36: 0 | DO36: 0 | DP36: 0 | DQ36: 0 | DR36: 0 | DS36: 0 | DT36: 0 | DU36: 0 | DV36: 0 | DW36: 0 | DX36: 0 | DY36: 0 | DZ36: 0 | EA36: 0 | EB36: 0 | EC36: 0 | ED36: 0 | EE36: 0 | EF36: 0 | EG36: 0 | EH36: 0 | EI36: 0 | EJ36: 0 | EK36: 0 | EL36: 0 | EM36: 0 | EN36: 0 | EO36: 0 | EP36: 0 | EQ36: 0 | ER36: 0 | ES36: 0 | ET36: 0 | EU36: 0 | EV36: 0 | EW36: 0 | EX36: 0 | EY36: 0 | EZ36: 0 | FA36: 0 | FB36: 0 | FC36: 0 | FD36: 0 | FE36: 0 | FF36: 0 | FG36: 0 | FH36: 0 | FI36: 0 | FJ36: 0 | FK36: 0 | FL36: 0 | FM36: 0 | FN36: 0 | FO36: 0 | FP36: 0 | FQ36: 0 | FR36: 0 | FS36: 0 | FT36: 0 | FU36: 0 | FV36: 0 | FW36: 0 | FX36: 0 | FY36: 0 | FZ36: 0 | GA36: 0 | GB36: 0 | GC36: 0 | GD36: 0 | GE36: 0 | GF36: 0 | GG36: 0 | GH36: 0 | GI36: 0 | GJ36: 0 | GK36: 0 | GL36: 0 | GM36: 0 | GN36: 0 | GO36: 0 | GP36: 0 | GQ36: 0 | GR36: 0 | GS36: 0 | GT36: 0 | GU36: 0 | GV36: 0 | GW36: 0 | GX36: 0 | GY36: 0 | GZ36: 0 | HA36: 0 | HB36: 0 | HC36: 0 | HD36: 0 | HE36: 0 | HF36: 0 | HG36: 0 | HH36: 0 | HI36: 0 | HJ36: 0 | HK36: 0 | HL36: 0 | HM36: 0 | HN36: 0 | HO36: 0 | HP36: 0 | HQ36: 0 | HR36: 0 | HS36: 0 | HT36: 0 | HU36: 0 | HV36: 0 | HW36: 0 | HX36: 0 | HY36: 0 | HZ36: 0 | IA36: 0 | IB36: 0 | IC36: 0 | ID36: 0 | IE36: 0 | IF36: 0 | IG36: 0 | IH36: 0 | II36: 0 | IJ36: 0 | IK36: 0 | IL36: 0 | IM36: 0 | IN36: 0 | IO36: 0 | IP36: 0 | IQ36: 0 | IR36: 0 | IS36: 0 | IT36: 0 | IU36: 0 | IV36: 0 | IW36: 0 | IX36: 0 | IY36: 12 | IZ36: 12 | JA36: 12 | JB36: 12 | JC36: 12 | JD36: 12 | JE36: 12 | JF36: 12 | JG36: 12 | JH36: 12 | JI36: 12 | JJ36: 12 | JK36: 12 | JL36: 12 | JM36: 12 | JN36: 12 | JO36: 12 | JP36: 12 | JQ36: 12 | JR36: 12 | JS36: 12 | JT36: 12 | JU36: 12 | JV36: 12 | JW36: 12 | JX36: 12 | JY36: 12 | JZ36: 12 | KA36: 12 | KB36: 12 | KC36: 12 | KD36: 12 | KE36: 12 | KF36: 12 | KG36: 12 | KH36: 12 | KI36: 12 | KJ36: 12 | KK36: 12 | KL36: 12 | KM36: 12 | KN36: 12 | KO36: 12 | KP36: 12 | KQ36: 12 | KR36: 12 | KS36: 12 | KT36: 12 | KU36: 12 | KV36: 12 | KW36: 12 | KX36: 12 | KY36: 12 | KZ36: 12 | LA36: 12 | LB36: 12 | LC36: 12 | LD36: 12 | LE36: 12 | LF36: 12 | LG36: 12 | LH36: 12 | LI36: 12 | LJ36: 12 | LK36: 12 | LL36: 12 | LM36: 12 | LN36: 12 | LO36: 12 | LP36: 12 | LQ36: 12 | LR36: 12 | LS36: 12 | LT36: 12 | LU36: 12 | LV36: 12 | LW36: 12 | LX36: 12 | LY36: 12 | LZ36: 12 | MA36: 12 | MB36: 12 | MC36: 12 | MD36: 12 | ME36: 12 | MF36: 12 | MG36: 12 | MH36: 12 | MI36: 12 | MJ36: 12 | MK36: 12 | ML36: 12 | MM36: 12 | MN36: 12 | MO36: 12 | MP36: 12 | MQ36: 12 | MR36: 12 | MS36: 12 | MT36: 12 | MU36: 12 | MV36: 12 | MW36: 12 | MX36: 12 | MY36: 12 | MZ36: 12 | NA36: 12 | NB36: 12 | NC36: 12 | ND36: 12 | NE36: 12 | NF36: 12 | NG36: 12 | NH36: 12 | NI36: 12 | NJ36: 12 | NK36: 12 | NL36: 12 | NM36: 12 | NN36: 12 | NO36: 12 | NP36: 12 | NQ36: 12 | NR36: 12 | NS36: 0 | NT36: 12 | NU36: 12 | NV36: 12 | NW36: 12 | NX36: 12 | NY36: 12 | NZ36: 12 | OA36: 12 | OB36: 12 | OC36: 12 | OD36: 12 | OE36: 12 | OF36: 12 | OG36: 12 | OH36: 12 | OI36: 12 | OJ36: 12 | OK36: 12 | OL36: 12 | OM36: 12 | ON36: 12 | OO36: 12 | OP36: 12 | OQ36: 12 | OR36: 12 | OS36: 12 | OT36: 12 | OU36: 12 | OV36: 12 | OW36: 12 | OX36: 12 | OY36: 12 | OZ36: 12 | PA36: 12 | PB36: 12 | PC36: 12 | PD36: 12 | PE36: 12 | PF36: 12 | PG36: 12 | PH36: 12 | PI36: 0 | PJ36: 12 | PK36: 12 | PL36: 12 | PM36: 12 | PN36: 12 | PO36: 12 | PP36: 12 | PQ36: 12 | PR36: 12 | PS36: 12 | PT36: 12 | PU36: 12 | PV36: 12 | PW36: 12 | PX36: 12 | PY36: 12 | PZ36: 12 | QA36: 12 | QB36: 12 | QC36: 12 | QD36: 12 | QE36: 12 | QF36: 12 | QG36: 12 | QH36: 12 | QI36: 12 | QJ36: 12 | QK36: 12 | QL36: 12 | QM36: 12 | QN36: 12 | QO36: 12 | QP36: 0 | QQ36: 0 | QR36: 12 | QS36: 12 | QT36: 12 | QU36: 12 | QV36: 12 | QW36: 12 | QX36: 12 | QY36: 12 | QZ36: 12 | RA36: 12 | RB36: 12 | RC36: 12 | RD36: 12 | RE36: 12 | RF36: 12 | RG36: 12 | RH36: 12 | RI36: 12 | RJ36: 12 | RK36: 12 | RL36: 12 | RM36: 12 | RN36: 12 | RO36: 12 | RP36: 12 | RQ36: 12 | RR36: 12 | RS36: 12 | RT36: 12 | RU36: 12 | RV36: 12 | RW36: 12 | RX36: 12 | RY36: 12 | RZ36: 12 | SA36: 12 | SB36: 12 | SC36: 12 | SD36: 12 | SE36: 12 | SF36: 12 | SG36: 12 | SH36: 12 | SI36: 12 | SJ36: 12 | SK36: 12 | SL36: 12
A37: 2013thru2017 | B37: 155 | C37: 15500US0646100005 | D37: Amador County | E37: Amador County (part), Martell CDP, California | F37: 1 | G37: 46100 | H37: 5 | I37: 90 | J37: 70 | K37: 0 | L37: 0 | M37: 0 | N37: 0 | O37: 0 | P37: 0 | Q37: 0 | R37: 0 | S37: 0 | T37: 0 | U37: 0 | V37: 0 | W37: 0 | X37: 0 | Y37: 0 | Z37: 0 | AA37: 0 | AB37: 0 | AC37: 0 | AD37: 0 | AE37: 0 | AF37: 0 | AG37: 0 | AH37: 0 | AI37: 0 | AJ37: 0 | AK37: 0 | AL37: 0 | AM37: 0 | AN37: 0 | AO37: 0 | AP37: 0 | AQ37: 0 | AR37: 0 | AS37: 0 | AT37: 0 | AU37: 0 | AV37: 0 | AW37: 0 | AX37: 0 | AY37: 0 | AZ37: 70 | BA37: 0 | BB37: 0 | BC37: 0 | BD37: 0 | BE37: 0 | BF37: 0 | BG37: 0 | BH37: 0 | BI37: 0 | BJ37: 0 | BK37: 0 | BL37: 0 | BM37: 0 | BN37: 0 | BO37: 0 | BP37: 0 | BQ37: 20 | BR37: 20 | BS37: 0 | BT37: 0 | BU37: 0 | BV37: 0 | BW37: 0 | BX37: 0 | BY37: 10 | BZ37: 10 | CA37: 0 | CB37: 0 | CC37: 0 | CD37: 0 | CE37: 0 | CF37: 0 | CG37: 40 | CH37: 40 | CI37: 0 | CJ37: 0 | CK37: 0 | CL37: 0 | CM37: 0 | CN37: 0 | CO37: 0 | CP37: 0 | CQ37: 0 | CR37: 0 | CS37: 0 | CT37: 0 | CU37: 0 | CV37: 0 | CW37: 0 | CX37: 0 | CY37: 0 | CZ37: 0 | DA37: 0 | DB37: 0 | DC37: 0 | DD37: 0 | DE37: 0 | DF37: 0 | DG37: 0 | DH37: 0 | DI37: 0 | DJ37: 0 | DK37: 0 | DL37: 0 | DM37: 0 | DN37: 0 | DO37: 0 | DP37: 0 | DQ37: 0 | DR37: 0 | DS37: 0 | DT37: 0 | DU37: 0 | DV37: 0 | DW37: 0 | DX37: 0 | DY37: 0 | DZ37: 0 | EA37: 0 | EB37: 0 | EC37: 0 | ED37: 15 | EE37: 0 | EF37: 0 | EG37: 0 | EH37: 0 | EI37: 0 | EJ37: 0 | EK37: 0 | EL37: 0 | EM37: 0 | EN37: 0 | EO37: 0 | EP37: 0 | EQ37: 0 | ER37: 0 | ES37: 0 | ET37: 0 | EU37: 0 | EV37: 0 | EW37: 0 | EX37: 0 | EY37: 0 | EZ37: 0 | FA37: 0 | FB37: 0 | FC37: 0 | FD37: 0 | FE37: 0 | FF37: 0 | FG37: 0 | FH37: 0 | FI37: 0 | FJ37: 0 | FK37: 0 | FL37: 0 | FM37: 0 | FN37: 0 | FO37: 0 | FP37: 0 | FQ37: 0 | FR37: 0 | FS37: 0 | FT37: 15 | FU37: 0 | FV37: 0 | FW37: 0 | FX37: 0 | FY37: 0 | FZ37: 0 | GA37: 0 | GB37: 0 | GC37: 0 | GD37: 0 | GE37: 0 | GF37: 0 | GG37: 0 | GH37: 0 | GI37: 0 | GJ37: 0 | GK37: 0 | GL37: 0 | GM37: 0 | GN37: 0 | GO37: 0 | GP37: 0 | GQ37: 0 | GR37: 0 | GS37: 4 | GT37: 4 | GU37: 0 | GV37: 0 | GW37: 0 | GX37: 0 | GY37: 0 | GZ37: 0 | HA37: 10 | HB37: 0 | HC37: 0 | HD37: 0 | HE37: 0 | HF37: 0 | HG37: 0 | HH37: 10 | HI37: 0 | HJ37: 0 | HK37: 0 | HL37: 0 | HM37: 0 | HN37: 0 | HO37: 0 | HP37: 0 | HQ37: 0 | HR37: 0 | HS37: 0 | HT37: 0 | HU37: 0 | HV37: 0 | HW37: 0 | HX37: 0 | HY37: 0 | HZ37: 0 | IA37: 0 | IB37: 0 | IC37: 0 | ID37: 0 | IE37: 0 | IF37: 0 | IG37: 0 | IH37: 0 | II37: 0 | IJ37: 0 | IK37: 0 | IL37: 0 | IM37: 0 | IN37: 0 | IO37: 0 | IP37: 0 | IQ37: 0 | IR37: 0 | IS37: 0 | IT37: 0 | IU37: 0 | IV37: 0 | IW37: 0 | IX37: 40 | IY37: 39 | IZ37: 12 | JA37: 12 | JB37: 12 | JC37: 12 | JD37: 12 | JE37: 12 | JF37: 12 | JG37: 12 | JH37: 12 | JI37: 12 | JJ37: 12 | JK37: 12 | JL37: 12 | JM37: 12 | JN37: 12 | JO37: 12 | JP37: 12 | JQ37: 12 | JR37: 12 | JS37: 12 | JT37: 12 | JU37: 12 | JV37: 12 | JW37: 12 | JX37: 12 | JY37: 12 | JZ37: 12 | KA37: 12 | KB37: 12 | KC37: 12 | KD37: 12 | KE37: 12 | KF37: 12 | KG37: 12 | KH37: 12 | KI37: 12 | KJ37: 12 | KK37: 12 | KL37: 12 | KM37: 12 | KN37: 12 | KO37: 39 | KP37: 12 | KQ37: 12 | KR37: 12 | KS37: 12 | KT37: 12 | KU37: 12 | KV37: 12 | KW37: 12 | KX37: 12 | KY37: 12 | KZ37: 12 | LA37: 12 | LB37: 12 | LC37: 12 | LD37: 12 | LE37: 12 | LF37: 36 | LG37: 36 | LH37: 12 | LI37: 12 | LJ37: 12 | LK37: 12 | LL37: 12 | LM37: 12 | LN37: 14 | LO37: 14 | LP37: 12 | LQ37: 12 | LR37: 12 | LS37: 12 | LT37: 12 | LU37: 12 | LV37: 32 | LW37: 32 | LX37: 12 | LY37: 12 | LZ37: 12 | MA37: 12 | MB37: 12 | MC37: 12 | MD37: 12 | ME37: 12 | MF37: 12 | MG37: 12 | MH37: 12 | MI37: 12 | MJ37: 12 | MK37: 12 | ML37: 12 | MM37: 12 | MN37: 12 | MO37: 12 | MP37: 12 | MQ37: 12 | MR37: 12 | MS37: 12 | MT37: 12 | MU37: 12 | MV37: 12 | MW37: 12 | MX37: 12 | MY37: 12 | MZ37: 12 | NA37: 12 | NB37: 12 | NC37: 12 | ND37: 12 | NE37: 12 | NF37: 12 | NG37: 12 | NH37: 12 | NI37: 12 | NJ37: 12 | NK37: 12 | NL37: 12 | NM37: 12 | NN37: 12 | NO37: 12 | NP37: 12 | NQ37: 12 | NR37: 12 | NS37: 23 | NT37: 12 | NU37: 12 | NV37: 12 | NW37: 12 | NX37: 12 | NY37: 12 | NZ37: 12 | OA37: 12 | OB37: 12 | OC37: 12 | OD37: 12 | OE37: 12 | OF37: 12 | OG37: 12 | OH37: 12 | OI37: 12 | OJ37: 12 | OK37: 12 | OL37: 12 | OM37: 12 | ON37: 12 | OO37: 12 | OP37: 12 | OQ37: 12 | OR37: 12 | OS37: 12 | OT37: 12 | OU37: 12 | OV37: 12 | OW37: 12 | OX37: 12 | OY37: 12 | OZ37: 12 | PA37: 12 | PB37: 12 | PC37: 12 | PD37: 12 | PE37: 12 | PF37: 12 | PG37: 12 | PH37: 12 | PI37: 23 | PJ37: 12 | PK37: 12 | PL37: 12 | PM37: 12 | PN37: 12 | PO37: 12 | PP37: 12 | PQ37: 12 | PR37: 12 | PS37: 12 | PT37: 12 | PU37: 12 | PV37: 12 | PW37: 12 | PX37: 12 | PY37: 12 | PZ37: 12 | QA37: 12 | QB37: 12 | QC37: 12 | QD37: 12 | QE37: 12 | QF37: 12 | QG37: 12 | QH37: 18 | QI37: 18 | QJ37: 12 | QK37: 12 | QL37: 12 | QM37: 12 | QN37: 12 | QO37: 12 | QP37: 15 | QQ37: 12 | QR37: 12 | QS37: 12 | QT37: 12 | QU37: 12 | QV37: 12 | QW37: 15 | QX37: 12 | QY37: 12 | QZ37: 12 | RA37: 12 | RB37: 12 | RC37: 12 | RD37: 12 | RE37: 12 | RF37: 12 | RG37: 12 | RH37: 12 | RI37: 12 | RJ37: 12 | RK37: 12 | RL37: 12 | RM37: 12 | RN37: 12 | RO37: 12 | RP37: 12 | RQ37: 12 | RR37: 12 | RS37: 12 | RT37: 12 | RU37: 12 | RV37: 12 | RW37: 12 | RX37: 12 | RY37: 12 | RZ37: 12 | SA37: 12 | SB37: 12 | SC37: 12 | SD37: 12 | SE37: 12 | SF37: 12 | SG37: 12 | SH37: 12 | SI37: 12 | SJ37: 12 | SK37: 12 | SL37: 12
A38: 2013thru2017 | B38: 155 | C38: 15500US0657148005 | D38: Amador County | E38: Amador County (part), Pine Grove CDP, California | F38: 1 | G38: 57148 | H38: 5 | I38: 1010 | J38: 755 | K38: 160 | L38: 25 | M38: 25 | N38: 0 | O38: 0 | P38: 0 | Q38: 0 | R38: 0 | S38: 0 | T38: 55 | U38: 55 | V38: 0 | W38: 0 | X38: 0 | Y38: 0 | Z38: 0 | AA38: 0 | AB38: 35 | AC38: 35 | AD38: 0 | AE38: 0 | AF38: 0 | AG38: 0 | AH38: 0 | AI38: 0 | AJ38: 0 | AK38: 0 | AL38: 0 | AM38: 0 | AN38: 0 | AO38: 0 | AP38: 0 | AQ38: 0 | AR38: 45 | AS38: 0 | AT38: 0 | AU38: 0 | AV38: 0 | AW38: 0 | AX38: 45 | AY38: 0 | AZ38: 580 | BA38: 10 | BB38: 10 | BC38: 0 | BD38: 0 | BE38: 0 | BF38: 0 | BG38: 0 | BH38: 0 | BI38: 50 | BJ38: 50 | BK38: 0 | BL38: 0 | BM38: 0 | BN38: 0 | BO38: 0 | BP38: 0 | BQ38: 85 | BR38: 85 | BS38: 0 | BT38: 0 | BU38: 0 | BV38: 0 | BW38: 0 | BX38: 0 | BY38: 55 | BZ38: 55 | CA38: 0 | CB38: 0 | CC38: 0 | CD38: 0 | CE38: 0 | CF38: 0 | CG38: 385 | CH38: 360 | CI38: 0 | CJ38: 0 | CK38: 0 | CL38: 0 | CM38: 20 | CN38: 4 | CO38: 15 | CP38: 15 | CQ38: 0 | CR38: 0 | CS38: 0 | CT38: 0 | CU38: 0 | CV38: 15 | CW38: 0 | CX38: 0 | CY38: 0 | CZ38: 0 | DA38: 0 | DB38: 0 | DC38: 0 | DD38: 0 | DE38: 0 | DF38: 0 | DG38: 0 | DH38: 0 | DI38: 0 | DJ38: 0 | DK38: 0 | DL38: 0 | DM38: 0 | DN38: 0 | DO38: 0 | DP38: 0 | DQ38: 0 | DR38: 0 | DS38: 0 | DT38: 0 | DU38: 0 | DV38: 0 | DW38: 0 | DX38: 0 | DY38: 0 | DZ38: 0 | EA38: 0 | EB38: 0 | EC38: 0 | ED38: 250 | EE38: 70 | EF38: 20 | EG38: 0 | EH38: 0 | EI38: 0 | EJ38: 0 | EK38: 0 | EL38: 0 | EM38: 20 | EN38: 35 | EO38: 35 | EP38: 0 | EQ38: 0 | ER38: 0 | ES38: 0 | ET38: 0 | EU38: 0 | EV38: 0 | EW38: 0 | EX38: 0 | EY38: 0 | EZ38: 0 | FA38: 0 | FB38: 0 | FC38: 0 | FD38: 0 | FE38: 0 | FF38: 0 | FG38: 0 | FH38: 0 | FI38: 0 | FJ38: 0 | FK38: 0 | FL38: 15 | FM38: 15 | FN38: 0 | FO38: 0 | FP38: 0 | FQ38: 0 | FR38: 0 | FS38: 0 | FT38: 185 | FU38: 0 | FV38: 0 | FW38: 0 | FX38: 0 | FY38: 0 | FZ38: 0 | GA38: 0 | GB38: 0 | GC38: 100 | GD38: 100 | GE38: 0 | GF38: 0 | GG38: 0 | GH38: 0 | GI38: 0 | GJ38: 0 | GK38: 60 | GL38: 60 | GM38: 0 | GN38: 0 | GO38: 0 | GP38: 0 | GQ38: 0 | GR38: 0 | GS38: 0 | GT38: 0 | GU38: 0 | GV38: 0 | GW38: 0 | GX38: 0 | GY38: 0 | GZ38: 0 | HA38: 25 | HB38: 25 | HC38: 0 | HD38: 0 | HE38: 0 | HF38: 0 | HG38: 0 | HH38: 0 | HI38: 0 | HJ38: 0 | HK38: 0 | HL38: 0 | HM38: 0 | HN38: 0 | HO38: 0 | HP38: 0 | HQ38: 0 | HR38: 0 | HS38: 0 | HT38: 0 | HU38: 0 | HV38: 0 | HW38: 0 | HX38: 0 | HY38: 0 | HZ38: 0 | IA38: 0 | IB38: 0 | IC38: 0 | ID38: 0 | IE38: 0 | IF38: 0 | IG38: 0 | IH38: 0 | II38: 0 | IJ38: 0 | IK38: 0 | IL38: 0 | IM38: 0 | IN38: 0 | IO38: 0 | IP38: 0 | IQ38: 0 | IR38: 0 | IS38: 0 | IT38: 0 | IU38: 0 | IV38: 0 | IW38: 0 | IX38: 172 | IY38: 173 | IZ38: 101 | JA38: 33 | JB38: 33 | JC38: 12 | JD38: 12 | JE38: 12 | JF38: 12 | JG38: 12 | JH38: 12 | JI38: 65 | JJ38: 65 | JK38: 12 | JL38: 12 | JM38: 12 | JN38: 12 | JO38: 12 | JP38: 12 | JQ38: 44 | JR38: 44 | JS38: 12 | JT38: 12 | JU38: 12 | JV38: 12 | JW38: 12 | JX38: 12 | JY38: 12 | JZ38: 12 | KA38: 12 | KB38: 12 | KC38: 12 | KD38: 12 | KE38: 12 | KF38: 12 | KG38: 57 | KH38: 12 | KI38: 12 | KJ38: 12 | KK38: 12 | KL38: 12 | KM38: 57 | KN38: 12 | KO38: 164 | KP38: 16 | KQ38: 16 | KR38: 12 | KS38: 12 | KT38: 12 | KU38: 12 | KV38: 12 | KW38: 12 | KX38: 54 | KY38: 54 | KZ38: 12 | LA38: 12 | LB38: 12 | LC38: 12 | LD38: 12 | LE38: 12 | LF38: 73 | LG38: 73 | LH38: 12 | LI38: 12 | LJ38: 12 | LK38: 12 | LL38: 12 | LM38: 12 | LN38: 64 | LO38: 64 | LP38: 12 | LQ38: 12 | LR38: 12 | LS38: 12 | LT38: 12 | LU38: 12 | LV38: 163 | LW38: 157 | LX38: 12 | LY38: 12 | LZ38: 12 | MA38: 12 | MB38: 29 | MC38: 11 | MD38: 31 | ME38: 31 | MF38: 12 | MG38: 12 | MH38: 12 | MI38: 12 | MJ38: 12 | MK38: 31 | ML38: 12 | MM38: 12 | MN38: 12 | MO38: 12 | MP38: 12 | MQ38: 12 | MR38: 12 | MS38: 12 | MT38: 12 | MU38: 12 | MV38: 12 | MW38: 12 | MX38: 12 | MY38: 12 | MZ38: 12 | NA38: 12 | NB38: 12 | NC38: 12 | ND38: 12 | NE38: 12 | NF38: 12 | NG38: 12 | NH38: 12 | NI38: 12 | NJ38: 12 | NK38: 12 | NL38: 12 | NM38: 12 | NN38: 12 | NO38: 12 | NP38: 12 | NQ38: 12 | NR38: 12 | NS38: 153 | NT38: 64 | NU38: 24 | NV38: 12 | NW38: 12 | NX38: 12 | NY38: 12 | NZ38: 12 | OA38: 12 | OB38: 24 | OC38: 59 | OD38: 59 | OE38: 12 | OF38: 12 | OG38: 12 | OH38: 12 | OI38: 12 | OJ38: 12 | OK38: 12 | OL38: 12 | OM38: 12 | ON38: 12 | OO38: 12 | OP38: 12 | OQ38: 12 | OR38: 12 | OS38: 12 | OT38: 12 | OU38: 12 | OV38: 12 | OW38: 12 | OX38: 12 | OY38: 12 | OZ38: 12 | PA38: 23 | PB38: 23 | PC38: 12 | PD38: 12 | PE38: 12 | PF38: 12 | PG38: 12 | PH38: 12 | PI38: 142 | PJ38: 12 | PK38: 12 | PL38: 12 | PM38: 12 | PN38: 12 | PO38: 12 | PP38: 12 | PQ38: 12 | PR38: 115 | PS38: 115 | PT38: 12 | PU38: 12 | PV38: 12 | PW38: 12 | PX38: 12 | PY38: 12 | PZ38: 70 | QA38: 70 | QB38: 12 | QC38: 12 | QD38: 12 | QE38: 12 | QF38: 12 | QG38: 12 | QH38: 12 | QI38: 12 | QJ38: 12 | QK38: 12 | QL38: 12 | QM38: 12 | QN38: 12 | QO38: 12 | QP38: 41 | QQ38: 41 | QR38: 12 | QS38: 12 | QT38: 12 | QU38: 12 | QV38: 12 | QW38: 12 | QX38: 12 | QY38: 12 | QZ38: 12 | RA38: 12 | RB38: 12 | RC38: 12 | RD38: 12 | RE38: 12 | RF38: 12 | RG38: 12 | RH38: 12 | RI38: 12 | RJ38: 12 | RK38: 12 | RL38: 12 | RM38: 12 | RN38: 12 | RO38: 12 | RP38: 12 | RQ38: 12 | RR38: 12 | RS38: 12 | RT38: 12 | RU38: 12 | RV38: 12 | RW38: 12 | RX38: 12 | RY38: 12 | RZ38: 12 | SA38: 12 | SB38: 12 | SC38: 12 | SD38: 12 | SE38: 12 | SF38: 12 | SG38: 12 | SH38: 12 | SI38: 12 | SJ38: 12 | SK38: 12 | SL38: 12
A39: 2013thru2017 | B39: 155 | C39: 15500US0657330005 | D39: Amador County | E39: Amador County (part), Pioneer CDP, California | F39: 1 | G39: 57330 | H39: 5 | I39: 615 | J39: 570 | K39: 55 | L39: 25 | M39: 0 | N39: 0 | O39: 0 | P39: 0 | Q39: 0 | R39: 25 | S39: 0 | T39: 0 | U39: 0 | V39: 0 | W39: 0 | X39: 0 | Y39: 0 | Z39: 0 | AA39: 0 | AB39: 35 | AC39: 35 | AD39: 0 | AE39: 0 | AF39: 0 | AG39: 0 | AH39: 0 | AI39: 0 | AJ39: 0 | AK39: 0 | AL39: 0 | AM39: 0 | AN39: 0 | AO39: 0 | AP39: 0 | AQ39: 0 | AR39: 0 | AS39: 0 | AT39: 0 | AU39: 0 | AV39: 0 | AW39: 0 | AX39: 0 | AY39: 0 | AZ39: 515 | BA39: 0 | BB39: 0 | BC39: 0 | BD39: 0 | BE39: 0 | BF39: 0 | BG39: 0 | BH39: 0 | BI39: 40 | BJ39: 40 | BK39: 0 | BL39: 0 | BM39: 0 | BN39: 0 | BO39: 0 | BP39: 0 | BQ39: 95 | BR39: 90 | BS39: 0 | BT39: 0 | BU39: 0 | BV39: 0 | BW39: 0 | BX39: 4 | BY39: 35 | BZ39: 25 | CA39: 0 | CB39: 0 | CC39: 0 | CD39: 0 | CE39: 10 | CF39: 0 | CG39: 345 | CH39: 215 | CI39: 0 | CJ39: 0 | CK39: 0 | CL39: 0 | CM39: 110 | CN39: 20 | CO39: 0 | CP39: 0 | CQ39: 0 | CR39: 0 | CS39: 0 | CT39: 0 | CU39: 0 | CV39: 0 | CW39: 0 | CX39: 0 | CY39: 0 | CZ39: 0 | DA39: 0 | DB39: 0 | DC39: 0 | DD39: 0 | DE39: 0 | DF39: 0 | DG39: 0 | DH39: 0 | DI39: 0 | DJ39: 0 | DK39: 0 | DL39: 0 | DM39: 0 | DN39: 0 | DO39: 0 | DP39: 0 | DQ39: 0 | DR39: 0 | DS39: 0 | DT39: 0 | DU39: 0 | DV39: 0 | DW39: 0 | DX39: 0 | DY39: 0 | DZ39: 0 | EA39: 0 | EB39: 0 | EC39: 0 | ED39: 45 | EE39: 35 | EF39: 4 | EG39: 0 | EH39: 0 | EI39: 0 | EJ39: 4 | EK39: 0 | EL39: 0 | EM39: 0 | EN39: 25 | EO39: 25 | EP39: 0 | EQ39: 0 | ER39: 0 | ES39: 0 | ET39: 0 | EU39: 0 | EV39: 0 | EW39: 0 | EX39: 0 | EY39: 0 | EZ39: 0 | FA39: 0 | FB39: 0 | FC39: 0 | FD39: 0 | FE39: 0 | FF39: 0 | FG39: 0 | FH39: 0 | FI39: 0 | FJ39: 0 | FK39: 0 | FL39: 0 | FM39: 0 | FN39: 0 | FO39: 0 | FP39: 0 | FQ39: 0 | FR39: 0 | FS39: 0 | FT39: 10 | FU39: 0 | FV39: 0 | FW39: 0 | FX39: 0 | FY39: 0 | FZ39: 0 | GA39: 0 | GB39: 0 | GC39: 0 | GD39: 0 | GE39: 0 | GF39: 0 | GG39: 0 | GH39: 0 | GI39: 0 | GJ39: 0 | GK39: 0 | GL39: 0 | GM39: 0 | GN39: 0 | GO39: 0 | GP39: 0 | GQ39: 0 | GR39: 0 | GS39: 10 | GT39: 10 | GU39: 0 | GV39: 0 | GW39: 0 | GX39: 0 | GY39: 0 | GZ39: 0 | HA39: 0 | HB39: 0 | HC39: 0 | HD39: 0 | HE39: 0 | HF39: 0 | HG39: 0 | HH39: 0 | HI39: 0 | HJ39: 0 | HK39: 0 | HL39: 0 | HM39: 0 | HN39: 0 | HO39: 0 | HP39: 0 | HQ39: 0 | HR39: 0 | HS39: 0 | HT39: 0 | HU39: 0 | HV39: 0 | HW39: 0 | HX39: 0 | HY39: 0 | HZ39: 0 | IA39: 0 | IB39: 0 | IC39: 0 | ID39: 0 | IE39: 0 | IF39: 0 | IG39: 0 | IH39: 0 | II39: 0 | IJ39: 0 | IK39: 0 | IL39: 0 | IM39: 0 | IN39: 0 | IO39: 0 | IP39: 0 | IQ39: 0 | IR39: 0 | IS39: 0 | IT39: 0 | IU39: 0 | IV39: 0 | IW39: 0 | IX39: 167 | IY39: 159 | IZ39: 58 | JA39: 36 | JB39: 12 | JC39: 12 | JD39: 12 | JE39: 12 | JF39: 12 | JG39: 36 | JH39: 12 | JI39: 12 | JJ39: 12 | JK39: 12 | JL39: 12 | JM39: 12 | JN39: 12 | JO39: 12 | JP39: 12 | JQ39: 52 | JR39: 52 | JS39: 12 | JT39: 12 | JU39: 12 | JV39: 12 | JW39: 12 | JX39: 12 | JY39: 12 | JZ39: 12 | KA39: 12 | KB39: 12 | KC39: 12 | KD39: 12 | KE39: 12 | KF39: 12 | KG39: 12 | KH39: 12 | KI39: 12 | KJ39: 12 | KK39: 12 | KL39: 12 | KM39: 12 | KN39: 12 | KO39: 148 | KP39: 12 | KQ39: 12 | KR39: 12 | KS39: 12 | KT39: 12 | KU39: 12 | KV39: 12 | KW39: 12 | KX39: 41 | KY39: 41 | KZ39: 12 | LA39: 12 | LB39: 12 | LC39: 12 | LD39: 12 | LE39: 12 | LF39: 69 | LG39: 69 | LH39: 12 | LI39: 12 | LJ39: 12 | LK39: 12 | LL39: 12 | LM39: 11 | LN39: 28 | LO39: 27 | LP39: 12 | LQ39: 12 | LR39: 12 | LS39: 12 | LT39: 14 | LU39: 12 | LV39: 144 | LW39: 98 | LX39: 12 | LY39: 12 | LZ39: 12 | MA39: 12 | MB39: 118 | MC39: 33 | MD39: 12 | ME39: 12 | MF39: 12 | MG39: 12 | MH39: 12 | MI39: 12 | MJ39: 12 | MK39: 12 | ML39: 12 | MM39: 12 | MN39: 12 | MO39: 12 | MP39: 12 | MQ39: 12 | MR39: 12 | MS39: 12 | MT39: 12 | MU39: 12 | MV39: 12 | MW39: 12 | MX39: 12 | MY39: 12 | MZ39: 12 | NA39: 12 | NB39: 12 | NC39: 12 | ND39: 12 | NE39: 12 | NF39: 12 | NG39: 12 | NH39: 12 | NI39: 12 | NJ39: 12 | NK39: 12 | NL39: 12 | NM39: 12 | NN39: 12 | NO39: 12 | NP39: 12 | NQ39: 12 | NR39: 12 | NS39: 48 | NT39: 46 | NU39: 17 | NV39: 12 | NW39: 12 | NX39: 12 | NY39: 17 | NZ39: 12 | OA39: 12 | OB39: 12 | OC39: 42 | OD39: 42 | OE39: 12 | OF39: 12 | OG39: 12 | OH39: 12 | OI39: 12 | OJ39: 12 | OK39: 12 | OL39: 12 | OM39: 12 | ON39: 12 | OO39: 12 | OP39: 12 | OQ39: 12 | OR39: 12 | OS39: 12 | OT39: 12 | OU39: 12 | OV39: 12 | OW39: 12 | OX39: 12 | OY39: 12 | OZ39: 12 | PA39: 12 | PB39: 12 | PC39: 12 | PD39: 12 | PE39: 12 | PF39: 12 | PG39: 12 | PH39: 12 | PI39: 17 | PJ39: 12 | PK39: 12 | PL39: 12 | PM39: 12 | PN39: 12 | PO39: 12 | PP39: 12 | PQ39: 12 | PR39: 12 | PS39: 12 | PT39: 12 | PU39: 12 | PV39: 12 | PW39: 12 | PX39: 12 | PY39: 12 | PZ39: 12 | QA39: 12 | QB39: 12 | QC39: 12 | QD39: 12 | QE39: 12 | QF39: 12 | QG39: 12 | QH39: 17 | QI39: 17 | QJ39: 12 | QK39: 12 | QL39: 12 | QM39: 12 | QN39: 12 | QO39: 12 | QP39: 12 | QQ39: 12 | QR39: 12 | QS39: 12 | QT39: 12 | QU39: 12 | QV39: 12 | QW39: 12 | QX39: 12 | QY39: 12 | QZ39: 12 | RA39: 12 | RB39: 12 | RC39: 12 | RD39: 12 | RE39: 12 | RF39: 12 | RG39: 12 | RH39: 12 | RI39: 12 | RJ39: 12 | RK39: 12 | RL39: 12 | RM39: 12 | RN39: 12 | RO39: 12 | RP39: 12 | RQ39: 12 | RR39: 12 | RS39: 12 | RT39: 12 | RU39: 12 | RV39: 12 | RW39: 12 | RX39: 12 | RY39: 12 | RZ39: 12 | SA39: 12 | SB39: 12 | SC39: 12 | SD39: 12 | SE39: 12 | SF39: 12 | SG39: 12 | SH39: 12 | SI39: 12 | SJ39: 12 | SK39: 12 | SL39: 12
A40: 2013thru2017 | B40: 155 | C40: 15500US0657834005 | D40: Amador County | E40: Amador County (part), Plymouth city, California | G40: 57834 | H40: 5 | I40: 320 | J40: 245 | K40: 60 | L40: 4 | M40: 4 | N40: 0 | O40: 0 | P40: 4 | Q40: 0 | R40: 0 | S40: 0 | T40: 30 | U40: 4 | V40: 0 | W40: 0 | X40: 0 | Y40: 0 | Z40: 25 | AA40: 0 | AB40: 20 | AC40: 20 | AD40: 0 | AE40: 0 | AF40: 0 | AG40: 0 | AH40: 0 | AI40: 0 | AJ40: 0 | AK40: 0 | AL40: 0 | AM40: 0 | AN40: 0 | AO40: 0 | AP40: 0 | AQ40: 0 | AR40: 4 | AS40: 4 | AT40: 0 | AU40: 0 | AV40: 0 | AW40: 0 | AX40: 0 | AY40: 0 | AZ40: 185 | BA40: 0 | BB40: 0 | BC40: 0 | BD40: 0 | BE40: 0 | BF40: 0 | BG40: 0 | BH40: 0 | BI40: 25 | BJ40: 25 | BK40: 0 | BL40: 0 | BM40: 0 | BN40: 0 | BO40: 0 | BP40: 0 | BQ40: 25 | BR40: 20 | BS40: 0 | BT40: 0 | BU40: 0 | BV40: 0 | BW40: 4 | BX40: 0 | BY40: 4 | BZ40: 4 | CA40: 0 | CB40: 0 | CC40: 0 | CD40: 0 | CE40: 4 | CF40: 0 | CG40: 130 | CH40: 115 | CI40: 0 | CJ40: 0 | CK40: 4 | CL40: 0 | CM40: 4 | CN40: 4 | CO40: 0 | CP40: 0 | CQ40: 0 | CR40: 0 | CS40: 0 | CT40: 0 | CU40: 0 | CV40: 0 | CW40: 0 | CX40: 0 | CY40: 0 | CZ40: 0 | DA40: 0 | DB40: 0 | DC40: 0 | DD40: 0 | DE40: 0 | DF40: 0 | DG40: 0 | DH40: 0 | DI40: 0 | DJ40: 0 | DK40: 0 | DL40: 0 | DM40: 0 | DN40: 0 | DO40: 0 | DP40: 0 | DQ40: 0 | DR40: 0 | DS40: 0 | DT40: 0 | DU40: 0 | DV40: 0 | DW40: 0 | DX40: 0 | DY40: 0 | DZ40: 0 | EA40: 0 | EB40: 0 | EC40: 0 | ED40: 75 | EE40: 4 | EF40: 4 | EG40: 0 | EH40: 0 | EI40: 0 | EJ40: 0 | EK40: 0 | EL40: 0 | EM40: 4 | EN40: 0 | EO40: 0 | EP40: 0 | EQ40: 0 | ER40: 0 | ES40: 0 | ET40: 0 | EU40: 0 | EV40: 0 | EW40: 0 | EX40: 0 | EY40: 0 | EZ40: 0 | FA40: 0 | FB40: 0 | FC40: 0 | FD40: 0 | FE40: 0 | FF40: 0 | FG40: 0 | FH40: 0 | FI40: 0 | FJ40: 0 | FK40: 0 | FL40: 0 | FM40: 0 | FN40: 0 | FO40: 0 | FP40: 0 | FQ40: 0 | FR40: 0 | FS40: 0 | FT40: 70 | FU40: 0 | FV40: 0 | FW40: 0 | FX40: 0 | FY40: 0 | FZ40: 0 | GA40: 0 | GB40: 0 | GC40: 4 | GD40: 4 | GE40: 0 | GF40: 0 | GG40: 0 | GH40: 0 | GI40: 4 | GJ40: 0 | GK40: 25 | GL40: 25 | GM40: 0 | GN40: 0 | GO40: 0 | GP40: 0 | GQ40: 0 | GR40: 0 | GS40: 4 | GT40: 4 | GU40: 0 | GV40: 0 | GW40: 0 | GX40: 0 | GY40: 4 | GZ40: 0 | HA40: 35 | HB40: 20 | HC40: 0 | HD40: 0 | HE40: 0 | HF40: 10 | HG40: 0 | HH40: 4 | HI40: 0 | HJ40: 0 | HK40: 0 | HL40: 0 | HM40: 0 | HN40: 0 | HO40: 0 | HP40: 0 | HQ40: 0 | HR40: 0 | HS40: 0 | HT40: 0 | HU40: 0 | HV40: 0 | HW40: 0 | HX40: 0 | HY40: 0 | HZ40: 0 | IA40: 0 | IB40: 0 | IC40: 0 | ID40: 0 | IE40: 0 | IF40: 0 | IG40: 0 | IH40: 0 | II40: 0 | IJ40: 0 | IK40: 0 | IL40: 0 | IM40: 0 | IN40: 0 | IO40: 0 | IP40: 0 | IQ40: 0 | IR40: 0 | IS40: 0 | IT40: 0 | IU40: 0 | IV40: 0 | IW40: 0 | IX40: 105 | IY40: 90 | IZ40: 44 | JA40: 12 | JB40: 3 | JC40: 12 | JD40: 12 | JE40: 3 | JF40: 12 | JG40: 12 | JH40: 12 | JI40: 36 | JJ40: 9 | JK40: 12 | JL40: 12 | JM40: 12 | JN40: 12 | JO40: 36 | JP40: 12 | JQ40: 26 | JR40: 26 | JS40: 12 | JT40: 12 | JU40: 12 | JV40: 12 | JW40: 12 | JX40: 12 | JY40: 12 | JZ40: 12 | KA40: 12 | KB40: 12 | KC40: 12 | KD40: 12 | KE40: 12 | KF40: 12 | KG40: 5 | KH40: 5 | KI40: 12 | KJ40: 12 | KK40: 12 | KL40: 12 | KM40: 12 | KN40: 12 | KO40: 77 | KP40: 12 | KQ40: 12 | KR40: 12 | KS40: 12 | KT40: 12 | KU40: 12 | KV40: 12 | KW40: 12 | KX40: 25 | KY40: 25 | KZ40: 12 | LA40: 12 | LB40: 12 | LC40: 12 | LD40: 12 | LE40: 12 | LF40: 18 | LG40: 17 | LH40: 12 | LI40: 12 | LJ40: 12 | LK40: 12 | LL40: 12 | LM40: 12 | LN40: 10 | LO40: 3 | LP40: 12 | LQ40: 12 | LR40: 12 | LS40: 12 | LT40: 4 | LU40: 12 | LV40: 74 | LW40: 71 | LX40: 12 | LY40: 12 | LZ40: 5 | MA40: 12 | MB40: 5 | MC40: 13 | MD40: 12 | ME40: 12 | MF40: 12 | MG40: 12 | MH40: 12 | MI40: 12 | MJ40: 12 | MK40: 12 | ML40: 12 | MM40: 12 | MN40: 12 | MO40: 12 | MP40: 12 | MQ40: 12 | MR40: 12 | MS40: 12 | MT40: 12 | MU40: 12 | MV40: 12 | MW40: 12 | MX40: 12 | MY40: 12 | MZ40: 12 | NA40: 12 | NB40: 12 | NC40: 12 | ND40: 12 | NE40: 12 | NF40: 12 | NG40: 12 | NH40: 12 | NI40: 12 | NJ40: 12 | NK40: 12 | NL40: 12 | NM40: 12 | NN40: 12 | NO40: 12 | NP40: 12 | NQ40: 12 | NR40: 12 | NS40: 40 | NT40: 9 | NU40: 9 | NV40: 12 | NW40: 12 | NX40: 12 | NY40: 12 | NZ40: 12 | OA40: 12 | OB40: 9 | OC40: 12 | OD40: 12 | OE40: 12 | OF40: 12 | OG40: 12 | OH40: 12 | OI40: 12 | OJ40: 12 | OK40: 12 | OL40: 12 | OM40: 12 | ON40: 12 | OO40: 12 | OP40: 12 | OQ40: 12 | OR40: 12 | OS40: 12 | OT40: 12 | OU40: 12 | OV40: 12 | OW40: 12 | OX40: 12 | OY40: 12 | OZ40: 12 | PA40: 12 | PB40: 12 | PC40: 12 | PD40: 12 | PE40: 12 | PF40: 12 | PG40: 12 | PH40: 12 | PI40: 39 | PJ40: 12 | PK40: 12 | PL40: 12 | PM40: 12 | PN40: 12 | PO40: 12 | PP40: 12 | PQ40: 12 | PR40: 12 | PS40: 2 | PT40: 12 | PU40: 12 | PV40: 12 | PW40: 12 | PX40: 3 | PY40: 12 | PZ40: 26 | QA40: 26 | QB40: 12 | QC40: 12 | QD40: 12 | QE40: 12 | QF40: 12 | QG40: 12 | QH40: 10 | QI40: 1 | QJ40: 12 | QK40: 12 | QL40: 12 | QM40: 12 | QN40: 2 | QO40: 12 | QP40: 27 | QQ40: 19 | QR40: 12 | QS40: 12 | QT40: 12 | QU40: 17 | QV40: 12 | QW40: 11 | QX40: 12 | QY40: 12 | QZ40: 12 | RA40: 12 | RB40: 12 | RC40: 12 | RD40: 12 | RE40: 12 | RF40: 12 | RG40: 12 | RH40: 12 | RI40: 12 | RJ40: 12 | RK40: 12 | RL40: 12 | RM40: 12 | RN40: 12 | RO40: 12 | RP40: 12 | RQ40: 12 | RR40: 12 | RS40: 12 | RT40: 12 | RU40: 12 | RV40: 12 | RW40: 12 | RX40: 12 | RY40: 12 | RZ40: 12 | SA40: 12 | SB40: 12 | SC40: 12 | SD40: 12 | SE40: 12 | SF40: 12 | SG40: 12 | SH40: 12 | SI40: 12 | SJ40: 12 | SK40: 12 | SL40: 12
A41: 2013thru2017 | B41: 155 | C41: 15500US0659896005 | D41: Amador County | E41: Amador County (part), Red Corral CDP, California | F41: 1 | G41: 59896 | H41: 5 | I41: 685 | J41: 535 | K41: 95 | L41: 40 | M41: 40 | N41: 0 | O41: 0 | P41: 0 | Q41: 0 | R41: 0 | S41: 0 | T41: 45 | U41: 45 | V41: 0 | W41: 0 | X41: 0 | Y41: 0 | Z41: 0 | AA41: 0 | AB41: 10 | AC41: 10 | AD41: 0 | AE41: 0 | AF41: 0 | AG41: 0 | AH41: 0 | AI41: 0 | AJ41: 0 | AK41: 0 | AL41: 0 | AM41: 0 | AN41: 0 | AO41: 0 | AP41: 0 | AQ41: 0 | AR41: 0 | AS41: 0 | AT41: 0 | AU41: 0 | AV41: 0 | AW41: 0 | AX41: 0 | AY41: 0 | AZ41: 440 | BA41: 0 | BB41: 0 | BC41: 0 | BD41: 0 | BE41: 0 | BF41: 0 | BG41: 0 | BH41: 0 | BI41: 4 | BJ41: 4 | BK41: 0 | BL41: 0 | BM41: 0 | BN41: 0 | BO41: 0 | BP41: 0 | BQ41: 20 | BR41: 20 | BS41: 0 | BT41: 0 | BU41: 0 | BV41: 0 | BW41: 0 | BX41: 0 | BY41: 4 | BZ41: 4 | CA41: 0 | CB41: 0 | CC41: 0 | CD41: 0 | CE41: 0 | CF41: 0 | CG41: 405 | CH41: 305 | CI41: 4 | CJ41: 0 | CK41: 0 | CL41: 0 | CM41: 95 | CN41: 0 | CO41: 0 | CP41: 0 | CQ41: 0 | CR41: 0 | CS41: 0 | CT41: 0 | CU41: 0 | CV41: 0 | CW41: 0 | CX41: 0 | CY41: 0 | CZ41: 0 | DA41: 0 | DB41: 0 | DC41: 0 | DD41: 0 | DE41: 0 | DF41: 0 | DG41: 0 | DH41: 0 | DI41: 0 | DJ41: 0 | DK41: 0 | DL41: 0 | DM41: 0 | DN41: 0 | DO41: 0 | DP41: 0 | DQ41: 0 | DR41: 0 | DS41: 0 | DT41: 0 | DU41: 0 | DV41: 0 | DW41: 0 | DX41: 0 | DY41: 0 | DZ41: 0 | EA41: 0 | EB41: 0 | EC41: 0 | ED41: 145 | EE41: 35 | EF41: 35 | EG41: 35 | EH41: 0 | EI41: 0 | EJ41: 0 | EK41: 0 | EL41: 0 | EM41: 0 | EN41: 0 | EO41: 0 | EP41: 0 | EQ41: 0 | ER41: 0 | ES41: 0 | ET41: 0 | EU41: 0 | EV41: 0 | EW41: 0 | EX41: 0 | EY41: 0 | EZ41: 0 | FA41: 0 | FB41: 0 | FC41: 0 | FD41: 0 | FE41: 0 | FF41: 0 | FG41: 0 | FH41: 0 | FI41: 0 | FJ41: 0 | FK41: 0 | FL41: 0 | FM41: 0 | FN41: 0 | FO41: 0 | FP41: 0 | FQ41: 0 | FR41: 0 | FS41: 0 | FT41: 110 | FU41: 0 | FV41: 0 | FW41: 0 | FX41: 0 | FY41: 0 | FZ41: 0 | GA41: 0 | GB41: 0 | GC41: 25 | GD41: 25 | GE41: 0 | GF41: 0 | GG41: 0 | GH41: 0 | GI41: 0 | GJ41: 0 | GK41: 0 | GL41: 0 | GM41: 0 | GN41: 0 | GO41: 0 | GP41: 0 | GQ41: 0 | GR41: 0 | GS41: 0 | GT41: 0 | GU41: 0 | GV41: 0 | GW41: 0 | GX41: 0 | GY41: 0 | GZ41: 0 | HA41: 85 | HB41: 85 | HC41: 0 | HD41: 0 | HE41: 0 | HF41: 0 | HG41: 0 | HH41: 0 | HI41: 0 | HJ41: 0 | HK41: 0 | HL41: 0 | HM41: 0 | HN41: 0 | HO41: 0 | HP41: 0 | HQ41: 0 | HR41: 0 | HS41: 0 | HT41: 0 | HU41: 0 | HV41: 0 | HW41: 0 | HX41: 0 | HY41: 0 | HZ41: 0 | IA41: 0 | IB41: 0 | IC41: 0 | ID41: 0 | IE41: 0 | IF41: 0 | IG41: 0 | IH41: 0 | II41: 0 | IJ41: 0 | IK41: 0 | IL41: 0 | IM41: 0 | IN41: 0 | IO41: 0 | IP41: 0 | IQ41: 0 | IR41: 0 | IS41: 0 | IT41: 0 | IU41: 0 | IV41: 0 | IW41: 0 | IX41: 182 | IY41: 177 | IZ41: 63 | JA41: 49 | JB41: 49 | JC41: 12 | JD41: 12 | JE41: 12 | JF41: 12 | JG41: 12 | JH41: 12 | JI41: 47 | JJ41: 47 | JK41: 12 | JL41: 12 | JM41: 12 | JN41: 12 | JO41: 12 | JP41: 12 | JQ41: 17 | JR41: 17 | JS41: 12 | JT41: 12 | JU41: 12 | JV41: 12 | JW41: 12 | JX41: 12 | JY41: 12 | JZ41: 12 | KA41: 12 | KB41: 12 | KC41: 12 | KD41: 12 | KE41: 12 | KF41: 12 | KG41: 12 | KH41: 12 | KI41: 12 | KJ41: 12 | KK41: 12 | KL41: 12 | KM41: 12 | KN41: 12 | KO41: 155 | KP41: 12 | KQ41: 12 | KR41: 12 | KS41: 12 | KT41: 12 | KU41: 12 | KV41: 12 | KW41: 12 | KX41: 10 | KY41: 10 | KZ41: 12 | LA41: 12 | LB41: 12 | LC41: 12 | LD41: 12 | LE41: 12 | LF41: 22 | LG41: 22 | LH41: 12 | LI41: 12 | LJ41: 12 | LK41: 12 | LL41: 12 | LM41: 12 | LN41: 10 | LO41: 10 | LP41: 12 | LQ41: 12 | LR41: 12 | LS41: 12 | LT41: 12 | LU41: 12 | LV41: 150 | LW41: 130 | LX41: 9 | LY41: 12 | LZ41: 12 | MA41: 12 | MB41: 143 | MC41: 12 | MD41: 12 | ME41: 12 | MF41: 12 | MG41: 12 | MH41: 12 | MI41: 12 | MJ41: 12 | MK41: 12 | ML41: 12 | MM41: 12 | MN41: 12 | MO41: 12 | MP41: 12 | MQ41: 12 | MR41: 12 | MS41: 12 | MT41: 12 | MU41: 12 | MV41: 12 | MW41: 12 | MX41: 12 | MY41: 12 | MZ41: 12 | NA41: 12 | NB41: 12 | NC41: 12 | ND41: 12 | NE41: 12 | NF41: 12 | NG41: 12 | NH41: 12 | NI41: 12 | NJ41: 12 | NK41: 12 | NL41: 12 | NM41: 12 | NN41: 12 | NO41: 12 | NP41: 12 | NQ41: 12 | NR41: 12 | NS41: 116 | NT41: 43 | NU41: 43 | NV41: 43 | NW41: 12 | NX41: 12 | NY41: 12 | NZ41: 12 | OA41: 12 | OB41: 12 | OC41: 12 | OD41: 12 | OE41: 12 | OF41: 12 | OG41: 12 | OH41: 12 | OI41: 12 | OJ41: 12 | OK41: 12 | OL41: 12 | OM41: 12 | ON41: 12 | OO41: 12 | OP41: 12 | OQ41: 12 | OR41: 12 | OS41: 12 | OT41: 12 | OU41: 12 | OV41: 12 | OW41: 12 | OX41: 12 | OY41: 12 | OZ41: 12 | PA41: 12 | PB41: 12 | PC41: 12 | PD41: 12 | PE41: 12 | PF41: 12 | PG41: 12 | PH41: 12 | PI41: 113 | PJ41: 12 | PK41: 12 | PL41: 12 | PM41: 12 | PN41: 12 | PO41: 12 | PP41: 12 | PQ41: 12 | PR41: 44 | PS41: 44 | PT41: 12 | PU41: 12 | PV41: 12 | PW41: 12 | PX41: 12 | PY41: 12 | PZ41: 12 | QA41: 12 | QB41: 12 | QC41: 12 | QD41: 12 | QE41: 12 | QF41: 12 | QG41: 12 | QH41: 12 | QI41: 12 | QJ41: 12 | QK41: 12 | QL41: 12 | QM41: 12 | QN41: 12 | QO41: 12 | QP41: 89 | QQ41: 89 | QR41: 12 | QS41: 12 | QT41: 12 | QU41: 12 | QV41: 12 | QW41: 12 | QX41: 12 | QY41: 12 | QZ41: 12 | RA41: 12 | RB41: 12 | RC41: 12 | RD41: 12 | RE41: 12 | RF41: 12 | RG41: 12 | RH41: 12 | RI41: 12 | RJ41: 12 | RK41: 12 | RL41: 12 | RM41: 12 | RN41: 12 | RO41: 12 | RP41: 12 | RQ41: 12 | RR41: 12 | RS41: 12 | RT41: 12 | RU41: 12 | RV41: 12 | RW41: 12 | RX41: 12 | RY41: 12 | RZ41: 12 | SA41: 12 | SB41: 12 | SC41: 12 | SD41: 12 | SE41: 12 | SF41: 12 | SG41: 12 | SH41: 12 | SI41: 12 | SJ41: 12 | SK41: 12 | SL41: 12
A42: 2013thru2017 | B42: 155 | C42: 15500US0661124005 | D42: Amador County | E42: Amador County (part), River Pines CDP, California | F42: 1 | G42: 61124 | H42: 5 | I42: 180 | J42: 140 | K42: 25 | L42: 0 | M42: 0 | N42: 0 | O42: 0 | P42: 0 | Q42: 0 | R42: 0 | S42: 0 | T42: 0 | U42: 0 | V42: 0 | W42: 0 | X42: 0 | Y42: 0 | Z42: 0 | AA42: 0 | AB42: 0 | AC42: 0 | AD42: 0 | AE42: 0 | AF42: 0 | AG42: 0 | AH42: 0 | AI42: 0 | AJ42: 25 | AK42: 25 | AL42: 0 | AM42: 0 | AN42: 0 | AO42: 0 | AP42: 0 | AQ42: 0 | AR42: 0 | AS42: 0 | AT42: 0 | AU42: 0 | AV42: 0 | AW42: 0 | AX42: 0 | AY42: 0 | AZ42: 115 | BA42: 0 | BB42: 0 | BC42: 0 | BD42: 0 | BE42: 0 | BF42: 0 | BG42: 0 | BH42: 0 | BI42: 60 | BJ42: 60 | BK42: 0 | BL42: 0 | BM42: 0 | BN42: 0 | BO42: 0 | BP42: 0 | BQ42: 10 | BR42: 10 | BS42: 0 | BT42: 0 | BU42: 0 | BV42: 0 | BW42: 0 | BX42: 0 | BY42: 0 | BZ42: 0 | CA42: 0 | CB42: 0 | CC42: 0 | CD42: 0 | CE42: 0 | CF42: 0 | CG42: 45 | CH42: 45 | CI42: 0 | CJ42: 0 | CK42: 0 | CL42: 0 | CM42: 0 | CN42: 0 | CO42: 0 | CP42: 0 | CQ42: 0 | CR42: 0 | CS42: 0 | CT42: 0 | CU42: 0 | CV42: 0 | CW42: 0 | CX42: 0 | CY42: 0 | CZ42: 0 | DA42: 0 | DB42: 0 | DC42: 0 | DD42: 0 | DE42: 0 | DF42: 0 | DG42: 0 | DH42: 0 | DI42: 0 | DJ42: 0 | DK42: 0 | DL42: 0 | DM42: 0 | DN42: 0 | DO42: 0 | DP42: 0 | DQ42: 0 | DR42: 0 | DS42: 0 | DT42: 0 | DU42: 0 | DV42: 0 | DW42: 0 | DX42: 0 | DY42: 0 | DZ42: 0 | EA42: 0 | EB42: 0 | EC42: 0 | ED42: 40 | EE42: 0 | EF42: 0 | EG42: 0 | EH42: 0 | EI42: 0 | EJ42: 0 | EK42: 0 | EL42: 0 | EM42: 0 | EN42: 0 | EO42: 0 | EP42: 0 | EQ42: 0 | ER42: 0 | ES42: 0 | ET42: 0 | EU42: 0 | EV42: 0 | EW42: 0 | EX42: 0 | EY42: 0 | EZ42: 0 | FA42: 0 | FB42: 0 | FC42: 0 | FD42: 0 | FE42: 0 | FF42: 0 | FG42: 0 | FH42: 0 | FI42: 0 | FJ42: 0 | FK42: 0 | FL42: 0 | FM42: 0 | FN42: 0 | FO42: 0 | FP42: 0 | FQ42: 0 | FR42: 0 | FS42: 0 | FT42: 40 | FU42: 0 | FV42: 0 | FW42: 0 | FX42: 0 | FY42: 0 | FZ42: 0 | GA42: 0 | GB42: 0 | GC42: 40 | GD42: 0 | GE42: 0 | GF42: 0 | GG42: 0 | GH42: 0 | GI42: 0 | GJ42: 40 | GK42: 0 | GL42: 0 | GM42: 0 | GN42: 0 | GO42: 0 | GP42: 0 | GQ42: 0 | GR42: 0 | GS42: 0 | GT42: 0 | GU42: 0 | GV42: 0 | GW42: 0 | GX42: 0 | GY42: 0 | GZ42: 0 | HA42: 0 | HB42: 0 | HC42: 0 | HD42: 0 | HE42: 0 | HF42: 0 | HG42: 0 | HH42: 0 | HI42: 0 | HJ42: 0 | HK42: 0 | HL42: 0 | HM42: 0 | HN42: 0 | HO42: 0 | HP42: 0 | HQ42: 0 | HR42: 0 | HS42: 0 | HT42: 0 | HU42: 0 | HV42: 0 | HW42: 0 | HX42: 0 | HY42: 0 | HZ42: 0 | IA42: 0 | IB42: 0 | IC42: 0 | ID42: 0 | IE42: 0 | IF42: 0 | IG42: 0 | IH42: 0 | II42: 0 | IJ42: 0 | IK42: 0 | IL42: 0 | IM42: 0 | IN42: 0 | IO42: 0 | IP42: 0 | IQ42: 0 | IR42: 0 | IS42: 0 | IT42: 0 | IU42: 0 | IV42: 0 | IW42: 0 | IX42: 118 | IY42: 107 | IZ42: 34 | JA42: 12 | JB42: 12 | JC42: 12 | JD42: 12 | JE42: 12 | JF42: 12 | JG42: 12 | JH42: 12 | JI42: 12 | JJ42: 12 | JK42: 12 | JL42: 12 | JM42: 12 | JN42: 12 | JO42: 12 | JP42: 12 | JQ42: 12 | JR42: 12 | JS42: 12 | JT42: 12 | JU42: 12 | JV42: 12 | JW42: 12 | JX42: 12 | JY42: 34 | JZ42: 34 | KA42: 12 | KB42: 12 | KC42: 12 | KD42: 12 | KE42: 12 | KF42: 12 | KG42: 12 | KH42: 12 | KI42: 12 | KJ42: 12 | KK42: 12 | KL42: 12 | KM42: 12 | KN42: 12 | KO42: 102 | KP42: 12 | KQ42: 12 | KR42: 12 | KS42: 12 | KT42: 12 | KU42: 12 | KV42: 12 | KW42: 12 | KX42: 90 | KY42: 90 | KZ42: 12 | LA42: 12 | LB42: 12 | LC42: 12 | LD42: 12 | LE42: 12 | LF42: 22 | LG42: 22 | LH42: 12 | LI42: 12 | LJ42: 12 | LK42: 12 | LL42: 12 | LM42: 12 | LN42: 12 | LO42: 12 | LP42: 12 | LQ42: 12 | LR42: 12 | LS42: 12 | LT42: 12 | LU42: 12 | LV42: 68 | LW42: 68 | LX42: 12 | LY42: 12 | LZ42: 12 | MA42: 12 | MB42: 12 | MC42: 12 | MD42: 12 | ME42: 12 | MF42: 12 | MG42: 12 | MH42: 12 | MI42: 12 | MJ42: 12 | MK42: 12 | ML42: 12 | MM42: 12 | MN42: 12 | MO42: 12 | MP42: 12 | MQ42: 12 | MR42: 12 | MS42: 12 | MT42: 12 | MU42: 12 | MV42: 12 | MW42: 12 | MX42: 12 | MY42: 12 | MZ42: 12 | NA42: 12 | NB42: 12 | NC42: 12 | ND42: 12 | NE42: 12 | NF42: 12 | NG42: 12 | NH42: 12 | NI42: 12 | NJ42: 12 | NK42: 12 | NL42: 12 | NM42: 12 | NN42: 12 | NO42: 12 | NP42: 12 | NQ42: 12 | NR42: 12 | NS42: 51 | NT42: 12 | NU42: 12 | NV42: 12 | NW42: 12 | NX42: 12 | NY42: 12 | NZ42: 12 | OA42: 12 | OB42: 12 | OC42: 12 | OD42: 12 | OE42: 12 | OF42: 12 | OG42: 12 | OH42: 12 | OI42: 12 | OJ42: 12 | OK42: 12 | OL42: 12 | OM42: 12 | ON42: 12 | OO42: 12 | OP42: 12 | OQ42: 12 | OR42: 12 | OS42: 12 | OT42: 12 | OU42: 12 | OV42: 12 | OW42: 12 | OX42: 12 | OY42: 12 | OZ42: 12 | PA42: 12 | PB42: 12 | PC42: 12 | PD42: 12 | PE42: 12 | PF42: 12 | PG42: 12 | PH42: 12 | PI42: 51 | PJ42: 12 | PK42: 12 | PL42: 12 | PM42: 12 | PN42: 12 | PO42: 12 | PP42: 12 | PQ42: 12 | PR42: 51 | PS42: 12 | PT42: 12 | PU42: 12 | PV42: 12 | PW42: 12 | PX42: 12 | PY42: 51 | PZ42: 12 | QA42: 12 | QB42: 12 | QC42: 12 | QD42: 12 | QE42: 12 | QF42: 12 | QG42: 12 | QH42: 12 | QI42: 12 | QJ42: 12 | QK42: 12 | QL42: 12 | QM42: 12 | QN42: 12 | QO42: 12 | QP42: 12 | QQ42: 12 | QR42: 12 | QS42: 12 | QT42: 12 | QU42: 12 | QV42: 12 | QW42: 12 | QX42: 12 | QY42: 12 | QZ42: 12 | RA42: 12 | RB42: 12 | RC42: 12 | RD42: 12 | RE42: 12 | RF42: 12 | RG42: 12 | RH42: 12 | RI42: 12 | RJ42: 12 | RK42: 12 | RL42: 12 | RM42: 12 | RN42: 12 | RO42: 12 | RP42: 12 | RQ42: 12 | RR42: 12 | RS42: 12 | RT42: 12 | RU42: 12 | RV42: 12 | RW42: 12 | RX42: 12 | RY42: 12 | RZ42: 12 | SA42: 12 | SB42: 12 | SC42: 12 | SD42: 12 | SE42: 12 | SF42: 12 | SG42: 12 | SH42: 12 | SI42: 12 | SJ42: 12 | SK42: 12 | SL42: 12
A43: 2013thru2017 | B43: 155 | C43: 15500US0677392005 | D43: Amador County | E43: Amador County (part), Sutter Creek city, California | G43: 77392 | H43: 5 | I43: 1220 | J43: 620 | K43: 75 | L43: 30 | M43: 30 | N43: 0 | O43: 0 | P43: 0 | Q43: 0 | R43: 0 | S43: 0 | T43: 25 | U43: 25 | V43: 0 | W43: 0 | X43: 0 | Y43: 0 | Z43: 0 | AA43: 0 | AB43: 0 | AC43: 0 | AD43: 0 | AE43: 0 | AF43: 0 | AG43: 0 | AH43: 0 | AI43: 0 | AJ43: 4 | AK43: 4 | AL43: 0 | AM43: 0 | AN43: 0 | AO43: 0 | AP43: 0 | AQ43: 0 | AR43: 15 | AS43: 15 | AT43: 0 | AU43: 0 | AV43: 0 | AW43: 0 | AX43: 0 | AY43: 0 | AZ43: 510 | BA43: 15 | BB43: 15 | BC43: 0 | BD43: 0 | BE43: 0 | BF43: 0 | BG43: 0 | BH43: 0 | BI43: 40 | BJ43: 35 | BK43: 0 | BL43: 0 | BM43: 0 | BN43: 0 | BO43: 10 | BP43: 0 | BQ43: 70 | BR43: 70 | BS43: 0 | BT43: 0 | BU43: 0 | BV43: 0 | BW43: 0 | BX43: 0 | BY43: 80 | BZ43: 80 | CA43: 0 | CB43: 0 | CC43: 0 | CD43: 0 | CE43: 0 | CF43: 0 | CG43: 300 | CH43: 280 | CI43: 0 | CJ43: 0 | CK43: 0 | CL43: 0 | CM43: 10 | CN43: 10 | CO43: 35 | CP43: 35 | CQ43: 30 | CR43: 0 | CS43: 0 | CT43: 0 | CU43: 0 | CV43: 4 | CW43: 0 | CX43: 0 | CY43: 0 | CZ43: 0 | DA43: 0 | DB43: 0 | DC43: 0 | DD43: 0 | DE43: 0 | DF43: 0 | DG43: 0 | DH43: 0 | DI43: 0 | DJ43: 0 | DK43: 0 | DL43: 0 | DM43: 0 | DN43: 0 | DO43: 0 | DP43: 0 | DQ43: 0 | DR43: 0 | DS43: 0 | DT43: 0 | DU43: 0 | DV43: 0 | DW43: 0 | DX43: 0 | DY43: 0 | DZ43: 0 | EA43: 0 | EB43: 0 | EC43: 0 | ED43: 600 | EE43: 235 | EF43: 125 | EG43: 100 | EH43: 0 | EI43: 0 | EJ43: 10 | EK43: 0 | EL43: 10 | EM43: 0 | EN43: 70 | EO43: 60 | EP43: 0 | EQ43: 0 | ER43: 4 | ES43: 0 | ET43: 0 | EU43: 4 | EV43: 10 | EW43: 10 | EX43: 0 | EY43: 0 | EZ43: 0 | FA43: 0 | FB43: 4 | FC43: 0 | FD43: 15 | FE43: 15 | FF43: 0 | FG43: 0 | FH43: 0 | FI43: 0 | FJ43: 0 | FK43: 0 | FL43: 15 | FM43: 15 | FN43: 0 | FO43: 0 | FP43: 0 | FQ43: 0 | FR43: 0 | FS43: 0 | FT43: 365 | FU43: 20 | FV43: 20 | FW43: 0 | FX43: 0 | FY43: 0 | FZ43: 0 | GA43: 0 | GB43: 0 | GC43: 55 | GD43: 55 | GE43: 0 | GF43: 0 | GG43: 0 | GH43: 0 | GI43: 0 | GJ43: 0 | GK43: 100 | GL43: 100 | GM43: 0 | GN43: 4 | GO43: 0 | GP43: 0 | GQ43: 0 | GR43: 0 | GS43: 45 | GT43: 15 | GU43: 0 | GV43: 0 | GW43: 0 | GX43: 0 | GY43: 30 | GZ43: 0 | HA43: 140 | HB43: 125 | HC43: 0 | HD43: 4 | HE43: 4 | HF43: 0 | HG43: 0 | HH43: 10 | HI43: 0 | HJ43: 0 | HK43: 0 | HL43: 0 | HM43: 0 | HN43: 0 | HO43: 0 | HP43: 0 | HQ43: 0 | HR43: 0 | HS43: 0 | HT43: 0 | HU43: 0 | HV43: 0 | HW43: 0 | HX43: 0 | HY43: 0 | HZ43: 0 | IA43: 0 | IB43: 0 | IC43: 0 | ID43: 0 | IE43: 0 | IF43: 0 | IG43: 0 | IH43: 0 | II43: 0 | IJ43: 0 | IK43: 0 | IL43: 0 | IM43: 0 | IN43: 0 | IO43: 0 | IP43: 0 | IQ43: 0 | IR43: 0 | IS43: 0 | IT43: 0 | IU43: 0 | IV43: 0 | IW43: 0 | IX43: 123 | IY43: 127 | IZ43: 39 | JA43: 32 | JB43: 32 | JC43: 12 | JD43: 12 | JE43: 12 | JF43: 12 | JG43: 12 | JH43: 12 | JI43: 15 | JJ43: 15 | JK43: 12 | JL43: 12 | JM43: 12 | JN43: 12 | JO43: 12 | JP43: 12 | JQ43: 12 | JR43: 12 | JS43: 12 | JT43: 12 | JU43: 12 | JV43: 12 | JW43: 12 | JX43: 12 | JY43: 8 | JZ43: 8 | KA43: 12 | KB43: 12 | KC43: 12 | KD43: 12 | KE43: 12 | KF43: 12 | KG43: 15 | KH43: 15 | KI43: 12 | KJ43: 12 | KK43: 12 | KL43: 12 | KM43: 12 | KN43: 12 | KO43: 108 | KP43: 24 | KQ43: 24 | KR43: 12 | KS43: 12 | KT43: 12 | KU43: 12 | KV43: 12 | KW43: 12 | KX43: 31 | KY43: 32 | KZ43: 12 | LA43: 12 | LB43: 12 | LC43: 12 | LD43: 14 | LE43: 12 | LF43: 37 | LG43: 37 | LH43: 12 | LI43: 12 | LJ43: 12 | LK43: 12 | LL43: 12 | LM43: 12 | LN43: 41 | LO43: 41 | LP43: 12 | LQ43: 12 | LR43: 12 | LS43: 12 | LT43: 12 | LU43: 12 | LV43: 88 | LW43: 81 | LX43: 12 | LY43: 12 | LZ43: 12 | MA43: 12 | MB43: 17 | MC43: 14 | MD43: 35 | ME43: 35 | MF43: 36 | MG43: 12 | MH43: 12 | MI43: 12 | MJ43: 12 | MK43: 8 | ML43: 12 | MM43: 12 | MN43: 12 | MO43: 12 | MP43: 12 | MQ43: 12 | MR43: 12 | MS43: 12 | MT43: 12 | MU43: 12 | MV43: 12 | MW43: 12 | MX43: 12 | MY43: 12 | MZ43: 12 | NA43: 12 | NB43: 12 | NC43: 12 | ND43: 12 | NE43: 12 | NF43: 12 | NG43: 12 | NH43: 12 | NI43: 12 | NJ43: 12 | NK43: 12 | NL43: 12 | NM43: 12 | NN43: 12 | NO43: 12 | NP43: 12 | NQ43: 12 | NR43: 12 | NS43: 107 | NT43: 76 | NU43: 61 | NV43: 60 | NW43: 12 | NX43: 12 | NY43: 17 | NZ43: 12 | OA43: 16 | OB43: 12 | OC43: 39 | OD43: 40 | OE43: 12 | OF43: 12 | OG43: 1 | OH43: 12 | OI43: 12 | OJ43: 14 | OK43: 15 | OL43: 13 | OM43: 12 | ON43: 12 | OO43: 12 | OP43: 12 | OQ43: 1 | OR43: 12 | OS43: 26 | OT43: 26 | OU43: 12 | OV43: 12 | OW43: 12 | OX43: 12 | OY43: 12 | OZ43: 12 | PA43: 23 | PB43: 23 | PC43: 12 | PD43: 12 | PE43: 12 | PF43: 12 | PG43: 12 | PH43: 12 | PI43: 95 | PJ43: 21 | PK43: 21 | PL43: 12 | PM43: 12 | PN43: 12 | PO43: 12 | PP43: 12 | PQ43: 12 | PR43: 41 | PS43: 41 | PT43: 12 | PU43: 12 | PV43: 12 | PW43: 12 | PX43: 12 | PY43: 12 | PZ43: 55 | QA43: 58 | QB43: 12 | QC43: 7 | QD43: 12 | QE43: 12 | QF43: 12 | QG43: 12 | QH43: 50 | QI43: 17 | QJ43: 12 | QK43: 12 | QL43: 12 | QM43: 12 | QN43: 49 | QO43: 12 | QP43: 49 | QQ43: 48 | QR43: 12 | QS43: 8 | QT43: 4 | QU43: 12 | QV43: 12 | QW43: 15 | QX43: 12 | QY43: 12 | QZ43: 12 | RA43: 12 | RB43: 12 | RC43: 12 | RD43: 12 | RE43: 12 | RF43: 12 | RG43: 12 | RH43: 12 | RI43: 12 | RJ43: 12 | RK43: 12 | RL43: 12 | RM43: 12 | RN43: 12 | RO43: 12 | RP43: 12 | RQ43: 12 | RR43: 12 | RS43: 12 | RT43: 12 | RU43: 12 | RV43: 12 | RW43: 12 | RX43: 12 | RY43: 12 | RZ43: 12 | SA43: 12 | SB43: 12 | SC43: 12 | SD43: 12 | SE43: 12 | SF43: 12 | SG43: 12 | SH43: 12 | SI43: 12 | SJ43: 12 | SK43: 12 | SL43: 12
A44: 2013thru2017 | B44: 155 | C44: 15500US0683094005 | D44: Amador County | E44: Amador County (part), Volcano CDP, California | F44: 1 | G44: 83094 | H44: 5 | I44: 0 | J44: 0 | K44: 0 | L44: 0 | M44: 0 | N44: 0 | O44: 0 | P44: 0 | Q44: 0 | R44: 0 | S44: 0 | T44: 0 | U44: 0 | V44: 0 | W44: 0 | X44: 0 | Y44: 0 | Z44: 0 | AA44: 0 | AB44: 0 | AC44: 0 | AD44: 0 | AE44: 0 | AF44: 0 | AG44: 0 | AH44: 0 | AI44: 0 | AJ44: 0 | AK44: 0 | AL44: 0 | AM44: 0 | AN44: 0 | AO44: 0 | AP44: 0 | AQ44: 0 | AR44: 0 | AS44: 0 | AT44: 0 | AU44: 0 | AV44: 0 | AW44: 0 | AX44: 0 | AY44: 0 | AZ44: 0 | BA44: 0 | BB44: 0 | BC44: 0 | BD44: 0 | BE44: 0 | BF44: 0 | BG44: 0 | BH44: 0 | BI44: 0 | BJ44: 0 | BK44: 0 | BL44: 0 | BM44: 0 | BN44: 0 | BO44: 0 | BP44: 0 | BQ44: 0 | BR44: 0 | BS44: 0 | BT44: 0 | BU44: 0 | BV44: 0 | BW44: 0 | BX44: 0 | BY44: 0 | BZ44: 0 | CA44: 0 | CB44: 0 | CC44: 0 | CD44: 0 | CE44: 0 | CF44: 0 | CG44: 0 | CH44: 0 | CI44: 0 | CJ44: 0 | CK44: 0 | CL44: 0 | CM44: 0 | CN44: 0 | CO44: 0 | CP44: 0 | CQ44: 0 | CR44: 0 | CS44: 0 | CT44: 0 | CU44: 0 | CV44: 0 | CW44: 0 | CX44: 0 | CY44: 0 | CZ44: 0 | DA44: 0 | DB44: 0 | DC44: 0 | DD44: 0 | DE44: 0 | DF44: 0 | DG44: 0 | DH44: 0 | DI44: 0 | DJ44: 0 | DK44: 0 | DL44: 0 | DM44: 0 | DN44: 0 | DO44: 0 | DP44: 0 | DQ44: 0 | DR44: 0 | DS44: 0 | DT44: 0 | DU44: 0 | DV44: 0 | DW44: 0 | DX44: 0 | DY44: 0 | DZ44: 0 | EA44: 0 | EB44: 0 | EC44: 0 | ED44: 0 | EE44: 0 | EF44: 0 | EG44: 0 | EH44: 0 | EI44: 0 | EJ44: 0 | EK44: 0 | EL44: 0 | EM44: 0 | EN44: 0 | EO44: 0 | EP44: 0 | EQ44: 0 | ER44: 0 | ES44: 0 | ET44: 0 | EU44: 0 | EV44: 0 | EW44: 0 | EX44: 0 | EY44: 0 | EZ44: 0 | FA44: 0 | FB44: 0 | FC44: 0 | FD44: 0 | FE44: 0 | FF44: 0 | FG44: 0 | FH44: 0 | FI44: 0 | FJ44: 0 | FK44: 0 | FL44: 0 | FM44: 0 | FN44: 0 | FO44: 0 | FP44: 0 | FQ44: 0 | FR44: 0 | FS44: 0 | FT44: 0 | FU44: 0 | FV44: 0 | FW44: 0 | FX44: 0 | FY44: 0 | FZ44: 0 | GA44: 0 | GB44: 0 | GC44: 0 | GD44: 0 | GE44: 0 | GF44: 0 | GG44: 0 | GH44: 0 | GI44: 0 | GJ44: 0 | GK44: 0 | GL44: 0 | GM44: 0 | GN44: 0 | GO44: 0 | GP44: 0 | GQ44: 0 | GR44: 0 | GS44: 0 | GT44: 0 | GU44: 0 | GV44: 0 | GW44: 0 | GX44: 0 | GY44: 0 | GZ44: 0 | HA44: 0 | HB44: 0 | HC44: 0 | HD44: 0 | HE44: 0 | HF44: 0 | HG44: 0 | HH44: 0 | HI44: 0 | HJ44: 0 | HK44: 0 | HL44: 0 | HM44: 0 | HN44: 0 | HO44: 0 | HP44: 0 | HQ44: 0 | HR44: 0 | HS44: 0 | HT44: 0 | HU44: 0 | HV44: 0 | HW44: 0 | HX44: 0 | HY44: 0 | HZ44: 0 | IA44: 0 | IB44: 0 | IC44: 0 | ID44: 0 | IE44: 0 | IF44: 0 | IG44: 0 | IH44: 0 | II44: 0 | IJ44: 0 | IK44: 0 | IL44: 0 | IM44: 0 | IN44: 0 | IO44: 0 | IP44: 0 | IQ44: 0 | IR44: 0 | IS44: 0 | IT44: 0 | IU44: 0 | IV44: 0 | IW44: 0 | IX44: 0 | IY44: 0 | IZ44: 12 | JA44: 12 | JB44: 12 | JC44: 12 | JD44: 12 | JE44: 12 | JF44: 12 | JG44: 12 | JH44: 12 | JI44: 12 | JJ44: 12 | JK44: 12 | JL44: 12 | JM44: 12 | JN44: 12 | JO44: 12 | JP44: 12 | JQ44: 12 | JR44: 12 | JS44: 12 | JT44: 12 | JU44: 12 | JV44: 12 | JW44: 12 | JX44: 12 | JY44: 12 | JZ44: 12 | KA44: 12 | KB44: 12 | KC44: 12 | KD44: 12 | KE44: 12 | KF44: 12 | KG44: 12 | KH44: 12 | KI44: 12 | KJ44: 12 | KK44: 12 | KL44: 12 | KM44: 12 | KN44: 12 | KO44: 0 | KP44: 12 | KQ44: 12 | KR44: 12 | KS44: 12 | KT44: 12 | KU44: 12 | KV44: 12 | KW44: 12 | KX44: 12 | KY44: 12 | KZ44: 12 | LA44: 12 | LB44: 12 | LC44: 12 | LD44: 12 | LE44: 12 | LF44: 12 | LG44: 12 | LH44: 12 | LI44: 12 | LJ44: 12 | LK44: 12 | LL44: 12 | LM44: 12 | LN44: 12 | LO44: 12 | LP44: 12 | LQ44: 12 | LR44: 12 | LS44: 12 | LT44: 12 | LU44: 12 | LV44: 0 | LW44: 12 | LX44: 12 | LY44: 0 | LZ44: 12 | MA44: 12 | MB44: 12 | MC44: 12 | MD44: 12 | ME44: 12 | MF44: 12 | MG44: 12 | MH44: 12 | MI44: 12 | MJ44: 12 | MK44: 12 | ML44: 12 | MM44: 12 | MN44: 12 | MO44: 12 | MP44: 12 | MQ44: 12 | MR44: 12 | MS44: 12 | MT44: 12 | MU44: 12 | MV44: 12 | MW44: 12 | MX44: 12 | MY44: 12 | MZ44: 12 | NA44: 12 | NB44: 12 | NC44: 12 | ND44: 12 | NE44: 12 | NF44: 12 | NG44: 12 | NH44: 12 | NI44: 12 | NJ44: 12 | NK44: 12 | NL44: 12 | NM44: 12 | NN44: 12 | NO44: 12 | NP44: 12 | NQ44: 12 | NR44: 12 | NS44: 0 | NT44: 12 | NU44: 12 | NV44: 12 | NW44: 12 | NX44: 12 | NY44: 12 | NZ44: 12 | OA44: 12 | OB44: 12 | OC44: 12 | OD44: 12 | OE44: 12 | OF44: 12 | OG44: 12 | OH44: 12 | OI44: 12 | OJ44: 12 | OK44: 12 | OL44: 12 | OM44: 12 | ON44: 12 | OO44: 12 | OP44: 12 | OQ44: 12 | OR44: 12 | OS44: 12 | OT44: 12 | OU44: 12 | OV44: 12 | OW44: 12 | OX44: 12 | OY44: 12 | OZ44: 12 | PA44: 12 | PB44: 12 | PC44: 12 | PD44: 12 | PE44: 12 | PF44: 12 | PG44: 12 | PH44: 12 | PI44: 0 | PJ44: 12 | PK44: 12 | PL44: 12 | PM44: 12 | PN44: 12 | PO44: 12 | PP44: 12 | PQ44: 12 | PR44: 12 | PS44: 12 | PT44: 12 | PU44: 12 | PV44: 12 | PW44: 12 | PX44: 12 | PY44: 12 | PZ44: 12 | QA44: 12 | QB44: 12 | QC44: 12 | QD44: 12 | QE44: 12 | QF44: 12 | QG44: 12 | QH44: 0 | QI44: 0 | QJ44: 12 | QK44: 12 | QL44: 12 | QM44: 12 | QN44: 12 | QO44: 12 | QP44: 12 | QQ44: 12 | QR44: 12 | QS44: 12 | QT44: 12 | QU44: 12 | QV44: 12 | QW44: 12 | QX44: 12 | QY44: 12 | QZ44: 12 | RA44: 12 | RB44: 12 | RC44: 12 | RD44: 12 | RE44: 12 | RF44: 12 | RG44: 12 | RH44: 12 | RI44: 12 | RJ44: 12 | RK44: 12 | RL44: 12 | RM44: 12 | RN44: 12 | RO44: 12 | RP44: 12 | RQ44: 12 | RR44: 12 | RS44: 12 | RT44: 12 | RU44: 12 | RV44: 12 | RW44: 12 | RX44: 12 | RY44: 12 | RZ44: 12 | SA44: 12 | SB44: 12 | SC44: 12 | SD44: 12 | SE44: 12 | SF44: 12 | SG44: 12 | SH44: 12 | SI44: 12 | SJ44: 12 | SK44: 12 | SL44: 12
